Workbook

Sheet 產品圖片

Sheet 說明
B1: 訂單填表 | C1: 訂單下載 | D1: 訂購信箱 | F1: 嗎啡館 | H1: 新竹物流查詢 | I1: 郵局包裹查詢 | J1: 7-11交貨便網站
B3: 特別聲明
B4: 注意>本表單視同出貨單，當收到您的訂單時，我們會直接將[訂單列印]出來，並依照訂單內容烘焙備貨，盡量達成當日出貨。
B5: 所以傳送訂單前，請您一定要再次檢查確認您填寫的所有內容唷!!
B6: 訂單列印後將無法做修改，只能取消訂單；如要追加請另成立1張訂單。頻繁取消訂單者將列入拒絕往來。
B7: (*取消訂單會打亂整個烘焙排程及銷毀標籤和包裝袋，甚至浪費已烘焙好的豆子，請能理解)
B9: 產品填表說明>
B10: 1>磨粉:咖啡都是以原豆出貨，如需磨成粉請於磨粉欄位標註磨粉。
B11: 2>同一種品名如有需磨粉與原豆訂購時，請從品名欄位下拉清單更改品名。
B21: 訂購人資料>請詳細填寫否則無法製作訂單
B22: 1>姓名:請填與身分證相符之姓名，以便必要之時提出證件領取包裹。
B23: 2>(縣市)(鄉/鎮/區)欄位必填，以便系統偵測郵遞區號提高配送效率。
B24: 3>連絡電話:請手機或市話至少填寫1項；連絡電話是物流託運單必填欄位。
B25: 4>付款方式: (轉帳匯款)請一併填(轉出帳號後五碼)以便對帳，可先傳送訂單之後再轉帳(限3日內)；
C26: 請依訂單總金額轉帳，請勿捨去或進位尾數(這樣會造成我們對帳的困擾~感謝配合!!)
C27: 轉帳後無需再通知，收到您的帳款我們會主動發E-mail通知您；拖延匯款時間者往後將列入收到貨款後再出貨。
C28: (貨到付款)>貨品送達時，請直接將貨款交付司機(請勿轉帳匯款)。
B29: 5>E-MAIL:我們依訂單所留的信箱發送 (出貨通知)及(收到貨款通知)。回應收到訂單是以當下來信的E- MAIL做回覆。兩者信箱不同者請留意。
B31: 運費優惠
B32: 1>單次購滿500元免運，未滿500元加收50元運費。
B33: 2>訂購滿1000元，9折優惠
B34: 3>以上優惠填表時訂單會自動運算。
B36: 關於(出貨與運送)>
B37: 1>一般當天中午前完成訂購當天皆可完成烘焙出貨。(週六、日及國定假日不出貨)
B38: 2>一般(週一)至(週四)當日寄出，隔日可送達；(週五)寄出，順延至(週一)配送。( 夜間、週六、週日及國定假日不配送)
B39: *配送的包裹無法指定送達時間，實際配達時間依該區配送員排程而定。
B41: 7-11交貨便: 請上網查詢可到店的取件門市(交貨便網站本頁上方連結)。填表方式請參閱下圖。
C42: (1)包裹重量限5公斤以下(約20包咖啡)。(2)只配合純取貨，付款方式請選(轉帳匯款)，沒有取貨付款。
C43: (3)到貨後7-11交貨便電子系統會以手機簡訊通知收件人取貨(請攜帶身分證至指定的7-11門市取貨)。
B64: 訂購方式
B65: 1>訂購方式只受理 本表格訂單格式，商品全由物流郵寄配送，不接受自取及不受理電話訂購。
B66: 2>可開立報帳免用統一發票收據，請於訂單註明。(無法開發票)
B67: 3>豆價會隨每月進價做價格調整，產品若提前售完時，會即時更新本訂購單，建議訂購時應當日下載填寫傳送為宜。
B68: 4>訂單若有程式換算錯誤時，以實際計價為準。或重新下載訂單填寫。
B70: 傳送訂單說明>
B71: 1>建議訂單檔名儲存為(訂購人姓名)(電話號碼)-(填表日期)，例如:王大明0928168168-20181118
B72: 2>當收到您的訂單時，我們會用您所發出的E-mail給您回覆，如果當日(上午10點至下午6點)
B73: 未收到我們的回應，表示我們沒有收到您的訂單，請重新再傳一次(週六日及國定假日休假除外)。
B104: 簽收包裹注意事項
B105: 簽收前請檢察包裹外箱，如有嚴重變形或破裂，請當場開箱檢查內包是否有破損，若有破損請拒絕簽收並請配送員退回，
B106: 收件人一但簽收了表示配送員無過失送達，若簽收後才發現破損情形我們無法向物流公司申請理賠。
B108: 退貨須知
B109: 收到貨品如有問題，請於2日內拍照傳圖，我們會盡快為您處理。
B110: 由於咖啡豆都是訂購後才烘焙，以下狀況恕不接受退貨
B111: 1>指定烘焙
B112: 2>研磨的咖啡粉
B113: 3>超過烘焙日期(製造日期)5天以上
B114: 4>已拆封

Sheet 訂單填表
E1: 統計量
A2: 一磅裝(鋁袋) | B2: 磅 | C2: 重量:454±3公克 | D2: 製造日期: | E2: 1
A3: 磅裝(PE透明袋） | B3: 磅 | C3: 重量:454公克 | D3: 製造日期: | E3: 1
A4: 半磅裝(夾鏈袋) | B4: 包 | C4: 重量:227±3公克 | D4: 製造日期: | E4: 0.5
A5: 試喝200克(PE透明袋） | B5: 包 | C5: 重量:200公克 | D5: 製造日期: | E5: 0.5
A6: 商用2700克(透明袋) | B6: 袋 | C6: 重量:2700公克 | D6: 製造日期: | E6: 6
A7: 生豆1公斤(透明袋) | B7: 公斤 | C7: 重量:1000±3公克 | D7: 製造日期: | E7: 2
N8: 嗎啡館 咖啡訂購單 | R8: =YEAR(W8) -> 2024 | S8: =MONTH(W8) -> 10 | T8: =DAY(W8) -> 5 | V8: =NOW() -> 2024-09-05T17:31:32.060 | W8: =([1]訂單填表!$W$8) -> 2024-10-05 | X8: 報價失效
N9: =CONCATENATE([1]訂單填表!$N$9) -> 
M10: 下欄變更簡介 | N10: =CONCATENATE(N8," ","有效報價期限",R8,"年",S8,"月",T8,"日") -> 嗎啡館 咖啡訂購單 有效報價期限2024年10月5日 | Z10: 空白 | AA10: 品名空白錯誤 | AM10: 磨粉空白 | AO10: 磨粉設定錯誤 | AQ10: 烘焙空白 | BC10: 指定烘焙設定錯誤 | BW10: 標籤程式編輯
A11: 品名 | B11: =A4 -> 半磅裝(夾鏈袋) | D11: =CONCATENATE(A3) -> 磅裝(PE透明袋） | F11: =A2 -> 一磅裝(鋁袋) | G11: =CONCATENATE(A5) -> 試喝200克(PE透明袋） | I11: =CONCATENATE(A6) -> 商用2700克(透明袋) | J11: =CONCATENATE(A7) -> 生豆1公斤(透明袋) | K11: 統計量 | M11: 產地 | N11: 品名-單品豆 | P11: 規格(包裝) | R11: 磨粉 | T11: 單價 | U11: 數量 | V11: 單位 | W11: 小計 | X11: 填表錯誤提示 | AB11: 品名不能是空白 | AC11: =CONCATENATE(A2) -> 一磅裝(鋁袋) | AD11: =CONCATENATE(A3) -> 磅裝(PE透明袋） | AE11: =CONCATENATE(A4) -> 半磅裝(夾鏈袋) | AF11: =CONCATENATE(A5) -> 試喝200克(PE透明袋） | AG11: =CONCATENATE(A6) -> 商用2700克(透明袋) | AH11: =CONCATENATE(A7) -> 生豆1公斤(透明袋) | AI11: 選項容量 | AJ11: 磨粉 | AK11: 透明袋一律不磨粉 | AL11: 研磨設定 | AN11: 磨粉提示 | AO11: 磨粉提示 | AP11: 滿2磅才可指定烘焙 | AR11: 1-極淺焙 | AS11: 2-肉桂烘焙 | AT11: 3-中焙 | AU11: 4-高度烘焙 | AV11: 5-城市烘焙 | AW11: 6-全都會 | AX11: 7-法式烘焙 | AY11: 8-義式烘焙 | AZ11: 生豆不可指定 | BA11: 2磅以下不烘提示 | BB11: 生豆不烘提示 | BC11: 指定烘焙設定錯誤 | BD11: 烘焙度選項 | BW11: 重量 | BX11: 最佳賞味期限 | BY11: 保存期限 | BZ11: 磨粉 | CA11: 原豆 | CB11: 製造日期 | CC11: 製造日期+日期
A12: =咖啡簡介!C7 -> 曼特寧風味 | B12: =咖啡簡介!P7 -> 235 | C12: =ABS(B12-5) -> 230 | D12: =IF(C12<10,0,C12) -> 230 | E12: =ROUND(B12*0.47+8,0) -> 118 | F12: =ROUND(B12*2-20,0) -> 450 | G12: =ROUND(B12*0.47,0) -> 110 | H12: =ABS(B12*6-40) -> 1370 | I12: =IF(H12<50,0,H12) -> 1370 | J12: =ROUND(B12*1.6,0) -> 376 | K12: =IF(COUNTIFS($N$12:$N$87,A12)=0,"0",SUMPRODUCT(($N$12:$N$87=A12)*1,($P$12:$P$87=$A$2)*$E$2+($P$12:$P$87=$A$3)*$E$3+($P$12:$P$87=$A$4)*$E$4+($P$12:$P$87=$A$5)*$E$5+($P$12:$P$87=$A$7)*$E$6+($P$12:$P$87=$A$6)*$E$7,$U$12:$U$87)) -> 0 | L12: 1 | M12: =INDEX(咖啡簡介!$D$7:$M$82,MATCH(N12,咖啡簡介!$C$7:$C$82,0),MATCH($M$11,咖啡簡介!$D$6:$M$6,0)) -> 印尼 | N12: 曼特寧風味 | P12: 半磅裝(夾鏈袋) | T12: =INDEX(B12:J71,MATCH(N12,A12:A71,0),MATCH(P12,B11:J11,0)) -> 235 | V12: =VLOOKUP(P12,A2:B7,2,0) -> 包 | W12: =ABS(T12*U12) -> 0 | X12: =CONCATENATE(AN12,BA12,BB12,AO12,BC12,AA12) ->  | Z12: =$Z$11 -> 0 | AA12: =IF(AND(N12=Z12,U12>=1),AB12,"") ->  | AB12: =$AB$11 -> 品名不能是空白 | AC12: =CONCATENATE(AC11) -> 一磅裝(鋁袋) | AD12: 磅裝(PE透明袋） | AE12: 半磅裝(夾鏈袋) | AF12: 試喝200克(PE透明袋） | AG12: 商用2700克(透明袋) | AH12: 生豆1公斤(透明袋) | AI12: =IF(P12=AC12,U12,IF(P12=AD12,U12,IF(P12=AE12,U12*0.5,IF(P12=AF12,U12*0.5,IF(P12=AG12,U12*6,IF(P12=AH12,U12*999)))))) -> 0 | AJ12: 磨粉 | AK12: =CONCATENATE(AK11) -> 透明袋一律不磨粉 | AL12: =IF(OR(P12=AC12,P12=AE12),AJ12," ") -> 磨粉 | AM12: =CONCATENATE($AM$11) ->  | AN12: =IF(AL12=AJ12," ",IF(AND(R12=AJ12,U12>0),AK12," ")) ->  | AO12: =IF(OR(R12=AJ12,R12=AM12,R12=""),"",$AO$10) ->  | AP12: =CONCATENATE(AP11) -> 滿2磅才可指定烘焙 | AR12: 1-極淺焙 | AS12: 2-肉桂烘焙 | AT12: 3-中焙 | AU12: 4-高度烘焙 | AV12: 5-城市烘焙 | AW12: 6-全都會 | AX12: 7-法式烘焙 | AY12: 8-義式烘焙 | AZ12: =CONCATENATE(AZ11) -> 生豆不可指定 | BA12: =IF(AI12>1.9," ",IF(OR(S12<AR12,U12=0)," ",AP12)) ->  | BB12: =IF(S12<AR12," ",IF(AI12>998,AZ12," ")) ->  | BC12: =IF(OR(S12="",S12=AQ12,S12=AR12,S12=AS12,S12=AT12,S12=AU12,S12=AV12,S12=AW12,S12=AX12,S12=AY12,S12=AZ12),"",$BC$10) ->  | BD12: =IF(P12=AH12,AQ12,IF(AI12<1.9,AQ12,AR12)) ->  | BE12: =IF(P12=AH12,AQ12,IF(AI12<1.9,AQ12,AS12)) ->  | BF12: =IF(P12=AH12,AQ12,IF(AI12<1.9,AQ12,AT12)) ->  | BG12: =IF(P12=AH12,AQ12,IF(AI12<1.9,AQ12,AU12)) ->  | BH12: =IF(P12=AH12,AQ12,IF(AI12<1.9,AQ12,AV12)) ->  | BI12: =IF(P12=AH12,AQ12,IF(AI12<1.9,AQ12,AW12)) ->  | BJ12: =IF(P12=AH12,AQ12,IF(AI12<1.9,AQ12,AX12)) ->  | BK12: =IF(P12=AH12,AQ12,IF(AI12<1.9,AQ12,AY12)) ->  | BW12: =VLOOKUP(訂單填表!$P12,訂單填表!$A$2:$C$7,3,0) -> 重量:227±3公克 | BX12: =IF($R12=$AJ12,標籤!$P$5,IF($P12=$A$7,標籤!$T$5,標籤!$R$5)) -> 最佳賞味期:30天 | BY12: =IF($R12=$AJ12,標籤!$P$6,IF($P12=$A$7,標籤!$T$6,標籤!$R$6)) -> 保存期限:180天 | BZ12: =IF($R12=$AJ12,標籤!$P$8,IF($P12=$A$7,標籤!$T$8,標籤!$U$8)) ->  | CA12: =IF(BZ12=標籤!$U$8,標籤!$R$8," ") -> 當日烘焙包裝 | CB12: =VLOOKUP(P12,$A$2:$D$7,4,0) -> 製造日期: | CC12: =CONCATENATE($CB12,標籤!$P$4) -> 製造日期:2024-9-5
A13: =咖啡簡介!C8 -> 黃金曼特寧 | B13: =咖啡簡介!P8 -> 435 | C13: 430 | D13: 430 | E13: 212 | F13: 850 | G13: 204 | H13: 2570 | I13: =IF(H13<50,0,H13) -> 2570 | J13: 696 | K13: 0 | L13: 2 | M13: =INDEX(咖啡簡介!$D$7:$M$82,MATCH(N13,咖啡簡介!$C$7:$C$82,0),MATCH($M$11,咖啡簡介!$D$6:$M$6,0)) -> 印尼 | N13: 黃金曼特寧 | P13: 半磅裝(夾鏈袋) | T13: =INDEX(B12:J71,MATCH(N13,A12:A71,0),MATCH(P13,B11:J11,0)) -> 435 | V13: =VLOOKUP(P13,A2:B7,2,0) -> 包 | W13: 0 | Z13: 0 | AB13: 品名不能是空白 | AC13: 一磅裝(鋁袋) | AD13: 磅裝(PE透明袋） | AE13: 半磅裝(夾鏈袋) | AF13: 試喝200克(PE透明袋） | AG13: 商用2700克(透明袋) | AH13: 生豆1公斤(透明袋) | AI13: 0 | AJ13: 磨粉 | AK13: 透明袋一律不磨粉 | AL13: 磨粉 | AP13: 滿2磅才可指定烘焙 | AR13: 1-極淺焙 | AS13: 2-肉桂烘焙 | AT13: 3-中焙 | AU13: 4-高度烘焙 | AV13: 5-城市烘焙 | AW13: 6-全都會 | AX13: 7-法式烘焙 | AY13: 8-義式烘焙 | AZ13: 生豆不可指定 | BD13: =IF(P13=AH13,AQ13,IF(AI13<1.9,AQ13,AR13)) ->  | BE13: =IF(P13=AH13,AQ13,IF(AI13<1.9,AQ13,AS13)) ->  | BF13: =IF(P13=AH13,AQ13,IF(AI13<1.9,AQ13,AT13)) ->  | BG13: =IF(P13=AH13,AQ13,IF(AI13<1.9,AQ13,AU13)) ->  | BH13: =IF(P13=AH13,AQ13,IF(AI13<1.9,AQ13,AV13)) ->  | BI13: =IF(P13=AH13,AQ13,IF(AI13<1.9,AQ13,AW13)) ->  | BJ13: =IF(P13=AH13,AQ13,IF(AI13<1.9,AQ13,AX13)) ->  | BK13: =IF(P13=AH13,AQ13,IF(AI13<1.9,AQ13,AY13)) ->  | BW13: =VLOOKUP(訂單填表!$P13,訂單填表!$A$2:$C$7,3,0) -> 重量:227±3公克 | BX13: =IF($R13=$AJ13,標籤!$P$5,IF($P13=$A$7,標籤!$T$5,標籤!$R$5)) -> 最佳賞味期:30天 | BY13: =IF($R13=$AJ13,標籤!$P$6,IF($P13=$A$7,標籤!$T$6,標籤!$R$6)) -> 保存期限:180天 | BZ13: =IF($R13=$AJ13,標籤!$P$8,IF($P13=$A$7,標籤!$T$8,標籤!$U$8)) ->  | CA13: =IF(BZ13=標籤!$U$8,標籤!$R$8," ") -> 當日烘焙包裝 | CB13: 製造日期: | CC13: =CONCATENATE($CB13,標籤!$P$4) -> 製造日期:2024-9-5
A14: =咖啡簡介!C9 -> 阿拉比卡 | B14: =咖啡簡介!P9 -> 225 | C14: 220 | D14: 220 | E14: 114 | F14: 430 | G14: 106 | H14: 1310 | I14: 1310 | J14: 360 | K14: 0 | L14: 3 | M14: =INDEX(咖啡簡介!$D$7:$M$82,MATCH(N14,咖啡簡介!$C$7:$C$82,0),MATCH($M$11,咖啡簡介!$D$6:$M$6,0)) -> 印尼 | N14: 阿拉比卡 | P14: 半磅裝(夾鏈袋) | T14: =INDEX(B12:J71,MATCH(N14,A12:A71,0),MATCH(P14,B11:J11,0)) -> 225 | V14: =VLOOKUP(P14,A2:B7,2,0) -> 包 | W14: 0 | Z14: 0 | AB14: 品名不能是空白 | AC14: 一磅裝(鋁袋) | AD14: 磅裝(PE透明袋） | AE14: 半磅裝(夾鏈袋) | AF14: 試喝200克(PE透明袋） | AG14: 商用2700克(透明袋) | AH14: 生豆1公斤(透明袋) | AI14: 0 | AJ14: 磨粉 | AK14: 透明袋一律不磨粉 | AL14: 磨粉 | AP14: 滿2磅才可指定烘焙 | AR14: 1-極淺焙 | AS14: 2-肉桂烘焙 | AT14: 3-中焙 | AU14: 4-高度烘焙 | AV14: 5-城市烘焙 | AW14: 6-全都會 | AX14: 7-法式烘焙 | AY14: 8-義式烘焙 | AZ14: 生豆不可指定 | BW14: =VLOOKUP(訂單填表!$P14,訂單填表!$A$2:$C$7,3,0) -> 重量:227±3公克 | BX14: =IF($R14=$AJ14,標籤!$P$5,IF($P14=$A$7,標籤!$T$5,標籤!$R$5)) -> 最佳賞味期:30天 | BY14: =IF($R14=$AJ14,標籤!$P$6,IF($P14=$A$7,標籤!$T$6,標籤!$R$6)) -> 保存期限:180天 | BZ14: =IF($R14=$AJ14,標籤!$P$8,IF($P14=$A$7,標籤!$T$8,標籤!$U$8)) ->  | CA14: =IF(BZ14=標籤!$U$8,標籤!$R$8," ") -> 當日烘焙包裝 | CB14: 製造日期: | CC14: =CONCATENATE($CB14,標籤!$P$4) -> 製造日期:2024-9-5
A15: =咖啡簡介!C10 -> 金牛黃曼 | B15: =咖啡簡介!P10 -> 510 | C15: 505 | D15: 505 | E15: 248 | F15: 1000 | G15: 240 | H15: 3020 | I15: 3020 | J15: 816 | K15: 0 | L15: 4 | M15: =INDEX(咖啡簡介!$D$7:$M$82,MATCH(N15,咖啡簡介!$C$7:$C$82,0),MATCH($M$11,咖啡簡介!$D$6:$M$6,0)) -> 印尼 | N15: 金牛黃曼 | P15: 半磅裝(夾鏈袋) | T15: =INDEX(B12:J71,MATCH(N15,A12:A71,0),MATCH(P15,B11:J11,0)) -> 510 | V15: =VLOOKUP(P15,A2:B7,2,0) -> 包 | W15: 0 | Z15: 0 | AB15: 品名不能是空白 | AC15: 一磅裝(鋁袋) | AD15: 磅裝(PE透明袋） | AE15: 半磅裝(夾鏈袋) | AF15: 試喝200克(PE透明袋） | AG15: 商用2700克(透明袋) | AH15: 生豆1公斤(透明袋) | AI15: 0 | AJ15: 磨粉 | AK15: 透明袋一律不磨粉 | AL15: 磨粉 | AP15: 滿2磅才可指定烘焙 | AR15: 1-極淺焙 | AS15: 2-肉桂烘焙 | AT15: 3-中焙 | AU15: 4-高度烘焙 | AV15: 5-城市烘焙 | AW15: 6-全都會 | AX15: 7-法式烘焙 | AY15: 8-義式烘焙 | AZ15: 生豆不可指定 | BW15: =VLOOKUP(訂單填表!$P15,訂單填表!$A$2:$C$7,3,0) -> 重量:227±3公克 | BX15: =IF($R15=$AJ15,標籤!$P$5,IF($P15=$A$7,標籤!$T$5,標籤!$R$5)) -> 最佳賞味期:30天 | BY15: =IF($R15=$AJ15,標籤!$P$6,IF($P15=$A$7,標籤!$T$6,標籤!$R$6)) -> 保存期限:180天 | BZ15: =IF($R15=$AJ15,標籤!$P$8,IF($P15=$A$7,標籤!$T$8,標籤!$U$8)) ->  | CA15: =IF(BZ15=標籤!$U$8,標籤!$R$8," ") -> 當日烘焙包裝 | CB15: 製造日期: | CC15: =CONCATENATE($CB15,標籤!$P$4) -> 製造日期:2024-9-5
A16: =咖啡簡介!C11 -> 麥索金磚 | B16: =咖啡簡介!P11 -> 360 | C16: 355 | D16: 355 | E16: 177 | F16: 700 | G16: 169 | H16: 2120 | I16: 2120 | J16: 576 | K16: 0 | L16: 5 | M16: =INDEX(咖啡簡介!$D$7:$M$82,MATCH(N16,咖啡簡介!$C$7:$C$82,0),MATCH($M$11,咖啡簡介!$D$6:$M$6,0)) -> 印度 | N16: 麥索金磚 | P16: 半磅裝(夾鏈袋) | T16: =INDEX(B12:J71,MATCH(N16,A12:A71,0),MATCH(P16,B11:J11,0)) -> 360 | V16: =VLOOKUP(P16,A2:B7,2,0) -> 包 | W16: 0 | Z16: 0 | AB16: 品名不能是空白 | AC16: 一磅裝(鋁袋) | AD16: 磅裝(PE透明袋） | AE16: 半磅裝(夾鏈袋) | AF16: 試喝200克(PE透明袋） | AG16: 商用2700克(透明袋) | AH16: 生豆1公斤(透明袋) | AI16: 0 | AJ16: 磨粉 | AK16: 透明袋一律不磨粉 | AL16: 磨粉 | AP16: 滿2磅才可指定烘焙 | AR16: 1-極淺焙 | AS16: 2-肉桂烘焙 | AT16: 3-中焙 | AU16: 4-高度烘焙 | AV16: 5-城市烘焙 | AW16: 6-全都會 | AX16: 7-法式烘焙 | AY16: 8-義式烘焙 | AZ16: 生豆不可指定 | BW16: =VLOOKUP(訂單填表!$P16,訂單填表!$A$2:$C$7,3,0) -> 重量:227±3公克 | BX16: =IF($R16=$AJ16,標籤!$P$5,IF($P16=$A$7,標籤!$T$5,標籤!$R$5)) -> 最佳賞味期:30天 | BY16: =IF($R16=$AJ16,標籤!$P$6,IF($P16=$A$7,標籤!$T$6,標籤!$R$6)) -> 保存期限:180天 | BZ16: =IF($R16=$AJ16,標籤!$P$8,IF($P16=$A$7,標籤!$T$8,標籤!$U$8)) ->  | CA16: =IF(BZ16=標籤!$U$8,標籤!$R$8," ") -> 當日烘焙包裝 | CB16: 製造日期: | CC16: =CONCATENATE($CB16,標籤!$P$4) -> 製造日期:2024-9-5
A17: =咖啡簡介!C12 -> 大黃蜂 | B17: =咖啡簡介!P12 -> 550 | C17: 545 | D17: 545 | E17: 267 | F17: 1080 | G17: 259 | H17: 3260 | I17: 3260 | J17: 880 | K17: 0 | L17: 6 | M17: =INDEX(咖啡簡介!$D$7:$M$82,MATCH(N17,咖啡簡介!$C$7:$C$82,0),MATCH($M$11,咖啡簡介!$D$6:$M$6,0)) -> 印尼 | N17: 大黃蜂 | P17: 半磅裝(夾鏈袋) | T17: =INDEX(B12:J71,MATCH(N17,A12:A71,0),MATCH(P17,B11:J11,0)) -> 550 | V17: =VLOOKUP(P17,A2:B7,2,0) -> 包 | W17: 0 | Z17: 0 | AB17: 品名不能是空白 | AC17: 一磅裝(鋁袋) | AD17: 磅裝(PE透明袋） | AE17: 半磅裝(夾鏈袋) | AF17: 試喝200克(PE透明袋） | AG17: 商用2700克(透明袋) | AH17: 生豆1公斤(透明袋) | AI17: 0 | AJ17: 磨粉 | AK17: 透明袋一律不磨粉 | AL17: 磨粉 | AP17: 滿2磅才可指定烘焙 | AR17: 1-極淺焙 | AS17: 2-肉桂烘焙 | AT17: 3-中焙 | AU17: 4-高度烘焙 | AV17: 5-城市烘焙 | AW17: 6-全都會 | AX17: 7-法式烘焙 | AY17: 8-義式烘焙 | AZ17: 生豆不可指定 | BW17: =VLOOKUP(訂單填表!$P17,訂單填表!$A$2:$C$7,3,0) -> 重量:227±3公克 | BX17: =IF($R17=$AJ17,標籤!$P$5,IF($P17=$A$7,標籤!$T$5,標籤!$R$5)) -> 最佳賞味期:30天 | BY17: =IF($R17=$AJ17,標籤!$P$6,IF($P17=$A$7,標籤!$T$6,標籤!$R$6)) -> 保存期限:180天 | BZ17: =IF($R17=$AJ17,標籤!$P$8,IF($P17=$A$7,標籤!$T$8,標籤!$U$8)) ->  | CA17: =IF(BZ17=標籤!$U$8,標籤!$R$8," ") -> 當日烘焙包裝 | CB17: 製造日期: | CC17: =CONCATENATE($CB17,標籤!$P$4) -> 製造日期:2024-9-5
A18: =咖啡簡介!C13 -> 黑珍珠 | B18: =咖啡簡介!P13 -> 495 | C18: 490 | D18: 490 | E18: 241 | F18: 970 | G18: 233 | H18: 2930 | I18: 2930 | J18: 792 | K18: 0 | L18: 7 | M18: =INDEX(咖啡簡介!$D$7:$M$82,MATCH(N18,咖啡簡介!$C$7:$C$82,0),MATCH($M$11,咖啡簡介!$D$6:$M$6,0)) -> 哥斯大黎加 | N18: 黑珍珠 | P18: 半磅裝(夾鏈袋) | T18: =INDEX(B12:J71,MATCH(N18,A12:A71,0),MATCH(P18,B11:J11,0)) -> 495 | V18: =VLOOKUP(P18,A2:B7,2,0) -> 包 | W18: 0 | Z18: 0 | AB18: 品名不能是空白 | AC18: 一磅裝(鋁袋) | AD18: 磅裝(PE透明袋） | AE18: 半磅裝(夾鏈袋) | AF18: 試喝200克(PE透明袋） | AG18: 商用2700克(透明袋) | AH18: 生豆1公斤(透明袋) | AI18: 0 | AJ18: 磨粉 | AK18: 透明袋一律不磨粉 | AL18: 磨粉 | AP18: 滿2磅才可指定烘焙 | AR18: 1-極淺焙 | AS18: 2-肉桂烘焙 | AT18: 3-中焙 | AU18: 4-高度烘焙 | AV18: 5-城市烘焙 | AW18: 6-全都會 | AX18: 7-法式烘焙 | AY18: 8-義式烘焙 | AZ18: 生豆不可指定 | BD18: =IF(P18=AH18,AQ18,IF(AI18<1.9,AQ18,AR18)) ->  | BE18: =IF(P18=AH18,AQ18,IF(AI18<1.9,AQ18,AS18)) ->  | BF18: =IF(P18=AH18,AQ18,IF(AI18<1.9,AQ18,AT18)) ->  | BG18: =IF(P18=AH18,AQ18,IF(AI18<1.9,AQ18,AU18)) ->  | BH18: =IF(P18=AH18,AQ18,IF(AI18<1.9,AQ18,AV18)) ->  | BI18: =IF(P18=AH18,AQ18,IF(AI18<1.9,AQ18,AW18)) ->  | BJ18: =IF(P18=AH18,AQ18,IF(AI18<1.9,AQ18,AX18)) ->  | BK18: =IF(P18=AH18,AQ18,IF(AI18<1.9,AQ18,AY18)) ->  | BW18: =VLOOKUP(訂單填表!$P18,訂單填表!$A$2:$C$7,3,0) -> 重量:227±3公克 | BX18: =IF($R18=$AJ18,標籤!$P$5,IF($P18=$A$7,標籤!$T$5,標籤!$R$5)) -> 最佳賞味期:30天 | BY18: =IF($R18=$AJ18,標籤!$P$6,IF($P18=$A$7,標籤!$T$6,標籤!$R$6)) -> 保存期限:180天 | BZ18: =IF($R18=$AJ18,標籤!$P$8,IF($P18=$A$7,標籤!$T$8,標籤!$U$8)) ->  | CA18: =IF(BZ18=標籤!$U$8,標籤!$R$8," ") -> 當日烘焙包裝 | CB18: 製造日期: | CC18: =CONCATENATE($CB18,標籤!$P$4) -> 製造日期:2024-9-5
A19: =咖啡簡介!C14 -> 征服者 | B19: =咖啡簡介!P14 -> 395 | C19: 390 | D19: 390 | E19: 194 | F19: 770 | G19: 186 | H19: 2330 | I19: 2330 | J19: 632 | K19: 0 | L19: 8 | M19: =INDEX(咖啡簡介!$D$7:$M$82,MATCH(N19,咖啡簡介!$C$7:$C$82,0),MATCH($M$11,咖啡簡介!$D$6:$M$6,0)) -> 哥斯大黎加 | N19: 征服者 | P19: 半磅裝(夾鏈袋) | T19: =INDEX(B12:J71,MATCH(N19,A12:A71,0),MATCH(P19,B11:J11,0)) -> 395 | V19: =VLOOKUP(P19,A2:B7,2,0) -> 包 | W19: 0 | Z19: 0 | AB19: 品名不能是空白 | AC19: 一磅裝(鋁袋) | AD19: 磅裝(PE透明袋） | AE19: 半磅裝(夾鏈袋) | AF19: 試喝200克(PE透明袋） | AG19: 商用2700克(透明袋) | AH19: 生豆1公斤(透明袋) | AI19: 0 | AJ19: 磨粉 | AK19: 透明袋一律不磨粉 | AL19: 磨粉 | AP19: 滿2磅才可指定烘焙 | AR19: 1-極淺焙 | AS19: 2-肉桂烘焙 | AT19: 3-中焙 | AU19: 4-高度烘焙 | AV19: 5-城市烘焙 | AW19: 6-全都會 | AX19: 7-法式烘焙 | AY19: 8-義式烘焙 | AZ19: 生豆不可指定 | BW19: =VLOOKUP(訂單填表!$P19,訂單填表!$A$2:$C$7,3,0) -> 重量:227±3公克 | BX19: =IF($R19=$AJ19,標籤!$P$5,IF($P19=$A$7,標籤!$T$5,標籤!$R$5)) -> 最佳賞味期:30天 | BY19: =IF($R19=$AJ19,標籤!$P$6,IF($P19=$A$7,標籤!$T$6,標籤!$R$6)) -> 保存期限:180天 | BZ19: =IF($R19=$AJ19,標籤!$P$8,IF($P19=$A$7,標籤!$T$8,標籤!$U$8)) ->  | CA19: =IF(BZ19=標籤!$U$8,標籤!$R$8," ") -> 當日烘焙包裝 | CB19: 製造日期: | CC19: =CONCATENATE($CB19,標籤!$P$4) -> 製造日期:2024-9-5
A20: =咖啡簡介!C15 -> 蜜熊 | B20: =咖啡簡介!P15 -> 440 | C20: 435 | D20: 435 | E20: 215 | F20: 860 | G20: 207 | H20: 2600 | I20: 2600 | J20: 704 | K20: 0 | L20: 9 | M20: =INDEX(咖啡簡介!$D$7:$M$82,MATCH(N20,咖啡簡介!$C$7:$C$82,0),MATCH($M$11,咖啡簡介!$D$6:$M$6,0)) -> 哥斯大黎加 | N20: 蜜熊 | P20: 半磅裝(夾鏈袋) | T20: =INDEX(B12:J71,MATCH(N20,A12:A71,0),MATCH(P20,B11:J11,0)) -> 440 | V20: =VLOOKUP(P20,A2:B7,2,0) -> 包 | W20: 0 | Z20: 0 | AB20: 品名不能是空白 | AC20: 一磅裝(鋁袋) | AD20: 磅裝(PE透明袋） | AE20: 半磅裝(夾鏈袋) | AF20: 試喝200克(PE透明袋） | AG20: 商用2700克(透明袋) | AH20: 生豆1公斤(透明袋) | AI20: 0 | AJ20: 磨粉 | AK20: 透明袋一律不磨粉 | AL20: 磨粉 | AP20: 滿2磅才可指定烘焙 | AR20: 1-極淺焙 | AS20: 2-肉桂烘焙 | AT20: 3-中焙 | AU20: 4-高度烘焙 | AV20: 5-城市烘焙 | AW20: 6-全都會 | AX20: 7-法式烘焙 | AY20: 8-義式烘焙 | AZ20: 生豆不可指定 | BW20: =VLOOKUP(訂單填表!$P20,訂單填表!$A$2:$C$7,3,0) -> 重量:227±3公克 | BX20: =IF($R20=$AJ20,標籤!$P$5,IF($P20=$A$7,標籤!$T$5,標籤!$R$5)) -> 最佳賞味期:30天 | BY20: =IF($R20=$AJ20,標籤!$P$6,IF($P20=$A$7,標籤!$T$6,標籤!$R$6)) -> 保存期限:180天 | BZ20: =IF($R20=$AJ20,標籤!$P$8,IF($P20=$A$7,標籤!$T$8,標籤!$U$8)) ->  | CA20: =IF(BZ20=標籤!$U$8,標籤!$R$8," ") -> 當日烘焙包裝 | CB20: 製造日期: | CC20: =CONCATENATE($CB20,標籤!$P$4) -> 製造日期:2024-9-5
A21: =咖啡簡介!C16 -> 捲尾猴 | B21: =咖啡簡介!P16 -> 360 | C21: 355 | D21: 355 | E21: 177 | F21: 700 | G21: 169 | H21: 2120 | I21: 2120 | J21: 576 | K21: 0 | L21: 10 | M21: =INDEX(咖啡簡介!$D$7:$M$82,MATCH(N21,咖啡簡介!$C$7:$C$82,0),MATCH($M$11,咖啡簡介!$D$6:$M$6,0)) -> 哥斯大黎加 | N21: 捲尾猴 | P21: 半磅裝(夾鏈袋) | T21: =INDEX(B12:J71,MATCH(N21,A12:A71,0),MATCH(P21,B11:J11,0)) -> 360 | V21: =VLOOKUP(P21,A2:B7,2,0) -> 包 | W21: 0 | Z21: 0 | AB21: 品名不能是空白 | AC21: 一磅裝(鋁袋) | AD21: 磅裝(PE透明袋） | AE21: 半磅裝(夾鏈袋) | AF21: 試喝200克(PE透明袋） | AG21: 商用2700克(透明袋) | AH21: 生豆1公斤(透明袋) | AI21: 0 | AJ21: 磨粉 | AK21: 透明袋一律不磨粉 | AL21: 磨粉 | AP21: 滿2磅才可指定烘焙 | AR21: 1-極淺焙 | AS21: 2-肉桂烘焙 | AT21: 3-中焙 | AU21: 4-高度烘焙 | AV21: 5-城市烘焙 | AW21: 6-全都會 | AX21: 7-法式烘焙 | AY21: 8-義式烘焙 | AZ21: 生豆不可指定 | BW21: =VLOOKUP(訂單填表!$P21,訂單填表!$A$2:$C$7,3,0) -> 重量:227±3公克 | BX21: =IF($R21=$AJ21,標籤!$P$5,IF($P21=$A$7,標籤!$T$5,標籤!$R$5)) -> 最佳賞味期:30天 | BY21: =IF($R21=$AJ21,標籤!$P$6,IF($P21=$A$7,標籤!$T$6,標籤!$R$6)) -> 保存期限:180天 | BZ21: =IF($R21=$AJ21,標籤!$P$8,IF($P21=$A$7,標籤!$T$8,標籤!$U$8)) ->  | CA21: =IF(BZ21=標籤!$U$8,標籤!$R$8," ") -> 當日烘焙包裝 | CB21: 製造日期: | CC21: =CONCATENATE($CB21,標籤!$P$4) -> 製造日期:2024-9-5
A22: =咖啡簡介!C17 -> 薇薇特楠果 | B22: =咖啡簡介!P17 -> 315 | C22: 310 | D22: 310 | E22: 156 | F22: 610 | G22: 148 | H22: 1850 | I22: 1850 | J22: 504 | K22: 0 | L22: 11 | M22: =INDEX(咖啡簡介!$D$7:$M$82,MATCH(N22,咖啡簡介!$C$7:$C$82,0),MATCH($M$11,咖啡簡介!$D$6:$M$6,0)) -> 瓜地馬拉 | N22: 薇薇特楠果 | P22: 半磅裝(夾鏈袋) | T22: =INDEX(B12:J71,MATCH(N22,A12:A71,0),MATCH(P22,B11:J11,0)) -> 315 | V22: =VLOOKUP(P22,A2:B7,2,0) -> 包 | W22: 0 | Z22: 0 | AB22: 品名不能是空白 | AC22: 一磅裝(鋁袋) | AD22: 磅裝(PE透明袋） | AE22: 半磅裝(夾鏈袋) | AF22: 試喝200克(PE透明袋） | AG22: 商用2700克(透明袋) | AH22: 生豆1公斤(透明袋) | AI22: 0 | AJ22: 磨粉 | AK22: 透明袋一律不磨粉 | AL22: 磨粉 | AP22: 滿2磅才可指定烘焙 | AR22: 1-極淺焙 | AS22: 2-肉桂烘焙 | AT22: 3-中焙 | AU22: 4-高度烘焙 | AV22: 5-城市烘焙 | AW22: 6-全都會 | AX22: 7-法式烘焙 | AY22: 8-義式烘焙 | AZ22: 生豆不可指定 | BW22: =VLOOKUP(訂單填表!$P22,訂單填表!$A$2:$C$7,3,0) -> 重量:227±3公克 | BX22: =IF($R22=$AJ22,標籤!$P$5,IF($P22=$A$7,標籤!$T$5,標籤!$R$5)) -> 最佳賞味期:30天 | BY22: =IF($R22=$AJ22,標籤!$P$6,IF($P22=$A$7,標籤!$T$6,標籤!$R$6)) -> 保存期限:180天 | BZ22: =IF($R22=$AJ22,標籤!$P$8,IF($P22=$A$7,標籤!$T$8,標籤!$U$8)) ->  | CA22: =IF(BZ22=標籤!$U$8,標籤!$R$8," ") -> 當日烘焙包裝 | CB22: 製造日期: | CC22: =CONCATENATE($CB22,標籤!$P$4) -> 製造日期:2024-9-5
A23: =咖啡簡介!C18 -> 花神 | B23: =咖啡簡介!P18 -> 398 | C23: 393 | D23: 393 | E23: 195 | F23: 776 | G23: 187 | H23: 2348 | I23: 2348 | J23: 637 | K23: 0 | L23: 12 | M23: =INDEX(咖啡簡介!$D$7:$M$82,MATCH(N23,咖啡簡介!$C$7:$C$82,0),MATCH($M$11,咖啡簡介!$D$6:$M$6,0)) -> 瓜地馬拉 | N23: 花神 | P23: 半磅裝(夾鏈袋) | T23: =INDEX(B12:J71,MATCH(N23,A12:A71,0),MATCH(P23,B11:J11,0)) -> 398 | V23: =VLOOKUP(P23,A2:B7,2,0) -> 包 | W23: 0 | Z23: 0 | AB23: 品名不能是空白 | AC23: 一磅裝(鋁袋) | AD23: 磅裝(PE透明袋） | AE23: 半磅裝(夾鏈袋) | AF23: 試喝200克(PE透明袋） | AG23: 商用2700克(透明袋) | AH23: 生豆1公斤(透明袋) | AI23: 0 | AJ23: 磨粉 | AK23: 透明袋一律不磨粉 | AL23: 磨粉 | AP23: 滿2磅才可指定烘焙 | AR23: 1-極淺焙 | AS23: 2-肉桂烘焙 | AT23: 3-中焙 | AU23: 4-高度烘焙 | AV23: 5-城市烘焙 | AW23: 6-全都會 | AX23: 7-法式烘焙 | AY23: 8-義式烘焙 | AZ23: 生豆不可指定 | BW23: =VLOOKUP(訂單填表!$P23,訂單填表!$A$2:$C$7,3,0) -> 重量:227±3公克 | BX23: =IF($R23=$AJ23,標籤!$P$5,IF($P23=$A$7,標籤!$T$5,標籤!$R$5)) -> 最佳賞味期:30天 | BY23: =IF($R23=$AJ23,標籤!$P$6,IF($P23=$A$7,標籤!$T$6,標籤!$R$6)) -> 保存期限:180天 | BZ23: =IF($R23=$AJ23,標籤!$P$8,IF($P23=$A$7,標籤!$T$8,標籤!$U$8)) ->  | CA23: =IF(BZ23=標籤!$U$8,標籤!$R$8," ") -> 當日烘焙包裝 | CB23: 製造日期: | CC23: =CONCATENATE($CB23,標籤!$P$4) -> 製造日期:2024-9-5
A24: =咖啡簡介!C19 -> 美帝娜(安提瓜) | B24: =咖啡簡介!P19 -> 395 | C24: 390 | D24: 390 | E24: 194 | F24: 770 | G24: 186 | H24: 2330 | I24: 2330 | J24: 632 | K24: 0 | L24: 13 | M24: =INDEX(咖啡簡介!$D$7:$M$82,MATCH(N24,咖啡簡介!$C$7:$C$82,0),MATCH($M$11,咖啡簡介!$D$6:$M$6,0)) -> 瓜地馬拉 | N24: 美帝娜(安提瓜) | P24: 半磅裝(夾鏈袋) | T24: =INDEX(B12:J71,MATCH(N24,A12:A71,0),MATCH(P24,B11:J11,0)) -> 395 | V24: =VLOOKUP(P24,A2:B7,2,0) -> 包 | W24: 0 | Z24: 0 | AB24: 品名不能是空白 | AC24: 一磅裝(鋁袋) | AD24: 磅裝(PE透明袋） | AE24: 半磅裝(夾鏈袋) | AF24: 試喝200克(PE透明袋） | AG24: 商用2700克(透明袋) | AH24: 生豆1公斤(透明袋) | AI24: 0 | AJ24: 磨粉 | AK24: 透明袋一律不磨粉 | AL24: 磨粉 | AP24: 滿2磅才可指定烘焙 | AR24: 1-極淺焙 | AS24: 2-肉桂烘焙 | AT24: 3-中焙 | AU24: 4-高度烘焙 | AV24: 5-城市烘焙 | AW24: 6-全都會 | AX24: 7-法式烘焙 | AY24: 8-義式烘焙 | AZ24: 生豆不可指定 | BW24: =VLOOKUP(訂單填表!$P24,訂單填表!$A$2:$C$7,3,0) -> 重量:227±3公克 | BX24: =IF($R24=$AJ24,標籤!$P$5,IF($P24=$A$7,標籤!$T$5,標籤!$R$5)) -> 最佳賞味期:30天 | BY24: =IF($R24=$AJ24,標籤!$P$6,IF($P24=$A$7,標籤!$T$6,標籤!$R$6)) -> 保存期限:180天 | BZ24: =IF($R24=$AJ24,標籤!$P$8,IF($P24=$A$7,標籤!$T$8,標籤!$U$8)) ->  | CA24: =IF(BZ24=標籤!$U$8,標籤!$R$8," ") -> 當日烘焙包裝 | CB24: 製造日期: | CC24: =CONCATENATE($CB24,標籤!$P$4) -> 製造日期:2024-9-5
A25: =咖啡簡介!C20 -> 花圓 | B25: =咖啡簡介!P20 -> 430 | C25: 425 | D25: 425 | E25: 210 | F25: 840 | G25: 202 | H25: 2540 | I25: 2540 | J25: 688 | K25: 0 | L25: 14 | M25: =INDEX(咖啡簡介!$D$7:$M$82,MATCH(N25,咖啡簡介!$C$7:$C$82,0),MATCH($M$11,咖啡簡介!$D$6:$M$6,0)) -> 瓜地馬拉 | N25: 花圓 | P25: 半磅裝(夾鏈袋) | T25: =INDEX(B12:J71,MATCH(N25,A12:A71,0),MATCH(P25,B11:J11,0)) -> 430 | V25: =VLOOKUP(P25,A2:B7,2,0) -> 包 | W25: 0 | Z25: 0 | AB25: 品名不能是空白 | AC25: 一磅裝(鋁袋) | AD25: 磅裝(PE透明袋） | AE25: 半磅裝(夾鏈袋) | AF25: 試喝200克(PE透明袋） | AG25: 商用2700克(透明袋) | AH25: 生豆1公斤(透明袋) | AI25: 0 | AJ25: 磨粉 | AK25: 透明袋一律不磨粉 | AL25: 磨粉 | AP25: 滿2磅才可指定烘焙 | AR25: 1-極淺焙 | AS25: 2-肉桂烘焙 | AT25: 3-中焙 | AU25: 4-高度烘焙 | AV25: 5-城市烘焙 | AW25: 6-全都會 | AX25: 7-法式烘焙 | AY25: 8-義式烘焙 | AZ25: 生豆不可指定 | BW25: =VLOOKUP(訂單填表!$P25,訂單填表!$A$2:$C$7,3,0) -> 重量:227±3公克 | BX25: =IF($R25=$AJ25,標籤!$P$5,IF($P25=$A$7,標籤!$T$5,標籤!$R$5)) -> 最佳賞味期:30天 | BY25: =IF($R25=$AJ25,標籤!$P$6,IF($P25=$A$7,標籤!$T$6,標籤!$R$6)) -> 保存期限:180天 | BZ25: =IF($R25=$AJ25,標籤!$P$8,IF($P25=$A$7,標籤!$T$8,標籤!$U$8)) ->  | CA25: =IF(BZ25=標籤!$U$8,標籤!$R$8," ") -> 當日烘焙包裝 | CB25: 製造日期: | CC25: =CONCATENATE($CB25,標籤!$P$4) -> 製造日期:2024-9-5
A26: =咖啡簡介!C21 -> 迷霧山谷 | B26: =咖啡簡介!P21 -> 395 | C26: 390 | D26: 390 | E26: 194 | F26: 770 | G26: 186 | H26: 2330 | I26: 2330 | J26: 632 | K26: 0 | L26: 15 | M26: =INDEX(咖啡簡介!$D$7:$M$82,MATCH(N26,咖啡簡介!$C$7:$C$82,0),MATCH($M$11,咖啡簡介!$D$6:$M$6,0)) -> 瓜地馬拉 | N26: 迷霧山谷 | P26: 半磅裝(夾鏈袋) | T26: =INDEX(B12:J71,MATCH(N26,A12:A71,0),MATCH(P26,B11:J11,0)) -> 395 | V26: =VLOOKUP(P26,A2:B7,2,0) -> 包 | W26: 0 | Z26: 0 | AB26: 品名不能是空白 | AC26: 一磅裝(鋁袋) | AD26: 磅裝(PE透明袋） | AE26: 半磅裝(夾鏈袋) | AF26: 試喝200克(PE透明袋） | AG26: 商用2700克(透明袋) | AH26: 生豆1公斤(透明袋) | AI26: 0 | AJ26: 磨粉 | AK26: 透明袋一律不磨粉 | AL26: 磨粉 | AP26: 滿2磅才可指定烘焙 | AR26: 1-極淺焙 | AS26: 2-肉桂烘焙 | AT26: 3-中焙 | AU26: 4-高度烘焙 | AV26: 5-城市烘焙 | AW26: 6-全都會 | AX26: 7-法式烘焙 | AY26: 8-義式烘焙 | AZ26: 生豆不可指定 | BW26: =VLOOKUP(訂單填表!$P26,訂單填表!$A$2:$C$7,3,0) -> 重量:227±3公克 | BX26: =IF($R26=$AJ26,標籤!$P$5,IF($P26=$A$7,標籤!$T$5,標籤!$R$5)) -> 最佳賞味期:30天 | BY26: =IF($R26=$AJ26,標籤!$P$6,IF($P26=$A$7,標籤!$T$6,標籤!$R$6)) -> 保存期限:180天 | BZ26: =IF($R26=$AJ26,標籤!$P$8,IF($P26=$A$7,標籤!$T$8,標籤!$U$8)) ->  | CA26: =IF(BZ26=標籤!$U$8,標籤!$R$8," ") -> 當日烘焙包裝 | CB26: 製造日期: | CC26: =CONCATENATE($CB26,標籤!$P$4) -> 製造日期:2024-9-5
A27: =咖啡簡介!C22 -> 榮耀 安提瓜 | B27: =咖啡簡介!P22 -> 370 | C27: 365 | D27: 365 | E27: 182 | F27: 720 | G27: 174 | H27: 2180 | I27: 2180 | J27: 592 | K27: 0 | L27: 16 | M27: =INDEX(咖啡簡介!$D$7:$M$82,MATCH(N27,咖啡簡介!$C$7:$C$82,0),MATCH($M$11,咖啡簡介!$D$6:$M$6,0)) -> 瓜地馬拉 | N27: 榮耀 安提瓜 | P27: 半磅裝(夾鏈袋) | T27: =INDEX(B12:J71,MATCH(N27,A12:A71,0),MATCH(P27,B11:J11,0)) -> 370 | V27: =VLOOKUP(P27,A2:B7,2,0) -> 包 | W27: 0 | Z27: 0 | AB27: 品名不能是空白 | AC27: 一磅裝(鋁袋) | AD27: 磅裝(PE透明袋） | AE27: 半磅裝(夾鏈袋) | AF27: 試喝200克(PE透明袋） | AG27: 商用2700克(透明袋) | AH27: 生豆1公斤(透明袋) | AI27: 0 | AJ27: 磨粉 | AK27: 透明袋一律不磨粉 | AL27: 磨粉 | AP27: 滿2磅才可指定烘焙 | AR27: 1-極淺焙 | AS27: 2-肉桂烘焙 | AT27: 3-中焙 | AU27: 4-高度烘焙 | AV27: 5-城市烘焙 | AW27: 6-全都會 | AX27: 7-法式烘焙 | AY27: 8-義式烘焙 | AZ27: 生豆不可指定 | BW27: =VLOOKUP(訂單填表!$P27,訂單填表!$A$2:$C$7,3,0) -> 重量:227±3公克 | BX27: =IF($R27=$AJ27,標籤!$P$5,IF($P27=$A$7,標籤!$T$5,標籤!$R$5)) -> 最佳賞味期:30天 | BY27: =IF($R27=$AJ27,標籤!$P$6,IF($P27=$A$7,標籤!$T$6,標籤!$R$6)) -> 保存期限:180天 | BZ27: =IF($R27=$AJ27,標籤!$P$8,IF($P27=$A$7,標籤!$T$8,標籤!$U$8)) ->  | CA27: =IF(BZ27=標籤!$U$8,標籤!$R$8," ") -> 當日烘焙包裝 | CB27: 製造日期: | CC27: =CONCATENATE($CB27,標籤!$P$4) -> 製造日期:2024-9-5
A28: =咖啡簡介!C23 -> 波爾莎莊園 | B28: =咖啡簡介!P23 -> 395 | C28: 390 | D28: 390 | E28: 194 | F28: 770 | G28: 186 | H28: 2330 | I28: 2330 | J28: 632 | K28: 0 | L28: 17 | M28: =INDEX(咖啡簡介!$D$7:$M$82,MATCH(N28,咖啡簡介!$C$7:$C$82,0),MATCH($M$11,咖啡簡介!$D$6:$M$6,0)) -> 瓜地馬拉 | N28: 波爾莎莊園 | P28: 半磅裝(夾鏈袋) | T28: =INDEX(B12:J71,MATCH(N28,A12:A71,0),MATCH(P28,B11:J11,0)) -> 395 | V28: =VLOOKUP(P28,A2:B7,2,0) -> 包 | W28: 0 | Z28: 0 | AB28: 品名不能是空白 | AC28: =CONCATENATE(AC27) -> 一磅裝(鋁袋) | AD28: 磅裝(PE透明袋） | AE28: 半磅裝(夾鏈袋) | AF28: 試喝200克(PE透明袋） | AG28: 商用2700克(透明袋) | AH28: 生豆1公斤(透明袋) | AI28: 0 | AJ28: =CONCATENATE(AJ27) -> 磨粉 | AK28: 透明袋一律不磨粉 | AL28: 磨粉 | AP28: =CONCATENATE(AP27) -> 滿2磅才可指定烘焙 | AR28: 1-極淺焙 | AS28: 2-肉桂烘焙 | AT28: 3-中焙 | AU28: 4-高度烘焙 | AV28: 5-城市烘焙 | AW28: 6-全都會 | AX28: 7-法式烘焙 | AY28: 8-義式烘焙 | AZ28: 生豆不可指定 | BW28: =VLOOKUP(訂單填表!$P28,訂單填表!$A$2:$C$7,3,0) -> 重量:227±3公克 | BX28: =IF($R28=$AJ28,標籤!$P$5,IF($P28=$A$7,標籤!$T$5,標籤!$R$5)) -> 最佳賞味期:30天 | BY28: =IF($R28=$AJ28,標籤!$P$6,IF($P28=$A$7,標籤!$T$6,標籤!$R$6)) -> 保存期限:180天 | BZ28: =IF($R28=$AJ28,標籤!$P$8,IF($P28=$A$7,標籤!$T$8,標籤!$U$8)) ->  | CA28: =IF(BZ28=標籤!$U$8,標籤!$R$8," ") -> 當日烘焙包裝 | CB28: 製造日期: | CC28: =CONCATENATE($CB28,標籤!$P$4) -> 製造日期:2024-9-5
A29: =咖啡簡介!C24 -> 月光女神 | B29: =咖啡簡介!P24 -> 375 | C29: 370 | D29: 370 | E29: 184 | F29: 730 | G29: 176 | H29: 2210 | I29: 2210 | J29: 600 | K29: 0 | L29: 18 | M29: =INDEX(咖啡簡介!$D$7:$M$82,MATCH(N29,咖啡簡介!$C$7:$C$82,0),MATCH($M$11,咖啡簡介!$D$6:$M$6,0)) -> 瓜地馬拉 | N29: 月光女神 | P29: 半磅裝(夾鏈袋) | T29: =INDEX(B12:J71,MATCH(N29,A12:A71,0),MATCH(P29,B11:J11,0)) -> 375 | V29: =VLOOKUP(P29,A2:B7,2,0) -> 包 | W29: 0 | Z29: 0 | AB29: 品名不能是空白 | AC29: 一磅裝(鋁袋) | AD29: 磅裝(PE透明袋） | AE29: 半磅裝(夾鏈袋) | AF29: 試喝200克(PE透明袋） | AG29: 商用2700克(透明袋) | AH29: 生豆1公斤(透明袋) | AI29: 0 | AJ29: 磨粉 | AK29: 透明袋一律不磨粉 | AL29: 磨粉 | AP29: 滿2磅才可指定烘焙 | AR29: 1-極淺焙 | AS29: 2-肉桂烘焙 | AT29: 3-中焙 | AU29: 4-高度烘焙 | AV29: 5-城市烘焙 | AW29: 6-全都會 | AX29: 7-法式烘焙 | AY29: 8-義式烘焙 | AZ29: 生豆不可指定 | BW29: =VLOOKUP(訂單填表!$P29,訂單填表!$A$2:$C$7,3,0) -> 重量:227±3公克 | BX29: =IF($R29=$AJ29,標籤!$P$5,IF($P29=$A$7,標籤!$T$5,標籤!$R$5)) -> 最佳賞味期:30天 | BY29: =IF($R29=$AJ29,標籤!$P$6,IF($P29=$A$7,標籤!$T$6,標籤!$R$6)) -> 保存期限:180天 | BZ29: =IF($R29=$AJ29,標籤!$P$8,IF($P29=$A$7,標籤!$T$8,標籤!$U$8)) ->  | CA29: =IF(BZ29=標籤!$U$8,標籤!$R$8," ") -> 當日烘焙包裝 | CB29: 製造日期: | CC29: =CONCATENATE($CB29,標籤!$P$4) -> 製造日期:2024-9-5
A30: =咖啡簡介!C25 -> 胡美火山 | B30: =咖啡簡介!P25 -> 355 | C30: 350 | D30: 350 | E30: 175 | F30: 690 | G30: 167 | H30: 2090 | I30: 2090 | J30: 568 | K30: 0 | L30: 19 | M30: =INDEX(咖啡簡介!$D$7:$M$82,MATCH(N30,咖啡簡介!$C$7:$C$82,0),MATCH($M$11,咖啡簡介!$D$6:$M$6,0)) -> 瓜地馬拉 | N30: 胡美火山 | P30: 半磅裝(夾鏈袋) | T30: =INDEX(B12:J71,MATCH(N30,A12:A71,0),MATCH(P30,B11:J11,0)) -> 355 | V30: =VLOOKUP(P30,A2:B7,2,0) -> 包 | W30: 0 | Z30: 0 | AB30: 品名不能是空白 | AC30: 一磅裝(鋁袋) | AD30: 磅裝(PE透明袋） | AE30: 半磅裝(夾鏈袋) | AF30: 試喝200克(PE透明袋） | AG30: 商用2700克(透明袋) | AH30: 生豆1公斤(透明袋) | AI30: 0 | AJ30: 磨粉 | AK30: 透明袋一律不磨粉 | AL30: 磨粉 | AP30: 滿2磅才可指定烘焙 | AR30: 1-極淺焙 | AS30: 2-肉桂烘焙 | AT30: 3-中焙 | AU30: 4-高度烘焙 | AV30: 5-城市烘焙 | AW30: 6-全都會 | AX30: 7-法式烘焙 | AY30: 8-義式烘焙 | AZ30: 生豆不可指定 | BW30: =VLOOKUP(訂單填表!$P30,訂單填表!$A$2:$C$7,3,0) -> 重量:227±3公克 | BX30: =IF($R30=$AJ30,標籤!$P$5,IF($P30=$A$7,標籤!$T$5,標籤!$R$5)) -> 最佳賞味期:30天 | BY30: =IF($R30=$AJ30,標籤!$P$6,IF($P30=$A$7,標籤!$T$6,標籤!$R$6)) -> 保存期限:180天 | BZ30: =IF($R30=$AJ30,標籤!$P$8,IF($P30=$A$7,標籤!$T$8,標籤!$U$8)) ->  | CA30: =IF(BZ30=標籤!$U$8,標籤!$R$8," ") -> 當日烘焙包裝 | CB30: 製造日期: | CC30: =CONCATENATE($CB30,標籤!$P$4) -> 製造日期:2024-9-5
A31: =咖啡簡介!C26 -> 伊莉塔莊園 | B31: =咖啡簡介!P26 -> 480 | C31: 475 | D31: 475 | E31: 234 | F31: 940 | G31: 226 | H31: 2840 | I31: 2840 | J31: 768 | K31: 0 | L31: 20 | M31: =INDEX(咖啡簡介!$D$7:$M$82,MATCH(N31,咖啡簡介!$C$7:$C$82,0),MATCH($M$11,咖啡簡介!$D$6:$M$6,0)) -> 巴拿馬 | N31: 伊莉塔莊園 | P31: 半磅裝(夾鏈袋) | T31: =INDEX(B12:J71,MATCH(N31,A12:A71,0),MATCH(P31,B11:J11,0)) -> 480 | V31: =VLOOKUP(P31,A2:B7,2,0) -> 包 | W31: 0 | Z31: 0 | AB31: 品名不能是空白 | AC31: 一磅裝(鋁袋) | AD31: 磅裝(PE透明袋） | AE31: 半磅裝(夾鏈袋) | AF31: 試喝200克(PE透明袋） | AG31: 商用2700克(透明袋) | AH31: 生豆1公斤(透明袋) | AI31: 0 | AJ31: 磨粉 | AK31: 透明袋一律不磨粉 | AL31: 磨粉 | AP31: 滿2磅才可指定烘焙 | AR31: 1-極淺焙 | AS31: 2-肉桂烘焙 | AT31: 3-中焙 | AU31: 4-高度烘焙 | AV31: 5-城市烘焙 | AW31: 6-全都會 | AX31: 7-法式烘焙 | AY31: 8-義式烘焙 | AZ31: 生豆不可指定 | BW31: =VLOOKUP(訂單填表!$P31,訂單填表!$A$2:$C$7,3,0) -> 重量:227±3公克 | BX31: =IF($R31=$AJ31,標籤!$P$5,IF($P31=$A$7,標籤!$T$5,標籤!$R$5)) -> 最佳賞味期:30天 | BY31: =IF($R31=$AJ31,標籤!$P$6,IF($P31=$A$7,標籤!$T$6,標籤!$R$6)) -> 保存期限:180天 | BZ31: =IF($R31=$AJ31,標籤!$P$8,IF($P31=$A$7,標籤!$T$8,標籤!$U$8)) ->  | CA31: =IF(BZ31=標籤!$U$8,標籤!$R$8," ") -> 當日烘焙包裝 | CB31: 製造日期: | CC31: =CONCATENATE($CB31,標籤!$P$4) -> 製造日期:2024-9-5
A32: =咖啡簡介!C27 -> 月夜黑 藝妓 | B32: =咖啡簡介!P27 -> 920 | C32: 915 | D32: 915 | E32: 440 | F32: 1820 | G32: 432 | H32: 5480 | I32: 5480 | J32: 1472 | K32: 0 | L32: 21 | M32: =INDEX(咖啡簡介!$D$7:$M$82,MATCH(N32,咖啡簡介!$C$7:$C$82,0),MATCH($M$11,咖啡簡介!$D$6:$M$6,0)) -> 巴拿馬 | N32: 月夜黑 藝妓 | P32: 半磅裝(夾鏈袋) | T32: =INDEX(B12:J71,MATCH(N32,A12:A71,0),MATCH(P32,B11:J11,0)) -> 920 | V32: =VLOOKUP(P32,A2:B7,2,0) -> 包 | W32: 0 | Z32: 0 | AB32: 品名不能是空白 | AC32: 一磅裝(鋁袋) | AD32: 磅裝(PE透明袋） | AE32: 半磅裝(夾鏈袋) | AF32: 試喝200克(PE透明袋） | AG32: 商用2700克(透明袋) | AH32: 生豆1公斤(透明袋) | AI32: 0 | AJ32: 磨粉 | AK32: 透明袋一律不磨粉 | AL32: 磨粉 | AP32: 滿2磅才可指定烘焙 | AR32: 1-極淺焙 | AS32: 2-肉桂烘焙 | AT32: 3-中焙 | AU32: 4-高度烘焙 | AV32: 5-城市烘焙 | AW32: 6-全都會 | AX32: 7-法式烘焙 | AY32: 8-義式烘焙 | AZ32: 生豆不可指定 | BW32: =VLOOKUP(訂單填表!$P32,訂單填表!$A$2:$C$7,3,0) -> 重量:227±3公克 | BX32: =IF($R32=$AJ32,標籤!$P$5,IF($P32=$A$7,標籤!$T$5,標籤!$R$5)) -> 最佳賞味期:30天 | BY32: =IF($R32=$AJ32,標籤!$P$6,IF($P32=$A$7,標籤!$T$6,標籤!$R$6)) -> 保存期限:180天 | BZ32: =IF($R32=$AJ32,標籤!$P$8,IF($P32=$A$7,標籤!$T$8,標籤!$U$8)) ->  | CA32: =IF(BZ32=標籤!$U$8,標籤!$R$8," ") -> 當日烘焙包裝 | CB32: 製造日期: | CC32: =CONCATENATE($CB32,標籤!$P$4) -> 製造日期:2024-9-5
A33: =咖啡簡介!C28 -> 邱比特 藝伎 | B33: =咖啡簡介!P28 -> 990 | C33: 985 | D33: 985 | E33: 473 | F33: 1960 | G33: 465 | H33: 5900 | I33: 5900 | J33: 1584 | K33: 0 | L33: 22 | M33: =INDEX(咖啡簡介!$D$7:$M$82,MATCH(N33,咖啡簡介!$C$7:$C$82,0),MATCH($M$11,咖啡簡介!$D$6:$M$6,0)) -> 巴拿馬 | N33: 邱比特 藝伎 | P33: 半磅裝(夾鏈袋) | T33: =INDEX(B12:J71,MATCH(N33,A12:A71,0),MATCH(P33,B11:J11,0)) -> 990 | V33: =VLOOKUP(P33,A2:B7,2,0) -> 包 | W33: 0 | Z33: 0 | AB33: 品名不能是空白 | AC33: 一磅裝(鋁袋) | AD33: 磅裝(PE透明袋） | AE33: 半磅裝(夾鏈袋) | AF33: 試喝200克(PE透明袋） | AG33: 商用2700克(透明袋) | AH33: 生豆1公斤(透明袋) | AI33: 0 | AJ33: 磨粉 | AK33: 透明袋一律不磨粉 | AL33: 磨粉 | AP33: 滿2磅才可指定烘焙 | AR33: 1-極淺焙 | AS33: 2-肉桂烘焙 | AT33: 3-中焙 | AU33: 4-高度烘焙 | AV33: 5-城市烘焙 | AW33: 6-全都會 | AX33: 7-法式烘焙 | AY33: 8-義式烘焙 | AZ33: 生豆不可指定 | BW33: =VLOOKUP(訂單填表!$P33,訂單填表!$A$2:$C$7,3,0) -> 重量:227±3公克 | BX33: =IF($R33=$AJ33,標籤!$P$5,IF($P33=$A$7,標籤!$T$5,標籤!$R$5)) -> 最佳賞味期:30天 | BY33: =IF($R33=$AJ33,標籤!$P$6,IF($P33=$A$7,標籤!$T$6,標籤!$R$6)) -> 保存期限:180天 | BZ33: =IF($R33=$AJ33,標籤!$P$8,IF($P33=$A$7,標籤!$T$8,標籤!$U$8)) ->  | CA33: =IF(BZ33=標籤!$U$8,標籤!$R$8," ") -> 當日烘焙包裝 | CB33: 製造日期: | CC33: =CONCATENATE($CB33,標籤!$P$4) -> 製造日期:2024-9-5
A34: =咖啡簡介!C29 -> 雨林 聖文森 | B34: =咖啡簡介!P29 -> 340 | C34: 335 | D34: 335 | E34: 168 | F34: 660 | G34: 160 | H34: 2000 | I34: 2000 | J34: 544 | K34: 0 | L34: 23 | M34: =INDEX(咖啡簡介!$D$7:$M$82,MATCH(N34,咖啡簡介!$C$7:$C$82,0),MATCH($M$11,咖啡簡介!$D$6:$M$6,0)) -> 宏都拉斯 | N34: 雨林 聖文森 | P34: 半磅裝(夾鏈袋) | T34: =INDEX(B12:J71,MATCH(N34,A12:A71,0),MATCH(P34,B11:J11,0)) -> 340 | V34: =VLOOKUP(P34,A2:B7,2,0) -> 包 | W34: 0 | Z34: 0 | AB34: 品名不能是空白 | AC34: 一磅裝(鋁袋) | AD34: 磅裝(PE透明袋） | AE34: 半磅裝(夾鏈袋) | AF34: 試喝200克(PE透明袋） | AG34: 商用2700克(透明袋) | AH34: 生豆1公斤(透明袋) | AI34: 0 | AJ34: 磨粉 | AK34: 透明袋一律不磨粉 | AL34: 磨粉 | AP34: 滿2磅才可指定烘焙 | AR34: 1-極淺焙 | AS34: 2-肉桂烘焙 | AT34: 3-中焙 | AU34: 4-高度烘焙 | AV34: 5-城市烘焙 | AW34: 6-全都會 | AX34: 7-法式烘焙 | AY34: 8-義式烘焙 | AZ34: 生豆不可指定 | BW34: =VLOOKUP(訂單填表!$P34,訂單填表!$A$2:$C$7,3,0) -> 重量:227±3公克 | BX34: =IF($R34=$AJ34,標籤!$P$5,IF($P34=$A$7,標籤!$T$5,標籤!$R$5)) -> 最佳賞味期:30天 | BY34: =IF($R34=$AJ34,標籤!$P$6,IF($P34=$A$7,標籤!$T$6,標籤!$R$6)) -> 保存期限:180天 | BZ34: =IF($R34=$AJ34,標籤!$P$8,IF($P34=$A$7,標籤!$T$8,標籤!$U$8)) ->  | CA34: =IF(BZ34=標籤!$U$8,標籤!$R$8," ") -> 當日烘焙包裝 | CB34: 製造日期: | CC34: =CONCATENATE($CB34,標籤!$P$4) -> 製造日期:2024-9-5
A35: =咖啡簡介!C30 -> 小蝸圓豆 | B35: =咖啡簡介!P30 -> 395 | C35: 390 | D35: 390 | E35: 194 | F35: 770 | G35: 186 | H35: 2330 | I35: 2330 | J35: 632 | K35: 0 | L35: 24 | M35: =INDEX(咖啡簡介!$D$7:$M$82,MATCH(N35,咖啡簡介!$C$7:$C$82,0),MATCH($M$11,咖啡簡介!$D$6:$M$6,0)) -> 宏都拉斯 | N35: 小蝸圓豆 | P35: 半磅裝(夾鏈袋) | T35: =INDEX(B12:J71,MATCH(N35,A12:A71,0),MATCH(P35,B11:J11,0)) -> 395 | V35: =VLOOKUP(P35,A2:B7,2,0) -> 包 | W35: 0 | Z35: 0 | AB35: 品名不能是空白 | AC35: 一磅裝(鋁袋) | AD35: 磅裝(PE透明袋） | AE35: 半磅裝(夾鏈袋) | AF35: 試喝200克(PE透明袋） | AG35: 商用2700克(透明袋) | AH35: 生豆1公斤(透明袋) | AI35: 0 | AJ35: 磨粉 | AK35: 透明袋一律不磨粉 | AL35: 磨粉 | AP35: 滿2磅才可指定烘焙 | AR35: 1-極淺焙 | AS35: 2-肉桂烘焙 | AT35: 3-中焙 | AU35: 4-高度烘焙 | AV35: 5-城市烘焙 | AW35: 6-全都會 | AX35: 7-法式烘焙 | AY35: 8-義式烘焙 | AZ35: 生豆不可指定 | BW35: =VLOOKUP(訂單填表!$P35,訂單填表!$A$2:$C$7,3,0) -> 重量:227±3公克 | BX35: =IF($R35=$AJ35,標籤!$P$5,IF($P35=$A$7,標籤!$T$5,標籤!$R$5)) -> 最佳賞味期:30天 | BY35: =IF($R35=$AJ35,標籤!$P$6,IF($P35=$A$7,標籤!$T$6,標籤!$R$6)) -> 保存期限:180天 | BZ35: =IF($R35=$AJ35,標籤!$P$8,IF($P35=$A$7,標籤!$T$8,標籤!$U$8)) ->  | CA35: =IF(BZ35=標籤!$U$8,標籤!$R$8," ") -> 當日烘焙包裝 | CB35: 製造日期: | CC35: =CONCATENATE($CB35,標籤!$P$4) -> 製造日期:2024-9-5
A36: =咖啡簡介!C31 -> 希諾特加 | B36: =咖啡簡介!P31 -> 310 | C36: 305 | D36: 305 | E36: 154 | F36: 600 | G36: 146 | H36: 1820 | I36: 1820 | J36: 496 | K36: 0 | L36: 25 | M36: =INDEX(咖啡簡介!$D$7:$M$82,MATCH(N36,咖啡簡介!$C$7:$C$82,0),MATCH($M$11,咖啡簡介!$D$6:$M$6,0)) -> 尼加拉瓜 | N36: 希諾特加 | P36: 半磅裝(夾鏈袋) | T36: =INDEX(B12:J71,MATCH(N36,A12:A71,0),MATCH(P36,B11:J11,0)) -> 310 | V36: =VLOOKUP(P36,A2:B7,2,0) -> 包 | W36: 0 | Z36: 0 | AB36: 品名不能是空白 | AC36: 一磅裝(鋁袋) | AD36: 磅裝(PE透明袋） | AE36: 半磅裝(夾鏈袋) | AF36: 試喝200克(PE透明袋） | AG36: 商用2700克(透明袋) | AH36: 生豆1公斤(透明袋) | AI36: 0 | AJ36: 磨粉 | AK36: 透明袋一律不磨粉 | AL36: 磨粉 | AP36: 滿2磅才可指定烘焙 | AR36: 1-極淺焙 | AS36: 2-肉桂烘焙 | AT36: 3-中焙 | AU36: 4-高度烘焙 | AV36: 5-城市烘焙 | AW36: 6-全都會 | AX36: 7-法式烘焙 | AY36: 8-義式烘焙 | AZ36: 生豆不可指定 | BW36: =VLOOKUP(訂單填表!$P36,訂單填表!$A$2:$C$7,3,0) -> 重量:227±3公克 | BX36: =IF($R36=$AJ36,標籤!$P$5,IF($P36=$A$7,標籤!$T$5,標籤!$R$5)) -> 最佳賞味期:30天 | BY36: =IF($R36=$AJ36,標籤!$P$6,IF($P36=$A$7,標籤!$T$6,標籤!$R$6)) -> 保存期限:180天 | BZ36: =IF($R36=$AJ36,標籤!$P$8,IF($P36=$A$7,標籤!$T$8,標籤!$U$8)) ->  | CA36: =IF(BZ36=標籤!$U$8,標籤!$R$8," ") -> 當日烘焙包裝 | CB36: 製造日期: | CC36: =CONCATENATE($CB36,標籤!$P$4) -> 製造日期:2024-9-5
A37: =咖啡簡介!C32 -> 花語 | B37: =咖啡簡介!P32 -> 380 | C37: 375 | D37: 375 | E37: 187 | F37: 740 | G37: 179 | H37: 2240 | I37: 2240 | J37: 608 | K37: 0 | L37: 26 | M37: =INDEX(咖啡簡介!$D$7:$M$82,MATCH(N37,咖啡簡介!$C$7:$C$82,0),MATCH($M$11,咖啡簡介!$D$6:$M$6,0)) -> 尼加拉瓜 | N37: 花語 | P37: 半磅裝(夾鏈袋) | T37: =INDEX(B12:J71,MATCH(N37,A12:A71,0),MATCH(P37,B11:J11,0)) -> 380 | V37: =VLOOKUP(P37,A2:B7,2,0) -> 包 | W37: 0 | Z37: 0 | AB37: 品名不能是空白 | AC37: 一磅裝(鋁袋) | AD37: 磅裝(PE透明袋） | AE37: 半磅裝(夾鏈袋) | AF37: 試喝200克(PE透明袋） | AG37: 商用2700克(透明袋) | AH37: 生豆1公斤(透明袋) | AI37: 0 | AJ37: 磨粉 | AK37: 透明袋一律不磨粉 | AL37: 磨粉 | AP37: 滿2磅才可指定烘焙 | AR37: 1-極淺焙 | AS37: 2-肉桂烘焙 | AT37: 3-中焙 | AU37: 4-高度烘焙 | AV37: 5-城市烘焙 | AW37: 6-全都會 | AX37: 7-法式烘焙 | AY37: 8-義式烘焙 | AZ37: 生豆不可指定 | BW37: =VLOOKUP(訂單填表!$P37,訂單填表!$A$2:$C$7,3,0) -> 重量:227±3公克 | BX37: =IF($R37=$AJ37,標籤!$P$5,IF($P37=$A$7,標籤!$T$5,標籤!$R$5)) -> 最佳賞味期:30天 | BY37: =IF($R37=$AJ37,標籤!$P$6,IF($P37=$A$7,標籤!$T$6,標籤!$R$6)) -> 保存期限:180天 | BZ37: =IF($R37=$AJ37,標籤!$P$8,IF($P37=$A$7,標籤!$T$8,標籤!$U$8)) ->  | CA37: =IF(BZ37=標籤!$U$8,標籤!$R$8," ") -> 當日烘焙包裝 | CB37: 製造日期: | CC37: =CONCATENATE($CB37,標籤!$P$4) -> 製造日期:2024-9-5
A38: =咖啡簡介!C33 -> 愉悅酒香 | B38: =咖啡簡介!P33 -> 475 | C38: 470 | D38: 470 | E38: 231 | F38: 930 | G38: 223 | H38: 2810 | I38: 2810 | J38: 760 | K38: 0 | L38: 27 | M38: =INDEX(咖啡簡介!$D$7:$M$82,MATCH(N38,咖啡簡介!$C$7:$C$82,0),MATCH($M$11,咖啡簡介!$D$6:$M$6,0)) -> 尼加拉瓜 | N38: 愉悅酒香 | P38: 半磅裝(夾鏈袋) | T38: =INDEX(B12:J71,MATCH(N38,A12:A71,0),MATCH(P38,B11:J11,0)) -> 475 | V38: =VLOOKUP(P38,A2:B7,2,0) -> 包 | W38: 0 | Z38: 0 | AB38: 品名不能是空白 | AC38: 一磅裝(鋁袋) | AD38: 磅裝(PE透明袋） | AE38: 半磅裝(夾鏈袋) | AF38: 試喝200克(PE透明袋） | AG38: 商用2700克(透明袋) | AH38: 生豆1公斤(透明袋) | AI38: 0 | AJ38: 磨粉 | AK38: 透明袋一律不磨粉 | AL38: 磨粉 | AP38: 滿2磅才可指定烘焙 | AR38: 1-極淺焙 | AS38: 2-肉桂烘焙 | AT38: 3-中焙 | AU38: 4-高度烘焙 | AV38: 5-城市烘焙 | AW38: 6-全都會 | AX38: 7-法式烘焙 | AY38: 8-義式烘焙 | AZ38: 生豆不可指定 | BW38: =VLOOKUP(訂單填表!$P38,訂單填表!$A$2:$C$7,3,0) -> 重量:227±3公克 | BX38: =IF($R38=$AJ38,標籤!$P$5,IF($P38=$A$7,標籤!$T$5,標籤!$R$5)) -> 最佳賞味期:30天 | BY38: =IF($R38=$AJ38,標籤!$P$6,IF($P38=$A$7,標籤!$T$6,標籤!$R$6)) -> 保存期限:180天 | BZ38: =IF($R38=$AJ38,標籤!$P$8,IF($P38=$A$7,標籤!$T$8,標籤!$U$8)) ->  | CA38: =IF(BZ38=標籤!$U$8,標籤!$R$8," ") -> 當日烘焙包裝 | CB38: 製造日期: | CC38: =CONCATENATE($CB38,標籤!$P$4) -> 製造日期:2024-9-5
A39: =咖啡簡介!C34 -> 火窯莊園 | B39: =咖啡簡介!P34 -> 425 | C39: 420 | D39: 420 | E39: 208 | F39: 830 | G39: 200 | H39: 2510 | I39: 2510 | J39: 680 | K39: 0 | L39: 28 | M39: =INDEX(咖啡簡介!$D$7:$M$82,MATCH(N39,咖啡簡介!$C$7:$C$82,0),MATCH($M$11,咖啡簡介!$D$6:$M$6,0)) -> 薩爾瓦多 | N39: 火窯莊園 | P39: 半磅裝(夾鏈袋) | T39: =INDEX(B12:J71,MATCH(N39,A12:A71,0),MATCH(P39,B11:J11,0)) -> 425 | V39: =VLOOKUP(P39,A2:B7,2,0) -> 包 | W39: 0 | Z39: 0 | AB39: 品名不能是空白 | AC39: 一磅裝(鋁袋) | AD39: 磅裝(PE透明袋） | AE39: 半磅裝(夾鏈袋) | AF39: 試喝200克(PE透明袋） | AG39: 商用2700克(透明袋) | AH39: 生豆1公斤(透明袋) | AI39: 0 | AJ39: 磨粉 | AK39: 透明袋一律不磨粉 | AL39: 磨粉 | AP39: 滿2磅才可指定烘焙 | AR39: 1-極淺焙 | AS39: 2-肉桂烘焙 | AT39: 3-中焙 | AU39: 4-高度烘焙 | AV39: 5-城市烘焙 | AW39: 6-全都會 | AX39: 7-法式烘焙 | AY39: 8-義式烘焙 | AZ39: 生豆不可指定 | BW39: =VLOOKUP(訂單填表!$P39,訂單填表!$A$2:$C$7,3,0) -> 重量:227±3公克 | BX39: =IF($R39=$AJ39,標籤!$P$5,IF($P39=$A$7,標籤!$T$5,標籤!$R$5)) -> 最佳賞味期:30天 | BY39: =IF($R39=$AJ39,標籤!$P$6,IF($P39=$A$7,標籤!$T$6,標籤!$R$6)) -> 保存期限:180天 | BZ39: =IF($R39=$AJ39,標籤!$P$8,IF($P39=$A$7,標籤!$T$8,標籤!$U$8)) ->  | CA39: =IF(BZ39=標籤!$U$8,標籤!$R$8," ") -> 當日烘焙包裝 | CB39: 製造日期: | CC39: =CONCATENATE($CB39,標籤!$P$4) -> 製造日期:2024-9-5
A40: =咖啡簡介!C35 -> 秀拉特楠果 | B40: =咖啡簡介!P35 -> 320 | C40: 315 | D40: 315 | E40: 158 | F40: 620 | G40: 150 | H40: 1880 | I40: 1880 | J40: 512 | K40: 0 | L40: 29 | M40: =INDEX(咖啡簡介!$D$7:$M$82,MATCH(N40,咖啡簡介!$C$7:$C$82,0),MATCH($M$11,咖啡簡介!$D$6:$M$6,0)) -> 薩爾瓦多 | N40: 秀拉特楠果 | P40: 半磅裝(夾鏈袋) | T40: =INDEX(B12:J71,MATCH(N40,A12:A71,0),MATCH(P40,B11:J11,0)) -> 320 | V40: =VLOOKUP(P40,A2:B7,2,0) -> 包 | W40: 0 | Z40: 0 | AB40: 品名不能是空白 | AC40: 一磅裝(鋁袋) | AD40: 磅裝(PE透明袋） | AE40: 半磅裝(夾鏈袋) | AF40: 試喝200克(PE透明袋） | AG40: 商用2700克(透明袋) | AH40: 生豆1公斤(透明袋) | AI40: 0 | AJ40: 磨粉 | AK40: 透明袋一律不磨粉 | AL40: 磨粉 | AP40: 滿2磅才可指定烘焙 | AR40: 1-極淺焙 | AS40: 2-肉桂烘焙 | AT40: 3-中焙 | AU40: 4-高度烘焙 | AV40: 5-城市烘焙 | AW40: 6-全都會 | AX40: 7-法式烘焙 | AY40: 8-義式烘焙 | AZ40: 生豆不可指定 | BW40: =VLOOKUP(訂單填表!$P40,訂單填表!$A$2:$C$7,3,0) -> 重量:227±3公克 | BX40: =IF($R40=$AJ40,標籤!$P$5,IF($P40=$A$7,標籤!$T$5,標籤!$R$5)) -> 最佳賞味期:30天 | BY40: =IF($R40=$AJ40,標籤!$P$6,IF($P40=$A$7,標籤!$T$6,標籤!$R$6)) -> 保存期限:180天 | BZ40: =IF($R40=$AJ40,標籤!$P$8,IF($P40=$A$7,標籤!$T$8,標籤!$U$8)) ->  | CA40: =IF(BZ40=標籤!$U$8,標籤!$R$8," ") -> 當日烘焙包裝 | CB40: 製造日期: | CC40: =CONCATENATE($CB40,標籤!$P$4) -> 製造日期:2024-9-5
A41: =咖啡簡介!C36 -> 彩虹小馬 | B41: =咖啡簡介!P36 -> 330 | C41: 325 | D41: 325 | E41: 163 | F41: 640 | G41: 155 | H41: 1940 | I41: 1940 | J41: 528 | K41: 0 | L41: 30 | M41: =INDEX(咖啡簡介!$D$7:$M$82,MATCH(N41,咖啡簡介!$C$7:$C$82,0),MATCH($M$11,咖啡簡介!$D$6:$M$6,0)) -> 墨西哥 | N41: 彩虹小馬 | P41: 半磅裝(夾鏈袋) | T41: =INDEX(B12:J71,MATCH(N41,A12:A71,0),MATCH(P41,B11:J11,0)) -> 330 | V41: =VLOOKUP(P41,A2:B7,2,0) -> 包 | W41: 0 | Z41: 0 | AB41: 品名不能是空白 | AC41: 一磅裝(鋁袋) | AD41: 磅裝(PE透明袋） | AE41: 半磅裝(夾鏈袋) | AF41: 試喝200克(PE透明袋） | AG41: 商用2700克(透明袋) | AH41: 生豆1公斤(透明袋) | AI41: 0 | AJ41: 磨粉 | AK41: 透明袋一律不磨粉 | AL41: 磨粉 | AP41: 滿2磅才可指定烘焙 | AR41: 1-極淺焙 | AS41: 2-肉桂烘焙 | AT41: 3-中焙 | AU41: 4-高度烘焙 | AV41: 5-城市烘焙 | AW41: 6-全都會 | AX41: 7-法式烘焙 | AY41: 8-義式烘焙 | AZ41: 生豆不可指定 | BW41: =VLOOKUP(訂單填表!$P41,訂單填表!$A$2:$C$7,3,0) -> 重量:227±3公克 | BX41: =IF($R41=$AJ41,標籤!$P$5,IF($P41=$A$7,標籤!$T$5,標籤!$R$5)) -> 最佳賞味期:30天 | BY41: =IF($R41=$AJ41,標籤!$P$6,IF($P41=$A$7,標籤!$T$6,標籤!$R$6)) -> 保存期限:180天 | BZ41: =IF($R41=$AJ41,標籤!$P$8,IF($P41=$A$7,標籤!$T$8,標籤!$U$8)) ->  | CA41: =IF(BZ41=標籤!$U$8,標籤!$R$8," ") -> 當日烘焙包裝 | CB41: 製造日期: | CC41: =CONCATENATE($CB41,標籤!$P$4) -> 製造日期:2024-9-5
A42: =咖啡簡介!C37 -> 鳳尾綠鵑 | B42: =咖啡簡介!P37 -> 365 | C42: 360 | D42: 360 | E42: 180 | F42: 710 | G42: 172 | H42: 2150 | I42: 2150 | J42: 584 | K42: 0 | L42: 31 | M42: =INDEX(咖啡簡介!$D$7:$M$82,MATCH(N42,咖啡簡介!$C$7:$C$82,0),MATCH($M$11,咖啡簡介!$D$6:$M$6,0)) -> 墨西哥 | N42: 鳳尾綠鵑 | P42: 半磅裝(夾鏈袋) | T42: =INDEX(B12:J71,MATCH(N42,A12:A71,0),MATCH(P42,B11:J11,0)) -> 365 | V42: =VLOOKUP(P42,A2:B7,2,0) -> 包 | W42: 0 | Z42: 0 | AB42: 品名不能是空白 | AC42: 一磅裝(鋁袋) | AD42: 磅裝(PE透明袋） | AE42: 半磅裝(夾鏈袋) | AF42: 試喝200克(PE透明袋） | AG42: 商用2700克(透明袋) | AH42: 生豆1公斤(透明袋) | AI42: 0 | AJ42: 磨粉 | AK42: 透明袋一律不磨粉 | AL42: 磨粉 | AP42: 滿2磅才可指定烘焙 | AR42: 1-極淺焙 | AS42: 2-肉桂烘焙 | AT42: 3-中焙 | AU42: 4-高度烘焙 | AV42: 5-城市烘焙 | AW42: 6-全都會 | AX42: 7-法式烘焙 | AY42: 8-義式烘焙 | AZ42: 生豆不可指定 | BW42: =VLOOKUP(訂單填表!$P42,訂單填表!$A$2:$C$7,3,0) -> 重量:227±3公克 | BX42: =IF($R42=$AJ42,標籤!$P$5,IF($P42=$A$7,標籤!$T$5,標籤!$R$5)) -> 最佳賞味期:30天 | BY42: =IF($R42=$AJ42,標籤!$P$6,IF($P42=$A$7,標籤!$T$6,標籤!$R$6)) -> 保存期限:180天 | BZ42: =IF($R42=$AJ42,標籤!$P$8,IF($P42=$A$7,標籤!$T$8,標籤!$U$8)) ->  | CA42: =IF(BZ42=標籤!$U$8,標籤!$R$8," ") -> 當日烘焙包裝 | CB42: 製造日期: | CC42: =CONCATENATE($CB42,標籤!$P$4) -> 製造日期:2024-9-5
A43: =咖啡簡介!C38 -> 山度士 | B43: =咖啡簡介!P38 -> 199 | C43: 194 | D43: 194 | E43: 102 | F43: 378 | G43: 94 | H43: 1154 | I43: 1154 | J43: 318 | K43: 0 | L43: 32 | M43: =INDEX(咖啡簡介!$D$7:$M$82,MATCH(N43,咖啡簡介!$C$7:$C$82,0),MATCH($M$11,咖啡簡介!$D$6:$M$6,0)) -> 巴西 | N43: 山度士 | P43: 半磅裝(夾鏈袋) | T43: =INDEX(B12:J71,MATCH(N43,A12:A71,0),MATCH(P43,B11:J11,0)) -> 199 | V43: =VLOOKUP(P43,A2:B7,2,0) -> 包 | W43: 0 | Z43: 0 | AB43: 品名不能是空白 | AC43: 一磅裝(鋁袋) | AD43: 磅裝(PE透明袋） | AE43: 半磅裝(夾鏈袋) | AF43: 試喝200克(PE透明袋） | AG43: 商用2700克(透明袋) | AH43: 生豆1公斤(透明袋) | AI43: 0 | AJ43: 磨粉 | AK43: 透明袋一律不磨粉 | AL43: 磨粉 | AP43: 滿2磅才可指定烘焙 | AR43: 1-極淺焙 | AS43: 2-肉桂烘焙 | AT43: 3-中焙 | AU43: 4-高度烘焙 | AV43: 5-城市烘焙 | AW43: 6-全都會 | AX43: 7-法式烘焙 | AY43: 8-義式烘焙 | AZ43: 生豆不可指定 | BW43: =VLOOKUP(訂單填表!$P43,訂單填表!$A$2:$C$7,3,0) -> 重量:227±3公克 | BX43: =IF($R43=$AJ43,標籤!$P$5,IF($P43=$A$7,標籤!$T$5,標籤!$R$5)) -> 最佳賞味期:30天 | BY43: =IF($R43=$AJ43,標籤!$P$6,IF($P43=$A$7,標籤!$T$6,標籤!$R$6)) -> 保存期限:180天 | BZ43: =IF($R43=$AJ43,標籤!$P$8,IF($P43=$A$7,標籤!$T$8,標籤!$U$8)) ->  | CA43: =IF(BZ43=標籤!$U$8,標籤!$R$8," ") -> 當日烘焙包裝 | CB43: 製造日期: | CC43: =CONCATENATE($CB43,標籤!$P$4) -> 製造日期:2024-9-5
A44: =咖啡簡介!C39 -> 摩奇安娜 | B44: =咖啡簡介!P39 -> 215 | C44: =ABS(B44-5) -> 210 | D44: =IF(C44<10,0,C44) -> 210 | E44: =ROUND(B44*0.47+8,0) -> 109 | F44: =ROUND(B44*2-20,0) -> 410 | G44: =ROUND(B44*0.47,0) -> 101 | H44: =ABS(B44*6-40) -> 1250 | I44: =IF(H44<50,0,H44) -> 1250 | J44: =ROUND(B44*1.6,0) -> 344 | K44: =IF(COUNTIFS($N$12:$N$87,A44)=0,"0",SUMPRODUCT(($N$12:$N$87=A44)*1,($P$12:$P$87=$A$2)*$E$2+($P$12:$P$87=$A$3)*$E$3+($P$12:$P$87=$A$4)*$E$4+($P$12:$P$87=$A$5)*$E$5+($P$12:$P$87=$A$7)*$E$6+($P$12:$P$87=$A$6)*$E$7,$U$12:$U$87)) -> 0 | L44: 33 | M44: =INDEX(咖啡簡介!$D$7:$M$82,MATCH(N44,咖啡簡介!$C$7:$C$82,0),MATCH($M$11,咖啡簡介!$D$6:$M$6,0)) -> 巴西 | N44: 摩奇安娜 | P44: 半磅裝(夾鏈袋) | T44: =INDEX(B12:J71,MATCH(N44,A12:A71,0),MATCH(P44,B11:J11,0)) -> 215 | V44: =VLOOKUP(P44,A2:B7,2,0) -> 包 | W44: =ABS(T44*U44) -> 0 | X44: =CONCATENATE(AN44,BA44,BB44,AO44,BC44,AA44) ->  | Z44: =$Z$11 -> 0 | AA44: =IF(AND(N44=Z44,U44>=1),AB44,"") ->  | AB44: =$AB$11 -> 品名不能是空白 | AC44: =CONCATENATE(AC43) -> 一磅裝(鋁袋) | AD44: 磅裝(PE透明袋） | AE44: 半磅裝(夾鏈袋) | AF44: 試喝200克(PE透明袋） | AG44: 商用2700克(透明袋) | AH44: 生豆1公斤(透明袋) | AI44: =IF(P44=AC44,U44,IF(P44=AD44,U44,IF(P44=AE44,U44*0.5,IF(P44=AF44,U44*0.5,IF(P44=AG44,U44*6,IF(P44=AH44,U44*999)))))) -> 0 | AJ44: 磨粉 | AK44: =CONCATENATE(AK43) -> 透明袋一律不磨粉 | AL44: =IF(OR(P44=AC44,P44=AE44),AJ44," ") -> 磨粉 | AM44: =CONCATENATE($AM$11) ->  | AN44: =IF(AL44=AJ44," ",IF(AND(R44=AJ44,U44>0),AK44," ")) ->  | AO44: =IF(OR(R44=AJ44,R44=AM44,R44=""),"",$AO$10) ->  | AP44: =CONCATENATE(AP43) -> 滿2磅才可指定烘焙 | AR44: 1-極淺焙 | AS44: 2-肉桂烘焙 | AT44: 3-中焙 | AU44: 4-高度烘焙 | AV44: 5-城市烘焙 | AW44: 6-全都會 | AX44: 7-法式烘焙 | AY44: 8-義式烘焙 | AZ44: =CONCATENATE(AZ43) -> 生豆不可指定 | BA44: =IF(AI44>1.9," ",IF(OR(S44<AR44,U44=0)," ",AP44)) ->  | BB44: =IF(S44<AR44," ",IF(AI44>998,AZ44," ")) ->  | BC44: =IF(OR(S44="",S44=AQ44,S44=AR44,S44=AS44,S44=AT44,S44=AU44,S44=AV44,S44=AW44,S44=AX44,S44=AY44,S44=AZ44),"",$BC$10) ->  | BW44: =VLOOKUP(訂單填表!$P44,訂單填表!$A$2:$C$7,3,0) -> 重量:227±3公克 | BX44: =IF($R44=$AJ44,標籤!$P$5,IF($P44=$A$7,標籤!$T$5,標籤!$R$5)) -> 最佳賞味期:30天 | BY44: =IF($R44=$AJ44,標籤!$P$6,IF($P44=$A$7,標籤!$T$6,標籤!$R$6)) -> 保存期限:180天 | BZ44: =IF($R44=$AJ44,標籤!$P$8,IF($P44=$A$7,標籤!$T$8,標籤!$U$8)) ->  | CA44: =IF(BZ44=標籤!$U$8,標籤!$R$8," ") -> 當日烘焙包裝 | CB44: =VLOOKUP(P44,$A$2:$D$7,4,0) -> 製造日期: | CC44: =CONCATENATE($CB44,標籤!$P$4) -> 製造日期:2024-9-5
A45: =咖啡簡介!C40 -> 喜拉朵 | B45: =咖啡簡介!P40 -> 215 | C45: 210 | D45: 210 | E45: 109 | F45: 410 | G45: 101 | H45: 1250 | I45: 1250 | J45: 344 | K45: 0 | L45: 34 | M45: =INDEX(咖啡簡介!$D$7:$M$82,MATCH(N45,咖啡簡介!$C$7:$C$82,0),MATCH($M$11,咖啡簡介!$D$6:$M$6,0)) -> 巴西 | N45: 喜拉朵 | P45: 半磅裝(夾鏈袋) | T45: =INDEX(B12:J71,MATCH(N45,A12:A71,0),MATCH(P45,B11:J11,0)) -> 215 | V45: =VLOOKUP(P45,A2:B7,2,0) -> 包 | W45: 0 | Z45: 0 | AB45: 品名不能是空白 | AC45: 一磅裝(鋁袋) | AD45: 磅裝(PE透明袋） | AE45: 半磅裝(夾鏈袋) | AF45: 試喝200克(PE透明袋） | AG45: 商用2700克(透明袋) | AH45: 生豆1公斤(透明袋) | AI45: 0 | AJ45: 磨粉 | AK45: 透明袋一律不磨粉 | AL45: 磨粉 | AP45: 滿2磅才可指定烘焙 | AR45: 1-極淺焙 | AS45: 2-肉桂烘焙 | AT45: 3-中焙 | AU45: 4-高度烘焙 | AV45: 5-城市烘焙 | AW45: 6-全都會 | AX45: 7-法式烘焙 | AY45: 8-義式烘焙 | AZ45: 生豆不可指定 | BW45: =VLOOKUP(訂單填表!$P45,訂單填表!$A$2:$C$7,3,0) -> 重量:227±3公克 | BX45: =IF($R45=$AJ45,標籤!$P$5,IF($P45=$A$7,標籤!$T$5,標籤!$R$5)) -> 最佳賞味期:30天 | BY45: =IF($R45=$AJ45,標籤!$P$6,IF($P45=$A$7,標籤!$T$6,標籤!$R$6)) -> 保存期限:180天 | BZ45: =IF($R45=$AJ45,標籤!$P$8,IF($P45=$A$7,標籤!$T$8,標籤!$U$8)) ->  | CA45: =IF(BZ45=標籤!$U$8,標籤!$R$8," ") -> 當日烘焙包裝 | CB45: 製造日期: | CC45: =CONCATENATE($CB45,標籤!$P$4) -> 製造日期:2024-9-5
A46: =咖啡簡介!C41 -> 伊帕內瑪 | B46: =咖啡簡介!P41 -> 335 | C46: 330 | D46: 330 | E46: 165 | F46: 650 | G46: 157 | H46: 1970 | I46: 1970 | J46: 536 | K46: 0 | L46: 35 | M46: =INDEX(咖啡簡介!$D$7:$M$82,MATCH(N46,咖啡簡介!$C$7:$C$82,0),MATCH($M$11,咖啡簡介!$D$6:$M$6,0)) -> 巴西 | N46: 伊帕內瑪 | P46: 半磅裝(夾鏈袋) | T46: =INDEX(B12:J71,MATCH(N46,A12:A71,0),MATCH(P46,B11:J11,0)) -> 335 | V46: =VLOOKUP(P46,A2:B7,2,0) -> 包 | W46: 0 | Z46: 0 | AB46: 品名不能是空白 | AC46: 一磅裝(鋁袋) | AD46: 磅裝(PE透明袋） | AE46: 半磅裝(夾鏈袋) | AF46: 試喝200克(PE透明袋） | AG46: 商用2700克(透明袋) | AH46: 生豆1公斤(透明袋) | AI46: 0 | AJ46: 磨粉 | AK46: 透明袋一律不磨粉 | AL46: 磨粉 | AP46: 滿2磅才可指定烘焙 | AR46: 1-極淺焙 | AS46: 2-肉桂烘焙 | AT46: 3-中焙 | AU46: 4-高度烘焙 | AV46: 5-城市烘焙 | AW46: 6-全都會 | AX46: 7-法式烘焙 | AY46: 8-義式烘焙 | AZ46: 生豆不可指定 | BW46: =VLOOKUP(訂單填表!$P46,訂單填表!$A$2:$C$7,3,0) -> 重量:227±3公克 | BX46: =IF($R46=$AJ46,標籤!$P$5,IF($P46=$A$7,標籤!$T$5,標籤!$R$5)) -> 最佳賞味期:30天 | BY46: =IF($R46=$AJ46,標籤!$P$6,IF($P46=$A$7,標籤!$T$6,標籤!$R$6)) -> 保存期限:180天 | BZ46: =IF($R46=$AJ46,標籤!$P$8,IF($P46=$A$7,標籤!$T$8,標籤!$U$8)) ->  | CA46: =IF(BZ46=標籤!$U$8,標籤!$R$8," ") -> 當日烘焙包裝 | CB46: 製造日期: | CC46: =CONCATENATE($CB46,標籤!$P$4) -> 製造日期:2024-9-5
A47: =咖啡簡介!C42 -> 甜蜜日曬(波旁) | B47: =咖啡簡介!P42 -> 330 | C47: 325 | D47: 325 | E47: 163 | F47: 640 | G47: 155 | H47: 1940 | I47: 1940 | J47: 528 | K47: 0 | L47: 36 | M47: =INDEX(咖啡簡介!$D$7:$M$82,MATCH(N47,咖啡簡介!$C$7:$C$82,0),MATCH($M$11,咖啡簡介!$D$6:$M$6,0)) -> 巴西 | N47: 甜蜜日曬(波旁) | P47: 半磅裝(夾鏈袋) | T47: =INDEX(B12:J71,MATCH(N47,A12:A71,0),MATCH(P47,B11:J11,0)) -> 330 | V47: =VLOOKUP(P47,A2:B7,2,0) -> 包 | W47: 0 | Z47: 0 | AB47: 品名不能是空白 | AC47: 一磅裝(鋁袋) | AD47: 磅裝(PE透明袋） | AE47: 半磅裝(夾鏈袋) | AF47: 試喝200克(PE透明袋） | AG47: 商用2700克(透明袋) | AH47: 生豆1公斤(透明袋) | AI47: 0 | AJ47: 磨粉 | AK47: 透明袋一律不磨粉 | AL47: 磨粉 | AP47: 滿2磅才可指定烘焙 | AR47: 1-極淺焙 | AS47: 2-肉桂烘焙 | AT47: 3-中焙 | AU47: 4-高度烘焙 | AV47: 5-城市烘焙 | AW47: 6-全都會 | AX47: 7-法式烘焙 | AY47: 8-義式烘焙 | AZ47: 生豆不可指定 | BW47: =VLOOKUP(訂單填表!$P47,訂單填表!$A$2:$C$7,3,0) -> 重量:227±3公克 | BX47: =IF($R47=$AJ47,標籤!$P$5,IF($P47=$A$7,標籤!$T$5,標籤!$R$5)) -> 最佳賞味期:30天 | BY47: =IF($R47=$AJ47,標籤!$P$6,IF($P47=$A$7,標籤!$T$6,標籤!$R$6)) -> 保存期限:180天 | BZ47: =IF($R47=$AJ47,標籤!$P$8,IF($P47=$A$7,標籤!$T$8,標籤!$U$8)) ->  | CA47: =IF(BZ47=標籤!$U$8,標籤!$R$8," ") -> 當日烘焙包裝 | CB47: 製造日期: | CC47: =CONCATENATE($CB47,標籤!$P$4) -> 製造日期:2024-9-5
A48: =咖啡簡介!C43 -> 瑪瑙 | B48: =咖啡簡介!P43 -> 280 | C48: 275 | D48: 275 | E48: 140 | F48: 540 | G48: 132 | H48: 1640 | I48: 1640 | J48: 448 | K48: 0 | L48: 37 | M48: =INDEX(咖啡簡介!$D$7:$M$82,MATCH(N48,咖啡簡介!$C$7:$C$82,0),MATCH($M$11,咖啡簡介!$D$6:$M$6,0)) -> 巴西 | N48: 瑪瑙 | P48: 半磅裝(夾鏈袋) | T48: =INDEX(B12:J71,MATCH(N48,A12:A71,0),MATCH(P48,B11:J11,0)) -> 280 | V48: =VLOOKUP(P48,A2:B7,2,0) -> 包 | W48: 0 | Z48: 0 | AB48: 品名不能是空白 | AC48: 一磅裝(鋁袋) | AD48: 磅裝(PE透明袋） | AE48: 半磅裝(夾鏈袋) | AF48: 試喝200克(PE透明袋） | AG48: 商用2700克(透明袋) | AH48: 生豆1公斤(透明袋) | AI48: 0 | AJ48: 磨粉 | AK48: 透明袋一律不磨粉 | AL48: 磨粉 | AP48: 滿2磅才可指定烘焙 | AR48: 1-極淺焙 | AS48: 2-肉桂烘焙 | AT48: 3-中焙 | AU48: 4-高度烘焙 | AV48: 5-城市烘焙 | AW48: 6-全都會 | AX48: 7-法式烘焙 | AY48: 8-義式烘焙 | AZ48: 生豆不可指定 | BW48: =VLOOKUP(訂單填表!$P48,訂單填表!$A$2:$C$7,3,0) -> 重量:227±3公克 | BX48: =IF($R48=$AJ48,標籤!$P$5,IF($P48=$A$7,標籤!$T$5,標籤!$R$5)) -> 最佳賞味期:30天 | BY48: =IF($R48=$AJ48,標籤!$P$6,IF($P48=$A$7,標籤!$T$6,標籤!$R$6)) -> 保存期限:180天 | BZ48: =IF($R48=$AJ48,標籤!$P$8,IF($P48=$A$7,標籤!$T$8,標籤!$U$8)) ->  | CA48: =IF(BZ48=標籤!$U$8,標籤!$R$8," ") -> 當日烘焙包裝 | CB48: 製造日期: | CC48: =CONCATENATE($CB48,標籤!$P$4) -> 製造日期:2024-9-5
A49: =咖啡簡介!C44 -> 星辰 | B49: =咖啡簡介!P44 -> 370 | C49: 365 | D49: 365 | E49: 182 | F49: 720 | G49: 174 | H49: 2180 | I49: 2180 | J49: 592 | K49: 0 | L49: 38 | M49: =INDEX(咖啡簡介!$D$7:$M$82,MATCH(N49,咖啡簡介!$C$7:$C$82,0),MATCH($M$11,咖啡簡介!$D$6:$M$6,0)) -> 秘魯 | N49: 星辰 | P49: 半磅裝(夾鏈袋) | T49: =INDEX(B12:J71,MATCH(N49,A12:A71,0),MATCH(P49,B11:J11,0)) -> 370 | V49: =VLOOKUP(P49,A2:B7,2,0) -> 包 | W49: 0 | Z49: 0 | AB49: 品名不能是空白 | AC49: 一磅裝(鋁袋) | AD49: 磅裝(PE透明袋） | AE49: 半磅裝(夾鏈袋) | AF49: 試喝200克(PE透明袋） | AG49: 商用2700克(透明袋) | AH49: 生豆1公斤(透明袋) | AI49: 0 | AJ49: 磨粉 | AK49: 透明袋一律不磨粉 | AL49: 磨粉 | AP49: 滿2磅才可指定烘焙 | AR49: 1-極淺焙 | AS49: 2-肉桂烘焙 | AT49: 3-中焙 | AU49: 4-高度烘焙 | AV49: 5-城市烘焙 | AW49: 6-全都會 | AX49: 7-法式烘焙 | AY49: 8-義式烘焙 | AZ49: 生豆不可指定 | BW49: =VLOOKUP(訂單填表!$P49,訂單填表!$A$2:$C$7,3,0) -> 重量:227±3公克 | BX49: =IF($R49=$AJ49,標籤!$P$5,IF($P49=$A$7,標籤!$T$5,標籤!$R$5)) -> 最佳賞味期:30天 | BY49: =IF($R49=$AJ49,標籤!$P$6,IF($P49=$A$7,標籤!$T$6,標籤!$R$6)) -> 保存期限:180天 | BZ49: =IF($R49=$AJ49,標籤!$P$8,IF($P49=$A$7,標籤!$T$8,標籤!$U$8)) ->  | CA49: =IF(BZ49=標籤!$U$8,標籤!$R$8," ") -> 當日烘焙包裝 | CB49: 製造日期: | CC49: =CONCATENATE($CB49,標籤!$P$4) -> 製造日期:2024-9-5
A50: =咖啡簡介!C45 -> 桑托斯 藝妓 | B50: =咖啡簡介!P45 -> 940 | C50: 935 | D50: 935 | E50: 450 | F50: 1860 | G50: 442 | H50: 5600 | I50: 5600 | J50: 1504 | K50: 0 | L50: 39 | M50: =INDEX(咖啡簡介!$D$7:$M$82,MATCH(N50,咖啡簡介!$C$7:$C$82,0),MATCH($M$11,咖啡簡介!$D$6:$M$6,0)) -> 秘魯 | N50: 桑托斯 藝妓 | P50: 半磅裝(夾鏈袋) | T50: =INDEX(B12:J71,MATCH(N50,A12:A71,0),MATCH(P50,B11:J11,0)) -> 940 | V50: =VLOOKUP(P50,A2:B7,2,0) -> 包 | W50: 0 | Z50: 0 | AB50: 品名不能是空白 | AC50: 一磅裝(鋁袋) | AD50: 磅裝(PE透明袋） | AE50: 半磅裝(夾鏈袋) | AF50: 試喝200克(PE透明袋） | AG50: 商用2700克(透明袋) | AH50: 生豆1公斤(透明袋) | AI50: 0 | AJ50: 磨粉 | AK50: 透明袋一律不磨粉 | AL50: 磨粉 | AP50: 滿2磅才可指定烘焙 | AR50: 1-極淺焙 | AS50: 2-肉桂烘焙 | AT50: 3-中焙 | AU50: 4-高度烘焙 | AV50: 5-城市烘焙 | AW50: 6-全都會 | AX50: 7-法式烘焙 | AY50: 8-義式烘焙 | AZ50: 生豆不可指定 | BW50: =VLOOKUP(訂單填表!$P50,訂單填表!$A$2:$C$7,3,0) -> 重量:227±3公克 | BX50: =IF($R50=$AJ50,標籤!$P$5,IF($P50=$A$7,標籤!$T$5,標籤!$R$5)) -> 最佳賞味期:30天 | BY50: =IF($R50=$AJ50,標籤!$P$6,IF($P50=$A$7,標籤!$T$6,標籤!$R$6)) -> 保存期限:180天 | BZ50: =IF($R50=$AJ50,標籤!$P$8,IF($P50=$A$7,標籤!$T$8,標籤!$U$8)) ->  | CA50: =IF(BZ50=標籤!$U$8,標籤!$R$8," ") -> 當日烘焙包裝 | CB50: 製造日期: | CC50: =CONCATENATE($CB50,標籤!$P$4) -> 製造日期:2024-9-5
A51: =咖啡簡介!C46 -> 娜玲瓏 | B51: =咖啡簡介!P46 -> 390 | C51: 385 | D51: 385 | E51: 191 | F51: 760 | G51: 183 | H51: 2300 | I51: 2300 | J51: 624 | K51: 0 | L51: 40 | M51: =INDEX(咖啡簡介!$D$7:$M$82,MATCH(N51,咖啡簡介!$C$7:$C$82,0),MATCH($M$11,咖啡簡介!$D$6:$M$6,0)) -> 哥倫比亞 | N51: 娜玲瓏 | P51: 半磅裝(夾鏈袋) | T51: =INDEX(B12:J71,MATCH(N51,A12:A71,0),MATCH(P51,B11:J11,0)) -> 390 | V51: =VLOOKUP(P51,A2:B7,2,0) -> 包 | W51: 0 | Z51: 0 | AB51: 品名不能是空白 | AC51: 一磅裝(鋁袋) | AD51: 磅裝(PE透明袋） | AE51: 半磅裝(夾鏈袋) | AF51: 試喝200克(PE透明袋） | AG51: 商用2700克(透明袋) | AH51: 生豆1公斤(透明袋) | AI51: 0 | AJ51: 磨粉 | AK51: 透明袋一律不磨粉 | AL51: 磨粉 | AP51: 滿2磅才可指定烘焙 | AR51: 1-極淺焙 | AS51: 2-肉桂烘焙 | AT51: 3-中焙 | AU51: 4-高度烘焙 | AV51: 5-城市烘焙 | AW51: 6-全都會 | AX51: 7-法式烘焙 | AY51: 8-義式烘焙 | AZ51: 生豆不可指定 | BW51: =VLOOKUP(訂單填表!$P51,訂單填表!$A$2:$C$7,3,0) -> 重量:227±3公克 | BX51: =IF($R51=$AJ51,標籤!$P$5,IF($P51=$A$7,標籤!$T$5,標籤!$R$5)) -> 最佳賞味期:30天 | BY51: =IF($R51=$AJ51,標籤!$P$6,IF($P51=$A$7,標籤!$T$6,標籤!$R$6)) -> 保存期限:180天 | BZ51: =IF($R51=$AJ51,標籤!$P$8,IF($P51=$A$7,標籤!$T$8,標籤!$U$8)) ->  | CA51: =IF(BZ51=標籤!$U$8,標籤!$R$8," ") -> 當日烘焙包裝 | CB51: 製造日期: | CC51: =CONCATENATE($CB51,標籤!$P$4) -> 製造日期:2024-9-5
A52: =咖啡簡介!C47 -> 祕密花園 | B52: =咖啡簡介!P47 -> 345 | C52: 340 | D52: 340 | E52: 170 | F52: 670 | G52: 162 | H52: 2030 | I52: 2030 | J52: 552 | K52: 0 | L52: 41 | M52: =INDEX(咖啡簡介!$D$7:$M$82,MATCH(N52,咖啡簡介!$C$7:$C$82,0),MATCH($M$11,咖啡簡介!$D$6:$M$6,0)) -> 哥倫比亞 | N52: 祕密花園 | P52: 半磅裝(夾鏈袋) | T52: =INDEX(B12:J71,MATCH(N52,A12:A71,0),MATCH(P52,B11:J11,0)) -> 345 | V52: =VLOOKUP(P52,A2:B7,2,0) -> 包 | W52: 0 | Z52: 0 | AB52: 品名不能是空白 | AC52: 一磅裝(鋁袋) | AD52: 磅裝(PE透明袋） | AE52: 半磅裝(夾鏈袋) | AF52: 試喝200克(PE透明袋） | AG52: 商用2700克(透明袋) | AH52: 生豆1公斤(透明袋) | AI52: 0 | AJ52: 磨粉 | AK52: 透明袋一律不磨粉 | AL52: 磨粉 | AP52: 滿2磅才可指定烘焙 | AR52: 1-極淺焙 | AS52: 2-肉桂烘焙 | AT52: 3-中焙 | AU52: 4-高度烘焙 | AV52: 5-城市烘焙 | AW52: 6-全都會 | AX52: 7-法式烘焙 | AY52: 8-義式烘焙 | AZ52: 生豆不可指定 | BW52: =VLOOKUP(訂單填表!$P52,訂單填表!$A$2:$C$7,3,0) -> 重量:227±3公克 | BX52: =IF($R52=$AJ52,標籤!$P$5,IF($P52=$A$7,標籤!$T$5,標籤!$R$5)) -> 最佳賞味期:30天 | BY52: =IF($R52=$AJ52,標籤!$P$6,IF($P52=$A$7,標籤!$T$6,標籤!$R$6)) -> 保存期限:180天 | BZ52: =IF($R52=$AJ52,標籤!$P$8,IF($P52=$A$7,標籤!$T$8,標籤!$U$8)) ->  | CA52: =IF(BZ52=標籤!$U$8,標籤!$R$8," ") -> 當日烘焙包裝 | CB52: 製造日期: | CC52: =CONCATENATE($CB52,標籤!$P$4) -> 製造日期:2024-9-5
A53: =咖啡簡介!C48 -> 哥倫比亞 | B53: =咖啡簡介!P48 -> 298 | C53: 293 | D53: 293 | E53: 148 | F53: 576 | G53: 140 | H53: 1748 | I53: 1748 | J53: 477 | K53: 0 | L53: 42 | M53: =INDEX(咖啡簡介!$D$7:$M$82,MATCH(N53,咖啡簡介!$C$7:$C$82,0),MATCH($M$11,咖啡簡介!$D$6:$M$6,0)) -> 哥倫比亞 | N53: 哥倫比亞 | P53: 半磅裝(夾鏈袋) | T53: =INDEX(B12:J71,MATCH(N53,A12:A71,0),MATCH(P53,B11:J11,0)) -> 298 | V53: =VLOOKUP(P53,A2:B7,2,0) -> 包 | W53: 0 | Z53: 0 | AB53: 品名不能是空白 | AC53: 一磅裝(鋁袋) | AD53: 磅裝(PE透明袋） | AE53: 半磅裝(夾鏈袋) | AF53: 試喝200克(PE透明袋） | AG53: 商用2700克(透明袋) | AH53: 生豆1公斤(透明袋) | AI53: 0 | AJ53: 磨粉 | AK53: 透明袋一律不磨粉 | AL53: 磨粉 | AP53: 滿2磅才可指定烘焙 | AR53: 1-極淺焙 | AS53: 2-肉桂烘焙 | AT53: 3-中焙 | AU53: 4-高度烘焙 | AV53: 5-城市烘焙 | AW53: 6-全都會 | AX53: 7-法式烘焙 | AY53: 8-義式烘焙 | AZ53: 生豆不可指定 | BW53: =VLOOKUP(訂單填表!$P53,訂單填表!$A$2:$C$7,3,0) -> 重量:227±3公克 | BX53: =IF($R53=$AJ53,標籤!$P$5,IF($P53=$A$7,標籤!$T$5,標籤!$R$5)) -> 最佳賞味期:30天 | BY53: =IF($R53=$AJ53,標籤!$P$6,IF($P53=$A$7,標籤!$T$6,標籤!$R$6)) -> 保存期限:180天 | BZ53: =IF($R53=$AJ53,標籤!$P$8,IF($P53=$A$7,標籤!$T$8,標籤!$U$8)) ->  | CA53: =IF(BZ53=標籤!$U$8,標籤!$R$8," ") -> 當日烘焙包裝 | CB53: 製造日期: | CC53: =CONCATENATE($CB53,標籤!$P$4) -> 製造日期:2024-9-5
A54: =咖啡簡介!C49 -> 肯亞AA | B54: =咖啡簡介!P49 -> 390 | C54: 385 | D54: 385 | E54: 191 | F54: 760 | G54: 183 | H54: 2300 | I54: 2300 | J54: 624 | K54: 0 | L54: 43 | M54: =INDEX(咖啡簡介!$D$7:$M$82,MATCH(N54,咖啡簡介!$C$7:$C$82,0),MATCH($M$11,咖啡簡介!$D$6:$M$6,0)) -> 肯亞 | N54: 肯亞AA | P54: 半磅裝(夾鏈袋) | T54: =INDEX(B12:J71,MATCH(N54,A12:A71,0),MATCH(P54,B11:J11,0)) -> 390 | V54: =VLOOKUP(P54,A2:B7,2,0) -> 包 | W54: 0 | Z54: 0 | AB54: 品名不能是空白 | AC54: 一磅裝(鋁袋) | AD54: 磅裝(PE透明袋） | AE54: 半磅裝(夾鏈袋) | AF54: 試喝200克(PE透明袋） | AG54: 商用2700克(透明袋) | AH54: 生豆1公斤(透明袋) | AI54: 0 | AJ54: 磨粉 | AK54: 透明袋一律不磨粉 | AL54: 磨粉 | AP54: 滿2磅才可指定烘焙 | AR54: 1-極淺焙 | AS54: 2-肉桂烘焙 | AT54: 3-中焙 | AU54: 4-高度烘焙 | AV54: 5-城市烘焙 | AW54: 6-全都會 | AX54: 7-法式烘焙 | AY54: 8-義式烘焙 | AZ54: 生豆不可指定 | BW54: =VLOOKUP(訂單填表!$P54,訂單填表!$A$2:$C$7,3,0) -> 重量:227±3公克 | BX54: =IF($R54=$AJ54,標籤!$P$5,IF($P54=$A$7,標籤!$T$5,標籤!$R$5)) -> 最佳賞味期:30天 | BY54: =IF($R54=$AJ54,標籤!$P$6,IF($P54=$A$7,標籤!$T$6,標籤!$R$6)) -> 保存期限:180天 | BZ54: =IF($R54=$AJ54,標籤!$P$8,IF($P54=$A$7,標籤!$T$8,標籤!$U$8)) ->  | CA54: =IF(BZ54=標籤!$U$8,標籤!$R$8," ") -> 當日烘焙包裝 | CB54: 製造日期: | CC54: =CONCATENATE($CB54,標籤!$P$4) -> 製造日期:2024-9-5
A55: =咖啡簡介!C50 -> 肯亞圓豆 | B55: =咖啡簡介!P50 -> 410 | C55: 405 | D55: 405 | E55: 201 | F55: 800 | G55: 193 | H55: 2420 | I55: 2420 | J55: 656 | K55: 0 | L55: 44 | M55: =INDEX(咖啡簡介!$D$7:$M$82,MATCH(N55,咖啡簡介!$C$7:$C$82,0),MATCH($M$11,咖啡簡介!$D$6:$M$6,0)) -> 肯亞 | N55: 肯亞圓豆 | P55: 半磅裝(夾鏈袋) | T55: =INDEX(B12:J71,MATCH(N55,A12:A71,0),MATCH(P55,B11:J11,0)) -> 410 | V55: =VLOOKUP(P55,A2:B7,2,0) -> 包 | W55: 0 | Z55: 0 | AB55: 品名不能是空白 | AC55: 一磅裝(鋁袋) | AD55: 磅裝(PE透明袋） | AE55: 半磅裝(夾鏈袋) | AF55: 試喝200克(PE透明袋） | AG55: 商用2700克(透明袋) | AH55: 生豆1公斤(透明袋) | AI55: 0 | AJ55: 磨粉 | AK55: 透明袋一律不磨粉 | AL55: 磨粉 | AP55: 滿2磅才可指定烘焙 | AR55: 1-極淺焙 | AS55: 2-肉桂烘焙 | AT55: 3-中焙 | AU55: 4-高度烘焙 | AV55: 5-城市烘焙 | AW55: 6-全都會 | AX55: 7-法式烘焙 | AY55: 8-義式烘焙 | AZ55: 生豆不可指定 | BW55: =VLOOKUP(訂單填表!$P55,訂單填表!$A$2:$C$7,3,0) -> 重量:227±3公克 | BX55: =IF($R55=$AJ55,標籤!$P$5,IF($P55=$A$7,標籤!$T$5,標籤!$R$5)) -> 最佳賞味期:30天 | BY55: =IF($R55=$AJ55,標籤!$P$6,IF($P55=$A$7,標籤!$T$6,標籤!$R$6)) -> 保存期限:180天 | BZ55: =IF($R55=$AJ55,標籤!$P$8,IF($P55=$A$7,標籤!$T$8,標籤!$U$8)) ->  | CA55: =IF(BZ55=標籤!$U$8,標籤!$R$8," ") -> 當日烘焙包裝 | CB55: 製造日期: | CC55: =CONCATENATE($CB55,標籤!$P$4) -> 製造日期:2024-9-5
A56: =咖啡簡介!C51 -> 季風AA | B56: =咖啡簡介!P51 -> 355 | C56: 350 | D56: 350 | E56: 175 | F56: 690 | G56: 167 | H56: 2090 | I56: 2090 | J56: 568 | K56: 0 | L56: 45 | M56: =INDEX(咖啡簡介!$D$7:$M$82,MATCH(N56,咖啡簡介!$C$7:$C$82,0),MATCH($M$11,咖啡簡介!$D$6:$M$6,0)) -> 馬拉巴 | N56: 季風AA | P56: 半磅裝(夾鏈袋) | T56: =INDEX(B12:J71,MATCH(N56,A12:A71,0),MATCH(P56,B11:J11,0)) -> 355 | V56: =VLOOKUP(P56,A2:B7,2,0) -> 包 | W56: 0 | Z56: 0 | AB56: 品名不能是空白 | AC56: 一磅裝(鋁袋) | AD56: 磅裝(PE透明袋） | AE56: 半磅裝(夾鏈袋) | AF56: 試喝200克(PE透明袋） | AG56: 商用2700克(透明袋) | AH56: 生豆1公斤(透明袋) | AI56: 0 | AJ56: 磨粉 | AK56: 透明袋一律不磨粉 | AL56: 磨粉 | AP56: 滿2磅才可指定烘焙 | AR56: 1-極淺焙 | AS56: 2-肉桂烘焙 | AT56: 3-中焙 | AU56: 4-高度烘焙 | AV56: 5-城市烘焙 | AW56: 6-全都會 | AX56: 7-法式烘焙 | AY56: 8-義式烘焙 | AZ56: 生豆不可指定 | BW56: =VLOOKUP(訂單填表!$P56,訂單填表!$A$2:$C$7,3,0) -> 重量:227±3公克 | BX56: =IF($R56=$AJ56,標籤!$P$5,IF($P56=$A$7,標籤!$T$5,標籤!$R$5)) -> 最佳賞味期:30天 | BY56: =IF($R56=$AJ56,標籤!$P$6,IF($P56=$A$7,標籤!$T$6,標籤!$R$6)) -> 保存期限:180天 | BZ56: =IF($R56=$AJ56,標籤!$P$8,IF($P56=$A$7,標籤!$T$8,標籤!$U$8)) ->  | CA56: =IF(BZ56=標籤!$U$8,標籤!$R$8," ") -> 當日烘焙包裝 | CB56: 製造日期: | CC56: =CONCATENATE($CB56,標籤!$P$4) -> 製造日期:2024-9-5
A57: =咖啡簡介!C52 -> 涓鈴莊園 | B57: =咖啡簡介!P52 -> 350 | C57: 345 | D57: 345 | E57: 173 | F57: 680 | G57: 165 | H57: 2060 | I57: 2060 | J57: 560 | K57: 0 | L57: 46 | M57: =INDEX(咖啡簡介!$D$7:$M$82,MATCH(N57,咖啡簡介!$C$7:$C$82,0),MATCH($M$11,咖啡簡介!$D$6:$M$6,0)) -> 坦尚尼亞 | N57: 涓鈴莊園 | P57: 半磅裝(夾鏈袋) | T57: =INDEX(B12:J71,MATCH(N57,A12:A71,0),MATCH(P57,B11:J11,0)) -> 350 | V57: =VLOOKUP(P57,A2:B7,2,0) -> 包 | W57: 0 | Z57: 0 | AB57: 品名不能是空白 | AC57: 一磅裝(鋁袋) | AD57: 磅裝(PE透明袋） | AE57: 半磅裝(夾鏈袋) | AF57: 試喝200克(PE透明袋） | AG57: 商用2700克(透明袋) | AH57: 生豆1公斤(透明袋) | AI57: 0 | AJ57: 磨粉 | AK57: 透明袋一律不磨粉 | AL57: 磨粉 | AP57: 滿2磅才可指定烘焙 | AR57: 1-極淺焙 | AS57: 2-肉桂烘焙 | AT57: 3-中焙 | AU57: 4-高度烘焙 | AV57: 5-城市烘焙 | AW57: 6-全都會 | AX57: 7-法式烘焙 | AY57: 8-義式烘焙 | AZ57: 生豆不可指定 | BW57: =VLOOKUP(訂單填表!$P57,訂單填表!$A$2:$C$7,3,0) -> 重量:227±3公克 | BX57: =IF($R57=$AJ57,標籤!$P$5,IF($P57=$A$7,標籤!$T$5,標籤!$R$5)) -> 最佳賞味期:30天 | BY57: =IF($R57=$AJ57,標籤!$P$6,IF($P57=$A$7,標籤!$T$6,標籤!$R$6)) -> 保存期限:180天 | BZ57: =IF($R57=$AJ57,標籤!$P$8,IF($P57=$A$7,標籤!$T$8,標籤!$U$8)) ->  | CA57: =IF(BZ57=標籤!$U$8,標籤!$R$8," ") -> 當日烘焙包裝 | CB57: 製造日期: | CC57: =CONCATENATE($CB57,標籤!$P$4) -> 製造日期:2024-9-5
A58: =咖啡簡介!C53 -> 布穀雪依莎 | B58: =咖啡簡介!P53 -> 430 | C58: 425 | D58: 425 | E58: 210 | F58: 840 | G58: 202 | H58: 2540 | I58: 2540 | J58: 688 | K58: 0 | L58: 47 | M58: =INDEX(咖啡簡介!$D$7:$M$82,MATCH(N58,咖啡簡介!$C$7:$C$82,0),MATCH($M$11,咖啡簡介!$D$6:$M$6,0)) -> 衣索匹亞 | N58: 布穀雪依莎 | P58: 半磅裝(夾鏈袋) | T58: =INDEX(B12:J71,MATCH(N58,A12:A71,0),MATCH(P58,B11:J11,0)) -> 430 | V58: =VLOOKUP(P58,A2:B7,2,0) -> 包 | W58: 0 | Z58: 0 | AB58: 品名不能是空白 | AC58: 一磅裝(鋁袋) | AD58: 磅裝(PE透明袋） | AE58: 半磅裝(夾鏈袋) | AF58: 試喝200克(PE透明袋） | AG58: 商用2700克(透明袋) | AH58: 生豆1公斤(透明袋) | AI58: 0 | AJ58: 磨粉 | AK58: 透明袋一律不磨粉 | AL58: 磨粉 | AP58: 滿2磅才可指定烘焙 | AR58: 1-極淺焙 | AS58: 2-肉桂烘焙 | AT58: 3-中焙 | AU58: 4-高度烘焙 | AV58: 5-城市烘焙 | AW58: 6-全都會 | AX58: 7-法式烘焙 | AY58: 8-義式烘焙 | AZ58: 生豆不可指定 | BW58: =VLOOKUP(訂單填表!$P58,訂單填表!$A$2:$C$7,3,0) -> 重量:227±3公克 | BX58: =IF($R58=$AJ58,標籤!$P$5,IF($P58=$A$7,標籤!$T$5,標籤!$R$5)) -> 最佳賞味期:30天 | BY58: =IF($R58=$AJ58,標籤!$P$6,IF($P58=$A$7,標籤!$T$6,標籤!$R$6)) -> 保存期限:180天 | BZ58: =IF($R58=$AJ58,標籤!$P$8,IF($P58=$A$7,標籤!$T$8,標籤!$U$8)) ->  | CA58: =IF(BZ58=標籤!$U$8,標籤!$R$8," ") -> 當日烘焙包裝 | CB58: 製造日期: | CC58: =CONCATENATE($CB58,標籤!$P$4) -> 製造日期:2024-9-5
A59: =咖啡簡介!C54 -> 駿馬 | B59: =咖啡簡介!P54 -> 199 | C59: 194 | D59: 194 | E59: 102 | F59: 378 | G59: 94 | H59: 1154 | I59: 1154 | J59: 318 | K59: 0 | L59: 48 | M59: =INDEX(咖啡簡介!$D$7:$M$82,MATCH(N59,咖啡簡介!$C$7:$C$82,0),MATCH($M$11,咖啡簡介!$D$6:$M$6,0)) -> 衣索匹亞 | N59: 駿馬 | P59: 半磅裝(夾鏈袋) | T59: =INDEX(B12:J71,MATCH(N59,A12:A71,0),MATCH(P59,B11:J11,0)) -> 199 | V59: =VLOOKUP(P59,A2:B7,2,0) -> 包 | W59: 0 | Z59: 0 | AB59: 品名不能是空白 | AC59: 一磅裝(鋁袋) | AD59: 磅裝(PE透明袋） | AE59: 半磅裝(夾鏈袋) | AF59: 試喝200克(PE透明袋） | AG59: 商用2700克(透明袋) | AH59: 生豆1公斤(透明袋) | AI59: 0 | AJ59: 磨粉 | AK59: 透明袋一律不磨粉 | AL59: 磨粉 | AP59: 滿2磅才可指定烘焙 | AR59: 1-極淺焙 | AS59: 2-肉桂烘焙 | AT59: 3-中焙 | AU59: 4-高度烘焙 | AV59: 5-城市烘焙 | AW59: 6-全都會 | AX59: 7-法式烘焙 | AY59: 8-義式烘焙 | AZ59: 生豆不可指定 | BW59: =VLOOKUP(訂單填表!$P59,訂單填表!$A$2:$C$7,3,0) -> 重量:227±3公克 | BX59: =IF($R59=$AJ59,標籤!$P$5,IF($P59=$A$7,標籤!$T$5,標籤!$R$5)) -> 最佳賞味期:30天 | BY59: =IF($R59=$AJ59,標籤!$P$6,IF($P59=$A$7,標籤!$T$6,標籤!$R$6)) -> 保存期限:180天 | BZ59: =IF($R59=$AJ59,標籤!$P$8,IF($P59=$A$7,標籤!$T$8,標籤!$U$8)) ->  | CA59: =IF(BZ59=標籤!$U$8,標籤!$R$8," ") -> 當日烘焙包裝 | CB59: 製造日期: | CC59: =CONCATENATE($CB59,標籤!$P$4) -> 製造日期:2024-9-5
A60: =咖啡簡介!C55 -> 橘光舞妓 | B60: =咖啡簡介!P55 -> 580 | C60: 575 | D60: 575 | E60: 281 | F60: 1140 | G60: 273 | H60: 3440 | I60: 3440 | J60: 928 | K60: 0 | L60: 49 | M60: =INDEX(咖啡簡介!$D$7:$M$82,MATCH(N60,咖啡簡介!$C$7:$C$82,0),MATCH($M$11,咖啡簡介!$D$6:$M$6,0)) -> 衣索匹亞 | N60: 橘光舞妓 | P60: 半磅裝(夾鏈袋) | T60: =INDEX(B12:J71,MATCH(N60,A12:A71,0),MATCH(P60,B11:J11,0)) -> 580 | V60: =VLOOKUP(P60,A2:B7,2,0) -> 包 | W60: 0 | Z60: 0 | AB60: 品名不能是空白 | AC60: =CONCATENATE(AC59) -> 一磅裝(鋁袋) | AD60: 磅裝(PE透明袋） | AE60: 半磅裝(夾鏈袋) | AF60: 試喝200克(PE透明袋） | AG60: 商用2700克(透明袋) | AH60: 生豆1公斤(透明袋) | AI60: 0 | AJ60: 磨粉 | AK60: 透明袋一律不磨粉 | AL60: 磨粉 | AP60: =CONCATENATE(AP59) -> 滿2磅才可指定烘焙 | AR60: 1-極淺焙 | AS60: 2-肉桂烘焙 | AT60: 3-中焙 | AU60: 4-高度烘焙 | AV60: 5-城市烘焙 | AW60: 6-全都會 | AX60: 7-法式烘焙 | AY60: 8-義式烘焙 | AZ60: 生豆不可指定 | BW60: =VLOOKUP(訂單填表!$P60,訂單填表!$A$2:$C$7,3,0) -> 重量:227±3公克 | BX60: =IF($R60=$AJ60,標籤!$P$5,IF($P60=$A$7,標籤!$T$5,標籤!$R$5)) -> 最佳賞味期:30天 | BY60: =IF($R60=$AJ60,標籤!$P$6,IF($P60=$A$7,標籤!$T$6,標籤!$R$6)) -> 保存期限:180天 | BZ60: =IF($R60=$AJ60,標籤!$P$8,IF($P60=$A$7,標籤!$T$8,標籤!$U$8)) ->  | CA60: =IF(BZ60=標籤!$U$8,標籤!$R$8," ") -> 當日烘焙包裝 | CB60: 製造日期: | CC60: =CONCATENATE($CB60,標籤!$P$4) -> 製造日期:2024-9-5
A61: =咖啡簡介!C56 -> 水洗-耶加雪菲 | B61: =咖啡簡介!P56 -> 415 | C61: 410 | D61: 410 | E61: 203 | F61: 810 | G61: 195 | H61: 2450 | I61: 2450 | J61: 664 | K61: 0 | L61: 50 | M61: =INDEX(咖啡簡介!$D$7:$M$82,MATCH(N61,咖啡簡介!$C$7:$C$82,0),MATCH($M$11,咖啡簡介!$D$6:$M$6,0)) -> 衣索匹亞 | N61: 水洗-耶加雪菲 | P61: 半磅裝(夾鏈袋) | T61: =INDEX(B12:J71,MATCH(N61,A12:A71,0),MATCH(P61,B11:J11,0)) -> 415 | V61: =VLOOKUP(P61,A2:B7,2,0) -> 包 | W61: 0 | Z61: 0 | AB61: 品名不能是空白 | AC61: 一磅裝(鋁袋) | AD61: 磅裝(PE透明袋） | AE61: 半磅裝(夾鏈袋) | AF61: 試喝200克(PE透明袋） | AG61: 商用2700克(透明袋) | AH61: 生豆1公斤(透明袋) | AI61: 0 | AJ61: 磨粉 | AK61: 透明袋一律不磨粉 | AL61: 磨粉 | AP61: 滿2磅才可指定烘焙 | AR61: 1-極淺焙 | AS61: 2-肉桂烘焙 | AT61: 3-中焙 | AU61: 4-高度烘焙 | AV61: 5-城市烘焙 | AW61: 6-全都會 | AX61: 7-法式烘焙 | AY61: 8-義式烘焙 | AZ61: 生豆不可指定 | BW61: =VLOOKUP(訂單填表!$P61,訂單填表!$A$2:$C$7,3,0) -> 重量:227±3公克 | BX61: =IF($R61=$AJ61,標籤!$P$5,IF($P61=$A$7,標籤!$T$5,標籤!$R$5)) -> 最佳賞味期:30天 | BY61: =IF($R61=$AJ61,標籤!$P$6,IF($P61=$A$7,標籤!$T$6,標籤!$R$6)) -> 保存期限:180天 | BZ61: =IF($R61=$AJ61,標籤!$P$8,IF($P61=$A$7,標籤!$T$8,標籤!$U$8)) ->  | CA61: =IF(BZ61=標籤!$U$8,標籤!$R$8," ") -> 當日烘焙包裝 | CB61: 製造日期: | CC61: =CONCATENATE($CB61,標籤!$P$4) -> 製造日期:2024-9-5
A62: =咖啡簡介!C57 -> 日曬-耶加雪菲 | B62: =咖啡簡介!P57 -> 415 | C62: 410 | D62: 410 | E62: 203 | F62: 810 | G62: 195 | H62: 2450 | I62: 2450 | J62: 664 | K62: 0 | L62: 51 | M62: =INDEX(咖啡簡介!$D$7:$M$82,MATCH(N62,咖啡簡介!$C$7:$C$82,0),MATCH($M$11,咖啡簡介!$D$6:$M$6,0)) -> 衣索匹亞 | N62: 日曬-耶加雪菲 | P62: 半磅裝(夾鏈袋) | T62: =INDEX(B12:J71,MATCH(N62,A12:A71,0),MATCH(P62,B11:J11,0)) -> 415 | V62: =VLOOKUP(P62,A2:B7,2,0) -> 包 | W62: 0 | Z62: 0 | AB62: 品名不能是空白 | AC62: 一磅裝(鋁袋) | AD62: 磅裝(PE透明袋） | AE62: 半磅裝(夾鏈袋) | AF62: 試喝200克(PE透明袋） | AG62: 商用2700克(透明袋) | AH62: 生豆1公斤(透明袋) | AI62: 0 | AJ62: 磨粉 | AK62: 透明袋一律不磨粉 | AL62: 磨粉 | AP62: 滿2磅才可指定烘焙 | AR62: 1-極淺焙 | AS62: 2-肉桂烘焙 | AT62: 3-中焙 | AU62: 4-高度烘焙 | AV62: 5-城市烘焙 | AW62: 6-全都會 | AX62: 7-法式烘焙 | AY62: 8-義式烘焙 | AZ62: 生豆不可指定 | BW62: =VLOOKUP(訂單填表!$P62,訂單填表!$A$2:$C$7,3,0) -> 重量:227±3公克 | BX62: =IF($R62=$AJ62,標籤!$P$5,IF($P62=$A$7,標籤!$T$5,標籤!$R$5)) -> 最佳賞味期:30天 | BY62: =IF($R62=$AJ62,標籤!$P$6,IF($P62=$A$7,標籤!$T$6,標籤!$R$6)) -> 保存期限:180天 | BZ62: =IF($R62=$AJ62,標籤!$P$8,IF($P62=$A$7,標籤!$T$8,標籤!$U$8)) ->  | CA62: =IF(BZ62=標籤!$U$8,標籤!$R$8," ") -> 當日烘焙包裝 | CB62: 製造日期: | CC62: =CONCATENATE($CB62,標籤!$P$4) -> 製造日期:2024-9-5
A63: =咖啡簡介!C58 -> 黑帝斯 | B63: =咖啡簡介!P58 -> 305 | C63: 300 | D63: 300 | E63: 151 | F63: 590 | G63: 143 | H63: 1790 | I63: 1790 | J63: 488 | K63: 0 | L63: 52 | M63: =INDEX(咖啡簡介!$D$7:$M$82,MATCH(N63,咖啡簡介!$C$7:$C$82,0),MATCH($M$11,咖啡簡介!$D$6:$M$6,0)) -> 衣索匹亞 | N63: 黑帝斯 | P63: 半磅裝(夾鏈袋) | T63: =INDEX(B12:J71,MATCH(N63,A12:A71,0),MATCH(P63,B11:J11,0)) -> 305 | V63: =VLOOKUP(P63,A2:B7,2,0) -> 包 | W63: 0 | Z63: 0 | AB63: 品名不能是空白 | AC63: 一磅裝(鋁袋) | AD63: 磅裝(PE透明袋） | AE63: 半磅裝(夾鏈袋) | AF63: 試喝200克(PE透明袋） | AG63: 商用2700克(透明袋) | AH63: 生豆1公斤(透明袋) | AI63: 0 | AJ63: 磨粉 | AK63: 透明袋一律不磨粉 | AL63: 磨粉 | AP63: 滿2磅才可指定烘焙 | AR63: 1-極淺焙 | AS63: 2-肉桂烘焙 | AT63: 3-中焙 | AU63: 4-高度烘焙 | AV63: 5-城市烘焙 | AW63: 6-全都會 | AX63: 7-法式烘焙 | AY63: 8-義式烘焙 | AZ63: 生豆不可指定 | BW63: =VLOOKUP(訂單填表!$P63,訂單填表!$A$2:$C$7,3,0) -> 重量:227±3公克 | BX63: =IF($R63=$AJ63,標籤!$P$5,IF($P63=$A$7,標籤!$T$5,標籤!$R$5)) -> 最佳賞味期:30天 | BY63: =IF($R63=$AJ63,標籤!$P$6,IF($P63=$A$7,標籤!$T$6,標籤!$R$6)) -> 保存期限:180天 | BZ63: =IF($R63=$AJ63,標籤!$P$8,IF($P63=$A$7,標籤!$T$8,標籤!$U$8)) ->  | CA63: =IF(BZ63=標籤!$U$8,標籤!$R$8," ") -> 當日烘焙包裝 | CB63: 製造日期: | CC63: =CONCATENATE($CB63,標籤!$P$4) -> 製造日期:2024-9-5
A64: =咖啡簡介!C59 -> 西達莫 | B64: =咖啡簡介!P59 -> 245 | C64: 240 | D64: 240 | E64: 123 | F64: 470 | G64: 115 | H64: 1430 | I64: 1430 | J64: 392 | K64: 0 | L64: 53 | M64: =INDEX(咖啡簡介!$D$7:$M$82,MATCH(N64,咖啡簡介!$C$7:$C$82,0),MATCH($M$11,咖啡簡介!$D$6:$M$6,0)) -> 衣索匹亞 | N64: 西達莫 | P64: 半磅裝(夾鏈袋) | T64: =INDEX(B12:J71,MATCH(N64,A12:A71,0),MATCH(P64,B11:J11,0)) -> 245 | V64: =VLOOKUP(P64,A2:B7,2,0) -> 包 | W64: 0 | Z64: 0 | AB64: 品名不能是空白 | AC64: 一磅裝(鋁袋) | AD64: 磅裝(PE透明袋） | AE64: 半磅裝(夾鏈袋) | AF64: 試喝200克(PE透明袋） | AG64: 商用2700克(透明袋) | AH64: 生豆1公斤(透明袋) | AI64: 0 | AJ64: 磨粉 | AK64: 透明袋一律不磨粉 | AL64: 磨粉 | AP64: 滿2磅才可指定烘焙 | AR64: 1-極淺焙 | AS64: 2-肉桂烘焙 | AT64: 3-中焙 | AU64: 4-高度烘焙 | AV64: 5-城市烘焙 | AW64: 6-全都會 | AX64: 7-法式烘焙 | AY64: 8-義式烘焙 | AZ64: 生豆不可指定 | BW64: =VLOOKUP(訂單填表!$P64,訂單填表!$A$2:$C$7,3,0) -> 重量:227±3公克 | BX64: =IF($R64=$AJ64,標籤!$P$5,IF($P64=$A$7,標籤!$T$5,標籤!$R$5)) -> 最佳賞味期:30天 | BY64: =IF($R64=$AJ64,標籤!$P$6,IF($P64=$A$7,標籤!$T$6,標籤!$R$6)) -> 保存期限:180天 | BZ64: =IF($R64=$AJ64,標籤!$P$8,IF($P64=$A$7,標籤!$T$8,標籤!$U$8)) ->  | CA64: =IF(BZ64=標籤!$U$8,標籤!$R$8," ") -> 當日烘焙包裝 | CB64: 製造日期: | CC64: =CONCATENATE($CB64,標籤!$P$4) -> 製造日期:2024-9-5
A65: =咖啡簡介!C60 -> 夏蘭 | B65: =咖啡簡介!P60 -> 500 | C65: 495 | D65: 495 | E65: 243 | F65: 980 | G65: 235 | H65: 2960 | I65: 2960 | J65: 800 | K65: 0 | L65: 54 | M65: =INDEX(咖啡簡介!$D$7:$M$82,MATCH(N65,咖啡簡介!$C$7:$C$82,0),MATCH($M$11,咖啡簡介!$D$6:$M$6,0)) -> 衣索匹亞 | N65: 夏蘭 | P65: 半磅裝(夾鏈袋) | T65: =INDEX(B12:J71,MATCH(N65,A12:A71,0),MATCH(P65,B11:J11,0)) -> 500 | V65: =VLOOKUP(P65,A2:B7,2,0) -> 包 | W65: 0 | Z65: 0 | AB65: 品名不能是空白 | AC65: 一磅裝(鋁袋) | AD65: 磅裝(PE透明袋） | AE65: 半磅裝(夾鏈袋) | AF65: 試喝200克(PE透明袋） | AG65: 商用2700克(透明袋) | AH65: 生豆1公斤(透明袋) | AI65: 0 | AJ65: 磨粉 | AK65: 透明袋一律不磨粉 | AL65: 磨粉 | AP65: 滿2磅才可指定烘焙 | AR65: 1-極淺焙 | AS65: 2-肉桂烘焙 | AT65: 3-中焙 | AU65: 4-高度烘焙 | AV65: 5-城市烘焙 | AW65: 6-全都會 | AX65: 7-法式烘焙 | AY65: 8-義式烘焙 | AZ65: 生豆不可指定 | BW65: =VLOOKUP(訂單填表!$P65,訂單填表!$A$2:$C$7,3,0) -> 重量:227±3公克 | BX65: =IF($R65=$AJ65,標籤!$P$5,IF($P65=$A$7,標籤!$T$5,標籤!$R$5)) -> 最佳賞味期:30天 | BY65: =IF($R65=$AJ65,標籤!$P$6,IF($P65=$A$7,標籤!$T$6,標籤!$R$6)) -> 保存期限:180天 | BZ65: =IF($R65=$AJ65,標籤!$P$8,IF($P65=$A$7,標籤!$T$8,標籤!$U$8)) ->  | CA65: =IF(BZ65=標籤!$U$8,標籤!$R$8," ") -> 當日烘焙包裝 | CB65: 製造日期: | CC65: =CONCATENATE($CB65,標籤!$P$4) -> 製造日期:2024-9-5
A66: =咖啡簡介!C61 -> 天空之城 | B66: =咖啡簡介!P61 -> 420 | C66: 415 | D66: 415 | E66: 205 | F66: 820 | G66: 197 | H66: 2480 | I66: 2480 | J66: 672 | K66: 0 | L66: 55 | M66: =INDEX(咖啡簡介!$D$7:$M$82,MATCH(N66,咖啡簡介!$C$7:$C$82,0),MATCH($M$11,咖啡簡介!$D$6:$M$6,0)) -> 盧安達 | N66: 天空之城 | P66: 半磅裝(夾鏈袋) | T66: =INDEX(B12:J71,MATCH(N66,A12:A71,0),MATCH(P66,B11:J11,0)) -> 420 | V66: =VLOOKUP(P66,A2:B7,2,0) -> 包 | W66: 0 | Z66: 0 | AB66: 品名不能是空白 | AC66: 一磅裝(鋁袋) | AD66: 磅裝(PE透明袋） | AE66: 半磅裝(夾鏈袋) | AF66: 試喝200克(PE透明袋） | AG66: 商用2700克(透明袋) | AH66: 生豆1公斤(透明袋) | AI66: 0 | AJ66: 磨粉 | AK66: 透明袋一律不磨粉 | AL66: 磨粉 | AP66: 滿2磅才可指定烘焙 | AR66: 1-極淺焙 | AS66: 2-肉桂烘焙 | AT66: 3-中焙 | AU66: 4-高度烘焙 | AV66: 5-城市烘焙 | AW66: 6-全都會 | AX66: 7-法式烘焙 | AY66: 8-義式烘焙 | AZ66: 生豆不可指定 | BW66: =VLOOKUP(訂單填表!$P66,訂單填表!$A$2:$C$7,3,0) -> 重量:227±3公克 | BX66: =IF($R66=$AJ66,標籤!$P$5,IF($P66=$A$7,標籤!$T$5,標籤!$R$5)) -> 最佳賞味期:30天 | BY66: =IF($R66=$AJ66,標籤!$P$6,IF($P66=$A$7,標籤!$T$6,標籤!$R$6)) -> 保存期限:180天 | BZ66: =IF($R66=$AJ66,標籤!$P$8,IF($P66=$A$7,標籤!$T$8,標籤!$U$8)) ->  | CA66: =IF(BZ66=標籤!$U$8,標籤!$R$8," ") -> 當日烘焙包裝 | CB66: 製造日期: | CC66: =CONCATENATE($CB66,標籤!$P$4) -> 製造日期:2024-9-5
A67: =咖啡簡介!C62 -> 胡穆蕾 | B67: =咖啡簡介!P62 -> 350 | C67: 345 | D67: 345 | E67: 173 | F67: 680 | G67: 165 | H67: 2060 | I67: 2060 | J67: 560 | K67: 0 | L67: 56 | M67: =INDEX(咖啡簡介!$D$7:$M$82,MATCH(N67,咖啡簡介!$C$7:$C$82,0),MATCH($M$11,咖啡簡介!$D$6:$M$6,0)) -> 盧安達 | N67: 胡穆蕾 | P67: 半磅裝(夾鏈袋) | T67: =INDEX(B12:J71,MATCH(N67,A12:A71,0),MATCH(P67,B11:J11,0)) -> 350 | V67: =VLOOKUP(P67,A2:B7,2,0) -> 包 | W67: 0 | Z67: 0 | AB67: 品名不能是空白 | AC67: 一磅裝(鋁袋) | AD67: 磅裝(PE透明袋） | AE67: 半磅裝(夾鏈袋) | AF67: 試喝200克(PE透明袋） | AG67: 商用2700克(透明袋) | AH67: 生豆1公斤(透明袋) | AI67: 0 | AJ67: 磨粉 | AK67: 透明袋一律不磨粉 | AL67: 磨粉 | AP67: 滿2磅才可指定烘焙 | AR67: 1-極淺焙 | AS67: 2-肉桂烘焙 | AT67: 3-中焙 | AU67: 4-高度烘焙 | AV67: 5-城市烘焙 | AW67: 6-全都會 | AX67: 7-法式烘焙 | AY67: 8-義式烘焙 | AZ67: 生豆不可指定 | BW67: =VLOOKUP(訂單填表!$P67,訂單填表!$A$2:$C$7,3,0) -> 重量:227±3公克 | BX67: =IF($R67=$AJ67,標籤!$P$5,IF($P67=$A$7,標籤!$T$5,標籤!$R$5)) -> 最佳賞味期:30天 | BY67: =IF($R67=$AJ67,標籤!$P$6,IF($P67=$A$7,標籤!$T$6,標籤!$R$6)) -> 保存期限:180天 | BZ67: =IF($R67=$AJ67,標籤!$P$8,IF($P67=$A$7,標籤!$T$8,標籤!$U$8)) ->  | CA67: =IF(BZ67=標籤!$U$8,標籤!$R$8," ") -> 當日烘焙包裝 | CB67: 製造日期: | CC67: =CONCATENATE($CB67,標籤!$P$4) -> 製造日期:2024-9-5
A68: =咖啡簡介!C63 -> 維納斯 藝妓 | B68: =咖啡簡介!P63 -> 525 | C68: 520 | D68: 520 | E68: 255 | F68: 1030 | G68: 247 | H68: 3110 | I68: 3110 | J68: 840 | K68: 0 | L68: 57 | M68: =INDEX(咖啡簡介!$D$7:$M$82,MATCH(N68,咖啡簡介!$C$7:$C$82,0),MATCH($M$11,咖啡簡介!$D$6:$M$6,0)) -> 馬拉威 | N68: 維納斯 藝妓 | P68: 半磅裝(夾鏈袋) | T68: =INDEX(B12:J71,MATCH(N68,A12:A71,0),MATCH(P68,B11:J11,0)) -> 525 | V68: =VLOOKUP(P68,A2:B7,2,0) -> 包 | W68: 0 | Z68: 0 | AB68: 品名不能是空白 | AC68: 一磅裝(鋁袋) | AD68: 磅裝(PE透明袋） | AE68: 半磅裝(夾鏈袋) | AF68: 試喝200克(PE透明袋） | AG68: 商用2700克(透明袋) | AH68: 生豆1公斤(透明袋) | AI68: 0 | AJ68: 磨粉 | AK68: 透明袋一律不磨粉 | AL68: 磨粉 | AP68: 滿2磅才可指定烘焙 | AR68: 1-極淺焙 | AS68: 2-肉桂烘焙 | AT68: 3-中焙 | AU68: 4-高度烘焙 | AV68: 5-城市烘焙 | AW68: 6-全都會 | AX68: 7-法式烘焙 | AY68: 8-義式烘焙 | AZ68: 生豆不可指定 | BW68: =VLOOKUP(訂單填表!$P68,訂單填表!$A$2:$C$7,3,0) -> 重量:227±3公克 | BX68: =IF($R68=$AJ68,標籤!$P$5,IF($P68=$A$7,標籤!$T$5,標籤!$R$5)) -> 最佳賞味期:30天 | BY68: =IF($R68=$AJ68,標籤!$P$6,IF($P68=$A$7,標籤!$T$6,標籤!$R$6)) -> 保存期限:180天 | BZ68: =IF($R68=$AJ68,標籤!$P$8,IF($P68=$A$7,標籤!$T$8,標籤!$U$8)) ->  | CA68: =IF(BZ68=標籤!$U$8,標籤!$R$8," ") -> 當日烘焙包裝 | CB68: 製造日期: | CC68: =CONCATENATE($CB68,標籤!$P$4) -> 製造日期:2024-9-5
A69: =咖啡簡介!C64 -> 彩面狒狒 | B69: =咖啡簡介!P64 -> 305 | C69: 300 | D69: 300 | E69: 151 | F69: 590 | G69: 143 | H69: 1790 | I69: 1790 | J69: 488 | K69: 0 | L69: 58 | M69: =INDEX(咖啡簡介!$D$7:$M$82,MATCH(N69,咖啡簡介!$C$7:$C$82,0),MATCH($M$11,咖啡簡介!$D$6:$M$6,0)) -> 喀麥隆 | N69: 彩面狒狒 | P69: 半磅裝(夾鏈袋) | T69: =INDEX(B12:J71,MATCH(N69,A12:A71,0),MATCH(P69,B11:J11,0)) -> 305 | V69: =VLOOKUP(P69,A2:B7,2,0) -> 包 | W69: 0 | Z69: 0 | AB69: 品名不能是空白 | AC69: 一磅裝(鋁袋) | AD69: 磅裝(PE透明袋） | AE69: 半磅裝(夾鏈袋) | AF69: 試喝200克(PE透明袋） | AG69: 商用2700克(透明袋) | AH69: 生豆1公斤(透明袋) | AI69: 0 | AJ69: 磨粉 | AK69: 透明袋一律不磨粉 | AL69: 磨粉 | AP69: 滿2磅才可指定烘焙 | AR69: 1-極淺焙 | AS69: 2-肉桂烘焙 | AT69: 3-中焙 | AU69: 4-高度烘焙 | AV69: 5-城市烘焙 | AW69: 6-全都會 | AX69: 7-法式烘焙 | AY69: 8-義式烘焙 | AZ69: 生豆不可指定 | BW69: =VLOOKUP(訂單填表!$P69,訂單填表!$A$2:$C$7,3,0) -> 重量:227±3公克 | BX69: =IF($R69=$AJ69,標籤!$P$5,IF($P69=$A$7,標籤!$T$5,標籤!$R$5)) -> 最佳賞味期:30天 | BY69: =IF($R69=$AJ69,標籤!$P$6,IF($P69=$A$7,標籤!$T$6,標籤!$R$6)) -> 保存期限:180天 | BZ69: =IF($R69=$AJ69,標籤!$P$8,IF($P69=$A$7,標籤!$T$8,標籤!$U$8)) ->  | CA69: =IF(BZ69=標籤!$U$8,標籤!$R$8," ") -> 當日烘焙包裝 | CB69: 製造日期: | CC69: =CONCATENATE($CB69,標籤!$P$4) -> 製造日期:2024-9-5
A70: =咖啡簡介!C65 -> 布吉司AA | B70: =咖啡簡介!P65 -> 290 | C70: 285 | D70: 285 | E70: 144 | F70: 560 | G70: 136 | H70: 1700 | I70: 1700 | J70: 464 | K70: 0 | L70: 59 | M70: =INDEX(咖啡簡介!$D$7:$M$82,MATCH(N70,咖啡簡介!$C$7:$C$82,0),MATCH($M$11,咖啡簡介!$D$6:$M$6,0)) -> 烏干達 | N70: 布吉司AA | P70: 半磅裝(夾鏈袋) | T70: =INDEX(B12:J71,MATCH(N70,A12:A71,0),MATCH(P70,B11:J11,0)) -> 290 | V70: =VLOOKUP(P70,A2:B7,2,0) -> 包 | W70: 0 | Z70: 0 | AB70: 品名不能是空白 | AC70: 一磅裝(鋁袋) | AD70: 磅裝(PE透明袋） | AE70: 半磅裝(夾鏈袋) | AF70: 試喝200克(PE透明袋） | AG70: 商用2700克(透明袋) | AH70: 生豆1公斤(透明袋) | AI70: 0 | AJ70: 磨粉 | AK70: 透明袋一律不磨粉 | AL70: 磨粉 | AP70: 滿2磅才可指定烘焙 | AR70: 1-極淺焙 | AS70: 2-肉桂烘焙 | AT70: 3-中焙 | AU70: 4-高度烘焙 | AV70: 5-城市烘焙 | AW70: 6-全都會 | AX70: 7-法式烘焙 | AY70: 8-義式烘焙 | AZ70: 生豆不可指定 | BW70: =VLOOKUP(訂單填表!$P70,訂單填表!$A$2:$C$7,3,0) -> 重量:227±3公克 | BX70: =IF($R70=$AJ70,標籤!$P$5,IF($P70=$A$7,標籤!$T$5,標籤!$R$5)) -> 最佳賞味期:30天 | BY70: =IF($R70=$AJ70,標籤!$P$6,IF($P70=$A$7,標籤!$T$6,標籤!$R$6)) -> 保存期限:180天 | BZ70: =IF($R70=$AJ70,標籤!$P$8,IF($P70=$A$7,標籤!$T$8,標籤!$U$8)) ->  | CA70: =IF(BZ70=標籤!$U$8,標籤!$R$8," ") -> 當日烘焙包裝 | CB70: 製造日期: | CC70: =CONCATENATE($CB70,標籤!$P$4) -> 製造日期:2024-9-5
A71: =咖啡簡介!C66 -> 天堂鳥 | B71: =咖啡簡介!P66 -> 340 | C71: 335 | D71: 335 | E71: 168 | F71: 660 | G71: 160 | H71: 2000 | I71: 2000 | J71: 544 | K71: 0 | L71: 60 | M71: =INDEX(咖啡簡介!$D$7:$M$82,MATCH(N71,咖啡簡介!$C$7:$C$82,0),MATCH($M$11,咖啡簡介!$D$6:$M$6,0)) -> 巴紐 | N71: 天堂鳥 | P71: 半磅裝(夾鏈袋) | T71: =INDEX(B12:J71,MATCH(N71,A12:A71,0),MATCH(P71,B11:J11,0)) -> 340 | V71: =VLOOKUP(P71,A2:B7,2,0) -> 包 | W71: 0 | Z71: 0 | AB71: 品名不能是空白 | AC71: 一磅裝(鋁袋) | AD71: 磅裝(PE透明袋） | AE71: 半磅裝(夾鏈袋) | AF71: 試喝200克(PE透明袋） | AG71: 商用2700克(透明袋) | AH71: 生豆1公斤(透明袋) | AI71: 0 | AJ71: 磨粉 | AK71: 透明袋一律不磨粉 | AL71: 磨粉 | AP71: 滿2磅才可指定烘焙 | AR71: 1-極淺焙 | AS71: 2-肉桂烘焙 | AT71: 3-中焙 | AU71: 4-高度烘焙 | AV71: 5-城市烘焙 | AW71: 6-全都會 | AX71: 7-法式烘焙 | AY71: 8-義式烘焙 | AZ71: 生豆不可指定 | BW71: =VLOOKUP(訂單填表!$P71,訂單填表!$A$2:$C$7,3,0) -> 重量:227±3公克 | BX71: =IF($R71=$AJ71,標籤!$P$5,IF($P71=$A$7,標籤!$T$5,標籤!$R$5)) -> 最佳賞味期:30天 | BY71: =IF($R71=$AJ71,標籤!$P$6,IF($P71=$A$7,標籤!$T$6,標籤!$R$6)) -> 保存期限:180天 | BZ71: =IF($R71=$AJ71,標籤!$P$8,IF($P71=$A$7,標籤!$T$8,標籤!$U$8)) ->  | CA71: =IF(BZ71=標籤!$U$8,標籤!$R$8," ") -> 當日烘焙包裝 | CB71: 製造日期: | CC71: =CONCATENATE($CB71,標籤!$P$4) -> 製造日期:2024-9-5
A72: =CONCATENATE(A11) -> 品名 | B72: =CONCATENATE(B11) -> 半磅裝(夾鏈袋) | D72: =CONCATENATE(D11) -> 磅裝(PE透明袋） | F72: =CONCATENATE(F11) -> 一磅裝(鋁袋) | G72: =CONCATENATE(G11) -> 試喝200克(PE透明袋） | I72: =CONCATENATE(I11) -> 商用2700克(透明袋) | J72: =CONCATENATE(J11) -> 生豆1公斤(透明袋) | M72: =INDEX(咖啡簡介!$D$7:$M$82,MATCH(N72,咖啡簡介!$C$7:$C$82,0),MATCH($M$11,咖啡簡介!$D$6:$M$6,0)) -> 產地 | N72: 商用豆、調和豆 | P72: =CONCATENATE(P11) -> 規格(包裝) | R72: =CONCATENATE(R11) -> 磨粉 | T72: 單價 | U72: 數量 | V72: 單位 | W72: 小計 | X72: 填表錯誤提示 | AC72: 一磅裝(鋁袋) | AD72: 磅裝(PE透明袋） | AE72: 半磅裝(夾鏈袋) | AF72: 試喝200克(PE透明袋） | AG72: 商用2700克(透明袋) | AH72: 生豆1公斤(透明袋) | AI72: =CONCATENATE(AI71) -> 0 | AJ72: =CONCATENATE(AJ11) -> 磨粉 | AK72: =CONCATENATE(AK11) -> 透明袋一律不磨粉 | AL72: =CONCATENATE(AL11) -> 研磨設定 | AN72: 磨粉提示 | AP72: 滿6磅才可指定烘焙 | AR72: 1-極淺焙 | AS72: 2-肉桂烘焙 | AT72: 3-中焙 | AU72: 4-高度烘焙 | AV72: 5-城市烘焙 | AW72: 6-全都會 | AX72: 7-法式烘焙 | AY72: 8-義式烘焙 | AZ72: =CONCATENATE(AZ11) -> 生豆不可指定 | BA72: 6磅以下不烘提示 | BB72: 生豆不烘提示 | BD72: =CONCATENATE(BD11) -> 烘焙度選項 | BL72: =CONCATENATE(咖啡簡介!C72) -> 特級綜合 | BM72: =CONCATENATE(咖啡簡介!C73) -> 0 | BN72: =CONCATENATE(咖啡簡介!C74) -> 0 | BO72: =CONCATENATE(咖啡簡介!C75) -> 0 | BP72: =CONCATENATE(咖啡簡介!C76) -> 0 | BQ72: =CONCATENATE(咖啡簡介!C77) -> 0 | BR72: =CONCATENATE(咖啡簡介!C78) -> 0 | BS72: =CONCATENATE(咖啡簡介!C79) -> 0 | BT72: =CONCATENATE(咖啡簡介!C80) -> 0 | BU72: 混合豆不能指定烘焙 | BV72: 混合豆不烘提示 | BW72: =CONCATENATE(BW11) -> 重量 | BX72: 最佳賞味期限 | BY72: 保存期限 | BZ72: 磨粉 | CA72: 原豆 | CB72: 製造日期 | CC72: 製造日期+日期
A73: =咖啡簡介!C68 -> 曼巴 | B73: =咖啡簡介!P68 -> 217 | C73: =ABS(B73-5) -> 212 | D73: =IF(C73<10,0,C73) -> 212 | E73: =ROUND(B73*0.47+8,0) -> 110 | F73: =ROUND(B73*2-20,0) -> 414 | G73: =ROUND(B73*0.47,0) -> 102 | H73: =ABS(B73*6-40) -> 1262 | I73: =IF(H73<50,0,H73) -> 1262 | J73: =ROUND(B73*1.6,0) -> 347 | K73: =IF(COUNTIFS($N$12:$N$87,A73)=0,"0",SUMPRODUCT(($N$12:$N$87=A73)*1,($P$12:$P$87=$A$2)*$E$2+($P$12:$P$87=$A$3)*$E$3+($P$12:$P$87=$A$4)*$E$4+($P$12:$P$87=$A$5)*$E$5+($P$12:$P$87=$A$7)*$E$6+($P$12:$P$87=$A$6)*$E$7,$U$12:$U$87)) -> 0 | M73: =INDEX(咖啡簡介!$D$7:$M$82,MATCH(N73,咖啡簡介!$C$7:$C$82,0),MATCH($M$11,咖啡簡介!$D$6:$M$6,0)) -> 混合 | N73: 曼巴 | P73: 半磅裝(夾鏈袋) | T73: =INDEX($B$73:$J$85,MATCH(N73,$A$73:$A$85,0),MATCH(P73,$B$72:$J$72,0)) -> 217 | V73: =VLOOKUP(P73,A2:B7,2,0) -> 包 | W73: =ABS(T73*U73) -> 0 | X73: =CONCATENATE(AN73,BA73,BB73,AO73,BC73,AA73) ->  | Z73: =$Z$11 -> 0 | AA73: =IF(AND(N73=Z73,U73>=1),AB73,"") ->  | AB73: =$AB$11 -> 品名不能是空白 | AC73: 一磅裝(鋁袋) | AD73: 磅裝(PE透明袋） | AE73: 半磅裝(夾鏈袋) | AF73: 試喝200克(PE透明袋） | AG73: 商用2700克(透明袋) | AH73: 生豆1公斤(透明袋) | AI73: =IF(P73=AC73,U73,IF(P73=AD73,U73,IF(P73=AE73,U73*0.5,IF(P73=AF73,U73*0.5,IF(P73=AG73,U73*6,IF(P73=AH73,U73*999)))))) -> 0 | AJ73: =CONCATENATE(AJ72) -> 磨粉 | AK73: 透明袋一律不磨粉 | AL73: =IF(OR(P73=AC73,P73=AE73),AJ73," ") -> 磨粉 | AM73: =CONCATENATE($AM$11) ->  | AN73: =IF(AL73=AJ73," ",IF(AND(R73=AJ73,U73>0),AK73," ")) ->  | AO73: =IF(OR(R73=AJ73,R73=AM73,R73=""),"",$AO$10) ->  | AP73: 滿6磅才可指定烘焙 | AR73: 1-極淺焙 | AS73: 2-肉桂烘焙 | AT73: 3-中焙 | AU73: 4-高度烘焙 | AV73: 5-城市烘焙 | AW73: 6-全都會 | AX73: 7-法式烘焙 | AY73: 8-義式烘焙 | AZ73: =CONCATENATE(AZ72) -> 生豆不可指定 | BA73: =IF(AI73>5.9," ",IF(OR(S73<AR73,U73=0)," ",AP73)) ->  | BB73: =IF(S73<AR73," ",IF(AI73>998,AZ73," ")) ->  | BC73: =IF(OR(S73="",S73=AQ73,S73=AR73,S73=AS73,S73=AT73,S73=AU73,S73=AV73,S73=AW73,S73=AX73,S73=AY73,S73=AZ73),"",$BC$10) ->  | BD73: =IF(P73=AH73,AQ73,IF(AI73<1.9,AQ73,AR73)) ->  | BE73: =IF(P73=AH73,AQ73,IF(AI73<1.9,AQ73,AS73)) ->  | BF73: =IF(P73=AH73,AQ73,IF(AI73<1.9,AQ73,AT73)) ->  | BG73: =IF(P73=AH73,AQ73,IF(AI73<1.9,AQ73,AU73)) ->  | BH73: =IF(P73=AH73,AQ73,IF(AI73<1.9,AQ73,AV73)) ->  | BI73: =IF(P73=AH73,AQ73,IF(AI73<1.9,AQ73,AW73)) ->  | BJ73: =IF(P73=AH73,AQ73,IF(AI73<1.9,AQ73,AX73)) ->  | BK73: =IF(P73=AH73,AQ73,IF(AI73<1.9,AQ73,AY73)) ->  | BL73: =CONCATENATE(訂單填表!BL72) -> 特級綜合 | BM73: =CONCATENATE(訂單填表!BM72) -> 0 | BN73: =CONCATENATE(訂單填表!BN72) -> 0 | BO73: =CONCATENATE(訂單填表!BO72) -> 0 | BP73: =CONCATENATE(訂單填表!BP72) -> 0 | BQ73: =CONCATENATE(訂單填表!BQ72) -> 0 | BR73: =CONCATENATE(訂單填表!BR72) -> 0 | BS73: =CONCATENATE(訂單填表!BS72) -> 0 | BT73: =CONCATENATE(訂單填表!BT72) -> 0 | BU73: =CONCATENATE(訂單填表!BU72) -> 混合豆不能指定烘焙 | BV73: =IF(OR(N73=BL73,N73>=BM73,N73=BN73,N73=BO73,N73=BP73,N73=BQ73,N73=BR73,N73=BS73,N73=BT73,),IF(OR(S73="-",S73=0,U73="")," ",BU73)," ") ->  | BW73: =VLOOKUP(訂單填表!$P73,訂單填表!$A$2:$C$7,3,0) -> 重量:227±3公克 | BX73: =IF($R73=$AJ73,標籤!$P$5,IF($P73=$A$7,標籤!$T$5,標籤!$R$5)) -> 最佳賞味期:30天 | BY73: =IF($R73=$AJ73,標籤!$P$6,IF($P73=$A$7,標籤!$T$6,標籤!$R$6)) -> 保存期限:180天 | BZ73: =IF($R73=$AJ73,標籤!$P$8,IF($P73=$A$7,標籤!$T$8,標籤!$U$8)) ->  | CA73: =IF(BZ73=標籤!$U$8,標籤!$R$8," ") -> 當日烘焙包裝 | CB73: =VLOOKUP(P73,$A$2:$D$7,4,0) -> 製造日期: | CC73: =CONCATENATE($CB73,標籤!$P$4) -> 製造日期:2024-9-5
A74: =咖啡簡介!C69 -> 曼摩 | B74: =咖啡簡介!P69 -> 217 | C74: 212 | D74: 212 | E74: 110 | F74: 414 | G74: 102 | H74: 1262 | I74: 1262 | J74: 347 | K74: 0 | M74: =INDEX(咖啡簡介!$D$7:$M$82,MATCH(N74,咖啡簡介!$C$7:$C$82,0),MATCH($M$11,咖啡簡介!$D$6:$M$6,0)) -> 混合 | N74: 曼摩 | P74: 半磅裝(夾鏈袋) | T74: 217 | V74: =VLOOKUP(P74,A2:B7,2,0) -> 包 | W74: 0 | Z74: 0 | AB74: 品名不能是空白 | AC74: 一磅裝(鋁袋) | AD74: 磅裝(PE透明袋） | AE74: 半磅裝(夾鏈袋) | AF74: 試喝200克(PE透明袋） | AG74: 商用2700克(透明袋) | AH74: 生豆1公斤(透明袋) | AI74: =IF(P74=AC74,U74,IF(P74=AD74,U74,IF(P74=AE74,U74*0.5,IF(P74=AF74,U74*0.5,IF(P74=AG74,U74*6,0))))) -> 0 | AJ74: =CONCATENATE(AJ73) -> 磨粉 | AK74: 透明袋一律不磨粉 | AL74: 磨粉 | AM74: =CONCATENATE($AM$11) ->  | AP74: 滿6磅才可指定烘焙 | AR74: 1-極淺焙 | AS74: 2-肉桂烘焙 | AT74: 3-中焙 | AU74: 4-高度烘焙 | AV74: 5-城市烘焙 | AW74: 6-全都會 | AX74: 7-法式烘焙 | AY74: 8-義式烘焙 | AZ74: 生豆不可指定 | BL74: =CONCATENATE(訂單填表!BL73) -> 特級綜合 | BM74: =CONCATENATE(訂單填表!BM73) -> 0 | BN74: =CONCATENATE(訂單填表!BN73) -> 0 | BO74: =CONCATENATE(訂單填表!BO73) -> 0 | BP74: =CONCATENATE(訂單填表!BP73) -> 0 | BQ74: =CONCATENATE(訂單填表!BQ73) -> 0 | BR74: =CONCATENATE(訂單填表!BR73) -> 0 | BS74: =CONCATENATE(訂單填表!BS73) -> 0 | BT74: =CONCATENATE(訂單填表!BT73) -> 0 | BU74: =CONCATENATE(訂單填表!BU73) -> 混合豆不能指定烘焙 | BW74: =VLOOKUP(訂單填表!$P74,訂單填表!$A$2:$C$7,3,0) -> 重量:227±3公克 | BX74: =IF($R74=$AJ74,標籤!$P$5,IF($P74=$A$7,標籤!$T$5,標籤!$R$5)) -> 最佳賞味期:30天 | BY74: =IF($R74=$AJ74,標籤!$P$6,IF($P74=$A$7,標籤!$T$6,標籤!$R$6)) -> 保存期限:180天 | BZ74: =IF($R74=$AJ74,標籤!$P$8,IF($P74=$A$7,標籤!$T$8,標籤!$U$8)) ->  | CA74: =IF(BZ74=標籤!$U$8,標籤!$R$8," ") -> 當日烘焙包裝 | CB74: 製造日期: | CC74: =CONCATENATE($CB74,標籤!$P$4) -> 製造日期:2024-9-5
A75: =咖啡簡介!C70 -> 藍山風味 | B75: =咖啡簡介!P70 -> 199 | C75: 194 | D75: 194 | E75: 102 | F75: 378 | G75: 94 | H75: 1154 | I75: 1154 | J75: 無 | K75: 0 | M75: =INDEX(咖啡簡介!$D$7:$M$82,MATCH(N75,咖啡簡介!$C$7:$C$82,0),MATCH($M$11,咖啡簡介!$D$6:$M$6,0)) -> 混合 | N75: 藍山風味 | P75: 半磅裝(夾鏈袋) | T75: 199 | V75: =VLOOKUP(P75,A2:B7,2,0) -> 包 | W75: 0 | Z75: 0 | AB75: 品名不能是空白 | AC75: 一磅裝(鋁袋) | AD75: 磅裝(PE透明袋） | AE75: 半磅裝(夾鏈袋) | AF75: 試喝200克(PE透明袋） | AG75: 商用2700克(透明袋) | AH75: 生豆1公斤(透明袋) | AI75: 0 | AJ75: =CONCATENATE(AJ74) -> 磨粉 | AK75: 透明袋一律不磨粉 | AL75: 磨粉 | AP75: 滿6磅才可指定烘焙 | AR75: 1-極淺焙 | AS75: 2-肉桂烘焙 | AT75: 3-中焙 | AU75: 4-高度烘焙 | AV75: 5-城市烘焙 | AW75: 6-全都會 | AX75: 7-法式烘焙 | AY75: 8-義式烘焙 | AZ75: 生豆不可指定 | BL75: =CONCATENATE(訂單填表!BL74) -> 特級綜合 | BM75: =CONCATENATE(訂單填表!BM74) -> 0 | BN75: =CONCATENATE(訂單填表!BN74) -> 0 | BO75: =CONCATENATE(訂單填表!BO74) -> 0 | BP75: =CONCATENATE(訂單填表!BP74) -> 0 | BQ75: =CONCATENATE(訂單填表!BQ74) -> 0 | BR75: =CONCATENATE(訂單填表!BR74) -> 0 | BS75: =CONCATENATE(訂單填表!BS74) -> 0 | BT75: =CONCATENATE(訂單填表!BT74) -> 0 | BU75: =CONCATENATE(訂單填表!BU74) -> 混合豆不能指定烘焙 | BW75: =VLOOKUP(訂單填表!$P75,訂單填表!$A$2:$C$7,3,0) -> 重量:227±3公克 | BX75: =IF($R75=$AJ75,標籤!$P$5,IF($P75=$A$7,標籤!$T$5,標籤!$R$5)) -> 最佳賞味期:30天 | BY75: =IF($R75=$AJ75,標籤!$P$6,IF($P75=$A$7,標籤!$T$6,標籤!$R$6)) -> 保存期限:180天 | BZ75: =IF($R75=$AJ75,標籤!$P$8,IF($P75=$A$7,標籤!$T$8,標籤!$U$8)) ->  | CA75: =IF(BZ75=標籤!$U$8,標籤!$R$8," ") -> 當日烘焙包裝 | CB75: 製造日期: | CC75: =CONCATENATE($CB75,標籤!$P$4) -> 製造日期:2024-9-5
A76: =咖啡簡介!C71 -> 北義風味 | B76: =咖啡簡介!P71 -> 199 | C76: 194 | D76: 194 | E76: 102 | F76: 378 | G76: 94 | H76: 1154 | I76: 1154 | J76: 無 | K76: 0 | M76: =INDEX(咖啡簡介!$D$7:$M$82,MATCH(N76,咖啡簡介!$C$7:$C$82,0),MATCH($M$11,咖啡簡介!$D$6:$M$6,0)) -> 混合 | N76: 北義風味 | P76: 半磅裝(夾鏈袋) | T76: 199 | V76: =VLOOKUP(P76,A2:B7,2,0) -> 包 | W76: 0 | Z76: 0 | AB76: 品名不能是空白 | AC76: 一磅裝(鋁袋) | AD76: 磅裝(PE透明袋） | AE76: 半磅裝(夾鏈袋) | AF76: 試喝200克(PE透明袋） | AG76: 商用2700克(透明袋) | AH76: 生豆1公斤(透明袋) | AI76: 0 | AJ76: 磨粉 | AK76: =CONCATENATE(AK75) -> 透明袋一律不磨粉 | AL76: 磨粉 | AP76: 滿6磅才可指定烘焙 | AR76: 1-極淺焙 | AS76: 2-肉桂烘焙 | AT76: 3-中焙 | AU76: 4-高度烘焙 | AV76: 5-城市烘焙 | AW76: 6-全都會 | AX76: 7-法式烘焙 | AY76: 8-義式烘焙 | AZ76: 生豆不可指定 | BL76: =CONCATENATE(訂單填表!BL75) -> 特級綜合 | BM76: =CONCATENATE(訂單填表!BM75) -> 0 | BN76: =CONCATENATE(訂單填表!BN75) -> 0 | BO76: =CONCATENATE(訂單填表!BO75) -> 0 | BP76: =CONCATENATE(訂單填表!BP75) -> 0 | BQ76: =CONCATENATE(訂單填表!BQ75) -> 0 | BR76: =CONCATENATE(訂單填表!BR75) -> 0 | BS76: =CONCATENATE(訂單填表!BS75) -> 0 | BT76: =CONCATENATE(訂單填表!BT75) -> 0 | BU76: =CONCATENATE(訂單填表!BU75) -> 混合豆不能指定烘焙 | BW76: =VLOOKUP(訂單填表!$P76,訂單填表!$A$2:$C$7,3,0) -> 重量:227±3公克 | BX76: =IF($R76=$AJ76,標籤!$P$5,IF($P76=$A$7,標籤!$T$5,標籤!$R$5)) -> 最佳賞味期:30天 | BY76: =IF($R76=$AJ76,標籤!$P$6,IF($P76=$A$7,標籤!$T$6,標籤!$R$6)) -> 保存期限:180天 | BZ76: =IF($R76=$AJ76,標籤!$P$8,IF($P76=$A$7,標籤!$T$8,標籤!$U$8)) ->  | CA76: =IF(BZ76=標籤!$U$8,標籤!$R$8," ") -> 當日烘焙包裝 | CB76: 製造日期: | CC76: =CONCATENATE($CB76,標籤!$P$4) -> 製造日期:2024-9-5
A77: =咖啡簡介!C72 -> 特級綜合 | B77: =咖啡簡介!P72 -> 199 | C77: 194 | D77: 194 | E77: 102 | F77: 378 | G77: 94 | H77: 1154 | I77: 1154 | J77: 無 | K77: 0 | M77: =INDEX(咖啡簡介!$D$7:$M$82,MATCH(N77,咖啡簡介!$C$7:$C$82,0),MATCH($M$11,咖啡簡介!$D$6:$M$6,0)) -> 混合 | N77: 特級綜合 | P77: 半磅裝(夾鏈袋) | T77: 199 | V77: =VLOOKUP(P77,A2:B7,2,0) -> 包 | W77: 0 | Z77: 0 | AB77: 品名不能是空白 | AC77: 一磅裝(鋁袋) | AD77: 磅裝(PE透明袋） | AE77: 半磅裝(夾鏈袋) | AF77: 試喝200克(PE透明袋） | AG77: 商用2700克(透明袋) | AH77: 生豆1公斤(透明袋) | AI77: 0 | AJ77: 磨粉 | AK77: 透明袋一律不磨粉 | AL77: 磨粉 | AP77: 滿6磅才可指定烘焙 | AR77: 1-極淺焙 | AS77: 2-肉桂烘焙 | AT77: 3-中焙 | AU77: 4-高度烘焙 | AV77: 5-城市烘焙 | AW77: 6-全都會 | AX77: 7-法式烘焙 | AY77: 8-義式烘焙 | AZ77: 生豆不可指定 | BL77: =CONCATENATE(訂單填表!BL76) -> 特級綜合 | BM77: =CONCATENATE(訂單填表!BM76) -> 0 | BN77: =CONCATENATE(訂單填表!BN76) -> 0 | BO77: =CONCATENATE(訂單填表!BO76) -> 0 | BP77: =CONCATENATE(訂單填表!BP76) -> 0 | BQ77: =CONCATENATE(訂單填表!BQ76) -> 0 | BR77: =CONCATENATE(訂單填表!BR76) -> 0 | BS77: =CONCATENATE(訂單填表!BS76) -> 0 | BT77: =CONCATENATE(訂單填表!BT76) -> 0 | BU77: =CONCATENATE(訂單填表!BU76) -> 混合豆不能指定烘焙 | BW77: =VLOOKUP(訂單填表!$P77,訂單填表!$A$2:$C$7,3,0) -> 重量:227±3公克 | BX77: =IF($R77=$AJ77,標籤!$P$5,IF($P77=$A$7,標籤!$T$5,標籤!$R$5)) -> 最佳賞味期:30天 | BY77: =IF($R77=$AJ77,標籤!$P$6,IF($P77=$A$7,標籤!$T$6,標籤!$R$6)) -> 保存期限:180天 | BZ77: =IF($R77=$AJ77,標籤!$P$8,IF($P77=$A$7,標籤!$T$8,標籤!$U$8)) ->  | CA77: =IF(BZ77=標籤!$U$8,標籤!$R$8," ") -> 當日烘焙包裝 | CB77: 製造日期: | CC77: =CONCATENATE($CB77,標籤!$P$4) -> 製造日期:2024-9-5
A78: =咖啡簡介!C73 -> 0 | B78: =咖啡簡介!P73 -> 0 | C78: 5 | D78: 0 | E78: 8 | F78: -20 | G78: 0 | H78: 40 | I78: 0 | J78: 無 | K78: 0 | M78: =INDEX(咖啡簡介!$D$7:$M$82,MATCH(N78,咖啡簡介!$C$7:$C$82,0),MATCH($M$11,咖啡簡介!$D$6:$M$6,0)) -> 缺貨 | N78: 0 | P78: 半磅裝(夾鏈袋) | T78: 0 | V78: =VLOOKUP(P78,A2:B7,2,0) -> 包 | W78: 0 | Z78: 0 | AB78: 品名不能是空白 | AC78: 一磅裝(鋁袋) | AD78: 磅裝(PE透明袋） | AE78: 半磅裝(夾鏈袋) | AF78: 試喝200克(PE透明袋） | AG78: 商用2700克(透明袋) | AH78: 生豆1公斤(透明袋) | AI78: 0 | AJ78: 磨粉 | AK78: 透明袋一律不磨粉 | AL78: 磨粉 | AP78: =CONCATENATE(AP77) -> 滿6磅才可指定烘焙 | AR78: 1-極淺焙 | AS78: 2-肉桂烘焙 | AT78: 3-中焙 | AU78: 4-高度烘焙 | AV78: 5-城市烘焙 | AW78: 6-全都會 | AX78: 7-法式烘焙 | AY78: 8-義式烘焙 | AZ78: 生豆不可指定 | BL78: =CONCATENATE(訂單填表!BL77) -> 特級綜合 | BM78: =CONCATENATE(訂單填表!BM77) -> 0 | BN78: =CONCATENATE(訂單填表!BN77) -> 0 | BO78: =CONCATENATE(訂單填表!BO77) -> 0 | BP78: =CONCATENATE(訂單填表!BP77) -> 0 | BQ78: =CONCATENATE(訂單填表!BQ77) -> 0 | BR78: =CONCATENATE(訂單填表!BR77) -> 0 | BS78: =CONCATENATE(訂單填表!BS77) -> 0 | BT78: =CONCATENATE(訂單填表!BT77) -> 0 | BU78: =CONCATENATE(訂單填表!BU77) -> 混合豆不能指定烘焙 | BW78: =VLOOKUP(訂單填表!$P78,訂單填表!$A$2:$C$7,3,0) -> 重量:227±3公克 | BX78: =IF($R78=$AJ78,標籤!$P$5,IF($P78=$A$7,標籤!$T$5,標籤!$R$5)) -> 最佳賞味期:30天 | BY78: =IF($R78=$AJ78,標籤!$P$6,IF($P78=$A$7,標籤!$T$6,標籤!$R$6)) -> 保存期限:180天 | BZ78: =IF($R78=$AJ78,標籤!$P$8,IF($P78=$A$7,標籤!$T$8,標籤!$U$8)) ->  | CA78: =IF(BZ78=標籤!$U$8,標籤!$R$8," ") -> 當日烘焙包裝 | CB78: 製造日期: | CC78: =CONCATENATE($CB78,標籤!$P$4) -> 製造日期:2024-9-5
A79: =咖啡簡介!C74 -> 0 | B79: =咖啡簡介!P74 -> 0 | C79: 5 | D79: 0 | E79: 8 | F79: -20 | G79: 0 | H79: 40 | I79: 0 | J79: 無 | K79: 0 | M79: =INDEX(咖啡簡介!$D$7:$M$82,MATCH(N79,咖啡簡介!$C$7:$C$82,0),MATCH($M$11,咖啡簡介!$D$6:$M$6,0)) -> 缺貨 | N79: 0 | P79: 半磅裝(夾鏈袋) | T79: 0 | V79: =VLOOKUP(P79,A2:B7,2,0) -> 包 | W79: 0 | Z79: 0 | AB79: 品名不能是空白 | AC79: 一磅裝(鋁袋) | AD79: 磅裝(PE透明袋） | AE79: 半磅裝(夾鏈袋) | AF79: 試喝200克(PE透明袋） | AG79: 商用2700克(透明袋) | AH79: 生豆1公斤(透明袋) | AI79: 0 | AJ79: 磨粉 | AK79: 透明袋一律不磨粉 | AL79: 磨粉 | AP79: 滿6磅才可指定烘焙 | AR79: 1-極淺焙 | AS79: 2-肉桂烘焙 | AT79: 3-中焙 | AU79: 4-高度烘焙 | AV79: 5-城市烘焙 | AW79: 6-全都會 | AX79: 7-法式烘焙 | AY79: 8-義式烘焙 | AZ79: 生豆不可指定 | BL79: =CONCATENATE(訂單填表!BL78) -> 特級綜合 | BM79: =CONCATENATE(訂單填表!BM78) -> 0 | BN79: =CONCATENATE(訂單填表!BN78) -> 0 | BO79: =CONCATENATE(訂單填表!BO78) -> 0 | BP79: =CONCATENATE(訂單填表!BP78) -> 0 | BQ79: =CONCATENATE(訂單填表!BQ78) -> 0 | BR79: =CONCATENATE(訂單填表!BR78) -> 0 | BS79: =CONCATENATE(訂單填表!BS78) -> 0 | BT79: =CONCATENATE(訂單填表!BT78) -> 0 | BU79: =CONCATENATE(訂單填表!BU78) -> 混合豆不能指定烘焙 | BW79: =VLOOKUP(訂單填表!$P79,訂單填表!$A$2:$C$7,3,0) -> 重量:227±3公克 | BX79: =IF($R79=$AJ79,標籤!$P$5,IF($P79=$A$7,標籤!$T$5,標籤!$R$5)) -> 最佳賞味期:30天 | BY79: =IF($R79=$AJ79,標籤!$P$6,IF($P79=$A$7,標籤!$T$6,標籤!$R$6)) -> 保存期限:180天 | BZ79: =IF($R79=$AJ79,標籤!$P$8,IF($P79=$A$7,標籤!$T$8,標籤!$U$8)) ->  | CA79: =IF(BZ79=標籤!$U$8,標籤!$R$8," ") -> 當日烘焙包裝 | CB79: 製造日期: | CC79: =CONCATENATE($CB79,標籤!$P$4) -> 製造日期:2024-9-5
A80: =咖啡簡介!C75 -> 0 | B80: =咖啡簡介!P75 -> 0 | C80: 5 | D80: 0 | E80: 8 | F80: -20 | G80: 0 | H80: 40 | I80: 0 | J80: 無 | K80: 0 | M80: =INDEX(咖啡簡介!$D$7:$M$82,MATCH(N80,咖啡簡介!$C$7:$C$82,0),MATCH($M$11,咖啡簡介!$D$6:$M$6,0)) -> 缺貨 | N80: 0 | P80: 半磅裝(夾鏈袋) | T80: 0 | V80: =VLOOKUP(P80,A2:B7,2,0) -> 包 | W80: 0 | Z80: 0 | AB80: 品名不能是空白 | AC80: 一磅裝(鋁袋) | AD80: 磅裝(PE透明袋） | AE80: 半磅裝(夾鏈袋) | AF80: 試喝200克(PE透明袋） | AG80: 商用2700克(透明袋) | AH80: 生豆1公斤(透明袋) | AI80: 0 | AJ80: 磨粉 | AK80: 透明袋一律不磨粉 | AL80: 磨粉 | AP80: 滿6磅才可指定烘焙 | AR80: 1-極淺焙 | AS80: 2-肉桂烘焙 | AT80: 3-中焙 | AU80: 4-高度烘焙 | AV80: 5-城市烘焙 | AW80: 6-全都會 | AX80: 7-法式烘焙 | AY80: 8-義式烘焙 | AZ80: 生豆不可指定 | BL80: =CONCATENATE(訂單填表!BL79) -> 特級綜合 | BM80: =CONCATENATE(訂單填表!BM79) -> 0 | BN80: =CONCATENATE(訂單填表!BN79) -> 0 | BO80: =CONCATENATE(訂單填表!BO79) -> 0 | BP80: =CONCATENATE(訂單填表!BP79) -> 0 | BQ80: =CONCATENATE(訂單填表!BQ79) -> 0 | BR80: =CONCATENATE(訂單填表!BR79) -> 0 | BS80: =CONCATENATE(訂單填表!BS79) -> 0 | BT80: =CONCATENATE(訂單填表!BT79) -> 0 | BU80: =CONCATENATE(訂單填表!BU79) -> 混合豆不能指定烘焙 | BW80: =VLOOKUP(訂單填表!$P80,訂單填表!$A$2:$C$7,3,0) -> 重量:227±3公克 | BX80: =IF($R80=$AJ80,標籤!$P$5,IF($P80=$A$7,標籤!$T$5,標籤!$R$5)) -> 最佳賞味期:30天 | BY80: =IF($R80=$AJ80,標籤!$P$6,IF($P80=$A$7,標籤!$T$6,標籤!$R$6)) -> 保存期限:180天 | BZ80: =IF($R80=$AJ80,標籤!$P$8,IF($P80=$A$7,標籤!$T$8,標籤!$U$8)) ->  | CA80: =IF(BZ80=標籤!$U$8,標籤!$R$8," ") -> 當日烘焙包裝 | CB80: 製造日期: | CC80: =CONCATENATE($CB80,標籤!$P$4) -> 製造日期:2024-9-5
A81: =咖啡簡介!C76 -> 0 | B81: =咖啡簡介!P76 -> 0 | C81: 5 | D81: 0 | E81: 8 | F81: -20 | G81: 0 | H81: 40 | I81: 0 | J81: 無 | K81: 0 | M81: =INDEX(咖啡簡介!$D$7:$M$82,MATCH(N81,咖啡簡介!$C$7:$C$82,0),MATCH($M$11,咖啡簡介!$D$6:$M$6,0)) -> 缺貨 | N81: 0 | P81: 半磅裝(夾鏈袋) | T81: 0 | V81: =VLOOKUP(P81,A2:B7,2,0) -> 包 | W81: 0 | Z81: 0 | AB81: 品名不能是空白 | AC81: 一磅裝(鋁袋) | AD81: 磅裝(PE透明袋） | AE81: 半磅裝(夾鏈袋) | AF81: 試喝200克(PE透明袋） | AG81: 商用2700克(透明袋) | AH81: 生豆1公斤(透明袋) | AI81: 0 | AJ81: 磨粉 | AK81: 透明袋一律不磨粉 | AL81: 磨粉 | AP81: 滿6磅才可指定烘焙 | AR81: 1-極淺焙 | AS81: 2-肉桂烘焙 | AT81: 3-中焙 | AU81: 4-高度烘焙 | AV81: 5-城市烘焙 | AW81: 6-全都會 | AX81: 7-法式烘焙 | AY81: 8-義式烘焙 | AZ81: 生豆不可指定 | BL81: =CONCATENATE(訂單填表!BL80) -> 特級綜合 | BM81: =CONCATENATE(訂單填表!BM80) -> 0 | BN81: =CONCATENATE(訂單填表!BN80) -> 0 | BO81: =CONCATENATE(訂單填表!BO80) -> 0 | BP81: =CONCATENATE(訂單填表!BP80) -> 0 | BQ81: =CONCATENATE(訂單填表!BQ80) -> 0 | BR81: =CONCATENATE(訂單填表!BR80) -> 0 | BS81: =CONCATENATE(訂單填表!BS80) -> 0 | BT81: =CONCATENATE(訂單填表!BT80) -> 0 | BU81: =CONCATENATE(訂單填表!BU80) -> 混合豆不能指定烘焙 | BW81: =VLOOKUP(訂單填表!$P81,訂單填表!$A$2:$C$7,3,0) -> 重量:227±3公克 | BX81: =IF($R81=$AJ81,標籤!$P$5,IF($P81=$A$7,標籤!$T$5,標籤!$R$5)) -> 最佳賞味期:30天 | BY81: =IF($R81=$AJ81,標籤!$P$6,IF($P81=$A$7,標籤!$T$6,標籤!$R$6)) -> 保存期限:180天 | BZ81: =IF($R81=$AJ81,標籤!$P$8,IF($P81=$A$7,標籤!$T$8,標籤!$U$8)) ->  | CA81: =IF(BZ81=標籤!$U$8,標籤!$R$8," ") -> 當日烘焙包裝 | CB81: 製造日期: | CC81: =CONCATENATE($CB81,標籤!$P$4) -> 製造日期:2024-9-5
A82: =咖啡簡介!C77 -> 0 | B82: =咖啡簡介!P77 -> 0 | C82: 5 | D82: 0 | E82: 8 | F82: -20 | G82: 0 | H82: 40 | I82: 0 | J82: 無 | K82: 0 | M82: =INDEX(咖啡簡介!$D$7:$M$82,MATCH(N82,咖啡簡介!$C$7:$C$82,0),MATCH($M$11,咖啡簡介!$D$6:$M$6,0)) -> 缺貨 | N82: 0 | P82: 半磅裝(夾鏈袋) | T82: 0 | V82: =VLOOKUP(P82,A2:B7,2,0) -> 包 | W82: 0 | Z82: 0 | AB82: 品名不能是空白 | AC82: 一磅裝(鋁袋) | AD82: 磅裝(PE透明袋） | AE82: 半磅裝(夾鏈袋) | AF82: 試喝200克(PE透明袋） | AG82: 商用2700克(透明袋) | AH82: 生豆1公斤(透明袋) | AI82: 0 | AJ82: 磨粉 | AK82: 透明袋一律不磨粉 | AL82: 磨粉 | AP82: 滿6磅才可指定烘焙 | AR82: 1-極淺焙 | AS82: 2-肉桂烘焙 | AT82: 3-中焙 | AU82: 4-高度烘焙 | AV82: 5-城市烘焙 | AW82: 6-全都會 | AX82: 7-法式烘焙 | AY82: 8-義式烘焙 | AZ82: 生豆不可指定 | BL82: =CONCATENATE(訂單填表!BL81) -> 特級綜合 | BM82: =CONCATENATE(訂單填表!BM81) -> 0 | BN82: =CONCATENATE(訂單填表!BN81) -> 0 | BO82: =CONCATENATE(訂單填表!BO81) -> 0 | BP82: =CONCATENATE(訂單填表!BP81) -> 0 | BQ82: =CONCATENATE(訂單填表!BQ81) -> 0 | BR82: =CONCATENATE(訂單填表!BR81) -> 0 | BS82: =CONCATENATE(訂單填表!BS81) -> 0 | BT82: =CONCATENATE(訂單填表!BT81) -> 0 | BU82: =CONCATENATE(訂單填表!BU81) -> 混合豆不能指定烘焙 | BW82: =VLOOKUP(訂單填表!$P82,訂單填表!$A$2:$C$7,3,0) -> 重量:227±3公克 | BX82: =IF($R82=$AJ82,標籤!$P$5,IF($P82=$A$7,標籤!$T$5,標籤!$R$5)) -> 最佳賞味期:30天 | BY82: =IF($R82=$AJ82,標籤!$P$6,IF($P82=$A$7,標籤!$T$6,標籤!$R$6)) -> 保存期限:180天 | BZ82: =IF($R82=$AJ82,標籤!$P$8,IF($P82=$A$7,標籤!$T$8,標籤!$U$8)) ->  | CA82: =IF(BZ82=標籤!$U$8,標籤!$R$8," ") -> 當日烘焙包裝 | CB82: 製造日期: | CC82: =CONCATENATE($CB82,標籤!$P$4) -> 製造日期:2024-9-5
A83: =咖啡簡介!C78 -> 0 | B83: =咖啡簡介!P78 -> 0 | C83: 5 | D83: 0 | E83: 8 | F83: -20 | G83: 0 | H83: 40 | I83: 0 | J83: 無 | K83: 0 | M83: =INDEX(咖啡簡介!$D$7:$M$82,MATCH(N83,咖啡簡介!$C$7:$C$82,0),MATCH($M$11,咖啡簡介!$D$6:$M$6,0)) -> 缺貨 | N83: 0 | P83: 半磅裝(夾鏈袋) | T83: 0 | V83: =VLOOKUP(P83,A2:B7,2,0) -> 包 | W83: 0 | Z83: 0 | AB83: 品名不能是空白 | AC83: 一磅裝(鋁袋) | AD83: 磅裝(PE透明袋） | AE83: 半磅裝(夾鏈袋) | AF83: 試喝200克(PE透明袋） | AG83: 商用2700克(透明袋) | AH83: 生豆1公斤(透明袋) | AI83: 0 | AJ83: 磨粉 | AK83: 透明袋一律不磨粉 | AL83: 磨粉 | AP83: 滿6磅才可指定烘焙 | AR83: 1-極淺焙 | AS83: 2-肉桂烘焙 | AT83: 3-中焙 | AU83: 4-高度烘焙 | AV83: 5-城市烘焙 | AW83: 6-全都會 | AX83: 7-法式烘焙 | AY83: 8-義式烘焙 | AZ83: 生豆不可指定 | BL83: =CONCATENATE(訂單填表!BL82) -> 特級綜合 | BM83: =CONCATENATE(訂單填表!BM82) -> 0 | BN83: =CONCATENATE(訂單填表!BN82) -> 0 | BO83: =CONCATENATE(訂單填表!BO82) -> 0 | BP83: =CONCATENATE(訂單填表!BP82) -> 0 | BQ83: =CONCATENATE(訂單填表!BQ82) -> 0 | BR83: =CONCATENATE(訂單填表!BR82) -> 0 | BS83: =CONCATENATE(訂單填表!BS82) -> 0 | BT83: =CONCATENATE(訂單填表!BT82) -> 0 | BU83: =CONCATENATE(訂單填表!BU82) -> 混合豆不能指定烘焙 | BW83: =VLOOKUP(訂單填表!$P83,訂單填表!$A$2:$C$7,3,0) -> 重量:227±3公克 | BX83: =IF($R83=$AJ83,標籤!$P$5,IF($P83=$A$7,標籤!$T$5,標籤!$R$5)) -> 最佳賞味期:30天 | BY83: =IF($R83=$AJ83,標籤!$P$6,IF($P83=$A$7,標籤!$T$6,標籤!$R$6)) -> 保存期限:180天 | BZ83: =IF($R83=$AJ83,標籤!$P$8,IF($P83=$A$7,標籤!$T$8,標籤!$U$8)) ->  | CA83: =IF(BZ83=標籤!$U$8,標籤!$R$8," ") -> 當日烘焙包裝 | CB83: 製造日期: | CC83: =CONCATENATE($CB83,標籤!$P$4) -> 製造日期:2024-9-5
A84: =咖啡簡介!C79 -> 0 | B84: =咖啡簡介!P79 -> 0 | C84: 5 | D84: 0 | E84: 8 | F84: -20 | G84: 0 | H84: 40 | I84: 0 | J84: 無 | K84: 0 | M84: =INDEX(咖啡簡介!$D$7:$M$82,MATCH(N84,咖啡簡介!$C$7:$C$82,0),MATCH($M$11,咖啡簡介!$D$6:$M$6,0)) -> 缺貨 | N84: 0 | P84: 半磅裝(夾鏈袋) | T84: 0 | V84: =VLOOKUP(P84,A2:B7,2,0) -> 包 | W84: 0 | Z84: 0 | AB84: 品名不能是空白 | AC84: 一磅裝(鋁袋) | AD84: 磅裝(PE透明袋） | AE84: 半磅裝(夾鏈袋) | AF84: 試喝200克(PE透明袋） | AG84: 商用2700克(透明袋) | AH84: 生豆1公斤(透明袋) | AI84: 0 | AJ84: 磨粉 | AK84: 透明袋一律不磨粉 | AL84: 磨粉 | AP84: 滿6磅才可指定烘焙 | AR84: 1-極淺焙 | AS84: 2-肉桂烘焙 | AT84: 3-中焙 | AU84: 4-高度烘焙 | AV84: 5-城市烘焙 | AW84: 6-全都會 | AX84: 7-法式烘焙 | AY84: 8-義式烘焙 | AZ84: 生豆不可指定 | BL84: =CONCATENATE(訂單填表!BL83) -> 特級綜合 | BM84: =CONCATENATE(訂單填表!BM83) -> 0 | BN84: =CONCATENATE(訂單填表!BN83) -> 0 | BO84: =CONCATENATE(訂單填表!BO83) -> 0 | BP84: =CONCATENATE(訂單填表!BP83) -> 0 | BQ84: =CONCATENATE(訂單填表!BQ83) -> 0 | BR84: =CONCATENATE(訂單填表!BR83) -> 0 | BS84: =CONCATENATE(訂單填表!BS83) -> 0 | BT84: =CONCATENATE(訂單填表!BT83) -> 0 | BU84: =CONCATENATE(訂單填表!BU83) -> 混合豆不能指定烘焙 | BW84: =VLOOKUP(訂單填表!$P84,訂單填表!$A$2:$C$7,3,0) -> 重量:227±3公克 | BX84: =IF($R84=$AJ84,標籤!$P$5,IF($P84=$A$7,標籤!$T$5,標籤!$R$5)) -> 最佳賞味期:30天 | BY84: =IF($R84=$AJ84,標籤!$P$6,IF($P84=$A$7,標籤!$T$6,標籤!$R$6)) -> 保存期限:180天 | BZ84: =IF($R84=$AJ84,標籤!$P$8,IF($P84=$A$7,標籤!$T$8,標籤!$U$8)) ->  | CA84: =IF(BZ84=標籤!$U$8,標籤!$R$8," ") -> 當日烘焙包裝 | CB84: 製造日期: | CC84: =CONCATENATE($CB84,標籤!$P$4) -> 製造日期:2024-9-5
A85: =咖啡簡介!C80 -> 0 | B85: =咖啡簡介!P80 -> 0 | C85: =ABS(B85-5) -> 5 | D85: =IF(C85<10,0,C85) -> 0 | E85: 8 | F85: -20 | G85: =ROUND(B85*0.47,0) -> 0 | H85: =ABS(B85*6-40) -> 40 | I85: =IF(H85<50,0,H85) -> 0 | J85: 無 | K85: 0 | M85: =INDEX(咖啡簡介!$D$7:$M$82,MATCH(N85,咖啡簡介!$C$7:$C$82,0),MATCH($M$11,咖啡簡介!$D$6:$M$6,0)) -> 缺貨 | N85: 0 | P85: 半磅裝(夾鏈袋) | T85: 0 | V85: =VLOOKUP(P85,A2:B7,2,0) -> 包 | W85: 0 | Z85: 0 | AB85: 品名不能是空白 | AC85: 一磅裝(鋁袋) | AD85: 磅裝(PE透明袋） | AE85: 半磅裝(夾鏈袋) | AF85: 試喝200克(PE透明袋） | AG85: 商用2700克(透明袋) | AH85: 生豆1公斤(透明袋) | AI85: 0 | AJ85: 磨粉 | AK85: 透明袋一律不磨粉 | AL85: 磨粉 | AP85: 滿6磅才可指定烘焙 | AR85: 1-極淺焙 | AS85: 2-肉桂烘焙 | AT85: 3-中焙 | AU85: 4-高度烘焙 | AV85: 5-城市烘焙 | AW85: 6-全都會 | AX85: 7-法式烘焙 | AY85: 8-義式烘焙 | AZ85: 生豆不可指定 | BL85: =CONCATENATE(訂單填表!BL84) -> 特級綜合 | BM85: =CONCATENATE(訂單填表!BM84) -> 0 | BN85: =CONCATENATE(訂單填表!BN84) -> 0 | BO85: =CONCATENATE(訂單填表!BO84) -> 0 | BP85: =CONCATENATE(訂單填表!BP84) -> 0 | BQ85: =CONCATENATE(訂單填表!BQ84) -> 0 | BR85: =CONCATENATE(訂單填表!BR84) -> 0 | BS85: =CONCATENATE(訂單填表!BS84) -> 0 | BT85: =CONCATENATE(訂單填表!BT84) -> 0 | BU85: =CONCATENATE(訂單填表!BU84) -> 混合豆不能指定烘焙 | BW85: =VLOOKUP(訂單填表!$P85,訂單填表!$A$2:$C$7,3,0) -> 重量:227±3公克 | BX85: =IF($R85=$AJ85,標籤!$P$5,IF($P85=$A$7,標籤!$T$5,標籤!$R$5)) -> 最佳賞味期:30天 | BY85: =IF($R85=$AJ85,標籤!$P$6,IF($P85=$A$7,標籤!$T$6,標籤!$R$6)) -> 保存期限:180天 | BZ85: =IF($R85=$AJ85,標籤!$P$8,IF($P85=$A$7,標籤!$T$8,標籤!$U$8)) ->  | CA85: =IF(BZ85=標籤!$U$8,標籤!$R$8," ") -> 當日烘焙包裝 | CB85: 製造日期: | CC85: =CONCATENATE($CB85,標籤!$P$4) -> 製造日期:2024-9-5
A86: =咖啡簡介!C81 -> 0 | B86: =咖啡簡介!P81 -> 0 | C86: =ABS(B86-5) -> 5 | D86: =IF(C86<10,0,C86) -> 0 | E86: 8 | F86: =咖啡簡介!O81 -> 0 | G86: =ROUND(B86*0.47,0) -> 0 | H86: =ABS(B86*6-40) -> 40 | I86: =IF(H86<50,0,H86) -> 0 | J86: 無 | K86: =IF(COUNTIFS($N$12:$N$87,A86)=0,"0",SUMPRODUCT(($N$12:$N$87=A86)*0.5,($P$12:$P$87=$A$2)*$E$2+($P$12:$P$87=$A$3)*$E$3+($P$12:$P$87=$A$4)*$E$4+($P$12:$P$87=$A$5)*$E$5+($P$12:$P$87=$A$7)*$E$6+($P$12:$P$87=$A$6)*$E$7,$U$12:$U$87)) -> 0 | M86: =INDEX(咖啡簡介!$D$7:$M$82,MATCH(N86,咖啡簡介!$C$7:$C$82,0),MATCH($M$11,咖啡簡介!$D$6:$M$6,0)) -> 缺貨 | N86: 0 | P86: 一磅裝(鋁袋) | T86: =INDEX($B$86:$J$87,MATCH(N86,$A$86:$A$87,0),MATCH(P86,B72:J72,0)) -> 0 | V86: =VLOOKUP(P86,A2:B7,2,0) -> 磅 | W86: 0 | Z86: 0 | AB86: 品名不能是空白 | AC86: 一磅裝(鋁袋) | AD86: 磅裝(PE透明袋） | AE86: 半磅裝(夾鏈袋) | AF86: 試喝200克(PE透明袋） | AG86: 商用2700克(透明袋) | AH86: 生豆1公斤(透明袋) | AI86: 0 | AJ86: 磨粉 | AK86: 透明袋一律不磨粉 | AL86: 磨粉 | AP86: 滿6磅才可指定烘焙 | AR86: 1-極淺焙 | AS86: 2-肉桂烘焙 | AT86: 3-中焙 | AU86: 4-高度烘焙 | AV86: 5-城市烘焙 | AW86: 6-全都會 | AX86: 7-法式烘焙 | AY86: 8-義式烘焙 | AZ86: 生豆不可指定 | BL86: =CONCATENATE(訂單填表!BL85) -> 特級綜合 | BM86: =CONCATENATE(訂單填表!BM85) -> 0 | BN86: =CONCATENATE(訂單填表!BN85) -> 0 | BO86: =CONCATENATE(訂單填表!BO85) -> 0 | BP86: =CONCATENATE(訂單填表!BP85) -> 0 | BQ86: =CONCATENATE(訂單填表!BQ85) -> 0 | BR86: =CONCATENATE(訂單填表!BR85) -> 0 | BS86: =CONCATENATE(訂單填表!BS85) -> 0 | BT86: =CONCATENATE(訂單填表!BT85) -> 0 | BU86: =CONCATENATE(訂單填表!BU85) -> 混合豆不能指定烘焙 | BW86: =VLOOKUP(訂單填表!$P86,訂單填表!$A$2:$C$7,3,0) -> 重量:454±3公克 | BX86: =IF($R86=$AJ86,標籤!$P$5,IF($P86=$A$7,標籤!$T$5,標籤!$R$5)) -> 最佳賞味期:30天 | BY86: =IF($R86=$AJ86,標籤!$P$6,IF($P86=$A$7,標籤!$T$6,標籤!$R$6)) -> 保存期限:180天 | BZ86: =IF($R86=$AJ86,標籤!$P$8,IF($P86=$A$7,標籤!$T$8,標籤!$U$8)) ->  | CA86: =IF(BZ86=標籤!$U$8,標籤!$R$8," ") -> 當日烘焙包裝 | CB86: 製造日期: | CC86: =CONCATENATE($CB86,標籤!$P$4) -> 製造日期:2024-9-5
A87: =咖啡簡介!C82 -> 0 | B87: =咖啡簡介!P82 -> 0 | C87: =ABS(B87-5) -> 5 | D87: =IF(C87<10,0,C87) -> 0 | E87: 8 | F87: =咖啡簡介!O82 -> 0 | G87: =ROUND(B87*0.47,0) -> 0 | H87: =ABS(B87*6-40) -> 40 | I87: =IF(H87<50,0,H87) -> 0 | J87: 無 | K87: =IF(COUNTIFS($N$12:$N$87,A87)=0,"0",SUMPRODUCT(($N$12:$N$87=A87)*0.5,($P$12:$P$87=$A$2)*$E$2+($P$12:$P$87=$A$3)*$E$3+($P$12:$P$87=$A$4)*$E$4+($P$12:$P$87=$A$5)*$E$5+($P$12:$P$87=$A$7)*$E$6+($P$12:$P$87=$A$6)*$E$7,$U$12:$U$87)) -> 0 | M87: =INDEX(咖啡簡介!$D$7:$M$82,MATCH(N87,咖啡簡介!$C$7:$C$82,0),MATCH($M$11,咖啡簡介!$D$6:$M$6,0)) -> 缺貨 | N87: 0 | P87: 一磅裝(鋁袋) | T87: =INDEX($B$86:$J$87,MATCH(N87,$A$86:$A$87,0),MATCH(P87,$B$72:$J$72,0)) -> 0 | V87: =VLOOKUP(P87,A2:B7,2,0) -> 磅 | W87: 0 | Z87: 0 | AB87: 品名不能是空白 | AC87: 一磅裝(鋁袋) | AD87: 磅裝(PE透明袋） | AE87: 半磅裝(夾鏈袋) | AF87: 試喝200克(PE透明袋） | AG87: 商用2700克(透明袋) | AH87: 生豆1公斤(透明袋) | AI87: 0 | AJ87: =CONCATENATE(AJ86) -> 磨粉 | AK87: 透明袋一律不磨粉 | AL87: 磨粉 | AP87: 滿6磅才可指定烘焙 | AR87: 1-極淺焙 | AS87: 2-肉桂烘焙 | AT87: 3-中焙 | AU87: 4-高度烘焙 | AV87: 5-城市烘焙 | AW87: 6-全都會 | AX87: 7-法式烘焙 | AY87: 8-義式烘焙 | AZ87: 生豆不可指定 | BL87: =CONCATENATE(訂單填表!BL86) -> 特級綜合 | BM87: =CONCATENATE(訂單填表!BM86) -> 0 | BN87: =CONCATENATE(訂單填表!BN86) -> 0 | BO87: =CONCATENATE(訂單填表!BO86) -> 0 | BP87: =CONCATENATE(訂單填表!BP86) -> 0 | BQ87: =CONCATENATE(訂單填表!BQ86) -> 0 | BR87: =CONCATENATE(訂單填表!BR86) -> 0 | BS87: =CONCATENATE(訂單填表!BS86) -> 0 | BT87: =CONCATENATE(訂單填表!BT86) -> 0 | BU87: =CONCATENATE(訂單填表!BU86) -> 混合豆不能指定烘焙 | BW87: =VLOOKUP(訂單填表!$P87,訂單填表!$A$2:$C$7,3,0) -> 重量:454±3公克 | BX87: =IF($R87=$AJ87,標籤!$P$5,IF($P87=$A$7,標籤!$T$5,標籤!$R$5)) -> 最佳賞味期:30天 | BY87: =IF($R87=$AJ87,標籤!$P$6,IF($P87=$A$7,標籤!$T$6,標籤!$R$6)) -> 保存期限:180天 | BZ87: =IF($R87=$AJ87,標籤!$P$8,IF($P87=$A$7,標籤!$T$8,標籤!$U$8)) ->  | CA87: =IF(BZ87=標籤!$U$8,標籤!$R$8," ") -> 當日烘焙包裝 | CB87: 製造日期: | CC87: =CONCATENATE($CB87,標籤!$P$4) -> 製造日期:2024-9-5
A88: =CONCATENATE(咖啡簡介!C83) -> 咖啡副產品 | B88: 單價 | C88: =CONCATENATE(咖啡簡介!D83) -> 規格 | D88: =CONCATENATE(咖啡簡介!L83) -> 單位 | E88: 簡稱 | N88: =CONCATENATE(咖啡簡介!C83) -> 咖啡副產品 | Q88: =CONCATENATE(咖啡簡介!F83) ->  | T88: =CONCATENATE(T72) -> 單價 | U88: =CONCATENATE(U72) -> 數量 | V88: =CONCATENATE(V72) -> 單位 | W88: =CONCATENATE(W72) -> 小計 | X88: =CONCATENATE(X72) -> 填表錯誤提示 | AC88: =CONCATENATE(E88) -> 簡稱 | CB88: 出貨日期 | CC88: =CONCATENATE(CB88,"+日期'") -> 出貨日期+日期'
A89: =咖啡簡介!C84 -> 無漂白濾紙102(100入) | B89: =咖啡簡介!P84 -> 90 | C89: =咖啡簡介!D84 -> 高16*10公分德國製(100入袋裝)(美利塔) | D89: =咖啡簡介!L84 -> 盒 | E89: =咖啡簡介!J84 -> 濾紙 | K89: =IF(COUNTIFS($N$89:$N$96,A89)=0,"0",SUMPRODUCT(($N$89:$N$96=A89)*1,$U$89:$U$96)) -> 0 | N89: 無漂白濾紙102(100入) | P89: =VLOOKUP(N89,$A$89:$E$96,3,0) -> 高16*10公分德國製(100入袋裝)(美利塔) | T89: =VLOOKUP(N89,A89:B96,2,0) -> 90 | V89: =VLOOKUP(N89,$A$89:$D$96,4,0) -> 盒 | W89: =ABS(T89*U89) -> 0 | X89: =CONCATENATE(AA89) ->  | Z89: =$Z$11 -> 0 | AA89: =IF(AND(N89=Z89,U89>=1),AB89,"") ->  | AB89: =$AB$11 -> 品名不能是空白 | AC89: =VLOOKUP(N89,A89:E96,5,0) -> 濾紙 | CB89: =CONCATENATE($CB$88) -> 出貨日期 | CC89: =CONCATENATE($CB89,標籤!$P$4) -> 出貨日期2024-9-5
A90: =咖啡簡介!C85 -> 手沖壺(350ml)無刻度 | B90: =咖啡簡介!P85 -> 190 | C90: =咖啡簡介!D85 -> 高8.5/壺口徑6.8/出水口徑0.4/全長18.5公分/重量150克/材質:不鏽鋼 | D90: =咖啡簡介!L85 -> 只 | E90: =咖啡簡介!J85 -> 手沖壺 | K90: 0 | N90: 手沖壺(350ml)無刻度 | P90: 高8.5/壺口徑6.8/出水口徑0.4/全長18.5公分/重量150克/材質:不鏽鋼 | T90: =VLOOKUP(N90,A89:B96,2,0) -> 190 | V90: 只 | W90: =ABS(T90*U90) -> 0 | Z90: 0 | AB90: 品名不能是空白 | AC90: =VLOOKUP(N90,A90:E97,5,0) -> 手沖壺 | CB90: 出貨日期 | CC90: =CONCATENATE($CB90,標籤!$P$4) -> 出貨日期2024-9-5
A91: =咖啡簡介!C86 -> 不鏽鋼濾杯(免濾紙) | B91: =咖啡簡介!P86 -> 300 | C91: =咖啡簡介!D86 -> 高8.5*上徑11.5 公分；下徑10公分 | D91: =咖啡簡介!L86 -> 個 | E91: =咖啡簡介!J86 -> ST濾杯 | K91: 0 | N91: 不鏽鋼濾杯(免濾紙) | P91: 高8.5*上徑11.5 公分；下徑10公分 | T91: =VLOOKUP(N91,A89:B96,2,0) -> 300 | V91: 個 | W91: =ABS(T91*U91) -> 0 | Z91: 0 | AB91: 品名不能是空白 | AC91: ST濾杯 | CB91: 出貨日期 | CC91: =CONCATENATE($CB91,標籤!$P$4) -> 出貨日期2024-9-5
A92: =咖啡簡介!C87 -> 虹吸式濾布(10片裝) | B92: =咖啡簡介!P87 -> 80 | C92: =咖啡簡介!D87 -> 直徑10公分，適用於直徑6公分濾片 | D92: =咖啡簡介!L87 -> 包 | E92: =咖啡簡介!J87 -> 濾布 | K92: 0 | N92: 虹吸式濾布(10片裝) | P92: 直徑10公分，適用於直徑6公分濾片 | T92: =VLOOKUP(N92,A89:B96,2,0) -> 80 | V92: 包 | W92: 0 | Z92: 0 | AB92: 品名不能是空白 | AC92: 濾布 | CB92: 出貨日期 | CC92: =CONCATENATE($CB92,標籤!$P$4) -> 出貨日期2024-9-5
A93: =咖啡簡介!C88 -> 塑膠濾杯(日本製) | B93: =咖啡簡介!P88 -> 70 | C93: =咖啡簡介!D88 -> 直徑11*高8公分:耐熱120度塑膠 | D93: =咖啡簡介!L88 -> 個 | E93: =咖啡簡介!J88 -> 塑膠濾杯 | K93: 0 | N93: 塑膠濾杯(日本製) | P93: 直徑11*高8公分:耐熱120度塑膠 | T93: =VLOOKUP(N93,A89:B96,2,0) -> 70 | V93: 個 | W93: 0 | Z93: 0 | AB93: 品名不能是空白 | AC93: 塑膠濾杯 | CB93: 出貨日期 | CC93: =CONCATENATE($CB93,標籤!$P$4) -> 出貨日期2024-9-5
A94: =咖啡簡介!C89 -> 奶泡壺(內刻度500ml) | B94: =咖啡簡介!P89 -> 210 | C94: =咖啡簡介!D89 -> 高11.1*上徑7.6 公分；下徑9.2公分 | D94: =咖啡簡介!L89 -> 只 | E94: =咖啡簡介!J89 -> 奶泡壺 | K94: 0 | N94: 奶泡壺(內刻度500ml) | P94: 高11.1*上徑7.6 公分；下徑9.2公分 | T94: =VLOOKUP(N94,A89:B96,2,0) -> 210 | V94: 只 | W94: 0 | Z94: 0 | AB94: 品名不能是空白 | AC94: 奶泡壺 | CB94: 出貨日期 | CC94: =CONCATENATE($CB94,標籤!$P$4) -> 出貨日期2024-9-5
A95: =咖啡簡介!C90 -> 黑軸心(手搖磨豆機配件) | B95: =咖啡簡介!P90 -> 30 | C95: =咖啡簡介!D90 -> 24mm*24mm 材質:塑膠 | D95: =咖啡簡介!L90 -> 個 | E95: =咖啡簡介!J90 -> 配件 | K95: 0 | P95: 0 | T95: =VLOOKUP(N95,A89:B96,2,0) -> 0 | V95: 0 | W95: 0 | Z95: 0 | AB95: 品名不能是空白 | AC95: 0 | CB95: 出貨日期 | CC95: =CONCATENATE($CB95,標籤!$P$4) -> 出貨日期2024-9-5
A96: =咖啡簡介!C91 -> 0 | B96: =咖啡簡介!P91 -> 0 | C96: =咖啡簡介!D91 -> 0 | D96: =咖啡簡介!L91 -> 0 | E96: =咖啡簡介!J91 -> 0 | K96: 0 | P96: 0 | T96: =VLOOKUP(N96,A89:B96,2,0) -> 0 | V96: 0 | W96: 0 | Z96: 0 | AB96: 品名不能是空白 | AC96: 0 | CB96: 出貨日期 | CC96: =CONCATENATE($CB96,標籤!$P$4) -> 出貨日期2024-9-5
T98: =CONCATENATE(AH134," ",AJ128," ",AI138) -> 訂購未滿500元加收50元運費 | U98: 運費 | W98: =CONCATENATE(AL136) -> 0 | X98: 自動運算
U99: 總金額(含運費) | V99: =IF(AND(P114=AC137,P115=0),"缺後5碼",IF($AG$107>0,"$錯誤",AC100)) -> $0 | AC99: =IF(AD99>999,ROUND(AD99*0.9,0),AD99+W98) -> 0 | AD99: =SUM(W12:W71,W73:W87,W89:W96) -> 0
N100: 訂購數量統計: | AC100: =CONCATENATE("$",AC99) -> $0
N101: =CONCATENATE(Q127,R127,S127) -> 0 | O101: =CONCATENATE(Q128,R128,S128) -> 0 | R101: =CONCATENATE($Q$133,$R$133,$S$133) -> 0 | U101: =CONCATENATE(Q137,R137,S137) -> 0
N102: =CONCATENATE(Q129,R129,S129) -> 0 | O102: =CONCATENATE(Q130,R130,S130) -> 0 | R102: =CONCATENATE($Q$134,$R$134,$S$134) -> 0 | U102: =CONCATENATE(Q135,R135,S135) -> 0
N103: =CONCATENATE(Q131,R131,S131) -> 0 | O103: =CONCATENATE($Q$132,$R$132,$S$132) -> 0 | R103: =CONCATENATE($Q$138,$R$138,$S$138) -> 0 | U103: =CONCATENATE(Q136,R136,S136) -> 0
A105: 縣市 | B105: 區 | C105: 郵遞區號 | D105: 縣市名 | E105: 區名 | F105: 聯運區 | N105: 訂購人資料 | P105: =CONCATENATE(AG108) -> 請填(收件人姓名)
A106: 台北市 | B106: 中正區 | C106: 100 | D106: 台北市 | E106: =OFFSET($B$106,SMALL(IF(縣市=$P$108,ROW(區),999)-106,ROW(1:1)),0) -> . | P106: 注意:必填欄位未填寫時 訂單無法成立 | AC106: 郵區號 | AD106: 填資料提示 | AE106: 偏遠區 | AF106: 關鍵字 | AG106: 提示錯誤 | AJ106: 看守所
A107: 台北市 | B107: 大同區 | C107: 103 | D107: 基隆市 | E107: =OFFSET($B$106,SMALL(IF(縣市=$P$108,ROW(區),999)-106,ROW(2:2)),0) -> 0 | O107: 收件人: | Q107: 必填 | AC107: =IFERROR(O108<99,AC109) -> FALSE | AD107: =IF(P107=W107,"請填(收件人姓名)",AD108) -> 請填(收件人姓名) | AE107: =VLOOKUP(P109,B106:F477,5,0) -> 0 | AG107: =SUMPRODUCT((LEN(X12:X96)>6)*(LEN(X12:X96))) -> 0 | AJ107: 監獄
A108: 台北市 | B108: 中山區 | C108: 104 | D108: 新北市 | E108: =OFFSET($B$106,SMALL(IF(縣市=$P$108,ROW(區),999)-106,ROW(3:3)),0) -> 0 | N108: 縣市: | O108: =OFFSET(C106,SUMPRODUCT((縣市=P108)*(區=P109)*ROW(郵遞區號))-106,0) -> 001 | Q108: 必填 | AC108: =IF(AC107=AC109,AC109," ") ->  | AD108: =IF(P108=W108,"請選(縣市)",AD109) -> 請選(縣市) | AG108: =IF(AG107>1,"!填表錯誤，請參閱錯誤提示",AD107) -> 請填(收件人姓名) | AJ108: 好市多
A109: 台北市 | B109: 松山區 | C109: 105 | D109: 宜蘭縣 | E109: =OFFSET($B$106,SMALL(IF(縣市=$P$108,ROW(區),999)-106,ROW(4:4)),0) -> 0 | O109: 鄉/鎮/區: | P109: . | Q109: 必填 | R109: =IF(OR(聯運區!C211>=1,AE107=F105),IF(P111<=0,Z109," ")) -> FALSE | Z109: 此地址只限郵局配送(交貨便除外) | AC109: !縣市鄉鎮錯誤 | AD109: =IF(P109=B477,"請選 (鄉/鎮/區)",AD110) -> 請選 (鄉/鎮/區)
A110: 台北市 | B110: 大安區 | C110: 106 | D110: 新竹市 | E110: =OFFSET($B$106,SMALL(IF(縣市=$P$108,ROW(區),999)-106,ROW(5:5)),0) -> 0 | O110: 路名門號: | U110: 必填(7-11交貨便填門市店名) | AD110: =IF(AC108=AC109,AC109,AD111) -> 請填(地址)。交貨便請填(門市名稱)
A111: 台北市 | B111: 萬華區 | C111: 108 | D111: 新竹縣 | E111: =OFFSET($B$106,SMALL(IF(縣市=$P$108,ROW(區),999)-106,ROW(6:6)),0) -> 0 | O111: 7-11交貨便門市店號: | Q111: 非7-11交貨便免填 | AD111: =IF(P110=W108,"請填(地址)。交貨便請填(門市名稱)",AD112) -> 請填(地址)。交貨便請填(門市名稱)
A112: 台北市 | B112: 信義區 | C112: 110 | D112: 桃園市 | E112: =OFFSET($B$106,SMALL(IF(縣市=$P$108,ROW(區),999)-106,ROW(7:7)),0) -> 0 | O112: 手機: | Q112: 必填 | Z112: =MID(P112,8,3) ->  | AD112: =IF(AND(P112=W112,P113=W113),"缺少連絡電話",AD113) -> 缺少連絡電話 | AJ112: 南空軍基地
A113: 台北市 | B113: 士林區 | C113: 111 | D113: 苗栗縣 | E113: =OFFSET($B$106,SMALL(IF(縣市=$P$108,ROW(區),999)-106,ROW(8:8)),0) -> 0 | O113: 市話: | AD113: =IF(P114=W114,"請選(付款方式)",AD114) -> 請選(付款方式) | AJ113: 貨櫃場
A114: 台北市 | B114: 北投區 | C114: 112 | D114: 台中市 | E114: =OFFSET($B$106,SMALL(IF(縣市=$P$108,ROW(區),999)-106,ROW(9:9)),0) -> 0 | O114: 付款方式: | Q114: 必填 | AD114: =IF(AND(P114=AC137,P115<1),"請填轉帳後五碼",AD115) -> 請填E-MAIL | AJ114: 碼頭
A115: 台北市 | B115: 內湖區 | C115: 114 | D115: 彰化縣 | E115: =OFFSET($B$106,SMALL(IF(縣市=$P$108,ROW(區),999)-106,ROW(10:10)),0) -> 0 | O115: 轉帳後五碼或無摺局號: | Q115: 轉帳付款必填 否則無法顯示總金額 (可先傳送訂單 限三日內轉帳) | AD115: =IF(AND(P114=AC138,P111>1),"交貨便不能貨到付款",AD116) -> 請填E-MAIL
A116: 台北市 | B116: 南港區 | C116: 115 | D116: 南投縣 | E116: =OFFSET($B$106,SMALL(IF(縣市=$P$108,ROW(區),999)-106,ROW(11:11)),0) -> 0 | O116: E-mail:(7-11交貨便必填) | S116: 未填寫e-mail 無法發送出貨通知 | AD116: =IF(AND(P114=AC138,P115>1),"請清除轉帳後五碼",AD117) -> 請填E-MAIL | AJ116: 石門路
A117: 台北市 | B117: 文山區 | C117: 116 | D117: 嘉義市 | E117: =OFFSET($B$106,SMALL(IF(縣市=$P$108,ROW(區),999)-106,ROW(12:12)),0) -> 0 | O117: 報帳收據: | P117: 免收據 | X117: =CONCATENATE($P$107,$P$112,"-",$O$124,P124,$Q$124,R124,$S$124) -> -2024905 | AD117: =IF(P116=W116,"請填E-MAIL",AD118) -> 請填E-MAIL | AJ117: 海埔新生地
A118: 基隆市 | B118: 仁愛區 | C118: 200 | D118: 嘉義縣 | E118: =OFFSET($B$106,SMALL(IF(縣市=$P$108,ROW(區),999)-106,ROW(13:13)),0) -> 0 | F118: 聯運區 | O118: 抬頭: | AA118: =IF(P118=Z118," ",O118) ->  | AB118: =CONCATENATE(AA118,P118) ->  | AD118: =IF(X98="","運送設定請切換""自動運算",AD119) -> 完成 | AJ118: 濱海路
A119: 基隆市 | B119: 信義區 | C119: 201 | D119: 雲林縣 | E119: =OFFSET($B$106,SMALL(IF(縣市=$P$108,ROW(區),999)-106,ROW(14:14)),0) -> 0 | O119: 統編: | AA119: =IF(P119=Z119," ",O119) ->  | AB119: =CONCATENATE(AA119,P119) ->  | AD119: =IF(AND(P111>1,AF126>AC133),AQ133,AD120) -> 完成
A120: 基隆市 | B120: 中正區 | C120: 202 | D120: 台南市 | E120: =OFFSET($B$106,SMALL(IF(縣市=$P$108,ROW(區),999)-106,ROW(15:15)),0) -> 0 | O120: 備註: | W120: 2018-12-15 | AD120: 完成
A121: 基隆市 | B121: 中山區 | C121: 203 | D121: 高雄市 | E121: =OFFSET($B$106,SMALL(IF(縣市=$P$108,ROW(區),999)-106,ROW(16:16)),0) -> 0
A122: 基隆市 | B122: 安樂區 | C122: 204 | D122: 花蓮縣 | E122: =OFFSET($B$106,SMALL(IF(縣市=$P$108,ROW(區),999)-106,ROW(17:17)),0) -> 0 | N122: 收款帳戶: (郵局700) 01112740247151 戶名:盧建樺
A123: 基隆市 | B123: 暖暖區 | C123: 205 | D123: 台東縣 | E123: =OFFSET($B$106,SMALL(IF(縣市=$P$108,ROW(區),999)-106,ROW(18:18)),0) -> 0 | N123: 訂購信箱: news.news@msa.hinet.net
A124: 基隆市 | B124: 七堵區 | C124: 206 | D124: 屏東縣 | E124: =OFFSET($B$106,SMALL(IF(縣市=$P$108,ROW(區),999)-106,ROW(19:19)),0) -> 0 | N124: =CONCATENATE($P$107,$P$112,"-",$O$124,$Q$124,$S$124) -> -202495 | O124: =YEAR(T124) -> 2024 | P124: =IF(Q124>=9,"","0") ->  | Q124: =MONTH(T124) -> 9 | R124: =IF(S124>=9,"","0") -> 0 | S124: =DAY(T124) -> 5 | T124: =NOW() -> 2024-09-05T17:31:32.060 | U124: =MID(P112,8,10) -> 
A125: 新北市 | B125: 萬里區 | C125: 207 | D125: 澎湖縣 | E125: =OFFSET($B$106,SMALL(IF(縣市=$P$108,ROW(區),999)-106,ROW(20:20)),0) -> 0 | F125: 聯運區 | AF125: 總量 | AG125: 代收加量
A126: 新北市 | B126: 金山區 | C126: 208 | D126: 金門縣 | E126: =OFFSET($B$106,SMALL(IF(縣市=$P$108,ROW(區),999)-106,ROW(21:21)),0) -> 0 | F126: 聯運區 | O126: 列印計量連結 | P126: 列印連結 | Q126: 填表連結 | R126: 數量 | S126: 單位 | U126: 容量值 | AF126: =SUM(U127:U140) -> 0 | AG126: =IF(P114=AD138,4.1,0) -> 0
A127: 新北市 | B127: 板橋區 | C127: 220 | D127: 連江縣 | E127: =OFFSET($B$106,SMALL(IF(縣市=$P$108,ROW(區),999)-106,ROW(22:22)),0) -> 0 | N127: =CONCATENATE(A2) -> 一磅裝(鋁袋) | O127: 一磅裝(鋁袋) | P127: =IF(AND(R127>=1,R127<999),O127,"") ->  | Q127: =IF(AND(R127>=1,R127<999),N127,"") ->  | R127: =IF(COUNTIFS($P$12:$P$87,N$127)=0,"0",SUMPRODUCT(($P$12:$P$87=N$127)*1,$U$12:$U$87)) -> 0 | S127: =IF(AND(R127>=1,R127<999),T127,"") ->  | T127: =CONCATENATE(B2) -> 磅 | U127: =ABS(R127*1) -> 0 | AC127: 容量設定 | AD127: 運費 | AE127: 代收手續費 | AF127: 運送方式 | AG127: 選鍵 | AH127: 選項過濾 | AI127: 容量過濾 | AJ127: 結果 | AK127: 運費 | AL127: 運費選項過濾 | AM127: 代收手續費 | AN127: 免運訊息 | AP127: 訊息顯示 | AQ127: 錯誤題示
A128: 新北市 | B128: 汐止區 | C128: 221 | D128: 南海諸島 | E128: =OFFSET($B$106,SMALL(IF(縣市=$P$108,ROW(區),999)-106,ROW(23:23)),0) -> 0 | N128: 磅裝(PE透明袋） | O128: PE透明 | R128: =IF(COUNTIFS($P$12:$P$87,N$128)=0,"0",SUMPRODUCT(($P$12:$P$87=N$128)*1,$U$12:$U$87)) -> 0 | T128: 磅 | U128: =ABS(R128*0.9) -> 0 | AF128: 自動運算 | AG128: =IF(AF128=AF128,AF128," ") -> 自動運算 | AH128: =IF($X$98=AG129,AF129,IF($X$98=0,"沒有物流",IF($X$98=AG130,AF130,IF($X$98=AG128,AF129)))) -> (新竹物流) | AI128: =IF(AD99=0," ",IF(P111>1,AH133,IF(AF126+AG126<AC131,AF131,IF(OR(AE107=F105,聯運區!$C$211>=1),AF130,AH128)))) ->  | AJ128: =IF(X98=AF128,AI128,IF(X98=AF129,AH129,IF(X98=AF130,AH130,"沒有物流"))) ->  | AK128: =IF(AD99>AD134,0,IF(AI128=AF129,AD129,IF(AI128=AF130,AD130,IF(AI128=AF131,AD131,IF(AI128=AF132,AD132,IF(AI128=AF133,AD133)))))) -> FALSE | AL128: =IF(X98=AF128,AK128,0) -> FALSE | AM128: =IF(AND($P$114=$AC$138,AD99<3000,X98=AF128),AE129,0) -> 0 | AN128: =IF(AND(X98=AF128,AD99>2999,P111<1),AF134," ") -> 
A129: 新北市 | B129: 深坑區 | C129: 222 | E129: =OFFSET($B$106,SMALL(IF(縣市=$P$108,ROW(區),999)-106,ROW(24:24)),0) -> 0 | N129: 半磅裝(夾鏈袋) | O129: 夾鏈 | R129: =IF(COUNTIFS($P$12:$P$87,N$129)=0,"0",SUMPRODUCT(($P$12:$P$87=N$129)*1,$U$12:$U$87)) -> 0 | T129: 包 | U129: =ABS(R129/2) -> 0 | AD129: 50 | AE129: 30 | AF129: (新竹物流) | AG129: =IF(AE107=F105,AF130,AF129) -> (新竹物流) | AH129: =IF(AD99=0," ",IF(P111>1,AH133,IF(AE107=F105,AF130,AF129))) ->  | AK129: =IF(AD99>2999,0,IF(AH129=AF133,AD133,AD129)) -> 50 | AL129: =IF(X98=AF129,AK129,0) -> 0 | AM129: =IF(AND($P$114=$AC$138,X98=AF129,AD99<2999),AE129,0) -> 0 | AN129: =IF(AND(X98=AF129,AD99>2999,P111<1),AF134," ") ->  | AP129: (代收貨款)
A130: 新北市 | B130: 石碇區 | C130: 223 | E130: =OFFSET($B$106,SMALL(IF(縣市=$P$108,ROW(區),999)-106,ROW(25:25)),0) -> 0 | F130: 聯運區 | N130: 試喝200克(PE透明袋） | O130: 試喝 | R130: =IF(COUNTIFS($P$12:$P$87,N$130)=0,"0",SUMPRODUCT(($P$12:$P$87=N$130)*1,$U$12:$U$87)) -> 0 | T130: 包 | U130: =ABS(R130*0.45) -> 0 | AD130: 50 | AE130: =IF($AD$99<2000,30,IF($AD$99<5000,50,IF($AD$99<10000,80,IF($AD$99<20000,110,IF($AD$99<25000,130,IF($AD$99<30000,150,)))))) -> 30 | AF130: (郵局包裹) | AG130: =CONCATENATE(AF130) -> (郵局包裹) | AH130: =IF(AD99=0," ",IF(P111>1,AH133,IF(AF126<AC131,AF131,AF130))) ->  | AK130: =IF(AD99>2999,0,IF(AH130=AF133,AD133,IF(AH130=AF131,AD131,AD130))) -> 50 | AL130: =IF(X98=AF130,AK130,0) -> 0 | AM130: =IF(AND($P$114=$AC$138,X98=AG130),IF(AD99>2999,AE130-30,AE130),0) -> 0 | AN130: =IF(AND(X98=AF130,AD99>2999,P111<1),AP130," ") ->  | AP130: 滿3千運費優惠
A131: 新北市 | B131: 瑞芳區 | C131: 224 | E131: =OFFSET($B$106,SMALL(IF(縣市=$P$108,ROW(區),999)-106,ROW(26:26)),0) -> 0 | N131: 商用2700克(透明袋) | O131: 商用 | R131: =IF(COUNTIFS($P$12:$P$87,N$131)=0,"0",SUMPRODUCT(($P$12:$P$87=N$131)*1,$U$12:$U$87)) -> 0 | T131: 袋 | U131: =ABS(R131*6) -> 0 | AC131: 3 | AD131: 50 | AE131: =IF($AD$99<2000,30,IF($AD$99<5000,50,IF($AD$99<10000,80,IF($AD$99<20000,110,IF($AD$99<25000,130,IF($AD$99<30000,150,)))))) -> 30 | AF131: (郵局65元便利箱) | AG131: . | AJ131: =IF(X98=AF131,AF131," ") ->  | AN131: =CONCATENATE(AN128,AN129,AN130) -> 
A132: 新北市 | B132: 平溪區 | C132: 226 | E132: =OFFSET($B$106,SMALL(IF(縣市=$P$108,ROW(區),999)-106,ROW(27:27)),0) -> 0 | F132: 聯運區 | N132: 生豆1公斤(透明袋) | O132: 特調 | R132: =IF(COUNTIFS($P$12:$P$87,N$132)=0,"0",SUMPRODUCT(($P$12:$P$87=N$132)*1,$U$12:$U$87)) -> 0 | T132: 公斤 | U132: =ABS(R132*1.5) -> 0 | AD132: 0 | AF132: ….. | AG132: =IF(P114=AD138,".",AF132) -> ….. | AJ132: =IF(X98=AF132,AH132," ") ->  | AK132: =IF(AND(AH134=AF134,X98=AF132)*80,80," ") -> 
A133: 新北市 | B133: 雙溪區 | C133: 227 | E133: =OFFSET($B$106,SMALL(IF(縣市=$P$108,ROW(區),999)-106,ROW(28:28)),0) -> 0 | F133: 聯運區 | N133: =CONCATENATE(咖啡簡介!C84) -> 無漂白濾紙102(100入) | O133: 濾紙 | R133: =IF(COUNTIFS($N$89:$N$96,N$133)=0,"0",SUMPRODUCT(($N$89:$N$96=N$133)*1,$U$89:$U$96)) -> 0 | T133: =CONCATENATE(咖啡簡介!L84) -> 盒 | U133: =ABS(R133*0.8) -> 0 | AC133: 10 | AD133: 50 | AE133: 0 | AF133: 7-11交貨便 | AG133: . | AH133: =IF(AF126>=10.1,AQ133,AF133) -> 7-11交貨便 | AJ133: =IF(X98=AF133,AH133," ") ->  | AN133: =IF(AI128=AF133,AR133," ") ->  | AP133: (付款方式錯誤!!請選"轉帳匯款") | AQ133: 超出包裹容量無法使用(交貨便)寄送 | AR133: =CONCATENATE("(取貨店號:",P111,")") -> (取貨店號:)
A134: 新北市 | B134: 貢寮區 | C134: 228 | E134: =OFFSET($B$106,SMALL(IF(縣市=$P$108,ROW(區),999)-106,ROW(29:29)),0) -> 0 | F134: 聯運區 | N134: =CONCATENATE(咖啡簡介!C85) -> 手沖壺(350ml)無刻度 | O134: 手沖壺 | R134: =IF(COUNTIFS($N$89:$N$96,N$134)=0,"0",SUMPRODUCT(($N$89:$N$96=N$134)*1,$U$89:$U$96)) -> 0 | T134: =CONCATENATE(咖啡簡介!L85) -> 只 | U134: =ABS(R134*2) -> 0 | AD134: 499 | AE134: -30 | AF134: 購滿500元免運 | AH134: =IF($AD$99<=AD134,AF136,IF(AD99>=AD135,AF135,AF134)) -> 訂購未滿500元加收50元運費 | AQ134: 請減少訂購量或清除門市店號
A135: 新北市 | B135: 新店區 | C135: 231 | E135: =OFFSET($B$106,SMALL(IF(縣市=$P$108,ROW(區),999)-106,ROW(30:30)),0) -> 0 | N135: =CONCATENATE(咖啡簡介!C86) -> 不鏽鋼濾杯(免濾紙) | O135: 不銹剛濾杯 | R135: =IF(COUNTIFS($N$89:$N$96,N$135)=0,"0",SUMPRODUCT(($N$89:$N$96=N$135)*1,$U$89:$U$96)) -> 0 | T135: =CONCATENATE(咖啡簡介!L86) -> 個 | U135: =ABS(R135*2) -> 0 | AC135: 0 | AD135: 999 | AF135: 訂購滿1000元(9折優惠) | AG135: .
A136: 新北市 | B136: 坪林區 | C136: 232 | E136: =OFFSET($B$106,SMALL(IF(縣市=$P$108,ROW(區),999)-106,ROW(31:31)),0) -> 0 | F136: 聯運區 | N136: =CONCATENATE(咖啡簡介!C87) -> 虹吸式濾布(10片裝) | O136: 濾布 | R136: =IF(COUNTIFS($N$89:$N$96,N$136)=0,"0",SUMPRODUCT(($N$89:$N$96=N$136)*1,$U$89:$U$96)) -> 0 | T136: =CONCATENATE(咖啡簡介!L87) -> 包 | U136: =ABS(R136*0.1) -> 0 | AF136: 訂購未滿500元加收50元運費 | AL136: =IF(AND(P114=AC138,P111>1),"錯誤",AM136) -> 0 | AM136: =SUM(AL128:AL135) -> 0
A137: 新北市 | B137: 烏來區 | C137: 233 | E137: =OFFSET($B$106,SMALL(IF(縣市=$P$108,ROW(區),999)-106,ROW(32:32)),0) -> 0 | F137: 聯運區 | N137: =CONCATENATE(咖啡簡介!C88) -> 塑膠濾杯(日本製) | O137: 塑膠濾杯 | R137: =IF(COUNTIFS($N$89:$N$96,N$137)=0,"0",SUMPRODUCT(($N$89:$N$96=N$137)*1,$U$89:$U$96)) -> 0 | T137: =CONCATENATE(咖啡簡介!L88) -> 個 | U137: =ABS(R137*1.8) -> 0 | AC137: 轉帳匯款 | AD137: =CONCATENATE(AC137) -> 轉帳匯款 | AE137: =IF(AND(P114=AC137,P115=S114),"請填轉帳後5碼"," ") -> 
A138: 新北市 | B138: 永和區 | C138: 234 | E138: =OFFSET($B$106,SMALL(IF(縣市=$P$108,ROW(區),999)-106,ROW(33:33)),0) -> 0 | N138: =CONCATENATE(咖啡簡介!C89) -> 奶泡壺(內刻度500ml) | O138: 奶泡壺 | R138: =IF(COUNTIFS($N$89:$N$96,N$138)=0,"0",SUMPRODUCT(($N$89:$N$96=N$138)*1,$U$89:$U$96)) -> 0 | T138: =CONCATENATE(咖啡簡介!L89) -> 只 | U138: =ABS(R138*2) -> 0 | AC138: 貨到付款 | AD138: =IF(P111=0,AC138,"") -> 貨到付款 | AF138: =IF(AND(AI128=AF133,P114=AC138),AP133,AP129) -> (代收貨款) | AG138: =IF(P114=AC138,"代收"," ") ->  | AH138: =IF(P114=AC138,V99," ") ->  | AI138: =IF($P$114=$AC$138,$AF$138,$AN$133) -> 
A139: 新北市 | B139: 中和區 | C139: 235 | E139: =OFFSET($B$106,SMALL(IF(縣市=$P$108,ROW(區),999)-106,ROW(34:34)),0) -> 0 | N139: =CONCATENATE(咖啡簡介!C90) -> 黑軸心(手搖磨豆機配件) | O139: 黑軸心 | R139: =IF(COUNTIFS($N$89:$N$96,N$139)=0,"0",SUMPRODUCT(($N$89:$N$96=N$139)*1,$U$89:$U$96)) -> 0 | T139: =CONCATENATE(咖啡簡介!L90) -> 個 | U139: =ABS(R139*0.1) -> 0
A140: 新北市 | B140: 土城區 | C140: 236 | E140: =OFFSET($B$106,SMALL(IF(縣市=$P$108,ROW(區),999)-106,ROW(35:35)),0) -> 0 | N140: =CONCATENATE(咖啡簡介!C91) -> 0 | R140: =IF(COUNTIFS($N$89:$N$96,N$140)=0,"0",SUMPRODUCT(($N$89:$N$96=N$140)*1,$U$89:$U$96)) -> 0 | T140: =CONCATENATE(咖啡簡介!L91) -> 0 | AC140: 免收據
A141: 新北市 | B141: 三峽區 | C141: 237 | E141: =OFFSET($B$106,SMALL(IF(縣市=$P$108,ROW(區),999)-106,ROW(36:36)),0) -> 0 | AC141: 附空白收據
A142: 新北市 | B142: 樹林區 | C142: 238 | E142: =OFFSET($B$106,SMALL(IF(縣市=$P$108,ROW(區),999)-106,ROW(37:37)),0) -> 0 | AC142: 開收據
A143: 新北市 | B143: 鶯歌區 | C143: 239 | E143: =OFFSET($B$106,SMALL(IF(縣市=$P$108,ROW(區),999)-106,ROW(38:38)),0) -> 0
A144: 新北市 | B144: 三重區 | C144: 241 | E144: =OFFSET($B$106,SMALL(IF(縣市=$P$108,ROW(區),999)-106,ROW(39:39)),0) -> 0
A145: 新北市 | B145: 新莊區 | C145: 242
A146: 新北市 | B146: 泰山區 | C146: 243
A147: 新北市 | B147: 林口區 | C147: 244
A148: 新北市 | B148: 蘆洲區 | C148: 247
A149: 新北市 | B149: 五股區 | C149: 248
A150: 新北市 | B150: 八里區 | C150: 249 | AS150: =MONTH(W8) -> 10
A151: 新北市 | B151: 淡水區 | C151: 251 | AS151: =YEAR(W8) -> 2024
A152: 新北市 | B152: 三芝區 | C152: 252
A153: 新北市 | B153: 石門區 | C153: 253 | F153: 聯運區
A154: 宜蘭縣 | B154: 宜蘭市 | C154: 260
A155: 宜蘭縣 | B155: 頭城鎮 | C155: 261
A156: 宜蘭縣 | B156: 礁溪鄉 | C156: 262
A157: 宜蘭縣 | B157: 壯圍鄉 | C157: 263
A158: 宜蘭縣 | B158: 員山鄉 | C158: 264 | F158: 聯運區
A159: 宜蘭縣 | B159: 羅東鎮 | C159: 265
A160: 宜蘭縣 | B160: 三星鄉 | C160: 266
A161: 宜蘭縣 | B161: 大同鄉 | C161: 267 | F161: 聯運區
A162: 宜蘭縣 | B162: 五結鄉 | C162: 268
A163: 宜蘭縣 | B163: 冬山鄉 | C163: 269
A164: 宜蘭縣 | B164: 蘇澳鎮 | C164: 270 | F164: 聯運區
A165: 宜蘭縣 | B165: 南澳鄉 | C165: 272 | F165: 聯運區
A166: 宜蘭縣 | B166: 釣魚臺列嶼 | C166: 290 | F166: 聯運區
A167: 新竹市 | B167: 東 區 | C167: 300
A168: 新竹市 | B168: 北 區 | C168: 300
A169: 新竹市 | B169: 香山區 | C169: 300
A170: 新竹縣 | B170: 竹北市 | C170: 302
A171: 新竹縣 | B171: 湖口鄉 | C171: 303
A172: 新竹縣 | B172: 新豐鄉 | C172: 304
A173: 新竹縣 | B173: 新埔鎮 | C173: 305 | F173: 聯運區
A174: 新竹縣 | B174: 關西鎮 | C174: 306 | F174: 聯運區
A175: 新竹縣 | B175: 芎林鄉 | C175: 307
A176: 新竹縣 | B176: 寶山鄉 | C176: 308
A177: 新竹縣 | B177: 竹東鎮 | C177: 310
A178: 新竹縣 | B178: 五峰鄉 | C178: 311 | F178: 聯運區
A179: 新竹縣 | B179: 橫山鄉 | C179: 312
A180: 新竹縣 | B180: 尖石鄉 | C180: 313 | F180: 聯運區
A181: 新竹縣 | B181: 北埔鄉 | C181: 314
A182: 新竹縣 | B182: 峨眉鄉 | C182: 315 | F182: 聯運區
A183: 桃園市 | B183: 中壢區 | C183: 320
A184: 桃園市 | B184: 平鎮區 | C184: 324
A185: 桃園市 | B185: 龍潭區 | C185: 325
A186: 桃園市 | B186: 楊梅區 | C186: 326
A187: 桃園市 | B187: 新屋區 | C187: 327
A188: 桃園市 | B188: 觀音區 | C188: 328
A189: 桃園市 | B189: 桃園區 | C189: 330
A190: 桃園市 | B190: 龜山區 | C190: 333
A191: 桃園市 | B191: 八德區 | C191: 334
A192: 桃園市 | B192: 大溪區 | C192: 335 | F192: 聯運區
A193: 桃園市 | B193: 復興區 | C193: 336 | F193: 聯運區
A194: 桃園市 | B194: 大園區 | C194: 337
A195: 桃園市 | B195: 蘆竹區 | C195: 338
A196: 苗栗縣 | B196: 竹南鎮 | C196: 350
A197: 苗栗縣 | B197: 頭份市 | C197: 351
A198: 苗栗縣 | B198: 三灣鄉 | C198: 352
A199: 苗栗縣 | B199: 南庄鄉 | C199: 353 | F199: 聯運區
A200: 苗栗縣 | B200: 獅潭鄉 | C200: 354 | F200: 聯運區
A201: 苗栗縣 | B201: 後龍鎮 | C201: 356
A202: 苗栗縣 | B202: 通霄鎮 | C202: 357
... 275 more rows

Sheet 咖啡簡介
C5: 品名 | D5: 簡介 | E5: 酸苦比例 | G5: 焙度 | N5: =NOW() -> 2024-09-05T17:31:32.060
B6: 編號 | C6: 單品豆 | D6: 味道香氣的形容 | E6: 酸味 | F6: 苦味 | G6: 基本設定 | H6: 產區 | I6: 產地 | J6: 品種 | K6: 等級/大小 | L6: 處理方式 | M6: 備註 | N6: 更新日期 | O6: 半磅
B7: 1 | C7: =[1]咖啡簡介!C7 -> 曼特寧風味 | D7: =[1]咖啡簡介!D7 -> 餅乾焦香、乾果 | E7: =[1]咖啡簡介!E7 -> 0.2 | F7: =[1]咖啡簡介!F7 -> 0.8 | G7: =[1]咖啡簡介!G7 -> 7- | H7: =[1]咖啡簡介!H7 -> 亞洲 | I7: =[1]咖啡簡介!I7 -> 印尼 | J7: =[1]咖啡簡介!J7 -> Arabica | K7: =[1]咖啡簡介!K7 -> G1 | L7: =[1]咖啡簡介!L7 -> 半水洗 | M7: =[1]咖啡簡介!M7 -> (普級版) | N7: =CONCATENATE(R7,"/",S7,"/",T7) -> 2024/7/29 | O7: =[1]咖啡簡介!O7 -> 235 | P7: =IF(訂單填表!$V$8<訂單填表!$W$8,O7,訂單填表!$X$8) -> 235 | R7: =YEAR(U7) -> 2024 | S7: =MONTH(U7) -> 7 | T7: =DAY(U7) -> 29 | U7: =[1]咖啡簡介!N7 -> 45502.87493
B8: 2 | C8: =[1]咖啡簡介!C8 -> 黃金曼特寧 | D8: =[1]咖啡簡介!D8 -> 焦糖、甘醇、濃郁 | E8: =[1]咖啡簡介!E8 -> 0.3 | F8: =[1]咖啡簡介!F8 -> 0.7 | G8: =[1]咖啡簡介!G8 -> 6- | H8: =[1]咖啡簡介!H8 -> 亞洲 | I8: =[1]咖啡簡介!I8 -> 印尼 | J8: =[1]咖啡簡介!J8 -> Arabica | K8: =[1]咖啡簡介!K8 -> G1 | L8: =[1]咖啡簡介!L8 -> 半水洗 | M8: =[1]咖啡簡介!M8 -> 0 | N8: =CONCATENATE(R8,"/",S8,"/",T8) -> 2024/9/5 | O8: =[1]咖啡簡介!O8 -> 435 | P8: =IF(訂單填表!$V$8<訂單填表!$W$8,O8,訂單填表!$X$8) -> 435 | R8: =YEAR(U8) -> 2024 | S8: =MONTH(U8) -> 9 | T8: =DAY(U8) -> 5 | U8: =[1]咖啡簡介!N8 -> 45540.70236
B9: 3 | C9: =[1]咖啡簡介!C9 -> 阿拉比卡 | D9: =[1]咖啡簡介!D9 -> 乾果 、茶香 | E9: =[1]咖啡簡介!E9 -> 0.5 | F9: =[1]咖啡簡介!F9 -> 0.5 | G9: =[1]咖啡簡介!G9 -> 5- | H9: =[1]咖啡簡介!H9 -> 亞洲 | I9: =[1]咖啡簡介!I9 -> 印尼 | J9: =[1]咖啡簡介!J9 -> Arabica | K9: =[1]咖啡簡介!K9 -> G1 | L9: =[1]咖啡簡介!L9 -> 半水洗 | M9: =[1]咖啡簡介!M9 -> 0 | N9: 2024/9/5 | O9: =[1]咖啡簡介!O9 -> 225 | P9: =IF(訂單填表!$V$8<訂單填表!$W$8,O9,訂單填表!$X$8) -> 225 | R9: 2024 | S9: 9 | T9: 5 | U9: =[1]咖啡簡介!N9 -> 45540.70246
B10: 4 | C10: =[1]咖啡簡介!C10 -> 金牛黃曼 | D10: =[1]咖啡簡介!D10 -> 醇厚濃郁 奶油核桃巧克力 | E10: =[1]咖啡簡介!E10 -> 0.3 | F10: =[1]咖啡簡介!F10 -> 0.7 | G10: =[1]咖啡簡介!G10 -> 6- | H10: =[1]咖啡簡介!H10 -> 亞洲 | I10: =[1]咖啡簡介!I10 -> 印尼 | J10: =[1]咖啡簡介!J10 -> Arabica | K10: =[1]咖啡簡介!K10 -> 20 | L10: =[1]咖啡簡介!L10 -> 半水洗 | M10: =[1]咖啡簡介!M10 -> 托巴湖 塔皮恩島 濕剝處理 | N10: =CONCATENATE(R10,"/",S10,"/",T10) -> 2024/7/10 | O10: =[1]咖啡簡介!O10 -> 510 | P10: =IF(訂單填表!$V$8<訂單填表!$W$8,O10,訂單填表!$X$8) -> 510 | R10: =YEAR(U10) -> 2024 | S10: =MONTH(U10) -> 7 | T10: =DAY(U10) -> 10 | U10: =[1]咖啡簡介!N10 -> 45483.88567
B11: 5 | C11: =[1]咖啡簡介!C11 -> 麥索金磚 | D11: =[1]咖啡簡介!D11 -> 焦糖、糖漿、堅果 | E11: =[1]咖啡簡介!E11 -> 0.45 | F11: =[1]咖啡簡介!F11 -> 0.55 | G11: =[1]咖啡簡介!G11 -> 5- | H11: =[1]咖啡簡介!H11 -> 亞洲 | I11: =[1]咖啡簡介!I11 -> 印度 | J11: =[1]咖啡簡介!J11 -> 肯特(S795)ica | K11: =[1]咖啡簡介!K11 -> 18-19 | L11: =[1]咖啡簡介!L11 -> 半水洗 | M11: =[1]咖啡簡介!M11 -> 杯測90分 Chikmagalur小農 | N11: 2024/8/11 | O11: =[1]咖啡簡介!O11 -> 360 | P11: =IF(訂單填表!$V$8<訂單填表!$W$8,O11,訂單填表!$X$8) -> 360 | R11: 2024 | S11: 8 | T11: 11 | U11: =[1]咖啡簡介!N11 -> 45515.82465
B12: 6 | C12: =[1]咖啡簡介!C12 -> 大黃蜂 | D12: =[1]咖啡簡介!D12 -> 蜜香、楓糖、金桔 | E12: =[1]咖啡簡介!E12 -> 0.5 | F12: =[1]咖啡簡介!F12 -> 0.5 | G12: =[1]咖啡簡介!G12 -> 5- | H12: =[1]咖啡簡介!H12 -> 中美洲 | I12: =[1]咖啡簡介!I12 -> 印尼 | J12: =[1]咖啡簡介!J12 -> Arabica | K12: =[1]咖啡簡介!K12 -> 0 | L12: =[1]咖啡簡介!L12 -> 蜜處理 | M12: =[1]咖啡簡介!M12 -> 阿弗塔拉合作社 厭氧蜜處理 | N12: 2024/9/5 | O12: =[1]咖啡簡介!O12 -> 550 | P12: =IF(訂單填表!$V$8<訂單填表!$W$8,O12,訂單填表!$X$8) -> 550 | R12: 2024 | S12: 9 | T12: 5 | U12: =[1]咖啡簡介!N12 -> 45540.70215
B13: 7 | C13: =[1]咖啡簡介!C13 -> 黑珍珠 | D13: =[1]咖啡簡介!D13 -> 可可、果實甜、桃子 | E13: =[1]咖啡簡介!E13 -> 0.5 | F13: =[1]咖啡簡介!F13 -> 0.5 | G13: =[1]咖啡簡介!G13 -> 5- | H13: =[1]咖啡簡介!H13 -> 中美洲 | I13: =[1]咖啡簡介!I13 -> 哥斯大黎加 | J13: =[1]咖啡簡介!J13 -> Catuai | K13: =[1]咖啡簡介!K13 -> SHB | L13: =[1]咖啡簡介!L13 -> 蜜處理 | M13: =[1]咖啡簡介!M13 -> USDA、日本 JAS、NOP有機認證 | N13: 2024/6/14 | O13: =[1]咖啡簡介!O13 -> 495 | P13: =IF(訂單填表!$V$8<訂單填表!$W$8,O13,訂單填表!$X$8) -> 495 | R13: 2024 | S13: 6 | T13: 14 | U13: =[1]咖啡簡介!N13 -> 45457.87915
B14: 8 | C14: =[1]咖啡簡介!C14 -> 征服者 | D14: =[1]咖啡簡介!D14 -> 黑巧克力、口感厚實 | E14: =[1]咖啡簡介!E14 -> 0.5 | F14: =[1]咖啡簡介!F14 -> 0.5 | G14: =[1]咖啡簡介!G14 -> 5- | H14: =[1]咖啡簡介!H14 -> 中美洲 | I14: =[1]咖啡簡介!I14 -> 哥斯大黎加 | J14: =[1]咖啡簡介!J14 -> Catual | K14: =[1]咖啡簡介!K14 -> SHB | L14: =[1]咖啡簡介!L14 -> 水洗 | M14: =[1]咖啡簡介!M14 -> 拉米尼塔精品 | N14: 2024/9/5 | O14: =[1]咖啡簡介!O14 -> 395 | P14: =IF(訂單填表!$V$8<訂單填表!$W$8,O14,訂單填表!$X$8) -> 395 | R14: 2024 | S14: 9 | T14: 5 | U14: =[1]咖啡簡介!N14 -> 45540.70227
B15: 9 | C15: =[1]咖啡簡介!C15 -> 蜜熊 | D15: =[1]咖啡簡介!D15 -> 葡萄、柚子、蜂蜜 | E15: =[1]咖啡簡介!E15 -> 0.5 | F15: =[1]咖啡簡介!F15 -> 0.5 | G15: =[1]咖啡簡介!G15 -> 5- | H15: =[1]咖啡簡介!H15 -> 中美洲 | I15: =[1]咖啡簡介!I15 -> 哥斯大黎加 | J15: =[1]咖啡簡介!J15 -> Catuai | K15: =[1]咖啡簡介!K15 -> 1650m | L15: =[1]咖啡簡介!L15 -> 黃蜜 | M15: =[1]咖啡簡介!M15 -> 23/01批次 | N15: 2024/9/5 | O15: =[1]咖啡簡介!O15 -> 440 | P15: =IF(訂單填表!$V$8<訂單填表!$W$8,O15,訂單填表!$X$8) -> 440 | R15: 2024 | S15: 9 | T15: 5 | U15: =[1]咖啡簡介!N15 -> 45540.70325
B16: 10 | C16: =[1]咖啡簡介!C16 -> 捲尾猴 | D16: =[1]咖啡簡介!D16 -> 奶油、可可、黑糖 | E16: =[1]咖啡簡介!E16 -> 0.5 | F16: =[1]咖啡簡介!F16 -> 0.5 | G16: =[1]咖啡簡介!G16 -> 5- | H16: =[1]咖啡簡介!H16 -> 中美洲 | I16: =[1]咖啡簡介!I16 -> 哥斯大黎加 | J16: =[1]咖啡簡介!J16 -> Catuai | K16: =[1]咖啡簡介!K16 -> SHB | L16: =[1]咖啡簡介!L16 -> 水洗 | M16: =[1]咖啡簡介!M16 -> 0 | N16: 2023/11/22 | O16: =[1]咖啡簡介!O16 -> 360 | P16: =IF(訂單填表!$V$8<訂單填表!$W$8,O16,訂單填表!$X$8) -> 360 | R16: 2023 | S16: 11 | T16: 22 | U16: =[1]咖啡簡介!N16 -> 45252.73194
B17: 11 | C17: =[1]咖啡簡介!C17 -> 薇薇特楠果 | D17: =[1]咖啡簡介!D17 -> 可可、香蕉、煙燻 | E17: =[1]咖啡簡介!E17 -> 0.55 | F17: =[1]咖啡簡介!F17 -> 0.45 | G17: =[1]咖啡簡介!G17 -> 5- | H17: =[1]咖啡簡介!H17 -> 中美洲 | I17: =[1]咖啡簡介!I17 -> 瓜地馬拉 | J17: =[1]咖啡簡介!J17 -> 卡杜拉 | K17: =[1]咖啡簡介!K17 -> SHB | L17: =[1]咖啡簡介!L17 -> 水洗 | M17: =[1]咖啡簡介!M17 -> 0 | N17: 2024/6/14 | O17: =[1]咖啡簡介!O17 -> 315 | P17: =IF(訂單填表!$V$8<訂單填表!$W$8,O17,訂單填表!$X$8) -> 315 | R17: 2024 | S17: 6 | T17: 14 | U17: =[1]咖啡簡介!N17 -> 45457.87805
B18: 12 | C18: =[1]咖啡簡介!C18 -> 花神 | D18: =[1]咖啡簡介!D18 -> 果漿、巧克力烤栗子 | E18: =[1]咖啡簡介!E18 -> 0.6 | F18: =[1]咖啡簡介!F18 -> 0.4 | G18: =[1]咖啡簡介!G18 -> 5- | H18: =[1]咖啡簡介!H18 -> 中美洲 | I18: =[1]咖啡簡介!I18 -> 瓜地馬拉 | J18: =[1]咖啡簡介!J18 -> 卡杜拉 | K18: =[1]咖啡簡介!K18 -> SHB | L18: =[1]咖啡簡介!L18 -> 水洗 | M18: =[1]咖啡簡介!M18 -> 拉米尼塔精品 | N18: 2024/3/14 | O18: =[1]咖啡簡介!O18 -> 398 | P18: =IF(訂單填表!$V$8<訂單填表!$W$8,O18,訂單填表!$X$8) -> 398 | R18: 2024 | S18: 3 | T18: 14 | U18: =[1]咖啡簡介!N18 -> 45365.47951
B19: 13 | C19: =[1]咖啡簡介!C19 -> 美帝娜(安提瓜) | D19: =[1]咖啡簡介!D19 -> 熱帶水果鳳梨、芒果風味 | E19: =[1]咖啡簡介!E19 -> 0.5 | F19: =[1]咖啡簡介!F19 -> 0.5 | G19: =[1]咖啡簡介!G19 -> 5- | H19: =[1]咖啡簡介!H19 -> 中美洲 | I19: =[1]咖啡簡介!I19 -> 瓜地馬拉 | J19: =[1]咖啡簡介!J19 -> 卡杜拉 | K19: =[1]咖啡簡介!K19 -> SHG | L19: =[1]咖啡簡介!L19 -> 水洗 | M19: =[1]咖啡簡介!M19 -> 雨林聯盟認證 | N19: 2024/7/10 | O19: =[1]咖啡簡介!O19 -> 395 | P19: =IF(訂單填表!$V$8<訂單填表!$W$8,O19,訂單填表!$X$8) -> 395 | R19: 2024 | S19: 7 | T19: 10 | U19: =[1]咖啡簡介!N19 -> 45483.88635
B20: 14 | C20: =[1]咖啡簡介!C20 -> 花圓 | D20: =[1]咖啡簡介!D20 -> 巧克力、焦糖 | E20: =[1]咖啡簡介!E20 -> 0.5 | F20: =[1]咖啡簡介!F20 -> 0.5 | G20: =[1]咖啡簡介!G20 -> 5- | H20: =[1]咖啡簡介!H20 -> 中美洲 | I20: =[1]咖啡簡介!I20 -> 瓜地馬拉 | J20: =[1]咖啡簡介!J20 -> 卡杜拉 | K20: =[1]咖啡簡介!K20 -> PB | L20: =[1]咖啡簡介!L20 -> 水洗 | M20: =[1]咖啡簡介!M20 -> 貝拉卡摩娜莊園 | N20: 2024/5/11 | O20: =[1]咖啡簡介!O20 -> 430 | P20: =IF(訂單填表!$V$8<訂單填表!$W$8,O20,訂單填表!$X$8) -> 430 | R20: 2024 | S20: 5 | T20: 11 | U20: =[1]咖啡簡介!N20 -> 45423.94184
B21: 15 | C21: =[1]咖啡簡介!C21 -> 迷霧山谷 | D21: =[1]咖啡簡介!D21 -> 柑橘、榛果、太妃糖 | E21: =[1]咖啡簡介!E21 -> 0.55 | F21: =[1]咖啡簡介!F21 -> 0.45 | G21: =[1]咖啡簡介!G21 -> 5- | H21: =[1]咖啡簡介!H21 -> 中美洲 | I21: =[1]咖啡簡介!I21 -> 瓜地馬拉 | J21: =[1]咖啡簡介!J21 -> 卡杜拉 | K21: =[1]咖啡簡介!K21 -> SHB | L21: =[1]咖啡簡介!L21 -> 水洗 | M21: =[1]咖啡簡介!M21 -> 0 | N21: 2023/7/14 | O21: =[1]咖啡簡介!O21 -> 395 | P21: =IF(訂單填表!$V$8<訂單填表!$W$8,O21,訂單填表!$X$8) -> 395 | R21: 2023 | S21: 7 | T21: 14 | U21: =[1]咖啡簡介!N21 -> 45121.74824
B22: 16 | C22: =[1]咖啡簡介!C22 -> 榮耀 安提瓜 | D22: =[1]咖啡簡介!D22 -> 開心果、堅果、水果 | E22: =[1]咖啡簡介!E22 -> 0.5 | F22: =[1]咖啡簡介!F22 -> 0.5 | G22: =[1]咖啡簡介!G22 -> 5- | H22: =[1]咖啡簡介!H22 -> 中美洲 | I22: =[1]咖啡簡介!I22 -> 瓜地馬拉 | J22: =[1]咖啡簡介!J22 -> 波本 | K22: =[1]咖啡簡介!K22 -> 0 | L22: =[1]咖啡簡介!L22 -> 水洗 | M22: =[1]咖啡簡介!M22 -> 0 | N22: 2023/11/22 | O22: =[1]咖啡簡介!O22 -> 370 | P22: =IF(訂單填表!$V$8<訂單填表!$W$8,O22,訂單填表!$X$8) -> 370 | R22: 2023 | S22: 11 | T22: 22 | U22: =[1]咖啡簡介!N22 -> 45252.73439
B23: 17 | C23: =[1]咖啡簡介!C23 -> 波爾莎莊園 | D23: =[1]咖啡簡介!D23 -> 柑橘、黑莓、榛果 | E23: =[1]咖啡簡介!E23 -> 0.5 | F23: =[1]咖啡簡介!F23 -> 0.5 | G23: =[1]咖啡簡介!G23 -> 5- | H23: =[1]咖啡簡介!H23 -> 中美洲 | I23: =[1]咖啡簡介!I23 -> 瓜地馬拉 | J23: =[1]咖啡簡介!J23 -> Catuai | K23: =[1]咖啡簡介!K23 -> SHB | L23: =[1]咖啡簡介!L23 -> 水洗 | M23: =[1]咖啡簡介!M23 -> 0 | N23: 2024/4/11 | O23: =[1]咖啡簡介!O23 -> 395 | P23: =IF(訂單填表!$V$8<訂單填表!$W$8,O23,訂單填表!$X$8) -> 395 | R23: 2024 | S23: 4 | T23: 11 | U23: =[1]咖啡簡介!N23 -> 45393.53431
B24: 18 | C24: =[1]咖啡簡介!C24 -> 月光女神 | D24: =[1]咖啡簡介!D24 -> 紅蘋果、巧克力、香橙 | E24: =[1]咖啡簡介!E24 -> 0.5 | F24: =[1]咖啡簡介!F24 -> 0.5 | G24: =[1]咖啡簡介!G24 -> 5- | H24: =[1]咖啡簡介!H24 -> 中美洲 | I24: =[1]咖啡簡介!I24 -> 瓜地馬拉 | J24: =[1]咖啡簡介!J24 -> Caturra+Bourbon | K24: =[1]咖啡簡介!K24 -> SHB | L24: =[1]咖啡簡介!L24 -> 水洗 | M24: =[1]咖啡簡介!M24 -> 0 | N24: 2024/4/25 | O24: =[1]咖啡簡介!O24 -> 375 | P24: =IF(訂單填表!$V$8<訂單填表!$W$8,O24,訂單填表!$X$8) -> 375 | R24: 2024 | S24: 4 | T24: 25 | U24: =[1]咖啡簡介!N24 -> 45407.69634
B25: 19 | C25: =[1]咖啡簡介!C25 -> 胡美火山 | D25: =[1]咖啡簡介!D25 -> 杏仁、榛果、太妃糖 | E25: =[1]咖啡簡介!E25 -> 0.5 | F25: =[1]咖啡簡介!F25 -> 0.5 | G25: =[1]咖啡簡介!G25 -> 4- | H25: =[1]咖啡簡介!H25 -> 中美洲 | I25: =[1]咖啡簡介!I25 -> 瓜地馬拉 | J25: =[1]咖啡簡介!J25 -> 卡杜拉 | K25: =[1]咖啡簡介!K25 -> SHB | L25: =[1]咖啡簡介!L25 -> 水洗 | M25: =[1]咖啡簡介!M25 -> 0 | N25: 2024/7/19 | O25: =[1]咖啡簡介!O25 -> 355 | P25: =IF(訂單填表!$V$8<訂單填表!$W$8,O25,訂單填表!$X$8) -> 355 | R25: 2024 | S25: 7 | T25: 19 | U25: =[1]咖啡簡介!N25 -> 45492.504
B26: 20 | C26: =[1]咖啡簡介!C26 -> 伊莉塔莊園 | D26: =[1]咖啡簡介!D26 -> 香草、奶油、焦糖 | E26: =[1]咖啡簡介!E26 -> 0.5 | F26: =[1]咖啡簡介!F26 -> 0.5 | G26: =[1]咖啡簡介!G26 -> 5- | H26: =[1]咖啡簡介!H26 -> 中美洲 | I26: =[1]咖啡簡介!I26 -> 巴拿馬 | J26: =[1]咖啡簡介!J26 -> 卡杜拉 | K26: =[1]咖啡簡介!K26 -> SHB | L26: =[1]咖啡簡介!L26 -> 水洗 | M26: =[1]咖啡簡介!M26 -> 0 | N26: 2023/8/23 | O26: =[1]咖啡簡介!O26 -> 480 | P26: =IF(訂單填表!$V$8<訂單填表!$W$8,O26,訂單填表!$X$8) -> 480 | R26: 2023 | S26: 8 | T26: 23 | U26: =[1]咖啡簡介!N26 -> 45161.70453
B27: 21 | C27: =[1]咖啡簡介!C27 -> 月夜黑 藝妓 | D27: =[1]咖啡簡介!D27 -> 酒漬櫻桃醬、蘭姆葡萄 | E27: =[1]咖啡簡介!E27 -> 0.5 | F27: =[1]咖啡簡介!F27 -> 0.5 | G27: =[1]咖啡簡介!G27 -> 4- | H27: =[1]咖啡簡介!H27 -> 中美洲 | I27: =[1]咖啡簡介!I27 -> 巴拿馬 | J27: =[1]咖啡簡介!J27 -> 瑰夏藝妓種 | K27: =[1]咖啡簡介!K27 -> 0 | L27: =[1]咖啡簡介!L27 -> 特殊處理 | M27: =[1]咖啡簡介!M27 -> 巴魯火山 瑰夏/藝伎 100%瑰夏 | N27: 2023/12/15 | O27: =[1]咖啡簡介!O27 -> 920 | P27: =IF(訂單填表!$V$8<訂單填表!$W$8,O27,訂單填表!$X$8) -> 920 | R27: 2023 | S27: 12 | T27: 15 | U27: =[1]咖啡簡介!N27 -> 45275.53508
B28: 22 | C28: =[1]咖啡簡介!C28 -> 邱比特 藝伎 | D28: =[1]咖啡簡介!D28 -> 甜瓜 蘋果 鳳梨 | E28: =[1]咖啡簡介!E28 -> 0.5 | F28: =[1]咖啡簡介!F28 -> 0.5 | G28: =[1]咖啡簡介!G28 -> 4- | H28: =[1]咖啡簡介!H28 -> 中美洲 | I28: =[1]咖啡簡介!I28 -> 巴拿馬 | J28: =[1]咖啡簡介!J28 -> 70%藝妓 | K28: =[1]咖啡簡介!K28 -> 1700m | L28: =[1]咖啡簡介!L28 -> 慢日曬 | M28: =[1]咖啡簡介!M28 -> 70%藝妓+30%卡杜拉 品種混合 | N28: 2024/3/14 | O28: =[1]咖啡簡介!O28 -> 990 | P28: =IF(訂單填表!$V$8<訂單填表!$W$8,O28,訂單填表!$X$8) -> 990 | R28: 2024 | S28: 3 | T28: 14 | U28: =[1]咖啡簡介!N28 -> 45365.47771
B29: 23 | C29: =[1]咖啡簡介!C29 -> 雨林 聖文森 | D29: =[1]咖啡簡介!D29 -> 紅糖、烤麵包 | E29: =[1]咖啡簡介!E29 -> 0.5 | F29: =[1]咖啡簡介!F29 -> 0.5 | G29: =[1]咖啡簡介!G29 -> 5- | H29: =[1]咖啡簡介!H29 -> 中美洲 | I29: =[1]咖啡簡介!I29 -> 宏都拉斯 | J29: =[1]咖啡簡介!J29 -> Arabica | K29: =[1]咖啡簡介!K29 -> SHG | L29: =[1]咖啡簡介!L29 -> 水洗 | M29: =[1]咖啡簡介!M29 -> 熱帶雨林認證 | N29: 2024/4/11 | O29: =[1]咖啡簡介!O29 -> 340 | P29: =IF(訂單填表!$V$8<訂單填表!$W$8,O29,訂單填表!$X$8) -> 340 | R29: 2024 | S29: 4 | T29: 11 | U29: =[1]咖啡簡介!N29 -> 45393.53532
B30: 24 | C30: =[1]咖啡簡介!C30 -> 小蝸圓豆 | D30: =[1]咖啡簡介!D30 -> 堅果、焦糖、奶油、柑橘 | E30: =[1]咖啡簡介!E30 -> 0.5 | F30: =[1]咖啡簡介!F30 -> 0.5 | G30: =[1]咖啡簡介!G30 -> 5- | H30: =[1]咖啡簡介!H30 -> 中美洲 | I30: =[1]咖啡簡介!I30 -> 宏都拉斯 | J30: =[1]咖啡簡介!J30 -> Arabica | K30: =[1]咖啡簡介!K30 -> 1700M | L30: =[1]咖啡簡介!L30 -> 水洗 | M30: =[1]咖啡簡介!M30 -> 聖塔芭芭拉 | N30: 2024/7/10 | O30: =[1]咖啡簡介!O30 -> 395 | P30: =IF(訂單填表!$V$8<訂單填表!$W$8,O30,訂單填表!$X$8) -> 395 | R30: 2024 | S30: 7 | T30: 10 | U30: =[1]咖啡簡介!N30 -> 45483.88408
B31: 25 | C31: =[1]咖啡簡介!C31 -> 希諾特加 | D31: =[1]咖啡簡介!D31 -> 堅果、花生糖、焦糖 | E31: =[1]咖啡簡介!E31 -> 0.5 | F31: =[1]咖啡簡介!F31 -> 0.5 | G31: =[1]咖啡簡介!G31 -> 5- | H31: =[1]咖啡簡介!H31 -> 中美洲 | I31: =[1]咖啡簡介!I31 -> 尼加拉瓜 | J31: =[1]咖啡簡介!J31 -> Arabica | K31: =[1]咖啡簡介!K31 -> EP | L31: =[1]咖啡簡介!L31 -> 水洗 | M31: =[1]咖啡簡介!M31 -> 0 | N31: 2024/9/5 | O31: =[1]咖啡簡介!O31 -> 310 | P31: =IF(訂單填表!$V$8<訂單填表!$W$8,O31,訂單填表!$X$8) -> 310 | R31: 2024 | S31: 9 | T31: 5 | U31: =[1]咖啡簡介!N31 -> 45540.70565
B32: 26 | C32: =[1]咖啡簡介!C32 -> 花語 | D32: =[1]咖啡簡介!D32 -> 蜂蜜、奶油、花香 | E32: =[1]咖啡簡介!E32 -> 0.5 | F32: =[1]咖啡簡介!F32 -> 0.5 | G32: =[1]咖啡簡介!G32 -> 5- | H32: =[1]咖啡簡介!H32 -> 中美洲 | I32: =[1]咖啡簡介!I32 -> 尼加拉瓜 | J32: =[1]咖啡簡介!J32 -> 卡杜拉 | K32: =[1]咖啡簡介!K32 -> SHB | L32: =[1]咖啡簡介!L32 -> 水洗 | M32: =[1]咖啡簡介!M32 -> 米耶瑞詡家族檸檬樹莊園 | N32: 2024/6/14 | O32: =[1]咖啡簡介!O32 -> 380 | P32: =IF(訂單填表!$V$8<訂單填表!$W$8,O32,訂單填表!$X$8) -> 380 | R32: 2024 | S32: 6 | T32: 14 | U32: =[1]咖啡簡介!N32 -> 45457.8785
B33: 27 | C33: =[1]咖啡簡介!C33 -> 愉悅酒香 | D33: =[1]咖啡簡介!D33 -> 水果酒、黑莓、櫻桃 | E33: =[1]咖啡簡介!E33 -> 0.5 | F33: =[1]咖啡簡介!F33 -> 0.5 | G33: =[1]咖啡簡介!G33 -> 5- | H33: =[1]咖啡簡介!H33 -> 中美洲 | I33: =[1]咖啡簡介!I33 -> 尼加拉瓜 | J33: =[1]咖啡簡介!J33 -> Bourbon | K33: =[1]咖啡簡介!K33 -> 0 | L33: =[1]咖啡簡介!L33 -> 特殊處理 | M33: =[1]咖啡簡介!M33 -> 米耶瑞詡家族 日曬高度酒香處理法 特製限量 | N33: 2024/7/19 | O33: =[1]咖啡簡介!O33 -> 475 | P33: =IF(訂單填表!$V$8<訂單填表!$W$8,O33,訂單填表!$X$8) -> 475 | R33: 2024 | S33: 7 | T33: 19 | U33: =[1]咖啡簡介!N33 -> 45492.50492
B34: 28 | C34: =[1]咖啡簡介!C34 -> 火窯莊園 | D34: =[1]咖啡簡介!D34 -> 堅果、梅子、焦糖巧克力 | E34: =[1]咖啡簡介!E34 -> 0.5 | F34: =[1]咖啡簡介!F34 -> 0.5 | G34: =[1]咖啡簡介!G34 -> 5- | H34: =[1]咖啡簡介!H34 -> 中美洲 | I34: =[1]咖啡簡介!I34 -> 薩爾瓦多 | J34: =[1]咖啡簡介!J34 -> Arabica | K34: =[1]咖啡簡介!K34 -> SHB | L34: =[1]咖啡簡介!L34 -> 水洗 | M34: =[1]咖啡簡介!M34 -> 阿帕內卡山脈 | N34: 2023/7/30 | O34: =[1]咖啡簡介!O34 -> 425 | P34: =IF(訂單填表!$V$8<訂單填表!$W$8,O34,訂單填表!$X$8) -> 425 | R34: 2023 | S34: 7 | T34: 30 | U34: =[1]咖啡簡介!N34 -> 45137.61813
B35: 29 | C35: =[1]咖啡簡介!C35 -> 秀拉特楠果 | D35: =[1]咖啡簡介!D35 -> 腰果、蔗糖、巧克力 | E35: =[1]咖啡簡介!E35 -> 0.5 | F35: =[1]咖啡簡介!F35 -> 0.5 | G35: =[1]咖啡簡介!G35 -> 5- | H35: =[1]咖啡簡介!H35 -> 中美洲 | I35: =[1]咖啡簡介!I35 -> 薩爾瓦多 | J35: =[1]咖啡簡介!J35 -> Bourbon | K35: =[1]咖啡簡介!K35 -> SHB | L35: =[1]咖啡簡介!L35 -> 水洗 | M35: =[1]咖啡簡介!M35 -> 0 | N35: 2024/9/5 | O35: =[1]咖啡簡介!O35 -> 320 | P35: =IF(訂單填表!$V$8<訂單填表!$W$8,O35,訂單填表!$X$8) -> 320 | R35: 2024 | S35: 9 | T35: 5 | U35: =[1]咖啡簡介!N35 -> 45540.6907
B36: 30 | C36: =[1]咖啡簡介!C36 -> 彩虹小馬 | D36: =[1]咖啡簡介!D36 -> 堅果、巧克力、榛果 | E36: =[1]咖啡簡介!E36 -> 0.5 | F36: =[1]咖啡簡介!F36 -> 0.5 | G36: =[1]咖啡簡介!G36 -> 4- | H36: =[1]咖啡簡介!H36 -> 中美洲 | I36: =[1]咖啡簡介!I36 -> 墨西哥 | J36: =[1]咖啡簡介!J36 -> Arabica | K36: =[1]咖啡簡介!K36 -> SHB | L36: =[1]咖啡簡介!L36 -> 水洗 | M36: =[1]咖啡簡介!M36 -> 經典水洗 | N36: 2024/5/11 | O36: =[1]咖啡簡介!O36 -> 330 | P36: =IF(訂單填表!$V$8<訂單填表!$W$8,O36,訂單填表!$X$8) -> 330 | R36: 2024 | S36: 5 | T36: 11 | U36: =[1]咖啡簡介!N36 -> 45423.94203
B37: 31 | C37: =[1]咖啡簡介!C37 -> 鳳尾綠鵑 | D37: =[1]咖啡簡介!D37 -> 堅果、蘇打餅乾、香草 | E37: =[1]咖啡簡介!E37 -> 0.5 | F37: =[1]咖啡簡介!F37 -> 0.5 | G37: =[1]咖啡簡介!G37 -> 5- | H37: =[1]咖啡簡介!H37 -> 中美洲 | I37: =[1]咖啡簡介!I37 -> 墨西哥 | J37: =[1]咖啡簡介!J37 -> Arabica | K37: =[1]咖啡簡介!K37 -> SHG | L37: =[1]咖啡簡介!L37 -> 水洗 | M37: =[1]咖啡簡介!M37 -> 加肯克區 木啄處理廠 | N37: 2023/7/14 | O37: =[1]咖啡簡介!O37 -> 365 | P37: =IF(訂單填表!$V$8<訂單填表!$W$8,O37,訂單填表!$X$8) -> 365 | R37: 2023 | S37: 7 | T37: 14 | U37: =[1]咖啡簡介!N37 -> 45121.74826
B38: 32 | C38: =[1]咖啡簡介!C38 -> 山度士 | D38: =[1]咖啡簡介!D38 -> 甘棗、肉桂 | E38: =[1]咖啡簡介!E38 -> 0.5 | F38: =[1]咖啡簡介!F38 -> 0.5 | G38: =[1]咖啡簡介!G38 -> 5- | H38: =[1]咖啡簡介!H38 -> 南美洲 | I38: =[1]咖啡簡介!I38 -> 巴西 | J38: =[1]咖啡簡介!J38 -> Arabica | K38: =[1]咖啡簡介!K38 -> 17/18 | L38: =[1]咖啡簡介!L38 -> 水洗 | M38: =[1]咖啡簡介!M38 -> 0 | N38: 2024/7/29 | O38: =[1]咖啡簡介!O38 -> 199 | P38: =IF(訂單填表!$V$8<訂單填表!$W$8,O38,訂單填表!$X$8) -> 199 | R38: 2024 | S38: 7 | T38: 29 | U38: =[1]咖啡簡介!N38 -> 45502.87552
B39: 33 | C39: =[1]咖啡簡介!C39 -> 摩奇安娜 | D39: =[1]咖啡簡介!D39 -> 蔬菜餅乾、瓜籽 | E39: =[1]咖啡簡介!E39 -> 0.55 | F39: =[1]咖啡簡介!F39 -> 0.45 | G39: =[1]咖啡簡介!G39 -> 5- | H39: =[1]咖啡簡介!H39 -> 南美洲 | I39: =[1]咖啡簡介!I39 -> 巴西 | J39: =[1]咖啡簡介!J39 -> Arabica | K39: =[1]咖啡簡介!K39 -> 17/18 | L39: =[1]咖啡簡介!L39 -> 水洗 | M39: =[1]咖啡簡介!M39 -> 0 | N39: 2024/6/14 | O39: =[1]咖啡簡介!O39 -> 215 | P39: =IF(訂單填表!$V$8<訂單填表!$W$8,O39,訂單填表!$X$8) -> 215 | R39: 2024 | S39: 6 | T39: 14 | U39: =[1]咖啡簡介!N39 -> 45457.87896
B40: 34 | C40: =[1]咖啡簡介!C40 -> 喜拉朵 | D40: =[1]咖啡簡介!D40 -> 奶香、餅乾 | E40: =[1]咖啡簡介!E40 -> 0.55 | F40: =[1]咖啡簡介!F40 -> 0.45 | G40: =[1]咖啡簡介!G40 -> 5- | H40: =[1]咖啡簡介!H40 -> 南美洲 | I40: =[1]咖啡簡介!I40 -> 巴西 | J40: =[1]咖啡簡介!J40 -> Arabica | K40: =[1]咖啡簡介!K40 -> 17/18 | L40: =[1]咖啡簡介!L40 -> 水洗 | M40: =[1]咖啡簡介!M40 -> 0 | N40: 2024/6/14 | O40: =[1]咖啡簡介!O40 -> 215 | P40: =IF(訂單填表!$V$8<訂單填表!$W$8,O40,訂單填表!$X$8) -> 215 | R40: 2024 | S40: 6 | T40: 14 | U40: =[1]咖啡簡介!N40 -> 45457.87898
B41: 35 | C41: =[1]咖啡簡介!C41 -> 伊帕內瑪 | D41: =[1]咖啡簡介!D41 -> 厚醇度 甜度 餘韻長久 | E41: =[1]咖啡簡介!E41 -> 0.45 | F41: =[1]咖啡簡介!F41 -> 0.55 | G41: =[1]咖啡簡介!G41 -> 5- | H41: =[1]咖啡簡介!H41 -> 南美洲 | I41: =[1]咖啡簡介!I41 -> 巴西 | J41: =[1]咖啡簡介!J41 -> Arabica | K41: =[1]咖啡簡介!K41 -> 1350M | L41: =[1]咖啡簡介!L41 -> 日曬 | M41: =[1]咖啡簡介!M41 -> 南米納斯省 伊帕內瑪莊園 | N41: 2024/9/5 | O41: =[1]咖啡簡介!O41 -> 335 | P41: =IF(訂單填表!$V$8<訂單填表!$W$8,O41,訂單填表!$X$8) -> 335 | R41: 2024 | S41: 9 | T41: 5 | U41: =[1]咖啡簡介!N41 -> 45540.70256
B42: 36 | C42: =[1]咖啡簡介!C42 -> 甜蜜日曬(波旁) | D42: =[1]咖啡簡介!D42 -> 奶香、焦糖，甜度高 | E42: =[1]咖啡簡介!E42 -> 0.5 | F42: =[1]咖啡簡介!F42 -> 0.5 | G42: =[1]咖啡簡介!G42 -> 5- | H42: =[1]咖啡簡介!H42 -> 南美洲 | I42: =[1]咖啡簡介!I42 -> 巴西 | J42: =[1]咖啡簡介!J42 -> Bourbon | K42: =[1]咖啡簡介!K42 -> 17/18 | L42: =[1]咖啡簡介!L42 -> 日曬 | M42: =[1]咖啡簡介!M42 -> 南米納斯省 伊帕內瑪莊園 | N42: 2024/9/5 | O42: =[1]咖啡簡介!O42 -> 330 | P42: =IF(訂單填表!$V$8<訂單填表!$W$8,O42,訂單填表!$X$8) -> 330 | R42: 2024 | S42: 9 | T42: 5 | U42: =[1]咖啡簡介!N42 -> 45540.70269
B43: 37 | C43: =[1]咖啡簡介!C43 -> 瑪瑙 | D43: =[1]咖啡簡介!D43 -> 乾香榛果甜香 | E43: =[1]咖啡簡介!E43 -> 0.5 | F43: =[1]咖啡簡介!F43 -> 0.5 | G43: =[1]咖啡簡介!G43 -> 5- | H43: =[1]咖啡簡介!H43 -> 南美洲 | I43: =[1]咖啡簡介!I43 -> 巴西 | J43: =[1]咖啡簡介!J43 -> Arabica | K43: =[1]咖啡簡介!K43 -> 16/18 | L43: =[1]咖啡簡介!L43 -> 日曬 | M43: =[1]咖啡簡介!M43 -> 聖塔阿德利亞莊園 | N43: 2024/6/5 | O43: =[1]咖啡簡介!O43 -> 280 | P43: =IF(訂單填表!$V$8<訂單填表!$W$8,O43,訂單填表!$X$8) -> 280 | R43: 2024 | S43: 6 | T43: 5 | U43: =[1]咖啡簡介!N43 -> 45448.8756
B44: 38 | C44: =[1]咖啡簡介!C44 -> 星辰 | D44: =[1]咖啡簡介!D44 -> 柑橘、焦糖、橙皮 | E44: =[1]咖啡簡介!E44 -> 0.5 | F44: =[1]咖啡簡介!F44 -> 0.5 | G44: =[1]咖啡簡介!G44 -> 5- | H44: =[1]咖啡簡介!H44 -> 南美洲 | I44: =[1]咖啡簡介!I44 -> 秘魯 | J44: =[1]咖啡簡介!J44 -> 多種 | K44: =[1]咖啡簡介!K44 -> G1 | L44: =[1]咖啡簡介!L44 -> 水洗 | M44: =[1]咖啡簡介!M44 -> 艾波卡西合作社 | N44: 2022/10/14 | O44: =[1]咖啡簡介!O44 -> 370 | P44: =IF(訂單填表!$V$8<訂單填表!$W$8,O44,訂單填表!$X$8) -> 370 | R44: 2022 | S44: 10 | T44: 14 | U44: =[1]咖啡簡介!N44 -> 44848.6218
B45: 39 | C45: =[1]咖啡簡介!C45 -> 桑托斯 藝妓 | D45: =[1]咖啡簡介!D45 -> 檸檬、柑橘、莓果、蔗糖 | E45: =[1]咖啡簡介!E45 -> 0.5 | F45: =[1]咖啡簡介!F45 -> 0.5 | G45: =[1]咖啡簡介!G45 -> 4- | H45: =[1]咖啡簡介!H45 -> 南美洲 | I45: =[1]咖啡簡介!I45 -> 秘魯 | J45: =[1]咖啡簡介!J45 -> 藝妓 | K45: =[1]咖啡簡介!K45 -> 0 | L45: =[1]咖啡簡介!L45 -> 低溫發酵 | M45: =[1]咖啡簡介!M45 -> 亞馬遜 | N45: 2023/12/15 | O45: =[1]咖啡簡介!O45 -> 940 | P45: =IF(訂單填表!$V$8<訂單填表!$W$8,O45,訂單填表!$X$8) -> 940 | R45: 2023 | S45: 12 | T45: 15 | U45: =[1]咖啡簡介!N45 -> 45275.54524
B46: 40 | C46: =[1]咖啡簡介!C46 -> 娜玲瓏 | D46: =[1]咖啡簡介!D46 -> 深色莓果、酸甜感平衡 | E46: =[1]咖啡簡介!E46 -> 0.5 | F46: =[1]咖啡簡介!F46 -> 0.5 | G46: =[1]咖啡簡介!G46 -> 5- | H46: =[1]咖啡簡介!H46 -> 南美洲 | I46: =[1]咖啡簡介!I46 -> 哥倫比亞 | J46: =[1]咖啡簡介!J46 -> Arabica | K46: =[1]咖啡簡介!K46 -> SHB | L46: =[1]咖啡簡介!L46 -> 水洗 | M46: =[1]咖啡簡介!M46 -> 青山特選 | N46: 2024/4/18 | O46: =[1]咖啡簡介!O46 -> 390 | P46: =IF(訂單填表!$V$8<訂單填表!$W$8,O46,訂單填表!$X$8) -> 390 | R46: 2024 | S46: 4 | T46: 18 | U46: =[1]咖啡簡介!N46 -> 45400.67835
B47: 41 | C47: =[1]咖啡簡介!C47 -> 祕密花園 | D47: =[1]咖啡簡介!D47 -> 巧克力、香草 | E47: =[1]咖啡簡介!E47 -> 0.5 | F47: =[1]咖啡簡介!F47 -> 0.5 | G47: =[1]咖啡簡介!G47 -> 5- | H47: =[1]咖啡簡介!H47 -> 南美洲 | I47: =[1]咖啡簡介!I47 -> 哥倫比亞 | J47: =[1]咖啡簡介!J47 -> Arabica | K47: =[1]咖啡簡介!K47 -> Supremo | L47: =[1]咖啡簡介!L47 -> 水洗 | M47: =[1]咖啡簡介!M47 -> 0 | N47: 2024/5/11 | O47: =[1]咖啡簡介!O47 -> 345 | P47: =IF(訂單填表!$V$8<訂單填表!$W$8,O47,訂單填表!$X$8) -> 345 | R47: 2024 | S47: 5 | T47: 11 | U47: =[1]咖啡簡介!N47 -> 45423.94272
B48: 42 | C48: =[1]咖啡簡介!C48 -> 哥倫比亞 | D48: =[1]咖啡簡介!D48 -> 蓮藕、吐司、米茶 | E48: =[1]咖啡簡介!E48 -> 0.5 | F48: =[1]咖啡簡介!F48 -> 0.5 | G48: =[1]咖啡簡介!G48 -> 5- | H48: =[1]咖啡簡介!H48 -> 南美洲 | I48: =[1]咖啡簡介!I48 -> 哥倫比亞 | J48: =[1]咖啡簡介!J48 -> Arabica | K48: =[1]咖啡簡介!K48 -> Supremo | L48: =[1]咖啡簡介!L48 -> 水洗 | M48: =[1]咖啡簡介!M48 -> 梅德琳 | N48: 2024/5/11 | O48: =[1]咖啡簡介!O48 -> 298 | P48: =IF(訂單填表!$V$8<訂單填表!$W$8,O48,訂單填表!$X$8) -> 298 | R48: 2024 | S48: 5 | T48: 11 | U48: =[1]咖啡簡介!N48 -> 45423.9428
B49: 43 | C49: =[1]咖啡簡介!C49 -> 肯亞AA | D49: =[1]咖啡簡介!D49 -> 烏梅、核果 | E49: =[1]咖啡簡介!E49 -> 0.6 | F49: =[1]咖啡簡介!F49 -> 0.4 | G49: =[1]咖啡簡介!G49 -> 5- | H49: =[1]咖啡簡介!H49 -> 非洲 | I49: =[1]咖啡簡介!I49 -> 肯亞 | J49: =[1]咖啡簡介!J49 -> Arabica | K49: =[1]咖啡簡介!K49 -> AA | L49: =[1]咖啡簡介!L49 -> 水洗 | M49: =[1]咖啡簡介!M49 -> FAQ | N49: 2024/6/14 | O49: =[1]咖啡簡介!O49 -> 390 | P49: =IF(訂單填表!$V$8<訂單填表!$W$8,O49,訂單填表!$X$8) -> 390 | R49: 2024 | S49: 6 | T49: 14 | U49: =[1]咖啡簡介!N49 -> 45457.879
B50: 44 | C50: =[1]咖啡簡介!C50 -> 肯亞圓豆 | D50: =[1]咖啡簡介!D50 -> 聖女番茄、脆梅 | E50: =[1]咖啡簡介!E50 -> 0.6 | F50: =[1]咖啡簡介!F50 -> 0.4 | G50: =[1]咖啡簡介!G50 -> 5- | H50: =[1]咖啡簡介!H50 -> 非洲 | I50: =[1]咖啡簡介!I50 -> 肯亞 | J50: =[1]咖啡簡介!J50 -> Arabica | K50: =[1]咖啡簡介!K50 -> PB | L50: =[1]咖啡簡介!L50 -> 水洗 | M50: =[1]咖啡簡介!M50 -> Plus | N50: 2024/7/29 | O50: =[1]咖啡簡介!O50 -> 410 | P50: =IF(訂單填表!$V$8<訂單填表!$W$8,O50,訂單填表!$X$8) -> 410 | R50: 2024 | S50: 7 | T50: 29 | U50: =[1]咖啡簡介!N50 -> 45502.87543
B51: 45 | C51: =[1]咖啡簡介!C51 -> 季風AA | D51: =[1]咖啡簡介!D51 -> 甘 沉 烈 | E51: =[1]咖啡簡介!E51 -> 0.4 | F51: =[1]咖啡簡介!F51 -> 0.6 | G51: =[1]咖啡簡介!G51 -> 5- | H51: =[1]咖啡簡介!H51 -> 非洲 | I51: =[1]咖啡簡介!I51 -> 馬拉巴 | J51: =[1]咖啡簡介!J51 -> Arabica | K51: =[1]咖啡簡介!K51 -> AA | L51: =[1]咖啡簡介!L51 -> 水洗 | M51: =[1]咖啡簡介!M51 -> 0 | N51: 2024/8/11 | O51: =[1]咖啡簡介!O51 -> 355 | P51: =IF(訂單填表!$V$8<訂單填表!$W$8,O51,訂單填表!$X$8) -> 355 | R51: 2024 | S51: 8 | T51: 11 | U51: =[1]咖啡簡介!N51 -> 45515.82492
B52: 46 | C52: =[1]咖啡簡介!C52 -> 涓鈴莊園 | D52: =[1]咖啡簡介!D52 -> 巧克力、焦糖、堅果 | E52: =[1]咖啡簡介!E52 -> 0.5 | F52: =[1]咖啡簡介!F52 -> 0.5 | G52: =[1]咖啡簡介!G52 -> 5- | H52: =[1]咖啡簡介!H52 -> 非洲 | I52: =[1]咖啡簡介!I52 -> 坦尚尼亞 | J52: =[1]咖啡簡介!J52 -> Arabica | K52: =[1]咖啡簡介!K52 -> PB | L52: =[1]咖啡簡介!L52 -> 水洗 | M52: =[1]咖啡簡介!M52 -> 0 | N52: 2024/7/29 | O52: =[1]咖啡簡介!O52 -> 350 | P52: =IF(訂單填表!$V$8<訂單填表!$W$8,O52,訂單填表!$X$8) -> 350 | R52: 2024 | S52: 7 | T52: 29 | U52: =[1]咖啡簡介!N52 -> 45502.8749
B53: 47 | C53: =[1]咖啡簡介!C53 -> 布穀雪依莎 | D53: =[1]咖啡簡介!D53 -> 檸檬、焦糖、花香 | E53: =[1]咖啡簡介!E53 -> 0.5 | F53: =[1]咖啡簡介!F53 -> 0.5 | G53: =[1]咖啡簡介!G53 -> 4- | H53: =[1]咖啡簡介!H53 -> 非洲 | I53: =[1]咖啡簡介!I53 -> 衣索匹亞 | J53: =[1]咖啡簡介!J53 -> Heirloom | K53: =[1]咖啡簡介!K53 -> G1 | L53: =[1]咖啡簡介!L53 -> 水洗 | M53: =[1]咖啡簡介!M53 -> 0 | N53: 2024/9/5 | O53: =[1]咖啡簡介!O53 -> 430 | P53: =IF(訂單填表!$V$8<訂單填表!$W$8,O53,訂單填表!$X$8) -> 430 | R53: 2024 | S53: 9 | T53: 5 | U53: =[1]咖啡簡介!N53 -> 45540.70379
B54: 48 | C54: =[1]咖啡簡介!C54 -> 駿馬 | D54: =[1]咖啡簡介!D54 -> 淡雅花香、甘草、肉桂 | E54: =[1]咖啡簡介!E54 -> 0.65 | F54: =[1]咖啡簡介!F54 -> 0.35 | G54: =[1]咖啡簡介!G54 -> 4- | H54: =[1]咖啡簡介!H54 -> 非洲 | I54: =[1]咖啡簡介!I54 -> 衣索匹亞 | J54: =[1]咖啡簡介!J54 -> Arabica | K54: =[1]咖啡簡介!K54 -> G5 | L54: =[1]咖啡簡介!L54 -> 日曬 | M54: =[1]咖啡簡介!M54 -> 0 | N54: 2024/6/14 | O54: =[1]咖啡簡介!O54 -> 199 | P54: =IF(訂單填表!$V$8<訂單填表!$W$8,O54,訂單填表!$X$8) -> 199 | R54: 2024 | S54: 6 | T54: 14 | U54: =[1]咖啡簡介!N54 -> 45457.87874
B55: 49 | C55: =[1]咖啡簡介!C55 -> 橘光舞妓 | D55: =[1]咖啡簡介!D55 -> 白柚、荔枝、清新白花 | E55: =[1]咖啡簡介!E55 -> 0.5 | F55: =[1]咖啡簡介!F55 -> 0.5 | G55: =[1]咖啡簡介!G55 -> 4- | H55: =[1]咖啡簡介!H55 -> 非洲 | I55: =[1]咖啡簡介!I55 -> 衣索匹亞 | J55: =[1]咖啡簡介!J55 -> Geisha Heirloom | K55: =[1]咖啡簡介!K55 -> G1 | L55: =[1]咖啡簡介!L55 -> 水洗 | M55: =[1]咖啡簡介!M55 -> 班莎 龐貝村水洗慢乾處理 | N55: 2023/10/13 | O55: =[1]咖啡簡介!O55 -> 580 | P55: =IF(訂單填表!$V$8<訂單填表!$W$8,O55,訂單填表!$X$8) -> 580 | R55: 2023 | S55: 10 | T55: 13 | U55: =[1]咖啡簡介!N55 -> 45212.48091
B56: 50 | C56: =[1]咖啡簡介!C56 -> 水洗-耶加雪菲 | D56: =[1]咖啡簡介!D56 -> 花果香、質純 | E56: =[1]咖啡簡介!E56 -> 0.6 | F56: =[1]咖啡簡介!F56 -> 0.4 | G56: =[1]咖啡簡介!G56 -> 4- | H56: =[1]咖啡簡介!H56 -> 非洲 | I56: =[1]咖啡簡介!I56 -> 衣索匹亞 | J56: =[1]咖啡簡介!J56 -> Heirloom | K56: =[1]咖啡簡介!K56 -> G2 | L56: =[1]咖啡簡介!L56 -> 水洗 | M56: =[1]咖啡簡介!M56 -> 沃卡村 | N56: 2024/9/5 | O56: =[1]咖啡簡介!O56 -> 415 | P56: =IF(訂單填表!$V$8<訂單填表!$W$8,O56,訂單填表!$X$8) -> 415 | R56: 2024 | S56: 9 | T56: 5 | U56: =[1]咖啡簡介!N56 -> 45540.70443
B57: 51 | C57: =[1]咖啡簡介!C57 -> 日曬-耶加雪菲 | D57: =[1]咖啡簡介!D57 -> 藍梅、草莓 | E57: =[1]咖啡簡介!E57 -> 0.6 | F57: =[1]咖啡簡介!F57 -> 0.4 | G57: =[1]咖啡簡介!G57 -> 4- | H57: =[1]咖啡簡介!H57 -> 非洲 | I57: =[1]咖啡簡介!I57 -> 衣索匹亞 | J57: =[1]咖啡簡介!J57 -> Heirloom | K57: =[1]咖啡簡介!K57 -> G2 | L57: =[1]咖啡簡介!L57 -> 日曬 | M57: =[1]咖啡簡介!M57 -> 艾瑞嘉 阿朵斯 | N57: 2024/9/5 | O57: =[1]咖啡簡介!O57 -> 415 | P57: =IF(訂單填表!$V$8<訂單填表!$W$8,O57,訂單填表!$X$8) -> 415 | R57: 2024 | S57: 9 | T57: 5 | U57: =[1]咖啡簡介!N57 -> 45540.70196
B58: 52 | C58: =[1]咖啡簡介!C58 -> 黑帝斯 | D58: =[1]咖啡簡介!D58 -> 柑橘、蜂蜜 | E58: =[1]咖啡簡介!E58 -> 0.5 | F58: =[1]咖啡簡介!F58 -> 0.5 | G58: =[1]咖啡簡介!G58 -> 4- | H58: =[1]咖啡簡介!H58 -> 非洲 | I58: =[1]咖啡簡介!I58 -> 衣索匹亞 | J58: =[1]咖啡簡介!J58 -> Heirloom | K58: =[1]咖啡簡介!K58 -> G4 | L58: =[1]咖啡簡介!L58 -> 日曬 | M58: =[1]咖啡簡介!M58 -> 0 | N58: 2024/3/4 | O58: =[1]咖啡簡介!O58 -> 305 | P58: =IF(訂單填表!$V$8<訂單填表!$W$8,O58,訂單填表!$X$8) -> 305 | R58: 2024 | S58: 3 | T58: 4 | U58: =[1]咖啡簡介!N58 -> 45355.72512
B59: 53 | C59: =[1]咖啡簡介!C59 -> 西達莫 | D59: =[1]咖啡簡介!D59 -> 花香、地瓜 | E59: =[1]咖啡簡介!E59 -> 0.6 | F59: =[1]咖啡簡介!F59 -> 0.4 | G59: =[1]咖啡簡介!G59 -> 4- | H59: =[1]咖啡簡介!H59 -> 非洲 | I59: =[1]咖啡簡介!I59 -> 衣索匹亞 | J59: =[1]咖啡簡介!J59 -> Arabica | K59: =[1]咖啡簡介!K59 -> G4 | L59: =[1]咖啡簡介!L59 -> 日曬 | M59: =[1]咖啡簡介!M59 -> 0 | N59: 2024/7/29 | O59: =[1]咖啡簡介!O59 -> 245 | P59: =IF(訂單填表!$V$8<訂單填表!$W$8,O59,訂單填表!$X$8) -> 245 | R59: 2024 | S59: 7 | T59: 29 | U59: =[1]咖啡簡介!N59 -> 45502.87431
B60: 54 | C60: =[1]咖啡簡介!C60 -> 夏蘭 | D60: =[1]咖啡簡介!D60 -> 紫羅蘭、花蜜 | E60: =[1]咖啡簡介!E60 -> 0.5 | F60: =[1]咖啡簡介!F60 -> 0.5 | G60: =[1]咖啡簡介!G60 -> 4- | H60: =[1]咖啡簡介!H60 -> 非洲 | I60: =[1]咖啡簡介!I60 -> 衣索匹亞 | J60: =[1]咖啡簡介!J60 -> Heirloom | K60: =[1]咖啡簡介!K60 -> G1 | L60: =[1]咖啡簡介!L60 -> 水洗 | M60: =[1]咖啡簡介!M60 -> 柯卡村 | N60: 2024/8/11 | O60: =[1]咖啡簡介!O60 -> 500 | P60: =IF(訂單填表!$V$8<訂單填表!$W$8,O60,訂單填表!$X$8) -> 500 | R60: 2024 | S60: 8 | T60: 11 | U60: =[1]咖啡簡介!N60 -> 45515.81909
B61: 55 | C61: =[1]咖啡簡介!C61 -> 天空之城 | D61: =[1]咖啡簡介!D61 -> 檸檬、柑橘、白桃、花香 | E61: =[1]咖啡簡介!E61 -> 0.5 | F61: =[1]咖啡簡介!F61 -> 0.5 | G61: =[1]咖啡簡介!G61 -> 5- | H61: =[1]咖啡簡介!H61 -> 非洲 | I61: =[1]咖啡簡介!I61 -> 盧安達 | J61: =[1]咖啡簡介!J61 -> Arabica | K61: =[1]咖啡簡介!K61 -> A1 | L61: =[1]咖啡簡介!L61 -> 水洗 | M61: =[1]咖啡簡介!M61 -> 0 | N61: 2024/9/5 | O61: =[1]咖啡簡介!O61 -> 420 | P61: =IF(訂單填表!$V$8<訂單填表!$W$8,O61,訂單填表!$X$8) -> 420 | R61: 2024 | S61: 9 | T61: 5 | U61: =[1]咖啡簡介!N61 -> 45540.70426
B62: 56 | C62: =[1]咖啡簡介!C62 -> 胡穆蕾 | D62: =[1]咖啡簡介!D62 -> 西洋梨、蔓越莓 | E62: =[1]咖啡簡介!E62 -> 0.5 | F62: =[1]咖啡簡介!F62 -> 0.5 | G62: =[1]咖啡簡介!G62 -> 5- | H62: =[1]咖啡簡介!H62 -> 非洲 | I62: =[1]咖啡簡介!I62 -> 盧安達 | J62: =[1]咖啡簡介!J62 -> Arabica | K62: =[1]咖啡簡介!K62 -> SHB | L62: =[1]咖啡簡介!L62 -> 水洗 | M62: =[1]咖啡簡介!M62 -> 嘉希寶 | N62: 2024/9/5 | O62: =[1]咖啡簡介!O62 -> 350 | P62: =IF(訂單填表!$V$8<訂單填表!$W$8,O62,訂單填表!$X$8) -> 350 | R62: 2024 | S62: 9 | T62: 5 | U62: =[1]咖啡簡介!N62 -> 45540.70353
B63: 57 | C63: =[1]咖啡簡介!C63 -> 維納斯 藝妓 | D63: =[1]咖啡簡介!D63 -> 花香、檸檬、蜂蜜 | E63: =[1]咖啡簡介!E63 -> 0.55 | F63: =[1]咖啡簡介!F63 -> 0.45 | G63: =[1]咖啡簡介!G63 -> 5- | H63: =[1]咖啡簡介!H63 -> 非洲 | I63: =[1]咖啡簡介!I63 -> 馬拉威 | J63: =[1]咖啡簡介!J63 -> 藝妓 | K63: =[1]咖啡簡介!K63 -> 0 | L63: =[1]咖啡簡介!L63 -> 水洗 | M63: =[1]咖啡簡介!M63 -> 0 | N63: 2024/9/5 | O63: =[1]咖啡簡介!O63 -> 525 | P63: =IF(訂單填表!$V$8<訂單填表!$W$8,O63,訂單填表!$X$8) -> 525 | R63: 2024 | S63: 9 | T63: 5 | U63: =[1]咖啡簡介!N63 -> 45540.70177
B64: 58 | C64: =[1]咖啡簡介!C64 -> 彩面狒狒 | D64: =[1]咖啡簡介!D64 -> 麥茶、胡桃、榛果、巧克力 | E64: =[1]咖啡簡介!E64 -> 0.5 | F64: =[1]咖啡簡介!F64 -> 0.5 | G64: =[1]咖啡簡介!G64 -> 5- | H64: =[1]咖啡簡介!H64 -> 非洲 | I64: =[1]咖啡簡介!I64 -> 喀麥隆 | J64: =[1]咖啡簡介!J64 -> Java | K64: =[1]咖啡簡介!K64 -> 0 | L64: =[1]咖啡簡介!L64 -> 水洗 | M64: =[1]咖啡簡介!M64 -> 0 | N64: 2024/5/11 | O64: =[1]咖啡簡介!O64 -> 305 | P64: =IF(訂單填表!$V$8<訂單填表!$W$8,O64,訂單填表!$X$8) -> 305 | R64: 2024 | S64: 5 | T64: 11 | U64: =[1]咖啡簡介!N64 -> 45423.94311
B65: 59 | C65: =[1]咖啡簡介!C65 -> 布吉司AA | D65: =[1]咖啡簡介!D65 -> 可可奶油、核果、黑巧可力 | E65: =[1]咖啡簡介!E65 -> 0.5 | F65: =[1]咖啡簡介!F65 -> 0.5 | G65: =[1]咖啡簡介!G65 -> 5- | H65: =[1]咖啡簡介!H65 -> 非洲 | I65: =[1]咖啡簡介!I65 -> 烏干達 | J65: =[1]咖啡簡介!J65 -> Arabica | K65: =[1]咖啡簡介!K65 -> AA | L65: =[1]咖啡簡介!L65 -> 水洗 | M65: =[1]咖啡簡介!M65 -> 0 | N65: 2024/5/11 | O65: =[1]咖啡簡介!O65 -> 290 | P65: =IF(訂單填表!$V$8<訂單填表!$W$8,O65,訂單填表!$X$8) -> 290 | R65: 2024 | S65: 5 | T65: 11 | U65: =[1]咖啡簡介!N65 -> 45423.94491
B66: 60 | C66: =[1]咖啡簡介!C66 -> 天堂鳥 | D66: =[1]咖啡簡介!D66 -> 蜜茶、蜂蜜、柑橘 | E66: =[1]咖啡簡介!E66 -> 0.5 | F66: =[1]咖啡簡介!F66 -> 0.5 | G66: =[1]咖啡簡介!G66 -> 5- | H66: =[1]咖啡簡介!H66 -> 太平洋 | I66: =[1]咖啡簡介!I66 -> 巴紐 | J66: =[1]咖啡簡介!J66 -> Arabica | K66: =[1]咖啡簡介!K66 -> 16+ | L66: =[1]咖啡簡介!L66 -> 水洗 | M66: =[1]咖啡簡介!M66 -> 0 | N66: 2023/12/15 | O66: =[1]咖啡簡介!O66 -> 340 | P66: =IF(訂單填表!$V$8<訂單填表!$W$8,O66,訂單填表!$X$8) -> 340 | R66: 2023 | S66: 12 | T66: 15 | U66: =[1]咖啡簡介!N66 -> 45275.52559
B67: 代號 | C67: 商用豆、調和豆 | D67: 調和後的特性 | E67: 酸 | F67: 苦 | G67: 焙度 | H67: 產區 | I67: 產地 | J67: 品種 | K67: 等級/大小 | L67: 處理方式 | M67: 備註 | N67: 更新日期 | O67: 半磅 | P67: 單價
B68: B1 | C68: =[1]咖啡簡介!C68 -> 曼巴 | D68: =[1]咖啡簡介!D68 -> 協調 | E68: =[1]咖啡簡介!E68 -> 0.3 | F68: =[1]咖啡簡介!F68 -> 0.7 | G68: =[1]咖啡簡介!G68 -> 混合 | H68: =[1]咖啡簡介!H68 -> 混合 | I68: =[1]咖啡簡介!I68 -> 混合 | J68: =[1]咖啡簡介!J68 -> Arabica | K68: =[1]咖啡簡介!K68 -> 0 | L68: =[1]咖啡簡介!L68 -> 0 | M68: =[1]咖啡簡介!M68 -> 調和:曼特(焙-7)+巴西(焙-5)比例1:1 | N68: =CONCATENATE(R68,"/",S68,"/",T68) -> 2022/12/15 | O68: =[1]咖啡簡介!O68 -> 217 | P68: =IF(訂單填表!$V$8<訂單填表!$W$8,O68,訂單填表!$X$8) -> 217 | R68: =YEAR(U68) -> 2022 | S68: =MONTH(U68) -> 12 | T68: =DAY(U68) -> 15 | U68: =[1]咖啡簡介!N68 -> 44910.72868
B69: B2 | C69: =[1]咖啡簡介!C69 -> 曼摩 | D69: =[1]咖啡簡介!D69 -> 協調中帶有淡雅香氣 | E69: =[1]咖啡簡介!E69 -> 0.4 | F69: =[1]咖啡簡介!F69 -> 0.6 | G69: =[1]咖啡簡介!G69 -> 混合 | H69: =[1]咖啡簡介!H69 -> 混合 | I69: =[1]咖啡簡介!I69 -> 混合 | J69: =[1]咖啡簡介!J69 -> Arabica | K69: =[1]咖啡簡介!K69 -> 0 | L69: =[1]咖啡簡介!L69 -> 0 | M69: =[1]咖啡簡介!M69 -> 調和:曼特(焙-7)+摩卡(焙-4)比例1:1 | N69: 2022/12/15 | O69: =[1]咖啡簡介!O69 -> 217 | P69: =IF(訂單填表!$V$8<訂單填表!$W$8,O69,訂單填表!$X$8) -> 217 | R69: 2022 | S69: 12 | T69: 15 | U69: =[1]咖啡簡介!N69 -> 44910.72872
B70: B3 | C70: =[1]咖啡簡介!C70 -> 藍山風味 | D70: =[1]咖啡簡介!D70 -> 清香 | E70: =[1]咖啡簡介!E70 -> 0.5 | F70: =[1]咖啡簡介!F70 -> 0.5 | G70: =[1]咖啡簡介!G70 -> 混合 | H70: =[1]咖啡簡介!H70 -> 混合 | I70: =[1]咖啡簡介!I70 -> 混合 | J70: =[1]咖啡簡介!J70 -> Arabica | K70: =[1]咖啡簡介!K70 -> 0 | L70: =[1]咖啡簡介!L70 -> 0 | M70: =[1]咖啡簡介!M70 -> 純阿拉比咖配方豆，2024-9月調漲 | N70: 2024/9/5 | O70: =[1]咖啡簡介!O70 -> 199 | P70: =IF(訂單填表!$V$8<訂單填表!$W$8,O70,訂單填表!$X$8) -> 199 | R70: 2024 | S70: 9 | T70: 5 | U70: =[1]咖啡簡介!N70 -> 45540.69138
B71: B4 | C71: =[1]咖啡簡介!C71 -> 北義風味 | D71: =[1]咖啡簡介!D71 -> 香濃 | E71: =[1]咖啡簡介!E71 -> 0.35 | F71: =[1]咖啡簡介!F71 -> 0.65 | G71: =[1]咖啡簡介!G71 -> 混合 | H71: =[1]咖啡簡介!H71 -> 混合 | I71: =[1]咖啡簡介!I71 -> 混合 | J71: =[1]咖啡簡介!J71 -> Arabica | K71: =[1]咖啡簡介!K71 -> 0 | L71: =[1]咖啡簡介!L71 -> 0 | M71: =[1]咖啡簡介!M71 -> 純阿拉比咖配方豆，2024-9月調漲 | N71: 2024/9/5 | O71: =[1]咖啡簡介!O71 -> 199 | P71: =IF(訂單填表!$V$8<訂單填表!$W$8,O71,訂單填表!$X$8) -> 199 | R71: 2024 | S71: 9 | T71: 5 | U71: =[1]咖啡簡介!N71 -> 45540.69141
B72: B5 | C72: =[1]咖啡簡介!C72 -> 特級綜合 | D72: =[1]咖啡簡介!D72 -> 溫和 | E72: =[1]咖啡簡介!E72 -> 0.4 | F72: =[1]咖啡簡介!F72 -> 0.6 | G72: =[1]咖啡簡介!G72 -> 混合 | H72: =[1]咖啡簡介!H72 -> 混合 | I72: =[1]咖啡簡介!I72 -> 混合 | J72: =[1]咖啡簡介!J72 -> Arabica | K72: =[1]咖啡簡介!K72 -> 0 | L72: =[1]咖啡簡介!L72 -> 0 | M72: =[1]咖啡簡介!M72 -> 純阿拉比咖配方豆，2024-9月調漲 | N72: 2024/9/5 | O72: =[1]咖啡簡介!O72 -> 199 | P72: =IF(訂單填表!$V$8<訂單填表!$W$8,O72,訂單填表!$X$8) -> 199 | R72: 2024 | S72: 9 | T72: 5 | U72: =[1]咖啡簡介!N72 -> 45540.69143
B73: B6 | C73: =[1]咖啡簡介!C73 -> 0 | D73: =[1]咖啡簡介!D73 -> 肉乾、麥茶 | E73: =[1]咖啡簡介!E73 -> 0.25 | F73: =[1]咖啡簡介!F73 -> 0.75 | G73: =[1]咖啡簡介!G73 -> 7- | H73: =[1]咖啡簡介!H73 -> 亞洲 | I73: =[1]咖啡簡介!I73 -> 缺貨 | J73: =[1]咖啡簡介!J73 -> Robusta | K73: =[1]咖啡簡介!K73 -> Cherry A | L73: =[1]咖啡簡介!L73 -> 水洗 | M73: =[1]咖啡簡介!M73 -> 2017--12 | N73: 2024/4/11 | O73: =[1]咖啡簡介!O73 -> 0 | P73: =IF(訂單填表!$V$8<訂單填表!$W$8,O73,訂單填表!$X$8) -> 0 | R73: 2024 | S73: 4 | T73: 11 | U73: =[1]咖啡簡介!N73 -> 45393.53316
B74: B7 | C74: =[1]咖啡簡介!C74 -> 0 | D74: =[1]咖啡簡介!D74 -> 肉乾、麥茶 | E74: =[1]咖啡簡介!E74 -> 0.25 | F74: =[1]咖啡簡介!F74 -> 0.75 | G74: =[1]咖啡簡介!G74 -> 7- | H74: =[1]咖啡簡介!H74 -> 亞洲 | I74: =[1]咖啡簡介!I74 -> 缺貨 | J74: =[1]咖啡簡介!J74 -> Robusta | K74: =[1]咖啡簡介!K74 -> Cherry A | L74: =[1]咖啡簡介!L74 -> 水洗 | M74: =[1]咖啡簡介!M74 -> 2017--12 | N74: 2024/4/11 | O74: =[1]咖啡簡介!O74 -> 0 | P74: =IF(訂單填表!$V$8<訂單填表!$W$8,O74,訂單填表!$X$8) -> 0 | R74: 2024 | S74: 4 | T74: 11 | U74: =[1]咖啡簡介!N74 -> 45393.53316
B75: B8 | C75: =[1]咖啡簡介!C75 -> 0 | D75: =[1]咖啡簡介!D75 -> 肉乾、麥茶 | E75: =[1]咖啡簡介!E75 -> 0.25 | F75: =[1]咖啡簡介!F75 -> 0.75 | G75: =[1]咖啡簡介!G75 -> 7- | H75: =[1]咖啡簡介!H75 -> 亞洲 | I75: =[1]咖啡簡介!I75 -> 缺貨 | J75: =[1]咖啡簡介!J75 -> Robusta | K75: =[1]咖啡簡介!K75 -> Cherry A | L75: =[1]咖啡簡介!L75 -> 水洗 | M75: =[1]咖啡簡介!M75 -> 2017--12 | N75: 2024/4/11 | O75: =[1]咖啡簡介!O75 -> 0 | P75: =IF(訂單填表!$V$8<訂單填表!$W$8,O75,訂單填表!$X$8) -> 0 | R75: 2024 | S75: 4 | T75: 11 | U75: =[1]咖啡簡介!N75 -> 45393.53316
B76: B9 | C76: =[1]咖啡簡介!C76 -> 0 | D76: =[1]咖啡簡介!D76 -> 肉乾、麥茶 | E76: =[1]咖啡簡介!E76 -> 0.25 | F76: =[1]咖啡簡介!F76 -> 0.75 | G76: =[1]咖啡簡介!G76 -> 7- | H76: =[1]咖啡簡介!H76 -> 亞洲 | I76: =[1]咖啡簡介!I76 -> 缺貨 | J76: =[1]咖啡簡介!J76 -> Robusta | K76: =[1]咖啡簡介!K76 -> Cherry A | L76: =[1]咖啡簡介!L76 -> 水洗 | M76: =[1]咖啡簡介!M76 -> 2017--12 | N76: 2024/4/11 | O76: =[1]咖啡簡介!O76 -> 0 | P76: =IF(訂單填表!$V$8<訂單填表!$W$8,O76,訂單填表!$X$8) -> 0 | R76: 2024 | S76: 4 | T76: 11 | U76: =[1]咖啡簡介!N76 -> 45393.53316
B77: B10 | C77: =[1]咖啡簡介!C77 -> 0 | D77: =[1]咖啡簡介!D77 -> 肉乾、麥茶 | E77: =[1]咖啡簡介!E77 -> 0.25 | F77: =[1]咖啡簡介!F77 -> 0.75 | G77: =[1]咖啡簡介!G77 -> 7- | H77: =[1]咖啡簡介!H77 -> 亞洲 | I77: =[1]咖啡簡介!I77 -> 缺貨 | J77: =[1]咖啡簡介!J77 -> Robusta | K77: =[1]咖啡簡介!K77 -> Cherry A | L77: =[1]咖啡簡介!L77 -> 水洗 | M77: =[1]咖啡簡介!M77 -> 2017--12 | N77: 2024/4/11 | O77: =[1]咖啡簡介!O77 -> 0 | P77: =IF(訂單填表!$V$8<訂單填表!$W$8,O77,訂單填表!$X$8) -> 0 | R77: 2024 | S77: 4 | T77: 11 | U77: =[1]咖啡簡介!N77 -> 45393.53316
B78: B11 | C78: =[1]咖啡簡介!C78 -> 0 | D78: =[1]咖啡簡介!D78 -> 肉乾、麥茶 | E78: =[1]咖啡簡介!E78 -> 0.25 | F78: =[1]咖啡簡介!F78 -> 0.75 | G78: =[1]咖啡簡介!G78 -> 7- | H78: =[1]咖啡簡介!H78 -> 亞洲 | I78: =[1]咖啡簡介!I78 -> 缺貨 | J78: =[1]咖啡簡介!J78 -> Robusta | K78: =[1]咖啡簡介!K78 -> Cherry A | L78: =[1]咖啡簡介!L78 -> 水洗 | M78: =[1]咖啡簡介!M78 -> 2017--12 | N78: 2024/4/11 | O78: =[1]咖啡簡介!O78 -> 0 | P78: =IF(訂單填表!$V$8<訂單填表!$W$8,O78,訂單填表!$X$8) -> 0 | R78: 2024 | S78: 4 | T78: 11 | U78: =[1]咖啡簡介!N78 -> 45393.53316
B79: B12 | C79: =[1]咖啡簡介!C79 -> 0 | D79: =[1]咖啡簡介!D79 -> 肉乾、麥茶 | E79: =[1]咖啡簡介!E79 -> 0.25 | F79: =[1]咖啡簡介!F79 -> 0.75 | G79: =[1]咖啡簡介!G79 -> 7- | H79: =[1]咖啡簡介!H79 -> 亞洲 | I79: =[1]咖啡簡介!I79 -> 缺貨 | J79: =[1]咖啡簡介!J79 -> Robusta | K79: =[1]咖啡簡介!K79 -> Cherry A | L79: =[1]咖啡簡介!L79 -> 水洗 | M79: =[1]咖啡簡介!M79 -> 2017--12 | N79: 2024/4/11 | O79: =[1]咖啡簡介!O79 -> 0 | P79: =IF(訂單填表!$V$8<訂單填表!$W$8,O79,訂單填表!$X$8) -> 0 | R79: 2024 | S79: 4 | T79: 11 | U79: =[1]咖啡簡介!N79 -> 45393.53316
B80: B13 | C80: =[1]咖啡簡介!C80 -> 0 | D80: =[1]咖啡簡介!D80 -> 肉乾、麥茶 | E80: =[1]咖啡簡介!E80 -> 0.25 | F80: =[1]咖啡簡介!F80 -> 0.75 | G80: =[1]咖啡簡介!G80 -> 7- | H80: =[1]咖啡簡介!H80 -> 亞洲 | I80: =[1]咖啡簡介!I80 -> 缺貨 | J80: =[1]咖啡簡介!J80 -> Robusta | K80: =[1]咖啡簡介!K80 -> Cherry A | L80: =[1]咖啡簡介!L80 -> 水洗 | M80: =[1]咖啡簡介!M80 -> 2017--12 | N80: =CONCATENATE(R80,"/",S80,"/",T80) -> 2024/4/11 | O80: =[1]咖啡簡介!O80 -> 0 | P80: =IF(訂單填表!$V$8<訂單填表!$W$8,O80,訂單填表!$X$8) -> 0 | R80: =YEAR(U80) -> 2024 | S80: =MONTH(U80) -> 4 | T80: =DAY(U80) -> 11 | U80: =[1]咖啡簡介!N80 -> 45393.53316
B81: B14 | D81: =[1]咖啡簡介!D81 -> 肉乾、麥茶 | E81: =[1]咖啡簡介!E81 -> 0.25 | F81: =[1]咖啡簡介!F81 -> 0.75 | G81: =[1]咖啡簡介!G81 -> 7- | H81: =[1]咖啡簡介!H81 -> 亞洲 | I81: =[1]咖啡簡介!I81 -> 缺貨 | J81: =[1]咖啡簡介!J81 -> Robusta | K81: =[1]咖啡簡介!K81 -> Cherry A | L81: =[1]咖啡簡介!L81 -> 水洗 | M81: =[1]咖啡簡介!M81 -> 2017--12 | N81: 2024/4/11 | O81: 0 | P81: =IF(訂單填表!$V$8<訂單填表!$W$8,O81,訂單填表!$X$8) -> 0 | R81: =YEAR(U81) -> 2024 | S81: =MONTH(U81) -> 4 | T81: =DAY(U81) -> 11 | U81: =[1]咖啡簡介!N81 -> 45393.53316
B82: B15 | C82: =C81 -> 0 | D82: =[1]咖啡簡介!D82 -> 肉乾、麥茶 | E82: =[1]咖啡簡介!E82 -> 0.25 | F82: =[1]咖啡簡介!F82 -> 0.75 | G82: =[1]咖啡簡介!G82 -> 7- | H82: =[1]咖啡簡介!H82 -> 亞洲 | I82: =[1]咖啡簡介!I82 -> 缺貨 | J82: =[1]咖啡簡介!J82 -> Robusta | K82: =[1]咖啡簡介!K82 -> Cherry A | L82: =[1]咖啡簡介!L82 -> 水洗 | M82: =[1]咖啡簡介!M82 -> 2017--12 | N82: =CONCATENATE(R82,"/",S82,"/",T82) -> 2024/4/11 | O82: 0 | P82: =IF(訂單填表!$V$8<訂單填表!$W$8,O82,訂單填表!$X$8) -> 0 | R82: 2024 | S82: 4 | T82: 11 | U82: =[1]咖啡簡介!N82 -> 45393.53316
B83: 代號 | C83: 咖啡副產品 | D83: 規格 | J83: =[1]咖啡簡介!$J$83 -> 簡稱 | K83: 產地 | L83: 單位 | N83: 更新日期 | O83: 單價
B84: C1 | C84: =[1]咖啡簡介!C84 -> 無漂白濾紙102(100入) | D84: =[1]咖啡簡介!D84 -> 高16*10公分德國製(100入袋裝)(美利塔) | J84: =[1]咖啡簡介!J84 -> 濾紙 | K84: =[1]咖啡簡介!K84 -> 德國 | L84: =[1]咖啡簡介!L84 -> 盒 | M84: =[1]咖啡簡介!M84 -> 0 | N84: =CONCATENATE(R84,"/",S84,"/",T84) -> 2022/11/26 | O84: =[1]咖啡簡介!Q84 -> 90 | P84: =IF(訂單填表!$V$8<訂單填表!$W$8,O84,訂單填表!$X$8) -> 90 | R84: =YEAR(U84) -> 2022 | S84: =MONTH(U84) -> 11 | T84: =DAY(U84) -> 26 | U84: =[1]咖啡簡介!N84 -> 44891.36439
B85: C2 | C85: =[1]咖啡簡介!C85 -> 手沖壺(350ml)無刻度 | D85: =[1]咖啡簡介!D85 -> 高8.5/壺口徑6.8/出水口徑0.4/全長18.5公分/重量150克/材質:不鏽鋼 | J85: =[1]咖啡簡介!J85 -> 手沖壺 | K85: =[1]咖啡簡介!K85 -> 中國 | L85: =[1]咖啡簡介!L85 -> 只 | M85: =[1]咖啡簡介!M85 -> 0 | N85: =CONCATENATE(R85,"/",S85,"/",T85) -> 2023/3/16 | O85: =[1]咖啡簡介!Q85 -> 190 | P85: =IF(訂單填表!$V$8<訂單填表!$W$8,O85,訂單填表!$X$8) -> 190 | R85: 2023 | S85: 3 | T85: 16 | U85: =[1]咖啡簡介!N85 -> 45001.72188
B86: C3 | C86: =[1]咖啡簡介!C86 -> 不鏽鋼濾杯(免濾紙) | D86: =[1]咖啡簡介!D86 -> 高8.5*上徑11.5 公分；下徑10公分 | J86: =[1]咖啡簡介!J86 -> ST濾杯 | K86: =[1]咖啡簡介!K86 -> 中國 | L86: =[1]咖啡簡介!L86 -> 個 | M86: =[1]咖啡簡介!M86 -> 0 | N86: =CONCATENATE(R86,"/",S86,"/",T86) -> 2023/3/16 | O86: =[1]咖啡簡介!Q86 -> 300 | P86: =IF(訂單填表!$V$8<訂單填表!$W$8,O86,訂單填表!$X$8) -> 300 | R86: 2023 | S86: 3 | T86: 16 | U86: =[1]咖啡簡介!N86 -> 45001.72215
B87: C4 | C87: =[1]咖啡簡介!C87 -> 虹吸式濾布(10片裝) | D87: =[1]咖啡簡介!D87 -> 直徑10公分，適用於直徑6公分濾片 | J87: =[1]咖啡簡介!J87 -> 濾布 | K87: =[1]咖啡簡介!K87 -> 中國 | L87: =[1]咖啡簡介!L87 -> 包 | M87: =[1]咖啡簡介!M87 -> 0 | N87: =CONCATENATE(R87,"/",S87,"/",T87) -> 2020/7/8 | O87: =[1]咖啡簡介!Q87 -> 80 | P87: =IF(訂單填表!$V$8<訂單填表!$W$8,O87,訂單填表!$X$8) -> 80 | R87: 2020 | S87: 7 | T87: 8 | U87: =[1]咖啡簡介!N87 -> 44020.73721
B88: C5 | C88: =[1]咖啡簡介!C88 -> 塑膠濾杯(日本製) | D88: =[1]咖啡簡介!D88 -> 直徑11*高8公分:耐熱120度塑膠 | J88: =[1]咖啡簡介!J88 -> 塑膠濾杯 | K88: =[1]咖啡簡介!K88 -> 日本 | L88: =[1]咖啡簡介!L88 -> 個 | M88: =[1]咖啡簡介!M88 -> 0 | N88: 2018/11/11 | O88: =[1]咖啡簡介!Q88 -> 70 | P88: =IF(訂單填表!$V$8<訂單填表!$W$8,O88,訂單填表!$X$8) -> 70 | R88: 2018 | S88: 11 | T88: 11 | U88: =[1]咖啡簡介!N88 -> 43415.63515
B89: C6 | C89: =[1]咖啡簡介!C89 -> 奶泡壺(內刻度500ml) | D89: =[1]咖啡簡介!D89 -> 高11.1*上徑7.6 公分；下徑9.2公分 | J89: =[1]咖啡簡介!J89 -> 奶泡壺 | K89: =[1]咖啡簡介!K89 -> 中國 | L89: =[1]咖啡簡介!L89 -> 只 | M89: =[1]咖啡簡介!M89 -> 0 | N89: 2023/3/16 | O89: =[1]咖啡簡介!Q89 -> 210 | P89: =IF(訂單填表!$V$8<訂單填表!$W$8,O89,訂單填表!$X$8) -> 210 | R89: 2023 | S89: 3 | T89: 16 | U89: =[1]咖啡簡介!N89 -> 45001.72223
B90: C7 | C90: =[1]咖啡簡介!C90 -> 黑軸心(手搖磨豆機配件) | D90: =[1]咖啡簡介!D90 -> 24mm*24mm 材質:塑膠 | J90: =[1]咖啡簡介!J90 -> 配件 | K90: =[1]咖啡簡介!K90 -> 中國 | L90: =[1]咖啡簡介!L90 -> 個 | M90: =[1]咖啡簡介!M90 -> 0 | N90: 2020/7/8 | O90: =[1]咖啡簡介!Q90 -> 30 | P90: =IF(訂單填表!$V$8<訂單填表!$W$8,O90,訂單填表!$X$8) -> 30 | R90: 2020 | S90: 7 | T90: 8 | U90: =[1]咖啡簡介!N90 -> 44020.73724
B91: C8 | C91: =[1]咖啡簡介!C91 -> 0 | D91: =[1]咖啡簡介!D91 -> 0 | J91: =[1]咖啡簡介!J91 -> 0 | K91: =[1]咖啡簡介!K91 -> 0 | L91: =[1]咖啡簡介!L91 -> 0 | M91: =[1]咖啡簡介!M91 -> 0 | N91: 2018/11/11 | O91: =[1]咖啡簡介!Q91 -> 0 | P91: =IF(訂單填表!$V$8<訂單填表!$W$8,O91,訂單填表!$X$8) -> 0 | R91: 2018 | S91: 11 | T91: 11 | U91: =[1]咖啡簡介!N91 -> 43415.63515

Sheet 訂單列印
C1: =CONCATENATE("嗎啡館咖啡",訂單填表!AC99,D2) -> 嗎啡館咖啡0資料不齊全無法列印訂單
C2: 訂單狀況: | D2: =IF(訂單填表!P105=訂單填表!AD120,X6,M2) -> 資料不齊全無法列印訂單 | F2: =訂單填表!P105 -> 請填(收件人姓名) | M2: 資料不齊全無法列印訂單
C3: 預定出貨時間: | D3: =IF(訂單填表!P105=訂單填表!AD120,M3,"無") -> 無 | E3: =IF(D3=AA6,AB6,IF(D3=AA8,AB7,IF(D3=AA9,AB8,""))) ->  | M3: 今天
C4: 貨款 | D4: =IF(訂單填表!P114=訂單填表!AC137,M4,IF(訂單填表!P105=訂單填表!AD120,Y6,訂單填表!P105)) -> 請填(收件人姓名) | M4: 查帳中(請3日內完成付款)
C6: (第一聯)貼於包裹上 | X6: 已成功列印訂單 | Y6: =IF(訂單填表!P114=訂單填表!AC138,訂單列印!Z8,IF(訂單填表!P114=訂單填表!AC137,Z7,IF(訂單填表!P114="",訂單列印!Z9," "))) -> 沒有填選付款方式 | Z6: 已收到 | AA6: 今天 | AB6: =NOW() -> 45540.73023
X7: 資料不齊全無法列印訂單 | Y7: 已收到 | Z7: 查帳中(請3日內完成付款) | AA7: 今天或明天 | AB7: =WEEKDAY(AB6+1) -> 6
C8: From: 269宜蘭縣冬山鄉楓橋路41巷7號 tel: 0928155778 盧建樺 | H8: =NOW() -> 2024-09-05T17:31:32.060 | M8: =CONCATENATE(訂單填表!O107) -> 收件人: | N8: =CONCATENATE(訂單填表!P107," ",訂單填表!P112," ",訂單填表!P113) ->  | X8: 已列印訂單先付款後出貨 | Z8: =CONCATENATE(訂單填表!AC138,訂單填表!V99) -> 貨到付款$0 | AA8: 明天
C9: =CONCATENATE(訂單填表!O108," ",訂單填表!P108,訂單填表!P109,訂單填表!P110) -> 001 . | M9: =CONCATENATE(訂單填表!N108) -> 縣市: | N9: =C9 -> 001 . | Z9: 沒有填選付款方式 | AA9: 星期一
C10: =CONCATENATE(" ",訂單填表!P107," ","鈞啟"," ",訂單填表!P112," ",訂單填表!P113) -> 鈞啟 | M10: =CONCATENATE(訂單填表!O116) -> E-mail:(7-11交貨便必填) | N10: =CONCATENATE(訂單填表!P116) ->  | AA10: 星期二
C11: =CONCATENATE("配送方式>>",訂單填表!AJ128,訂單填表!AI138,,訂單填表!AH138) -> 配送方式>> | H11: =CONCATENATE(訂單填表!AG138,訂單填表!AH138) ->  | AA11: 星期三
AA12: 星期四
C13: =CONCATENATE("收件人:"," ",訂單填表!P107," ","先生/小姐") -> 收件人: 先生/小姐 | F13: =NOW() -> 2024-09-05T17:31:32.060 | J13: =NOW() -> 45540.73023 | R13: =NOW() -> 2024-09-05T17:31:32.060 | T13: =NOW() -> 45540.73023 | AA13: 星期五
C14: =CONCATENATE(訂單填表!N11) -> 品名-單品豆 | D14: =CONCATENATE(訂單填表!P11) -> 規格(包裝) | E14: =CONCATENATE(訂單填表!R11) -> 磨粉 | F14: =CONCATENATE(訂單填表!S11) ->  | G14: =CONCATENATE(訂單填表!T11) -> 單價 | H14: =CONCATENATE(訂單填表!U11) -> 數量 | I14: =CONCATENATE(訂單填表!V11) -> 單位 | J14: =CONCATENATE(訂單填表!W11) -> 小計 | M14: =CONCATENATE(訂單列印!C14) -> 品名-單品豆 | N14: =CONCATENATE(訂單列印!H14) -> 數量 | O14: =CONCATENATE(訂單列印!I14) -> 單位 | P14: =CONCATENATE(訂單列印!D14) -> 規格(包裝) | Q14: =CONCATENATE(訂單列印!E14) -> 磨粉 | R14: =CONCATENATE(訂單列印!F14) ->  | S14: =CONCATENATE(訂單列印!G14) -> 單價 | T14: =CONCATENATE(訂單列印!J14) -> 小計 | AA14: 星期六
C15: =IF(訂單填表!U12>0.1,訂單填表!N12," ") ->  | D15: =IF(訂單填表!U12>0,訂單填表!P12," ") ->  | E15: =IF(訂單填表!U12>0,訂單填表!R12," ") ->  | F15: =IF(訂單填表!U12>0,訂單填表!S12," ") ->  | G15: =IF(訂單填表!U12>0,訂單填表!T12," ") ->  | H15: =IF(訂單填表!U12>0,訂單填表!U12," ") ->  | I15: =IF(訂單填表!U12>0,訂單填表!V12," ") ->  | J15: =IF(訂單填表!U12>0,訂單填表!W12," ") ->  | M15: =CONCATENATE(訂單列印!C15) ->  | N15: =CONCATENATE(訂單列印!H15) ->  | O15: =CONCATENATE(訂單列印!I15) ->  | P15: =CONCATENATE(訂單列印!D15) ->  | Q15: =CONCATENATE(訂單列印!E15) ->  | R15: =CONCATENATE(訂單列印!F15) ->  | S15: =CONCATENATE(訂單列印!G15) ->  | T15: =CONCATENATE(訂單列印!J15) ->  | AA15: 星期日
C16: =IF(訂單填表!U13>0.1,訂單填表!N13," ") ->  | D16: =IF(訂單填表!U13>0,訂單填表!P13," ") ->  | E16: =IF(訂單填表!U13>0,訂單填表!R13," ") ->  | F16: =IF(訂單填表!U13>0,訂單填表!S13," ") ->  | G16: =IF(訂單填表!U13>0,訂單填表!T13," ") ->  | H16: =IF(訂單填表!U13>0,訂單填表!U13," ") ->  | I16: =IF(訂單填表!U13>0,訂單填表!V13," ") ->  | J16: =IF(訂單填表!U13>0,訂單填表!W13," ") ->  | M16: =CONCATENATE(訂單列印!C16) ->  | N16: =CONCATENATE(訂單列印!H16) ->  | O16: =CONCATENATE(訂單列印!I16) ->  | P16: =CONCATENATE(訂單列印!D16) ->  | Q16: =CONCATENATE(訂單列印!E16) ->  | R16: =CONCATENATE(訂單列印!F16) ->  | S16: =CONCATENATE(訂單列印!G16) ->  | T16: =CONCATENATE(訂單列印!J16) -> 
C17: =IF(訂單填表!U14>0.1,訂單填表!N14," ") ->  | D17: =IF(訂單填表!U14>0,訂單填表!P14," ") ->  | E17: =IF(訂單填表!U14>0,訂單填表!R14," ") ->  | F17: =IF(訂單填表!U14>0,訂單填表!S14," ") ->  | G17: =IF(訂單填表!U14>0,訂單填表!T14," ") ->  | H17: =IF(訂單填表!U14>0,訂單填表!U14," ") ->  | I17: =IF(訂單填表!U14>0,訂單填表!V14," ") ->  | J17: =IF(訂單填表!U14>0,訂單填表!W14," ") ->  | M17: =CONCATENATE(訂單列印!C17) ->  | N17: =CONCATENATE(訂單列印!H17) ->  | O17: =CONCATENATE(訂單列印!I17) ->  | P17: =CONCATENATE(訂單列印!D17) ->  | Q17: =CONCATENATE(訂單列印!E17) ->  | R17: =CONCATENATE(訂單列印!F17) ->  | S17: =CONCATENATE(訂單列印!G17) ->  | T17: =CONCATENATE(訂單列印!J17) -> 
C18: =IF(訂單填表!U15>0.1,訂單填表!N15," ") ->  | D18: =IF(訂單填表!U15>0,訂單填表!P15," ") ->  | E18: =IF(訂單填表!U15>0,訂單填表!R15," ") ->  | F18: =IF(訂單填表!U15>0,訂單填表!S15," ") ->  | G18: =IF(訂單填表!U15>0,訂單填表!T15," ") ->  | H18: =IF(訂單填表!U15>0,訂單填表!U15," ") ->  | I18: =IF(訂單填表!U15>0,訂單填表!V15," ") ->  | J18: =IF(訂單填表!U15>0,訂單填表!W15," ") ->  | M18: =CONCATENATE(訂單列印!C18) ->  | N18: =CONCATENATE(訂單列印!H18) ->  | O18: =CONCATENATE(訂單列印!I18) ->  | P18: =CONCATENATE(訂單列印!D18) ->  | Q18: =CONCATENATE(訂單列印!E18) ->  | R18: =CONCATENATE(訂單列印!F18) ->  | S18: =CONCATENATE(訂單列印!G18) ->  | T18: =CONCATENATE(訂單列印!J18) -> 
C19: =IF(訂單填表!U16>0.1,訂單填表!N16," ") ->  | D19: =IF(訂單填表!U16>0,訂單填表!P16," ") ->  | E19: =IF(訂單填表!U16>0,訂單填表!R16," ") ->  | F19: =IF(訂單填表!U16>0,訂單填表!S16," ") ->  | G19: =IF(訂單填表!U16>0,訂單填表!T16," ") ->  | H19: =IF(訂單填表!U16>0,訂單填表!U16," ") ->  | I19: =IF(訂單填表!U16>0,訂單填表!V16," ") ->  | J19: =IF(訂單填表!U16>0,訂單填表!W16," ") ->  | M19: =CONCATENATE(訂單列印!C19) ->  | N19: =CONCATENATE(訂單列印!H19) ->  | O19: =CONCATENATE(訂單列印!I19) ->  | P19: =CONCATENATE(訂單列印!D19) ->  | Q19: =CONCATENATE(訂單列印!E19) ->  | R19: =CONCATENATE(訂單列印!F19) ->  | S19: =CONCATENATE(訂單列印!G19) ->  | T19: =CONCATENATE(訂單列印!J19) -> 
C20: =IF(訂單填表!U17>0.1,訂單填表!N17," ") ->  | D20: =IF(訂單填表!U17>0,訂單填表!P17," ") ->  | E20: =IF(訂單填表!U17>0,訂單填表!R17," ") ->  | F20: =IF(訂單填表!U17>0,訂單填表!S17," ") ->  | G20: =IF(訂單填表!U17>0,訂單填表!T17," ") ->  | H20: =IF(訂單填表!U17>0,訂單填表!U17," ") ->  | I20: =IF(訂單填表!U17>0,訂單填表!V17," ") ->  | J20: =IF(訂單填表!U17>0,訂單填表!W17," ") ->  | M20: =CONCATENATE(訂單列印!C20) ->  | N20: =CONCATENATE(訂單列印!H20) ->  | O20: =CONCATENATE(訂單列印!I20) ->  | P20: =CONCATENATE(訂單列印!D20) ->  | Q20: =CONCATENATE(訂單列印!E20) ->  | R20: =CONCATENATE(訂單列印!F20) ->  | S20: =CONCATENATE(訂單列印!G20) ->  | T20: =CONCATENATE(訂單列印!J20) -> 
C21: =IF(訂單填表!U18>0.1,訂單填表!N18," ") ->  | D21: =IF(訂單填表!U18>0,訂單填表!P18," ") ->  | E21: =IF(訂單填表!U18>0,訂單填表!R18," ") ->  | F21: =IF(訂單填表!U18>0,訂單填表!S18," ") ->  | G21: =IF(訂單填表!U18>0,訂單填表!T18," ") ->  | H21: =IF(訂單填表!U18>0,訂單填表!U18," ") ->  | I21: =IF(訂單填表!U18>0,訂單填表!V18," ") ->  | J21: =IF(訂單填表!U18>0,訂單填表!W18," ") ->  | M21: =CONCATENATE(訂單列印!C21) ->  | N21: =CONCATENATE(訂單列印!H21) ->  | O21: =CONCATENATE(訂單列印!I21) ->  | P21: =CONCATENATE(訂單列印!D21) ->  | Q21: =CONCATENATE(訂單列印!E21) ->  | R21: =CONCATENATE(訂單列印!F21) ->  | S21: =CONCATENATE(訂單列印!G21) ->  | T21: =CONCATENATE(訂單列印!J21) -> 
C22: =IF(訂單填表!U19>0.1,訂單填表!N19," ") ->  | D22: =IF(訂單填表!U19>0,訂單填表!P19," ") ->  | E22: =IF(訂單填表!U19>0,訂單填表!R19," ") ->  | F22: =IF(訂單填表!U19>0,訂單填表!S19," ") ->  | G22: =IF(訂單填表!U19>0,訂單填表!T19," ") ->  | H22: =IF(訂單填表!U19>0,訂單填表!U19," ") ->  | I22: =IF(訂單填表!U19>0,訂單填表!V19," ") ->  | J22: =IF(訂單填表!U19>0,訂單填表!W19," ") ->  | M22: =CONCATENATE(訂單列印!C22) ->  | N22: =CONCATENATE(訂單列印!H22) ->  | O22: =CONCATENATE(訂單列印!I22) ->  | P22: =CONCATENATE(訂單列印!D22) ->  | Q22: =CONCATENATE(訂單列印!E22) ->  | R22: =CONCATENATE(訂單列印!F22) ->  | S22: =CONCATENATE(訂單列印!G22) ->  | T22: =CONCATENATE(訂單列印!J22) -> 
C23: =IF(訂單填表!U20>0.1,訂單填表!N20," ") ->  | D23: =IF(訂單填表!U20>0,訂單填表!P20," ") ->  | E23: =IF(訂單填表!U20>0,訂單填表!R20," ") ->  | F23: =IF(訂單填表!U20>0,訂單填表!S20," ") ->  | G23: =IF(訂單填表!U20>0,訂單填表!T20," ") ->  | H23: =IF(訂單填表!U20>0,訂單填表!U20," ") ->  | I23: =IF(訂單填表!U20>0,訂單填表!V20," ") ->  | J23: =IF(訂單填表!U20>0,訂單填表!W20," ") ->  | M23: =CONCATENATE(訂單列印!C23) ->  | N23: =CONCATENATE(訂單列印!H23) ->  | O23: =CONCATENATE(訂單列印!I23) ->  | P23: =CONCATENATE(訂單列印!D23) ->  | Q23: =CONCATENATE(訂單列印!E23) ->  | R23: =CONCATENATE(訂單列印!F23) ->  | S23: =CONCATENATE(訂單列印!G23) ->  | T23: =CONCATENATE(訂單列印!J23) -> 
C24: =IF(訂單填表!U21>0.1,訂單填表!N21," ") ->  | D24: =IF(訂單填表!U21>0,訂單填表!P21," ") ->  | E24: =IF(訂單填表!U21>0,訂單填表!R21," ") ->  | F24: =IF(訂單填表!U21>0,訂單填表!S21," ") ->  | G24: =IF(訂單填表!U21>0,訂單填表!T21," ") ->  | H24: =IF(訂單填表!U21>0,訂單填表!U21," ") ->  | I24: =IF(訂單填表!U21>0,訂單填表!V21," ") ->  | J24: =IF(訂單填表!U21>0,訂單填表!W21," ") ->  | M24: =CONCATENATE(訂單列印!C24) ->  | N24: =CONCATENATE(訂單列印!H24) ->  | O24: =CONCATENATE(訂單列印!I24) ->  | P24: =CONCATENATE(訂單列印!D24) ->  | Q24: =CONCATENATE(訂單列印!E24) ->  | R24: =CONCATENATE(訂單列印!F24) ->  | S24: =CONCATENATE(訂單列印!G24) ->  | T24: =CONCATENATE(訂單列印!J24) -> 
C25: =IF(訂單填表!U22>0.1,訂單填表!N22," ") ->  | D25: =IF(訂單填表!U22>0,訂單填表!P22," ") ->  | E25: =IF(訂單填表!U22>0,訂單填表!R22," ") ->  | F25: =IF(訂單填表!U22>0,訂單填表!S22," ") ->  | G25: =IF(訂單填表!U22>0,訂單填表!T22," ") ->  | H25: =IF(訂單填表!U22>0,訂單填表!U22," ") ->  | I25: =IF(訂單填表!U22>0,訂單填表!V22," ") ->  | J25: =IF(訂單填表!U22>0,訂單填表!W22," ") ->  | M25: =CONCATENATE(訂單列印!C25) ->  | N25: =CONCATENATE(訂單列印!H25) ->  | O25: =CONCATENATE(訂單列印!I25) ->  | P25: =CONCATENATE(訂單列印!D25) ->  | Q25: =CONCATENATE(訂單列印!E25) ->  | R25: =CONCATENATE(訂單列印!F25) ->  | S25: =CONCATENATE(訂單列印!G25) ->  | T25: =CONCATENATE(訂單列印!J25) -> 
C26: =IF(訂單填表!U23>0.1,訂單填表!N23," ") ->  | D26: =IF(訂單填表!U23>0,訂單填表!P23," ") ->  | E26: =IF(訂單填表!U23>0,訂單填表!R23," ") ->  | F26: =IF(訂單填表!U23>0,訂單填表!S23," ") ->  | G26: =IF(訂單填表!U23>0,訂單填表!T23," ") ->  | H26: =IF(訂單填表!U23>0,訂單填表!U23," ") ->  | I26: =IF(訂單填表!U23>0,訂單填表!V23," ") ->  | J26: =IF(訂單填表!U23>0,訂單填表!W23," ") ->  | M26: =CONCATENATE(訂單列印!C26) ->  | N26: =CONCATENATE(訂單列印!H26) ->  | O26: =CONCATENATE(訂單列印!I26) ->  | P26: =CONCATENATE(訂單列印!D26) ->  | Q26: =CONCATENATE(訂單列印!E26) ->  | R26: =CONCATENATE(訂單列印!F26) ->  | S26: =CONCATENATE(訂單列印!G26) ->  | T26: =CONCATENATE(訂單列印!J26) -> 
C27: =IF(訂單填表!U24>0.1,訂單填表!N24," ") ->  | D27: =IF(訂單填表!U24>0,訂單填表!P24," ") ->  | E27: =IF(訂單填表!U24>0,訂單填表!R24," ") ->  | F27: =IF(訂單填表!U24>0,訂單填表!S24," ") ->  | G27: =IF(訂單填表!U24>0,訂單填表!T24," ") ->  | H27: =IF(訂單填表!U24>0,訂單填表!U24," ") ->  | I27: =IF(訂單填表!U24>0,訂單填表!V24," ") ->  | J27: =IF(訂單填表!U24>0,訂單填表!W24," ") ->  | M27: =CONCATENATE(訂單列印!C27) ->  | N27: =CONCATENATE(訂單列印!H27) ->  | O27: =CONCATENATE(訂單列印!I27) ->  | P27: =CONCATENATE(訂單列印!D27) ->  | Q27: =CONCATENATE(訂單列印!E27) ->  | R27: =CONCATENATE(訂單列印!F27) ->  | S27: =CONCATENATE(訂單列印!G27) ->  | T27: =CONCATENATE(訂單列印!J27) -> 
C28: =IF(訂單填表!U25>0.1,訂單填表!N25," ") ->  | D28: =IF(訂單填表!U25>0,訂單填表!P25," ") ->  | E28: =IF(訂單填表!U25>0,訂單填表!R25," ") ->  | F28: =IF(訂單填表!U25>0,訂單填表!S25," ") ->  | G28: =IF(訂單填表!U25>0,訂單填表!T25," ") ->  | H28: =IF(訂單填表!U25>0,訂單填表!U25," ") ->  | I28: =IF(訂單填表!U25>0,訂單填表!V25," ") ->  | J28: =IF(訂單填表!U25>0,訂單填表!W25," ") ->  | M28: =CONCATENATE(訂單列印!C28) ->  | N28: =CONCATENATE(訂單列印!H28) ->  | O28: =CONCATENATE(訂單列印!I28) ->  | P28: =CONCATENATE(訂單列印!D28) ->  | Q28: =CONCATENATE(訂單列印!E28) ->  | R28: =CONCATENATE(訂單列印!F28) ->  | S28: =CONCATENATE(訂單列印!G28) ->  | T28: =CONCATENATE(訂單列印!J28) -> 
C29: =IF(訂單填表!U26>0.1,訂單填表!N26," ") ->  | D29: =IF(訂單填表!U26>0,訂單填表!P26," ") ->  | E29: =IF(訂單填表!U26>0,訂單填表!R26," ") ->  | F29: =IF(訂單填表!U26>0,訂單填表!S26," ") ->  | G29: =IF(訂單填表!U26>0,訂單填表!T26," ") ->  | H29: =IF(訂單填表!U26>0,訂單填表!U26," ") ->  | I29: =IF(訂單填表!U26>0,訂單填表!V26," ") ->  | J29: =IF(訂單填表!U26>0,訂單填表!W26," ") ->  | M29: =CONCATENATE(訂單列印!C29) ->  | N29: =CONCATENATE(訂單列印!H29) ->  | O29: =CONCATENATE(訂單列印!I29) ->  | P29: =CONCATENATE(訂單列印!D29) ->  | Q29: =CONCATENATE(訂單列印!E29) ->  | R29: =CONCATENATE(訂單列印!F29) ->  | S29: =CONCATENATE(訂單列印!G29) ->  | T29: =CONCATENATE(訂單列印!J29) -> 
C30: =IF(訂單填表!U27>0.1,訂單填表!N27," ") ->  | D30: =IF(訂單填表!U27>0,訂單填表!P27," ") ->  | E30: =IF(訂單填表!U27>0,訂單填表!R27," ") ->  | F30: =IF(訂單填表!U27>0,訂單填表!S27," ") ->  | G30: =IF(訂單填表!U27>0,訂單填表!T27," ") ->  | H30: =IF(訂單填表!U27>0,訂單填表!U27," ") ->  | I30: =IF(訂單填表!U27>0,訂單填表!V27," ") ->  | J30: =IF(訂單填表!U27>0,訂單填表!W27," ") ->  | M30: =CONCATENATE(訂單列印!C30) ->  | N30: =CONCATENATE(訂單列印!H30) ->  | O30: =CONCATENATE(訂單列印!I30) ->  | P30: =CONCATENATE(訂單列印!D30) ->  | Q30: =CONCATENATE(訂單列印!E30) ->  | R30: =CONCATENATE(訂單列印!F30) ->  | S30: =CONCATENATE(訂單列印!G30) ->  | T30: =CONCATENATE(訂單列印!J30) -> 
C31: =IF(訂單填表!U28>0.1,訂單填表!N28," ") ->  | D31: =IF(訂單填表!U28>0,訂單填表!P28," ") ->  | E31: =IF(訂單填表!U28>0,訂單填表!R28," ") ->  | F31: =IF(訂單填表!U28>0,訂單填表!S28," ") ->  | G31: =IF(訂單填表!U28>0,訂單填表!T28," ") ->  | H31: =IF(訂單填表!U28>0,訂單填表!U28," ") ->  | I31: =IF(訂單填表!U28>0,訂單填表!V28," ") ->  | J31: =IF(訂單填表!U28>0,訂單填表!W28," ") ->  | M31: =CONCATENATE(訂單列印!C31) ->  | N31: =CONCATENATE(訂單列印!H31) ->  | O31: =CONCATENATE(訂單列印!I31) ->  | P31: =CONCATENATE(訂單列印!D31) ->  | Q31: =CONCATENATE(訂單列印!E31) ->  | R31: =CONCATENATE(訂單列印!F31) ->  | S31: =CONCATENATE(訂單列印!G31) ->  | T31: =CONCATENATE(訂單列印!J31) -> 
C32: =IF(訂單填表!U29>0.1,訂單填表!N29," ") ->  | D32: =IF(訂單填表!U29>0,訂單填表!P29," ") ->  | E32: =IF(訂單填表!U29>0,訂單填表!R29," ") ->  | F32: =IF(訂單填表!U29>0,訂單填表!S29," ") ->  | G32: =IF(訂單填表!U29>0,訂單填表!T29," ") ->  | H32: =IF(訂單填表!U29>0,訂單填表!U29," ") ->  | I32: =IF(訂單填表!U29>0,訂單填表!V29," ") ->  | J32: =IF(訂單填表!U29>0,訂單填表!W29," ") ->  | M32: =CONCATENATE(訂單列印!C32) ->  | N32: =CONCATENATE(訂單列印!H32) ->  | O32: =CONCATENATE(訂單列印!I32) ->  | P32: =CONCATENATE(訂單列印!D32) ->  | Q32: =CONCATENATE(訂單列印!E32) ->  | R32: =CONCATENATE(訂單列印!F32) ->  | S32: =CONCATENATE(訂單列印!G32) ->  | T32: =CONCATENATE(訂單列印!J32) -> 
C33: =IF(訂單填表!U30>0.1,訂單填表!N30," ") ->  | D33: =IF(訂單填表!U30>0,訂單填表!P30," ") ->  | E33: =IF(訂單填表!U30>0,訂單填表!R30," ") ->  | F33: =IF(訂單填表!U30>0,訂單填表!S30," ") ->  | G33: =IF(訂單填表!U30>0,訂單填表!T30," ") ->  | H33: =IF(訂單填表!U30>0,訂單填表!U30," ") ->  | I33: =IF(訂單填表!U30>0,訂單填表!V30," ") ->  | J33: =IF(訂單填表!U30>0,訂單填表!W30," ") ->  | M33: =CONCATENATE(訂單列印!C33) ->  | N33: =CONCATENATE(訂單列印!H33) ->  | O33: =CONCATENATE(訂單列印!I33) ->  | P33: =CONCATENATE(訂單列印!D33) ->  | Q33: =CONCATENATE(訂單列印!E33) ->  | R33: =CONCATENATE(訂單列印!F33) ->  | S33: =CONCATENATE(訂單列印!G33) ->  | T33: =CONCATENATE(訂單列印!J33) -> 
C34: =IF(訂單填表!U31>0.1,訂單填表!N31," ") ->  | D34: =IF(訂單填表!U31>0,訂單填表!P31," ") ->  | E34: =IF(訂單填表!U31>0,訂單填表!R31," ") ->  | F34: =IF(訂單填表!U31>0,訂單填表!S31," ") ->  | G34: =IF(訂單填表!U31>0,訂單填表!T31," ") ->  | H34: =IF(訂單填表!U31>0,訂單填表!U31," ") ->  | I34: =IF(訂單填表!U31>0,訂單填表!V31," ") ->  | J34: =IF(訂單填表!U31>0,訂單填表!W31," ") ->  | M34: =CONCATENATE(訂單列印!C34) ->  | N34: =CONCATENATE(訂單列印!H34) ->  | O34: =CONCATENATE(訂單列印!I34) ->  | P34: =CONCATENATE(訂單列印!D34) ->  | Q34: =CONCATENATE(訂單列印!E34) ->  | R34: =CONCATENATE(訂單列印!F34) ->  | S34: =CONCATENATE(訂單列印!G34) ->  | T34: =CONCATENATE(訂單列印!J34) -> 
C35: =IF(訂單填表!U32>0.1,訂單填表!N32," ") ->  | D35: =IF(訂單填表!U32>0,訂單填表!P32," ") ->  | E35: =IF(訂單填表!U32>0,訂單填表!R32," ") ->  | F35: =IF(訂單填表!U32>0,訂單填表!S32," ") ->  | G35: =IF(訂單填表!U32>0,訂單填表!T32," ") ->  | H35: =IF(訂單填表!U32>0,訂單填表!U32," ") ->  | I35: =IF(訂單填表!U32>0,訂單填表!V32," ") ->  | J35: =IF(訂單填表!U32>0,訂單填表!W32," ") ->  | M35: =CONCATENATE(訂單列印!C35) ->  | N35: =CONCATENATE(訂單列印!H35) ->  | O35: =CONCATENATE(訂單列印!I35) ->  | P35: =CONCATENATE(訂單列印!D35) ->  | Q35: =CONCATENATE(訂單列印!E35) ->  | R35: =CONCATENATE(訂單列印!F35) ->  | S35: =CONCATENATE(訂單列印!G35) ->  | T35: =CONCATENATE(訂單列印!J35) -> 
C36: =IF(訂單填表!U33>0.1,訂單填表!N33," ") ->  | D36: =IF(訂單填表!U33>0,訂單填表!P33," ") ->  | E36: =IF(訂單填表!U33>0,訂單填表!R33," ") ->  | F36: =IF(訂單填表!U33>0,訂單填表!S33," ") ->  | G36: =IF(訂單填表!U33>0,訂單填表!T33," ") ->  | H36: =IF(訂單填表!U33>0,訂單填表!U33," ") ->  | I36: =IF(訂單填表!U33>0,訂單填表!V33," ") ->  | J36: =IF(訂單填表!U33>0,訂單填表!W33," ") ->  | M36: =CONCATENATE(訂單列印!C36) ->  | N36: =CONCATENATE(訂單列印!H36) ->  | O36: =CONCATENATE(訂單列印!I36) ->  | P36: =CONCATENATE(訂單列印!D36) ->  | Q36: =CONCATENATE(訂單列印!E36) ->  | R36: =CONCATENATE(訂單列印!F36) ->  | S36: =CONCATENATE(訂單列印!G36) ->  | T36: =CONCATENATE(訂單列印!J36) -> 
C37: =IF(訂單填表!U34>0.1,訂單填表!N34," ") ->  | D37: =IF(訂單填表!U34>0,訂單填表!P34," ") ->  | E37: =IF(訂單填表!U34>0,訂單填表!R34," ") ->  | F37: =IF(訂單填表!U34>0,訂單填表!S34," ") ->  | G37: =IF(訂單填表!U34>0,訂單填表!T34," ") ->  | H37: =IF(訂單填表!U34>0,訂單填表!U34," ") ->  | I37: =IF(訂單填表!U34>0,訂單填表!V34," ") ->  | J37: =IF(訂單填表!U34>0,訂單填表!W34," ") ->  | M37: =CONCATENATE(訂單列印!C37) ->  | N37: =CONCATENATE(訂單列印!H37) ->  | O37: =CONCATENATE(訂單列印!I37) ->  | P37: =CONCATENATE(訂單列印!D37) ->  | Q37: =CONCATENATE(訂單列印!E37) ->  | R37: =CONCATENATE(訂單列印!F37) ->  | S37: =CONCATENATE(訂單列印!G37) ->  | T37: =CONCATENATE(訂單列印!J37) -> 
C38: =IF(訂單填表!U35>0.1,訂單填表!N35," ") ->  | D38: =IF(訂單填表!U35>0,訂單填表!P35," ") ->  | E38: =IF(訂單填表!U35>0,訂單填表!R35," ") ->  | F38: =IF(訂單填表!U35>0,訂單填表!S35," ") ->  | G38: =IF(訂單填表!U35>0,訂單填表!T35," ") ->  | H38: =IF(訂單填表!U35>0,訂單填表!U35," ") ->  | I38: =IF(訂單填表!U35>0,訂單填表!V35," ") ->  | J38: =IF(訂單填表!U35>0,訂單填表!W35," ") ->  | M38: =CONCATENATE(訂單列印!C38) ->  | N38: =CONCATENATE(訂單列印!H38) ->  | O38: =CONCATENATE(訂單列印!I38) ->  | P38: =CONCATENATE(訂單列印!D38) ->  | Q38: =CONCATENATE(訂單列印!E38) ->  | R38: =CONCATENATE(訂單列印!F38) ->  | S38: =CONCATENATE(訂單列印!G38) ->  | T38: =CONCATENATE(訂單列印!J38) -> 
C39: =IF(訂單填表!U36>0.1,訂單填表!N36," ") ->  | D39: =IF(訂單填表!U36>0,訂單填表!P36," ") ->  | E39: =IF(訂單填表!U36>0,訂單填表!R36," ") ->  | F39: =IF(訂單填表!U36>0,訂單填表!S36," ") ->  | G39: =IF(訂單填表!U36>0,訂單填表!T36," ") ->  | H39: =IF(訂單填表!U36>0,訂單填表!U36," ") ->  | I39: =IF(訂單填表!U36>0,訂單填表!V36," ") ->  | J39: =IF(訂單填表!U36>0,訂單填表!W36," ") ->  | M39: =CONCATENATE(訂單列印!C39) ->  | N39: =CONCATENATE(訂單列印!H39) ->  | O39: =CONCATENATE(訂單列印!I39) ->  | P39: =CONCATENATE(訂單列印!D39) ->  | Q39: =CONCATENATE(訂單列印!E39) ->  | R39: =CONCATENATE(訂單列印!F39) ->  | S39: =CONCATENATE(訂單列印!G39) ->  | T39: =CONCATENATE(訂單列印!J39) -> 
C40: =IF(訂單填表!U37>0.1,訂單填表!N37," ") ->  | D40: =IF(訂單填表!U37>0,訂單填表!P37," ") ->  | E40: =IF(訂單填表!U37>0,訂單填表!R37," ") ->  | F40: =IF(訂單填表!U37>0,訂單填表!S37," ") ->  | G40: =IF(訂單填表!U37>0,訂單填表!T37," ") ->  | H40: =IF(訂單填表!U37>0,訂單填表!U37," ") ->  | I40: =IF(訂單填表!U37>0,訂單填表!V37," ") ->  | J40: =IF(訂單填表!U37>0,訂單填表!W37," ") ->  | M40: =CONCATENATE(訂單列印!C40) ->  | N40: =CONCATENATE(訂單列印!H40) ->  | O40: =CONCATENATE(訂單列印!I40) ->  | P40: =CONCATENATE(訂單列印!D40) ->  | Q40: =CONCATENATE(訂單列印!E40) ->  | R40: =CONCATENATE(訂單列印!F40) ->  | S40: =CONCATENATE(訂單列印!G40) ->  | T40: =CONCATENATE(訂單列印!J40) -> 
C41: =IF(訂單填表!U38>0.1,訂單填表!N38," ") ->  | D41: =IF(訂單填表!U38>0,訂單填表!P38," ") ->  | E41: =IF(訂單填表!U38>0,訂單填表!R38," ") ->  | F41: =IF(訂單填表!U38>0,訂單填表!S38," ") ->  | G41: =IF(訂單填表!U38>0,訂單填表!T38," ") ->  | H41: =IF(訂單填表!U38>0,訂單填表!U38," ") ->  | I41: =IF(訂單填表!U38>0,訂單填表!V38," ") ->  | J41: =IF(訂單填表!U38>0,訂單填表!W38," ") ->  | M41: =CONCATENATE(訂單列印!C41) ->  | N41: =CONCATENATE(訂單列印!H41) ->  | O41: =CONCATENATE(訂單列印!I41) ->  | P41: =CONCATENATE(訂單列印!D41) ->  | Q41: =CONCATENATE(訂單列印!E41) ->  | R41: =CONCATENATE(訂單列印!F41) ->  | S41: =CONCATENATE(訂單列印!G41) ->  | T41: =CONCATENATE(訂單列印!J41) -> 
C42: =IF(訂單填表!U39>0.1,訂單填表!N39," ") ->  | D42: =IF(訂單填表!U39>0,訂單填表!P39," ") ->  | E42: =IF(訂單填表!U39>0,訂單填表!R39," ") ->  | F42: =IF(訂單填表!U39>0,訂單填表!S39," ") ->  | G42: =IF(訂單填表!U39>0,訂單填表!T39," ") ->  | H42: =IF(訂單填表!U39>0,訂單填表!U39," ") ->  | I42: =IF(訂單填表!U39>0,訂單填表!V39," ") ->  | J42: =IF(訂單填表!U39>0,訂單填表!W39," ") ->  | M42: =CONCATENATE(訂單列印!C42) ->  | N42: =CONCATENATE(訂單列印!H42) ->  | O42: =CONCATENATE(訂單列印!I42) ->  | P42: =CONCATENATE(訂單列印!D42) ->  | Q42: =CONCATENATE(訂單列印!E42) ->  | R42: =CONCATENATE(訂單列印!F42) ->  | S42: =CONCATENATE(訂單列印!G42) ->  | T42: =CONCATENATE(訂單列印!J42) -> 
C43: =IF(訂單填表!U40>0.1,訂單填表!N40," ") ->  | D43: =IF(訂單填表!U40>0,訂單填表!P40," ") ->  | E43: =IF(訂單填表!U40>0,訂單填表!R40," ") ->  | F43: =IF(訂單填表!U40>0,訂單填表!S40," ") ->  | G43: =IF(訂單填表!U40>0,訂單填表!T40," ") ->  | H43: =IF(訂單填表!U40>0,訂單填表!U40," ") ->  | I43: =IF(訂單填表!U40>0,訂單填表!V40," ") ->  | J43: =IF(訂單填表!U40>0,訂單填表!W40," ") ->  | M43: =CONCATENATE(訂單列印!C43) ->  | N43: =CONCATENATE(訂單列印!H43) ->  | O43: =CONCATENATE(訂單列印!I43) ->  | P43: =CONCATENATE(訂單列印!D43) ->  | Q43: =CONCATENATE(訂單列印!E43) ->  | R43: =CONCATENATE(訂單列印!F43) ->  | S43: =CONCATENATE(訂單列印!G43) ->  | T43: =CONCATENATE(訂單列印!J43) -> 
C44: =IF(訂單填表!U41>0.1,訂單填表!N41," ") ->  | D44: =IF(訂單填表!U41>0,訂單填表!P41," ") ->  | E44: =IF(訂單填表!U41>0,訂單填表!R41," ") ->  | F44: =IF(訂單填表!U41>0,訂單填表!S41," ") ->  | G44: =IF(訂單填表!U41>0,訂單填表!T41," ") ->  | H44: =IF(訂單填表!U41>0,訂單填表!U41," ") ->  | I44: =IF(訂單填表!U41>0,訂單填表!V41," ") ->  | J44: =IF(訂單填表!U41>0,訂單填表!W41," ") ->  | M44: =CONCATENATE(訂單列印!C44) ->  | N44: =CONCATENATE(訂單列印!H44) ->  | O44: =CONCATENATE(訂單列印!I44) ->  | P44: =CONCATENATE(訂單列印!D44) ->  | Q44: =CONCATENATE(訂單列印!E44) ->  | R44: =CONCATENATE(訂單列印!F44) ->  | S44: =CONCATENATE(訂單列印!G44) ->  | T44: =CONCATENATE(訂單列印!J44) -> 
C45: =IF(訂單填表!U42>0.1,訂單填表!N42," ") ->  | D45: =IF(訂單填表!U42>0,訂單填表!P42," ") ->  | E45: =IF(訂單填表!U42>0,訂單填表!R42," ") ->  | F45: =IF(訂單填表!U42>0,訂單填表!S42," ") ->  | G45: =IF(訂單填表!U42>0,訂單填表!T42," ") ->  | H45: =IF(訂單填表!U42>0,訂單填表!U42," ") ->  | I45: =IF(訂單填表!U42>0,訂單填表!V42," ") ->  | J45: =IF(訂單填表!U42>0,訂單填表!W42," ") ->  | M45: =CONCATENATE(訂單列印!C45) ->  | N45: =CONCATENATE(訂單列印!H45) ->  | O45: =CONCATENATE(訂單列印!I45) ->  | P45: =CONCATENATE(訂單列印!D45) ->  | Q45: =CONCATENATE(訂單列印!E45) ->  | R45: =CONCATENATE(訂單列印!F45) ->  | S45: =CONCATENATE(訂單列印!G45) ->  | T45: =CONCATENATE(訂單列印!J45) -> 
C46: =IF(訂單填表!U43>0.1,訂單填表!N43," ") ->  | D46: =IF(訂單填表!U43>0,訂單填表!P43," ") ->  | E46: =IF(訂單填表!U43>0,訂單填表!R43," ") ->  | F46: =IF(訂單填表!U43>0,訂單填表!S43," ") ->  | G46: =IF(訂單填表!U43>0,訂單填表!T43," ") ->  | H46: =IF(訂單填表!U43>0,訂單填表!U43," ") ->  | I46: =IF(訂單填表!U43>0,訂單填表!V43," ") ->  | J46: =IF(訂單填表!U43>0,訂單填表!W43," ") ->  | M46: =CONCATENATE(訂單列印!C46) ->  | N46: =CONCATENATE(訂單列印!H46) ->  | O46: =CONCATENATE(訂單列印!I46) ->  | P46: =CONCATENATE(訂單列印!D46) ->  | Q46: =CONCATENATE(訂單列印!E46) ->  | R46: =CONCATENATE(訂單列印!F46) ->  | S46: =CONCATENATE(訂單列印!G46) ->  | T46: =CONCATENATE(訂單列印!J46) -> 
C47: =IF(訂單填表!U44>0.1,訂單填表!N44," ") ->  | D47: =IF(訂單填表!U44>0,訂單填表!P44," ") ->  | E47: =IF(訂單填表!U44>0,訂單填表!R44," ") ->  | F47: =IF(訂單填表!U44>0,訂單填表!S44," ") ->  | G47: =IF(訂單填表!U44>0,訂單填表!T44," ") ->  | H47: =IF(訂單填表!U44>0,訂單填表!U44," ") ->  | I47: =IF(訂單填表!U44>0,訂單填表!V44," ") ->  | J47: =IF(訂單填表!U44>0,訂單填表!W44," ") ->  | M47: =CONCATENATE(訂單列印!C47) ->  | N47: =CONCATENATE(訂單列印!H47) ->  | O47: =CONCATENATE(訂單列印!I47) ->  | P47: =CONCATENATE(訂單列印!D47) ->  | Q47: =CONCATENATE(訂單列印!E47) ->  | R47: =CONCATENATE(訂單列印!F47) ->  | S47: =CONCATENATE(訂單列印!G47) ->  | T47: =CONCATENATE(訂單列印!J47) -> 
C48: =IF(訂單填表!U45>0.1,訂單填表!N45," ") ->  | D48: =IF(訂單填表!U45>0,訂單填表!P45," ") ->  | E48: =IF(訂單填表!U45>0,訂單填表!R45," ") ->  | F48: =IF(訂單填表!U45>0,訂單填表!S45," ") ->  | G48: =IF(訂單填表!U45>0,訂單填表!T45," ") ->  | H48: =IF(訂單填表!U45>0,訂單填表!U45," ") ->  | I48: =IF(訂單填表!U45>0,訂單填表!V45," ") ->  | J48: =IF(訂單填表!U45>0,訂單填表!W45," ") ->  | M48: =CONCATENATE(訂單列印!C48) ->  | N48: =CONCATENATE(訂單列印!H48) ->  | O48: =CONCATENATE(訂單列印!I48) ->  | P48: =CONCATENATE(訂單列印!D48) ->  | Q48: =CONCATENATE(訂單列印!E48) ->  | R48: =CONCATENATE(訂單列印!F48) ->  | S48: =CONCATENATE(訂單列印!G48) ->  | T48: =CONCATENATE(訂單列印!J48) -> 
C49: =IF(訂單填表!U46>0.1,訂單填表!N46," ") ->  | D49: =IF(訂單填表!U46>0,訂單填表!P46," ") ->  | E49: =IF(訂單填表!U46>0,訂單填表!R46," ") ->  | F49: =IF(訂單填表!U46>0,訂單填表!S46," ") ->  | G49: =IF(訂單填表!U46>0,訂單填表!T46," ") ->  | H49: =IF(訂單填表!U46>0,訂單填表!U46," ") ->  | I49: =IF(訂單填表!U46>0,訂單填表!V46," ") ->  | J49: =IF(訂單填表!U46>0,訂單填表!W46," ") ->  | M49: =CONCATENATE(訂單列印!C49) ->  | N49: =CONCATENATE(訂單列印!H49) ->  | O49: =CONCATENATE(訂單列印!I49) ->  | P49: =CONCATENATE(訂單列印!D49) ->  | Q49: =CONCATENATE(訂單列印!E49) ->  | R49: =CONCATENATE(訂單列印!F49) ->  | S49: =CONCATENATE(訂單列印!G49) ->  | T49: =CONCATENATE(訂單列印!J49) -> 
C50: =IF(訂單填表!U47>0.1,訂單填表!N47," ") ->  | D50: =IF(訂單填表!U47>0,訂單填表!P47," ") ->  | E50: =IF(訂單填表!U47>0,訂單填表!R47," ") ->  | F50: =IF(訂單填表!U47>0,訂單填表!S47," ") ->  | G50: =IF(訂單填表!U47>0,訂單填表!T47," ") ->  | H50: =IF(訂單填表!U47>0,訂單填表!U47," ") ->  | I50: =IF(訂單填表!U47>0,訂單填表!V47," ") ->  | J50: =IF(訂單填表!U47>0,訂單填表!W47," ") ->  | M50: =CONCATENATE(訂單列印!C50) ->  | N50: =CONCATENATE(訂單列印!H50) ->  | O50: =CONCATENATE(訂單列印!I50) ->  | P50: =CONCATENATE(訂單列印!D50) ->  | Q50: =CONCATENATE(訂單列印!E50) ->  | R50: =CONCATENATE(訂單列印!F50) ->  | S50: =CONCATENATE(訂單列印!G50) ->  | T50: =CONCATENATE(訂單列印!J50) -> 
C51: =IF(訂單填表!U48>0.1,訂單填表!N48," ") ->  | D51: =IF(訂單填表!U48>0,訂單填表!P48," ") ->  | E51: =IF(訂單填表!U48>0,訂單填表!R48," ") ->  | F51: =IF(訂單填表!U48>0,訂單填表!S48," ") ->  | G51: =IF(訂單填表!U48>0,訂單填表!T48," ") ->  | H51: =IF(訂單填表!U48>0,訂單填表!U48," ") ->  | I51: =IF(訂單填表!U48>0,訂單填表!V48," ") ->  | J51: =IF(訂單填表!U48>0,訂單填表!W48," ") ->  | M51: =CONCATENATE(訂單列印!C51) ->  | N51: =CONCATENATE(訂單列印!H51) ->  | O51: =CONCATENATE(訂單列印!I51) ->  | P51: =CONCATENATE(訂單列印!D51) ->  | Q51: =CONCATENATE(訂單列印!E51) ->  | R51: =CONCATENATE(訂單列印!F51) ->  | S51: =CONCATENATE(訂單列印!G51) ->  | T51: =CONCATENATE(訂單列印!J51) -> 
C52: =IF(訂單填表!U49>0.1,訂單填表!N49," ") ->  | D52: =IF(訂單填表!U49>0,訂單填表!P49," ") ->  | E52: =IF(訂單填表!U49>0,訂單填表!R49," ") ->  | F52: =IF(訂單填表!U49>0,訂單填表!S49," ") ->  | G52: =IF(訂單填表!U49>0,訂單填表!T49," ") ->  | H52: =IF(訂單填表!U49>0,訂單填表!U49," ") ->  | I52: =IF(訂單填表!U49>0,訂單填表!V49," ") ->  | J52: =IF(訂單填表!U49>0,訂單填表!W49," ") ->  | M52: =CONCATENATE(訂單列印!C52) ->  | N52: =CONCATENATE(訂單列印!H52) ->  | O52: =CONCATENATE(訂單列印!I52) ->  | P52: =CONCATENATE(訂單列印!D52) ->  | Q52: =CONCATENATE(訂單列印!E52) ->  | R52: =CONCATENATE(訂單列印!F52) ->  | S52: =CONCATENATE(訂單列印!G52) ->  | T52: =CONCATENATE(訂單列印!J52) -> 
C53: =IF(訂單填表!U50>0.1,訂單填表!N50," ") ->  | D53: =IF(訂單填表!U50>0,訂單填表!P50," ") ->  | E53: =IF(訂單填表!U50>0,訂單填表!R50," ") ->  | F53: =IF(訂單填表!U50>0,訂單填表!S50," ") ->  | G53: =IF(訂單填表!U50>0,訂單填表!T50," ") ->  | H53: =IF(訂單填表!U50>0,訂單填表!U50," ") ->  | I53: =IF(訂單填表!U50>0,訂單填表!V50," ") ->  | J53: =IF(訂單填表!U50>0,訂單填表!W50," ") ->  | M53: =CONCATENATE(訂單列印!C53) ->  | N53: =CONCATENATE(訂單列印!H53) ->  | O53: =CONCATENATE(訂單列印!I53) ->  | P53: =CONCATENATE(訂單列印!D53) ->  | Q53: =CONCATENATE(訂單列印!E53) ->  | R53: =CONCATENATE(訂單列印!F53) ->  | S53: =CONCATENATE(訂單列印!G53) ->  | T53: =CONCATENATE(訂單列印!J53) -> 
C54: =IF(訂單填表!U51>0.1,訂單填表!N51," ") ->  | D54: =IF(訂單填表!U51>0,訂單填表!P51," ") ->  | E54: =IF(訂單填表!U51>0,訂單填表!R51," ") ->  | F54: =IF(訂單填表!U51>0,訂單填表!S51," ") ->  | G54: =IF(訂單填表!U51>0,訂單填表!T51," ") ->  | H54: =IF(訂單填表!U51>0,訂單填表!U51," ") ->  | I54: =IF(訂單填表!U51>0,訂單填表!V51," ") ->  | J54: =IF(訂單填表!U51>0,訂單填表!W51," ") ->  | M54: =CONCATENATE(訂單列印!C54) ->  | N54: =CONCATENATE(訂單列印!H54) ->  | O54: =CONCATENATE(訂單列印!I54) ->  | P54: =CONCATENATE(訂單列印!D54) ->  | Q54: =CONCATENATE(訂單列印!E54) ->  | R54: =CONCATENATE(訂單列印!F54) ->  | S54: =CONCATENATE(訂單列印!G54) ->  | T54: =CONCATENATE(訂單列印!J54) -> 
C55: =IF(訂單填表!U52>0.1,訂單填表!N52," ") ->  | D55: =IF(訂單填表!U52>0,訂單填表!P52," ") ->  | E55: =IF(訂單填表!U52>0,訂單填表!R52," ") ->  | F55: =IF(訂單填表!U52>0,訂單填表!S52," ") ->  | G55: =IF(訂單填表!U52>0,訂單填表!T52," ") ->  | H55: =IF(訂單填表!U52>0,訂單填表!U52," ") ->  | I55: =IF(訂單填表!U52>0,訂單填表!V52," ") ->  | J55: =IF(訂單填表!U52>0,訂單填表!W52," ") ->  | M55: =CONCATENATE(訂單列印!C55) ->  | N55: =CONCATENATE(訂單列印!H55) ->  | O55: =CONCATENATE(訂單列印!I55) ->  | P55: =CONCATENATE(訂單列印!D55) ->  | Q55: =CONCATENATE(訂單列印!E55) ->  | R55: =CONCATENATE(訂單列印!F55) ->  | S55: =CONCATENATE(訂單列印!G55) ->  | T55: =CONCATENATE(訂單列印!J55) -> 
C56: =IF(訂單填表!U53>0.1,訂單填表!N53," ") ->  | D56: =IF(訂單填表!U53>0,訂單填表!P53," ") ->  | E56: =IF(訂單填表!U53>0,訂單填表!R53," ") ->  | F56: =IF(訂單填表!U53>0,訂單填表!S53," ") ->  | G56: =IF(訂單填表!U53>0,訂單填表!T53," ") ->  | H56: =IF(訂單填表!U53>0,訂單填表!U53," ") ->  | I56: =IF(訂單填表!U53>0,訂單填表!V53," ") ->  | J56: =IF(訂單填表!U53>0,訂單填表!W53," ") ->  | M56: =CONCATENATE(訂單列印!C56) ->  | N56: =CONCATENATE(訂單列印!H56) ->  | O56: =CONCATENATE(訂單列印!I56) ->  | P56: =CONCATENATE(訂單列印!D56) ->  | Q56: =CONCATENATE(訂單列印!E56) ->  | R56: =CONCATENATE(訂單列印!F56) ->  | S56: =CONCATENATE(訂單列印!G56) ->  | T56: =CONCATENATE(訂單列印!J56) -> 
C57: =IF(訂單填表!U54>0.1,訂單填表!N54," ") ->  | D57: =IF(訂單填表!U54>0,訂單填表!P54," ") ->  | E57: =IF(訂單填表!U54>0,訂單填表!R54," ") ->  | F57: =IF(訂單填表!U54>0,訂單填表!S54," ") ->  | G57: =IF(訂單填表!U54>0,訂單填表!T54," ") ->  | H57: =IF(訂單填表!U54>0,訂單填表!U54," ") ->  | I57: =IF(訂單填表!U54>0,訂單填表!V54," ") ->  | J57: =IF(訂單填表!U54>0,訂單填表!W54," ") ->  | M57: =CONCATENATE(訂單列印!C57) ->  | N57: =CONCATENATE(訂單列印!H57) ->  | O57: =CONCATENATE(訂單列印!I57) ->  | P57: =CONCATENATE(訂單列印!D57) ->  | Q57: =CONCATENATE(訂單列印!E57) ->  | R57: =CONCATENATE(訂單列印!F57) ->  | S57: =CONCATENATE(訂單列印!G57) ->  | T57: =CONCATENATE(訂單列印!J57) -> 
C58: =IF(訂單填表!U55>0.1,訂單填表!N55," ") ->  | D58: =IF(訂單填表!U55>0,訂單填表!P55," ") ->  | E58: =IF(訂單填表!U55>0,訂單填表!R55," ") ->  | F58: =IF(訂單填表!U55>0,訂單填表!S55," ") ->  | G58: =IF(訂單填表!U55>0,訂單填表!T55," ") ->  | H58: =IF(訂單填表!U55>0,訂單填表!U55," ") ->  | I58: =IF(訂單填表!U55>0,訂單填表!V55," ") ->  | J58: =IF(訂單填表!U55>0,訂單填表!W55," ") ->  | M58: =CONCATENATE(訂單列印!C58) ->  | N58: =CONCATENATE(訂單列印!H58) ->  | O58: =CONCATENATE(訂單列印!I58) ->  | P58: =CONCATENATE(訂單列印!D58) ->  | Q58: =CONCATENATE(訂單列印!E58) ->  | R58: =CONCATENATE(訂單列印!F58) ->  | S58: =CONCATENATE(訂單列印!G58) ->  | T58: =CONCATENATE(訂單列印!J58) -> 
C59: =IF(訂單填表!U56>0.1,訂單填表!N56," ") ->  | D59: =IF(訂單填表!U56>0,訂單填表!P56," ") ->  | E59: =IF(訂單填表!U56>0,訂單填表!R56," ") ->  | F59: =IF(訂單填表!U56>0,訂單填表!S56," ") ->  | G59: =IF(訂單填表!U56>0,訂單填表!T56," ") ->  | H59: =IF(訂單填表!U56>0,訂單填表!U56," ") ->  | I59: =IF(訂單填表!U56>0,訂單填表!V56," ") ->  | J59: =IF(訂單填表!U56>0,訂單填表!W56," ") ->  | M59: =CONCATENATE(訂單列印!C59) ->  | N59: =CONCATENATE(訂單列印!H59) ->  | O59: =CONCATENATE(訂單列印!I59) ->  | P59: =CONCATENATE(訂單列印!D59) ->  | Q59: =CONCATENATE(訂單列印!E59) ->  | R59: =CONCATENATE(訂單列印!F59) ->  | S59: =CONCATENATE(訂單列印!G59) ->  | T59: =CONCATENATE(訂單列印!J59) -> 
C60: =IF(訂單填表!U57>0.1,訂單填表!N57," ") ->  | D60: =IF(訂單填表!U57>0,訂單填表!P57," ") ->  | E60: =IF(訂單填表!U57>0,訂單填表!R57," ") ->  | F60: =IF(訂單填表!U57>0,訂單填表!S57," ") ->  | G60: =IF(訂單填表!U57>0,訂單填表!T57," ") ->  | H60: =IF(訂單填表!U57>0,訂單填表!U57," ") ->  | I60: =IF(訂單填表!U57>0,訂單填表!V57," ") ->  | J60: =IF(訂單填表!U57>0,訂單填表!W57," ") ->  | M60: =CONCATENATE(訂單列印!C60) ->  | N60: =CONCATENATE(訂單列印!H60) ->  | O60: =CONCATENATE(訂單列印!I60) ->  | P60: =CONCATENATE(訂單列印!D60) ->  | Q60: =CONCATENATE(訂單列印!E60) ->  | R60: =CONCATENATE(訂單列印!F60) ->  | S60: =CONCATENATE(訂單列印!G60) ->  | T60: =CONCATENATE(訂單列印!J60) -> 
C61: =IF(訂單填表!U58>0.1,訂單填表!N58," ") ->  | D61: =IF(訂單填表!U58>0,訂單填表!P58," ") ->  | E61: =IF(訂單填表!U58>0,訂單填表!R58," ") ->  | F61: =IF(訂單填表!U58>0,訂單填表!S58," ") ->  | G61: =IF(訂單填表!U58>0,訂單填表!T58," ") ->  | H61: =IF(訂單填表!U58>0,訂單填表!U58," ") ->  | I61: =IF(訂單填表!U58>0,訂單填表!V58," ") ->  | J61: =IF(訂單填表!U58>0,訂單填表!W58," ") ->  | M61: =CONCATENATE(訂單列印!C61) ->  | N61: =CONCATENATE(訂單列印!H61) ->  | O61: =CONCATENATE(訂單列印!I61) ->  | P61: =CONCATENATE(訂單列印!D61) ->  | Q61: =CONCATENATE(訂單列印!E61) ->  | R61: =CONCATENATE(訂單列印!F61) ->  | S61: =CONCATENATE(訂單列印!G61) ->  | T61: =CONCATENATE(訂單列印!J61) -> 
C62: =IF(訂單填表!U59>0.1,訂單填表!N59," ") ->  | D62: =IF(訂單填表!U59>0,訂單填表!P59," ") ->  | E62: =IF(訂單填表!U59>0,訂單填表!R59," ") ->  | F62: =IF(訂單填表!U59>0,訂單填表!S59," ") ->  | G62: =IF(訂單填表!U59>0,訂單填表!T59," ") ->  | H62: =IF(訂單填表!U59>0,訂單填表!U59," ") ->  | I62: =IF(訂單填表!U59>0,訂單填表!V59," ") ->  | J62: =IF(訂單填表!U59>0,訂單填表!W59," ") ->  | M62: =CONCATENATE(訂單列印!C62) ->  | N62: =CONCATENATE(訂單列印!H62) ->  | O62: =CONCATENATE(訂單列印!I62) ->  | P62: =CONCATENATE(訂單列印!D62) ->  | Q62: =CONCATENATE(訂單列印!E62) ->  | R62: =CONCATENATE(訂單列印!F62) ->  | S62: =CONCATENATE(訂單列印!G62) ->  | T62: =CONCATENATE(訂單列印!J62) -> 
C63: =IF(訂單填表!U60>0.1,訂單填表!N60," ") ->  | D63: =IF(訂單填表!U60>0,訂單填表!P60," ") ->  | E63: =IF(訂單填表!U60>0,訂單填表!R60," ") ->  | F63: =IF(訂單填表!U60>0,訂單填表!S60," ") ->  | G63: =IF(訂單填表!U60>0,訂單填表!T60," ") ->  | H63: =IF(訂單填表!U60>0,訂單填表!U60," ") ->  | I63: =IF(訂單填表!U60>0,訂單填表!V60," ") ->  | J63: =IF(訂單填表!U60>0,訂單填表!W60," ") ->  | M63: =CONCATENATE(訂單列印!C63) ->  | N63: =CONCATENATE(訂單列印!H63) ->  | O63: =CONCATENATE(訂單列印!I63) ->  | P63: =CONCATENATE(訂單列印!D63) ->  | Q63: =CONCATENATE(訂單列印!E63) ->  | R63: =CONCATENATE(訂單列印!F63) ->  | S63: =CONCATENATE(訂單列印!G63) ->  | T63: =CONCATENATE(訂單列印!J63) -> 
C64: =IF(訂單填表!U61>0.1,訂單填表!N61," ") ->  | D64: =IF(訂單填表!U61>0,訂單填表!P61," ") ->  | E64: =IF(訂單填表!U61>0,訂單填表!R61," ") ->  | F64: =IF(訂單填表!U61>0,訂單填表!S61," ") ->  | G64: =IF(訂單填表!U61>0,訂單填表!T61," ") ->  | H64: =IF(訂單填表!U61>0,訂單填表!U61," ") ->  | I64: =IF(訂單填表!U61>0,訂單填表!V61," ") ->  | J64: =IF(訂單填表!U61>0,訂單填表!W61," ") ->  | M64: =CONCATENATE(訂單列印!C64) ->  | N64: =CONCATENATE(訂單列印!H64) ->  | O64: =CONCATENATE(訂單列印!I64) ->  | P64: =CONCATENATE(訂單列印!D64) ->  | Q64: =CONCATENATE(訂單列印!E64) ->  | R64: =CONCATENATE(訂單列印!F64) ->  | S64: =CONCATENATE(訂單列印!G64) ->  | T64: =CONCATENATE(訂單列印!J64) -> 
C65: =IF(訂單填表!U62>0.1,訂單填表!N62," ") ->  | D65: =IF(訂單填表!U62>0,訂單填表!P62," ") ->  | E65: =IF(訂單填表!U62>0,訂單填表!R62," ") ->  | F65: =IF(訂單填表!U62>0,訂單填表!S62," ") ->  | G65: =IF(訂單填表!U62>0,訂單填表!T62," ") ->  | H65: =IF(訂單填表!U62>0,訂單填表!U62," ") ->  | I65: =IF(訂單填表!U62>0,訂單填表!V62," ") ->  | J65: =IF(訂單填表!U62>0,訂單填表!W62," ") ->  | M65: =CONCATENATE(訂單列印!C65) ->  | N65: =CONCATENATE(訂單列印!H65) ->  | O65: =CONCATENATE(訂單列印!I65) ->  | P65: =CONCATENATE(訂單列印!D65) ->  | Q65: =CONCATENATE(訂單列印!E65) ->  | R65: =CONCATENATE(訂單列印!F65) ->  | S65: =CONCATENATE(訂單列印!G65) ->  | T65: =CONCATENATE(訂單列印!J65) -> 
C66: =IF(訂單填表!U63>0.1,訂單填表!N63," ") ->  | D66: =IF(訂單填表!U63>0,訂單填表!P63," ") ->  | E66: =IF(訂單填表!U63>0,訂單填表!R63," ") ->  | F66: =IF(訂單填表!U63>0,訂單填表!S63," ") ->  | G66: =IF(訂單填表!U63>0,訂單填表!T63," ") ->  | H66: =IF(訂單填表!U63>0,訂單填表!U63," ") ->  | I66: =IF(訂單填表!U63>0,訂單填表!V63," ") ->  | J66: =IF(訂單填表!U63>0,訂單填表!W63," ") ->  | M66: =CONCATENATE(訂單列印!C66) ->  | N66: =CONCATENATE(訂單列印!H66) ->  | O66: =CONCATENATE(訂單列印!I66) ->  | P66: =CONCATENATE(訂單列印!D66) ->  | Q66: =CONCATENATE(訂單列印!E66) ->  | R66: =CONCATENATE(訂單列印!F66) ->  | S66: =CONCATENATE(訂單列印!G66) ->  | T66: =CONCATENATE(訂單列印!J66) -> 
C67: =IF(訂單填表!U64>0.1,訂單填表!N64," ") ->  | D67: =IF(訂單填表!U64>0,訂單填表!P64," ") ->  | E67: =IF(訂單填表!U64>0,訂單填表!R64," ") ->  | F67: =IF(訂單填表!U64>0,訂單填表!S64," ") ->  | G67: =IF(訂單填表!U64>0,訂單填表!T64," ") ->  | H67: =IF(訂單填表!U64>0,訂單填表!U64," ") ->  | I67: =IF(訂單填表!U64>0,訂單填表!V64," ") ->  | J67: =IF(訂單填表!U64>0,訂單填表!W64," ") ->  | M67: =CONCATENATE(訂單列印!C67) ->  | N67: =CONCATENATE(訂單列印!H67) ->  | O67: =CONCATENATE(訂單列印!I67) ->  | P67: =CONCATENATE(訂單列印!D67) ->  | Q67: =CONCATENATE(訂單列印!E67) ->  | R67: =CONCATENATE(訂單列印!F67) ->  | S67: =CONCATENATE(訂單列印!G67) ->  | T67: =CONCATENATE(訂單列印!J67) -> 
C68: =IF(訂單填表!U65>0.1,訂單填表!N65," ") ->  | D68: =IF(訂單填表!U65>0,訂單填表!P65," ") ->  | E68: =IF(訂單填表!U65>0,訂單填表!R65," ") ->  | F68: =IF(訂單填表!U65>0,訂單填表!S65," ") ->  | G68: =IF(訂單填表!U65>0,訂單填表!T65," ") ->  | H68: =IF(訂單填表!U65>0,訂單填表!U65," ") ->  | I68: =IF(訂單填表!U65>0,訂單填表!V65," ") ->  | J68: =IF(訂單填表!U65>0,訂單填表!W65," ") ->  | M68: =CONCATENATE(訂單列印!C68) ->  | N68: =CONCATENATE(訂單列印!H68) ->  | O68: =CONCATENATE(訂單列印!I68) ->  | P68: =CONCATENATE(訂單列印!D68) ->  | Q68: =CONCATENATE(訂單列印!E68) ->  | R68: =CONCATENATE(訂單列印!F68) ->  | S68: =CONCATENATE(訂單列印!G68) ->  | T68: =CONCATENATE(訂單列印!J68) -> 
C69: =IF(訂單填表!U66>0.1,訂單填表!N66," ") ->  | D69: =IF(訂單填表!U66>0,訂單填表!P66," ") ->  | E69: =IF(訂單填表!U66>0,訂單填表!R66," ") ->  | F69: =IF(訂單填表!U66>0,訂單填表!S66," ") ->  | G69: =IF(訂單填表!U66>0,訂單填表!T66," ") ->  | H69: =IF(訂單填表!U66>0,訂單填表!U66," ") ->  | I69: =IF(訂單填表!U66>0,訂單填表!V66," ") ->  | J69: =IF(訂單填表!U66>0,訂單填表!W66," ") ->  | M69: =CONCATENATE(訂單列印!C69) ->  | N69: =CONCATENATE(訂單列印!H69) ->  | O69: =CONCATENATE(訂單列印!I69) ->  | P69: =CONCATENATE(訂單列印!D69) ->  | Q69: =CONCATENATE(訂單列印!E69) ->  | R69: =CONCATENATE(訂單列印!F69) ->  | S69: =CONCATENATE(訂單列印!G69) ->  | T69: =CONCATENATE(訂單列印!J69) -> 
C70: =IF(訂單填表!U67>0.1,訂單填表!N67," ") ->  | D70: =IF(訂單填表!U67>0,訂單填表!P67," ") ->  | E70: =IF(訂單填表!U67>0,訂單填表!R67," ") ->  | F70: =IF(訂單填表!U67>0,訂單填表!S67," ") ->  | G70: =IF(訂單填表!U67>0,訂單填表!T67," ") ->  | H70: =IF(訂單填表!U67>0,訂單填表!U67," ") ->  | I70: =IF(訂單填表!U67>0,訂單填表!V67," ") ->  | J70: =IF(訂單填表!U67>0,訂單填表!W67," ") ->  | M70: =CONCATENATE(訂單列印!C70) ->  | N70: =CONCATENATE(訂單列印!H70) ->  | O70: =CONCATENATE(訂單列印!I70) ->  | P70: =CONCATENATE(訂單列印!D70) ->  | Q70: =CONCATENATE(訂單列印!E70) ->  | R70: =CONCATENATE(訂單列印!F70) ->  | S70: =CONCATENATE(訂單列印!G70) ->  | T70: =CONCATENATE(訂單列印!J70) -> 
C71: =IF(訂單填表!U68>0.1,訂單填表!N68," ") ->  | D71: =IF(訂單填表!U68>0,訂單填表!P68," ") ->  | E71: =IF(訂單填表!U68>0,訂單填表!R68," ") ->  | F71: =IF(訂單填表!U68>0,訂單填表!S68," ") ->  | G71: =IF(訂單填表!U68>0,訂單填表!T68," ") ->  | H71: =IF(訂單填表!U68>0,訂單填表!U68," ") ->  | I71: =IF(訂單填表!U68>0,訂單填表!V68," ") ->  | J71: =IF(訂單填表!U68>0,訂單填表!W68," ") ->  | M71: =CONCATENATE(訂單列印!C71) ->  | N71: =CONCATENATE(訂單列印!H71) ->  | O71: =CONCATENATE(訂單列印!I71) ->  | P71: =CONCATENATE(訂單列印!D71) ->  | Q71: =CONCATENATE(訂單列印!E71) ->  | R71: =CONCATENATE(訂單列印!F71) ->  | S71: =CONCATENATE(訂單列印!G71) ->  | T71: =CONCATENATE(訂單列印!J71) -> 
C72: =IF(訂單填表!U69>0.1,訂單填表!N69," ") ->  | D72: =IF(訂單填表!U69>0,訂單填表!P69," ") ->  | E72: =IF(訂單填表!U69>0,訂單填表!R69," ") ->  | F72: =IF(訂單填表!U69>0,訂單填表!S69," ") ->  | G72: =IF(訂單填表!U69>0,訂單填表!T69," ") ->  | H72: =IF(訂單填表!U69>0,訂單填表!U69," ") ->  | I72: =IF(訂單填表!U69>0,訂單填表!V69," ") ->  | J72: =IF(訂單填表!U69>0,訂單填表!W69," ") ->  | M72: =CONCATENATE(訂單列印!C72) ->  | N72: =CONCATENATE(訂單列印!H72) ->  | O72: =CONCATENATE(訂單列印!I72) ->  | P72: =CONCATENATE(訂單列印!D72) ->  | Q72: =CONCATENATE(訂單列印!E72) ->  | R72: =CONCATENATE(訂單列印!F72) ->  | S72: =CONCATENATE(訂單列印!G72) ->  | T72: =CONCATENATE(訂單列印!J72) -> 
C73: =IF(訂單填表!U70>0.1,訂單填表!N70," ") ->  | D73: =IF(訂單填表!U70>0,訂單填表!P70," ") ->  | E73: =IF(訂單填表!U70>0,訂單填表!R70," ") ->  | F73: =IF(訂單填表!U70>0,訂單填表!S70," ") ->  | G73: =IF(訂單填表!U70>0,訂單填表!T70," ") ->  | H73: =IF(訂單填表!U70>0,訂單填表!U70," ") ->  | I73: =IF(訂單填表!U70>0,訂單填表!V70," ") ->  | J73: =IF(訂單填表!U70>0,訂單填表!W70," ") ->  | M73: =CONCATENATE(訂單列印!C73) ->  | N73: =CONCATENATE(訂單列印!H73) ->  | O73: =CONCATENATE(訂單列印!I73) ->  | P73: =CONCATENATE(訂單列印!D73) ->  | Q73: =CONCATENATE(訂單列印!E73) ->  | R73: =CONCATENATE(訂單列印!F73) ->  | S73: =CONCATENATE(訂單列印!G73) ->  | T73: =CONCATENATE(訂單列印!J73) -> 
C74: =IF(訂單填表!U71>0.1,訂單填表!N71," ") ->  | D74: =IF(訂單填表!U71>0,訂單填表!P71," ") ->  | E74: =IF(訂單填表!U71>0,訂單填表!R71," ") ->  | F74: =IF(訂單填表!U71>0,訂單填表!S71," ") ->  | G74: =IF(訂單填表!U71>0,訂單填表!T71," ") ->  | H74: =IF(訂單填表!U71>0,訂單填表!U71," ") ->  | I74: =IF(訂單填表!U71>0,訂單填表!V71," ") ->  | J74: =IF(訂單填表!U71>0,訂單填表!W71," ") ->  | M74: =CONCATENATE(訂單列印!C74) ->  | N74: =CONCATENATE(訂單列印!H74) ->  | O74: =CONCATENATE(訂單列印!I74) ->  | P74: =CONCATENATE(訂單列印!D74) ->  | Q74: =CONCATENATE(訂單列印!E74) ->  | R74: =CONCATENATE(訂單列印!F74) ->  | S74: =CONCATENATE(訂單列印!G74) ->  | T74: =CONCATENATE(訂單列印!J74) -> 
C75: =IF(訂單填表!U72>0.1,訂單填表!N72," ") -> 商用豆、調和豆 | D75: =IF(訂單填表!U72>0,訂單填表!P72," ") -> 規格(包裝) | E75: =IF(訂單填表!U72>0,訂單填表!R72," ") -> 磨粉 | F75: =IF(訂單填表!U72>0,訂單填表!S72," ") ->  | G75: =IF(訂單填表!U72>0,訂單填表!T72," ") -> 單價 | H75: =IF(訂單填表!U72>0,訂單填表!U72," ") -> 數量 | I75: =IF(訂單填表!U72>0,訂單填表!V72," ") -> 單位 | M75: =CONCATENATE(訂單列印!C75) -> 商用豆、調和豆 | N75: =CONCATENATE(訂單列印!H75) -> 數量 | O75: =CONCATENATE(訂單列印!I75) -> 單位 | P75: =CONCATENATE(訂單列印!D75) -> 規格(包裝) | Q75: =CONCATENATE(訂單列印!E75) -> 磨粉 | R75: =CONCATENATE(訂單列印!F75) ->  | S75: =CONCATENATE(訂單列印!G75) -> 單價 | T75: =CONCATENATE(訂單列印!J75) -> 
C76: =IF(訂單填表!U73>0.1,訂單填表!N73," ") ->  | D76: =IF(訂單填表!U73>0,訂單填表!P73," ") ->  | E76: =IF(訂單填表!U73>0,訂單填表!R73," ") ->  | F76: =IF(訂單填表!U73>0,訂單填表!S73," ") ->  | G76: =IF(訂單填表!U73>0,訂單填表!T73," ") ->  | H76: =IF(訂單填表!U73>0,訂單填表!U73," ") ->  | I76: =IF(訂單填表!U73>0,訂單填表!V73," ") ->  | J76: =IF(訂單填表!U73>0,訂單填表!W73," ") ->  | M76: =CONCATENATE(訂單列印!C76) ->  | N76: =CONCATENATE(訂單列印!H76) ->  | O76: =CONCATENATE(訂單列印!I76) ->  | P76: =CONCATENATE(訂單列印!D76) ->  | Q76: =CONCATENATE(訂單列印!E76) ->  | R76: =CONCATENATE(訂單列印!F76) ->  | S76: =CONCATENATE(訂單列印!G76) ->  | T76: =CONCATENATE(訂單列印!J76) -> 
C77: =IF(訂單填表!U74>0.1,訂單填表!N74," ") ->  | D77: =IF(訂單填表!U74>0,訂單填表!P74," ") ->  | E77: =IF(訂單填表!U74>0,訂單填表!R74," ") ->  | F77: =IF(訂單填表!U74>0,訂單填表!S74," ") ->  | G77: =IF(訂單填表!U74>0,訂單填表!T74," ") ->  | H77: =IF(訂單填表!U74>0,訂單填表!U74," ") ->  | I77: =IF(訂單填表!U74>0,訂單填表!V74," ") ->  | J77: =IF(訂單填表!U74>0,訂單填表!W74," ") ->  | M77: =CONCATENATE(訂單列印!C77) ->  | N77: =CONCATENATE(訂單列印!H77) ->  | O77: =CONCATENATE(訂單列印!I77) ->  | P77: =CONCATENATE(訂單列印!D77) ->  | Q77: =CONCATENATE(訂單列印!E77) ->  | R77: =CONCATENATE(訂單列印!F77) ->  | S77: =CONCATENATE(訂單列印!G77) ->  | T77: =CONCATENATE(訂單列印!J77) -> 
C78: =IF(訂單填表!U75>0.1,訂單填表!N75," ") ->  | D78: =IF(訂單填表!U75>0,訂單填表!P75," ") ->  | E78: =IF(訂單填表!U75>0,訂單填表!R75," ") ->  | F78: =IF(訂單填表!U75>0,訂單填表!S75," ") ->  | G78: =IF(訂單填表!U75>0,訂單填表!T75," ") ->  | H78: =IF(訂單填表!U75>0,訂單填表!U75," ") ->  | I78: =IF(訂單填表!U75>0,訂單填表!V75," ") ->  | J78: =IF(訂單填表!U75>0,訂單填表!W75," ") ->  | M78: =CONCATENATE(訂單列印!C78) ->  | N78: =CONCATENATE(訂單列印!H78) ->  | O78: =CONCATENATE(訂單列印!I78) ->  | P78: =CONCATENATE(訂單列印!D78) ->  | Q78: =CONCATENATE(訂單列印!E78) ->  | R78: =CONCATENATE(訂單列印!F78) ->  | S78: =CONCATENATE(訂單列印!G78) ->  | T78: =CONCATENATE(訂單列印!J78) -> 
C79: =IF(訂單填表!U76>0.1,訂單填表!N76," ") ->  | D79: =IF(訂單填表!U76>0,訂單填表!P76," ") ->  | E79: =IF(訂單填表!U76>0,訂單填表!R76," ") ->  | F79: =IF(訂單填表!U76>0,訂單填表!S76," ") ->  | G79: =IF(訂單填表!U76>0,訂單填表!T76," ") ->  | H79: =IF(訂單填表!U76>0,訂單填表!U76," ") ->  | I79: =IF(訂單填表!U76>0,訂單填表!V76," ") ->  | J79: =IF(訂單填表!U76>0,訂單填表!W76," ") ->  | M79: =CONCATENATE(訂單列印!C79) ->  | N79: =CONCATENATE(訂單列印!H79) ->  | O79: =CONCATENATE(訂單列印!I79) ->  | P79: =CONCATENATE(訂單列印!D79) ->  | Q79: =CONCATENATE(訂單列印!E79) ->  | R79: =CONCATENATE(訂單列印!F79) ->  | S79: =CONCATENATE(訂單列印!G79) ->  | T79: =CONCATENATE(訂單列印!J79) -> 
C80: =IF(訂單填表!U77>0.1,訂單填表!N77," ") ->  | D80: =IF(訂單填表!U77>0,訂單填表!P77," ") ->  | E80: =IF(訂單填表!U77>0,訂單填表!R77," ") ->  | F80: =IF(訂單填表!U77>0,訂單填表!S77," ") ->  | G80: =IF(訂單填表!U77>0,訂單填表!T77," ") ->  | H80: =IF(訂單填表!U77>0,訂單填表!U77," ") ->  | I80: =IF(訂單填表!U77>0,訂單填表!V77," ") ->  | J80: =IF(訂單填表!U77>0,訂單填表!W77," ") ->  | M80: =CONCATENATE(訂單列印!C80) ->  | N80: =CONCATENATE(訂單列印!H80) ->  | O80: =CONCATENATE(訂單列印!I80) ->  | P80: =CONCATENATE(訂單列印!D80) ->  | Q80: =CONCATENATE(訂單列印!E80) ->  | R80: =CONCATENATE(訂單列印!F80) ->  | S80: =CONCATENATE(訂單列印!G80) ->  | T80: =CONCATENATE(訂單列印!J80) -> 
C81: =IF(訂單填表!U78>0.1,訂單填表!N78," ") ->  | D81: =IF(訂單填表!U78>0,訂單填表!P78," ") ->  | E81: =IF(訂單填表!U78>0,訂單填表!R78," ") ->  | F81: =IF(訂單填表!U78>0,訂單填表!S78," ") ->  | G81: =IF(訂單填表!U78>0,訂單填表!T78," ") ->  | H81: =IF(訂單填表!U78>0,訂單填表!U78," ") ->  | I81: =IF(訂單填表!U78>0,訂單填表!V78," ") ->  | J81: =IF(訂單填表!U78>0,訂單填表!W78," ") ->  | M81: =CONCATENATE(訂單列印!C81) ->  | N81: =CONCATENATE(訂單列印!H81) ->  | O81: =CONCATENATE(訂單列印!I81) ->  | P81: =CONCATENATE(訂單列印!D81) ->  | Q81: =CONCATENATE(訂單列印!E81) ->  | R81: =CONCATENATE(訂單列印!F81) ->  | S81: =CONCATENATE(訂單列印!G81) ->  | T81: =CONCATENATE(訂單列印!J81) -> 
C82: =IF(訂單填表!U79>0.1,訂單填表!N79," ") ->  | D82: =IF(訂單填表!U79>0,訂單填表!P79," ") ->  | E82: =IF(訂單填表!U79>0,訂單填表!R79," ") ->  | F82: =IF(訂單填表!U79>0,訂單填表!S79," ") ->  | G82: =IF(訂單填表!U79>0,訂單填表!T79," ") ->  | H82: =IF(訂單填表!U79>0,訂單填表!U79," ") ->  | I82: =IF(訂單填表!U79>0,訂單填表!V79," ") ->  | J82: =IF(訂單填表!U79>0,訂單填表!W79," ") ->  | M82: =CONCATENATE(訂單列印!C82) ->  | N82: =CONCATENATE(訂單列印!H82) ->  | O82: =CONCATENATE(訂單列印!I82) ->  | P82: =CONCATENATE(訂單列印!D82) ->  | Q82: =CONCATENATE(訂單列印!E82) ->  | R82: =CONCATENATE(訂單列印!F82) ->  | S82: =CONCATENATE(訂單列印!G82) ->  | T82: =CONCATENATE(訂單列印!J82) -> 
C83: =IF(訂單填表!U80>0.1,訂單填表!N80," ") ->  | D83: =IF(訂單填表!U80>0,訂單填表!P80," ") ->  | E83: =IF(訂單填表!U80>0,訂單填表!R80," ") ->  | F83: =IF(訂單填表!U80>0,訂單填表!S80," ") ->  | G83: =IF(訂單填表!U80>0,訂單填表!T80," ") ->  | H83: =IF(訂單填表!U80>0,訂單填表!U80," ") ->  | I83: =IF(訂單填表!U80>0,訂單填表!V80," ") ->  | J83: =IF(訂單填表!U80>0,訂單填表!W80," ") ->  | M83: =CONCATENATE(訂單列印!C83) ->  | N83: =CONCATENATE(訂單列印!H83) ->  | O83: =CONCATENATE(訂單列印!I83) ->  | P83: =CONCATENATE(訂單列印!D83) ->  | Q83: =CONCATENATE(訂單列印!E83) ->  | R83: =CONCATENATE(訂單列印!F83) ->  | S83: =CONCATENATE(訂單列印!G83) ->  | T83: =CONCATENATE(訂單列印!J83) -> 
C84: =IF(訂單填表!U81>0.1,訂單填表!N81," ") ->  | D84: =IF(訂單填表!U81>0,訂單填表!P81," ") ->  | E84: =IF(訂單填表!U81>0,訂單填表!R81," ") ->  | F84: =IF(訂單填表!U81>0,訂單填表!S81," ") ->  | G84: =IF(訂單填表!U81>0,訂單填表!T81," ") ->  | H84: =IF(訂單填表!U81>0,訂單填表!U81," ") ->  | I84: =IF(訂單填表!U81>0,訂單填表!V81," ") ->  | J84: =IF(訂單填表!U81>0,訂單填表!W81," ") ->  | M84: =CONCATENATE(訂單列印!C84) ->  | N84: =CONCATENATE(訂單列印!H84) ->  | O84: =CONCATENATE(訂單列印!I84) ->  | P84: =CONCATENATE(訂單列印!D84) ->  | Q84: =CONCATENATE(訂單列印!E84) ->  | R84: =CONCATENATE(訂單列印!F84) ->  | S84: =CONCATENATE(訂單列印!G84) ->  | T84: =CONCATENATE(訂單列印!J84) -> 
C85: =IF(訂單填表!U82>0.1,訂單填表!N82," ") ->  | D85: =IF(訂單填表!U82>0,訂單填表!P82," ") ->  | E85: =IF(訂單填表!U82>0,訂單填表!R82," ") ->  | F85: =IF(訂單填表!U82>0,訂單填表!S82," ") ->  | G85: =IF(訂單填表!U82>0,訂單填表!T82," ") ->  | H85: =IF(訂單填表!U82>0,訂單填表!U82," ") ->  | I85: =IF(訂單填表!U82>0,訂單填表!V82," ") ->  | J85: =IF(訂單填表!U82>0,訂單填表!W82," ") ->  | M85: =CONCATENATE(訂單列印!C85) ->  | N85: =CONCATENATE(訂單列印!H85) ->  | O85: =CONCATENATE(訂單列印!I85) ->  | P85: =CONCATENATE(訂單列印!D85) ->  | Q85: =CONCATENATE(訂單列印!E85) ->  | R85: =CONCATENATE(訂單列印!F85) ->  | S85: =CONCATENATE(訂單列印!G85) ->  | T85: =CONCATENATE(訂單列印!J85) -> 
C86: =IF(訂單填表!U83>0.1,訂單填表!N83," ") ->  | D86: =IF(訂單填表!U83>0,訂單填表!P83," ") ->  | E86: =IF(訂單填表!U83>0,訂單填表!R83," ") ->  | F86: =IF(訂單填表!U83>0,訂單填表!S83," ") ->  | G86: =IF(訂單填表!U83>0,訂單填表!T83," ") ->  | H86: =IF(訂單填表!U83>0,訂單填表!U83," ") ->  | I86: =IF(訂單填表!U83>0,訂單填表!V83," ") ->  | J86: =IF(訂單填表!U83>0,訂單填表!W83," ") ->  | M86: =CONCATENATE(訂單列印!C86) ->  | N86: =CONCATENATE(訂單列印!H86) ->  | O86: =CONCATENATE(訂單列印!I86) ->  | P86: =CONCATENATE(訂單列印!D86) ->  | Q86: =CONCATENATE(訂單列印!E86) ->  | R86: =CONCATENATE(訂單列印!F86) ->  | S86: =CONCATENATE(訂單列印!G86) ->  | T86: =CONCATENATE(訂單列印!J86) -> 
C87: =IF(訂單填表!U84>0.1,訂單填表!N84," ") ->  | D87: =IF(訂單填表!U84>0,訂單填表!P84," ") ->  | E87: =IF(訂單填表!U84>0,訂單填表!R84," ") ->  | F87: =IF(訂單填表!U84>0,訂單填表!S84," ") ->  | G87: =IF(訂單填表!U84>0,訂單填表!T84," ") ->  | H87: =IF(訂單填表!U84>0,訂單填表!U84," ") ->  | I87: =IF(訂單填表!U84>0,訂單填表!V84," ") ->  | J87: =IF(訂單填表!U84>0,訂單填表!W84," ") ->  | M87: =CONCATENATE(訂單列印!C87) ->  | N87: =CONCATENATE(訂單列印!H87) ->  | O87: =CONCATENATE(訂單列印!I87) ->  | P87: =CONCATENATE(訂單列印!D87) ->  | Q87: =CONCATENATE(訂單列印!E87) ->  | R87: =CONCATENATE(訂單列印!F87) ->  | S87: =CONCATENATE(訂單列印!G87) ->  | T87: =CONCATENATE(訂單列印!J87) -> 
C88: =IF(訂單填表!U85>0.1,訂單填表!N85," ") ->  | D88: =IF(訂單填表!U85>0,訂單填表!P85," ") ->  | E88: =IF(訂單填表!U85>0,訂單填表!R85," ") ->  | F88: =IF(訂單填表!U85>0,訂單填表!S85," ") ->  | G88: =IF(訂單填表!U85>0,訂單填表!T85," ") ->  | H88: =IF(訂單填表!U85>0,訂單填表!U85," ") ->  | I88: =IF(訂單填表!U85>0,訂單填表!V85," ") ->  | J88: =IF(訂單填表!U85>0,訂單填表!W85," ") ->  | M88: =CONCATENATE(訂單列印!C88) ->  | N88: =CONCATENATE(訂單列印!H88) ->  | O88: =CONCATENATE(訂單列印!I88) ->  | P88: =CONCATENATE(訂單列印!D88) ->  | Q88: =CONCATENATE(訂單列印!E88) ->  | R88: =CONCATENATE(訂單列印!F88) ->  | S88: =CONCATENATE(訂單列印!G88) ->  | T88: =CONCATENATE(訂單列印!J88) -> 
C89: =IF(訂單填表!U86>0.1,訂單填表!N86," ") ->  | D89: =IF(訂單填表!U86>0,訂單填表!P86," ") ->  | E89: =IF(訂單填表!U86>0,訂單填表!R86," ") ->  | F89: =IF(訂單填表!U86>0,訂單填表!S86," ") ->  | G89: =IF(訂單填表!U86>0,訂單填表!T86," ") ->  | H89: =IF(訂單填表!U86>0,訂單填表!U86," ") ->  | I89: =IF(訂單填表!U86>0,訂單填表!V86," ") ->  | J89: =IF(訂單填表!U86>0,訂單填表!W86," ") ->  | M89: =CONCATENATE(訂單列印!C89) ->  | N89: =CONCATENATE(訂單列印!H89) ->  | O89: =CONCATENATE(訂單列印!I89) ->  | P89: =CONCATENATE(訂單列印!D89) ->  | Q89: =CONCATENATE(訂單列印!E89) ->  | R89: =CONCATENATE(訂單列印!F89) ->  | S89: =CONCATENATE(訂單列印!G89) ->  | T89: =CONCATENATE(訂單列印!J89) -> 
C90: =IF(訂單填表!U87>0.1,訂單填表!N87," ") ->  | D90: =IF(訂單填表!U87>0,訂單填表!P87," ") ->  | E90: =IF(訂單填表!U87>0,訂單填表!R87," ") ->  | F90: =IF(訂單填表!U87>0,訂單填表!S87," ") ->  | G90: =IF(訂單填表!U87>0,訂單填表!T87," ") ->  | H90: =IF(訂單填表!U87>0,訂單填表!U87," ") ->  | I90: =IF(訂單填表!U87>0,訂單填表!V87," ") ->  | J90: =IF(訂單填表!U87>0,訂單填表!W87," ") ->  | M90: =CONCATENATE(訂單列印!C90) ->  | N90: =CONCATENATE(訂單列印!H90) ->  | O90: =CONCATENATE(訂單列印!I90) ->  | P90: =CONCATENATE(訂單列印!D90) ->  | Q90: =CONCATENATE(訂單列印!E90) ->  | R90: =CONCATENATE(訂單列印!F90) ->  | S90: =CONCATENATE(訂單列印!G90) ->  | T90: =CONCATENATE(訂單列印!J90) -> 
C91: =IF(訂單填表!U88>0.1,訂單填表!N88," ") -> 咖啡副產品 | D91: =IF(訂單填表!U88>0,訂單填表!Q88," ") ->  | E91: =IF(訂單填表!U88>0,訂單填表!R88," ") -> 0 | F91: =IF(訂單填表!U88>0,訂單填表!S88," ") -> 0 | G91: =IF(訂單填表!U88>0,訂單填表!T88," ") -> 單價 | H91: =IF(訂單填表!U88>0,訂單填表!U88," ") -> 數量 | I91: =IF(訂單填表!U88>0,訂單填表!V88," ") -> 單位 | M91: =CONCATENATE(訂單列印!C91) -> 咖啡副產品 | N91: =CONCATENATE(訂單列印!H91) -> 數量 | O91: =CONCATENATE(訂單列印!I91) -> 單位 | P91: =CONCATENATE(訂單列印!D91) ->  | Q91: =CONCATENATE(訂單列印!E91) -> 0 | R91: =CONCATENATE(訂單列印!F91) -> 0 | S91: =CONCATENATE(訂單列印!G91) -> 單價 | T91: =CONCATENATE(訂單列印!J91) -> 
C92: =IF(訂單填表!U89>0.1,訂單填表!N89," ") ->  | G92: =IF(訂單填表!U89>0,訂單填表!T89," ") ->  | H92: =IF(訂單填表!U89>0,訂單填表!U89," ") ->  | I92: =IF(訂單填表!U89>0,訂單填表!V89," ") ->  | J92: =IF(訂單填表!U89>0,訂單填表!W89," ") ->  | M92: =CONCATENATE(訂單列印!C92) ->  | N92: =CONCATENATE(訂單列印!H92) ->  | O92: =CONCATENATE(訂單列印!I92) ->  | S92: =CONCATENATE(訂單列印!G92) ->  | T92: =CONCATENATE(訂單列印!J92) -> 
C93: =IF(訂單填表!U90>0.1,訂單填表!N90," ") ->  | G93: =IF(訂單填表!U90>0,訂單填表!T90," ") ->  | H93: =IF(訂單填表!U90>0,訂單填表!U90," ") ->  | I93: =IF(訂單填表!U90>0,訂單填表!V90," ") ->  | J93: =IF(訂單填表!U90>0,訂單填表!W90," ") ->  | M93: =CONCATENATE(訂單列印!C93) ->  | N93: =CONCATENATE(訂單列印!H93) ->  | O93: =CONCATENATE(訂單列印!I93) ->  | S93: =CONCATENATE(訂單列印!G93) ->  | T93: =CONCATENATE(訂單列印!J93) -> 
C94: =IF(訂單填表!U91>0.1,訂單填表!N91," ") ->  | G94: =IF(訂單填表!U91>0,訂單填表!T91," ") ->  | H94: =IF(訂單填表!U91>0,訂單填表!U91," ") ->  | I94: =IF(訂單填表!U91>0,訂單填表!V91," ") ->  | J94: =IF(訂單填表!U91>0,訂單填表!W91," ") ->  | M94: =CONCATENATE(訂單列印!C94) ->  | N94: =CONCATENATE(訂單列印!H94) ->  | O94: =CONCATENATE(訂單列印!I94) ->  | S94: =CONCATENATE(訂單列印!G94) ->  | T94: =CONCATENATE(訂單列印!J94) -> 
C95: =IF(訂單填表!U92>0.1,訂單填表!N92," ") ->  | G95: =IF(訂單填表!U92>0,訂單填表!T92," ") ->  | H95: =IF(訂單填表!U92>0,訂單填表!U92," ") ->  | I95: =IF(訂單填表!U92>0,訂單填表!V92," ") ->  | J95: =IF(訂單填表!U92>0,訂單填表!W92," ") ->  | M95: =CONCATENATE(訂單列印!C95) ->  | N95: =CONCATENATE(訂單列印!H95) ->  | O95: =CONCATENATE(訂單列印!I95) ->  | S95: =CONCATENATE(訂單列印!G95) ->  | T95: =CONCATENATE(訂單列印!J95) -> 
C96: =IF(訂單填表!U93>0.1,訂單填表!N93," ") ->  | G96: =IF(訂單填表!U93>0,訂單填表!T93," ") ->  | H96: =IF(訂單填表!U93>0,訂單填表!U93," ") ->  | I96: =IF(訂單填表!U93>0,訂單填表!V93," ") ->  | J96: =IF(訂單填表!U93>0,訂單填表!W93," ") ->  | M96: =CONCATENATE(訂單列印!C96) ->  | N96: =CONCATENATE(訂單列印!H96) ->  | O96: =CONCATENATE(訂單列印!I96) ->  | S96: =CONCATENATE(訂單列印!G96) ->  | T96: =CONCATENATE(訂單列印!J96) -> 
C97: =IF(訂單填表!U94>0.1,訂單填表!N94," ") ->  | G97: =IF(訂單填表!U94>0,訂單填表!T94," ") ->  | H97: =IF(訂單填表!U94>0,訂單填表!U94," ") ->  | I97: =IF(訂單填表!U94>0,訂單填表!V94," ") ->  | J97: =IF(訂單填表!U94>0,訂單填表!W94," ") ->  | M97: =CONCATENATE(訂單列印!C97) ->  | N97: =CONCATENATE(訂單列印!H97) ->  | O97: =CONCATENATE(訂單列印!I97) ->  | S97: =CONCATENATE(訂單列印!G97) ->  | T97: =CONCATENATE(訂單列印!J97) -> 
C98: =IF(訂單填表!U95>0.1,訂單填表!N95," ") ->  | G98: =IF(訂單填表!U95>0,訂單填表!T95," ") ->  | H98: =IF(訂單填表!U95>0,訂單填表!U95," ") ->  | I98: =IF(訂單填表!U95>0,訂單填表!V95," ") ->  | J98: =IF(訂單填表!U95>0,訂單填表!W95," ") ->  | M98: =CONCATENATE(訂單列印!C98) ->  | N98: =CONCATENATE(訂單列印!H98) ->  | O98: =CONCATENATE(訂單列印!I98) ->  | S98: =CONCATENATE(訂單列印!G98) ->  | T98: =CONCATENATE(訂單列印!J98) -> 
C99: =IF(訂單填表!U96>0.1,訂單填表!N96," ") ->  | G99: =IF(訂單填表!U96>0,訂單填表!T96," ") ->  | H99: =IF(訂單填表!U96>0,訂單填表!U96," ") ->  | I99: =IF(訂單填表!U96>0,訂單填表!V96," ") ->  | J99: =IF(訂單填表!U96>0,訂單填表!W96," ") ->  | M99: =CONCATENATE(訂單列印!C99) ->  | N99: =CONCATENATE(訂單列印!H99) ->  | O99: =CONCATENATE(訂單列印!I99) ->  | S99: =CONCATENATE(訂單列印!G99) ->  | T99: =CONCATENATE(訂單列印!J99) -> 
A100: > | J100: =COUNT(J15:J99) -> 0
J101: =IF($J$100>1," ",".") -> .
J102: =IF($J$100>2," ",".") -> .
J103: =IF($J$100>3," ",".") -> .
J104: =IF($J$100>4," ",".") -> .
J105: =IF($J$100>5," ",".") -> .
J106: =IF($J$100>6," ",".") -> .
J107: =IF($J$100>7," ",".") -> .
J108: =IF($J$100>8," ",".") -> .
J109: =IF($J$100>9," ",".") -> .
J110: =IF($J$100>10," ",".") -> .
J111: =IF($J$100>11," ",".") -> .
J112: =IF($J$100>12," ",".") -> .
J113: =IF($J$100>13," ",".") -> .
J114: =IF($J$100>14," ",".") -> .
J115: =IF($J$100>15," ",".") -> .
J116: =IF($J$100>16," ",".") -> .
J117: =IF($J$100>17," ",".") -> .
J118: =IF($J$100>18," ",".") -> .
J119: =IF($J$100>19," ",".") -> .
C120: =IF(訂單填表!AD99>=訂單填表!AD134,"優惠"," ") ->  | D120: =CONCATENATE(訂單填表!AH134) -> 訂購未滿500元加收50元運費 | J120: * | M120: =CONCATENATE(C120) ->  | N120: =CONCATENATE(D120) -> 訂購未滿500元加收50元運費
C121: 運費(運送方式) | D121: =CONCATENATE(訂單填表!AJ128,訂單填表!AI138) ->  | J121: =CONCATENATE(訂單填表!W98) -> 0 | M121: =CONCATENATE(訂單列印!C121) -> 運費(運送方式) | N121: =CONCATENATE(訂單列印!D121) ->  | T121: =CONCATENATE(訂單列印!J121) -> 0
C122: 付款方式 | D122: =CONCATENATE(訂單填表!P114) ->  | F122: 總金額(含運) | J122: =(訂單填表!V99) -> $0 | M122: =CONCATENATE(訂單列印!C122) -> 付款方式 | N122: =CONCATENATE(D122,"*",訂單填表!P115) -> * | R122: =IF(訂單填表!P114=訂單填表!AC138,"代收"," ") ->  | S122: =CONCATENATE(訂單列印!J122) -> $0
C124: =CONCATENATE("備註:",訂單填表!P117," ",訂單填表!AB118," ",訂單填表!AB119) -> 備註:免收據 | M124: =CONCATENATE(C124) -> 備註:免收據
C125: =訂單填表!P120 -> 0 | M125: =C125 -> 0
C126: 收款帳戶: | D126: 郵局700 | E126: 01112740247151 | H126: 戶名:盧建樺 | S126: =IF(訂單填表!R109=訂單填表!Z109,"聯運"," ") ->  | T126: 門市
M127: =CONCATENATE(訂單填表!P127,訂單填表!R127,訂單填表!S127) -> 0 | O127: =CONCATENATE(訂單填表!P128,訂單填表!R128,訂單填表!S128) -> 0 | Q127: =CONCATENATE(訂單填表!P134,訂單填表!R134,訂單填表!S134) -> 0 | S127: =CONCATENATE(訂單填表!P133,訂單填表!R133,訂單填表!S133) -> 0
C128: 收到貨品後如有問題，請拍照傳圖，我們會盡快為您處理。 感謝您的支持!! | M128: =CONCATENATE(訂單填表!P129,訂單填表!R129,訂單填表!S129) -> 0 | O128: =CONCATENATE(訂單填表!P130,訂單填表!R130,訂單填表!S130) -> 0 | Q128: =CONCATENATE(訂單填表!P135,訂單填表!R135,訂單填表!S135) -> 0 | S128: =CONCATENATE(訂單填表!P136,訂單填表!R136,訂單填表!S136) -> 0
C129: 希望能專心烘焙好咖啡提高訂購效率，我們不再接受電話訂購! | M129: =CONCATENATE(訂單填表!P131,訂單填表!R131,訂單填表!S131) -> 0 | O129: =CONCATENATE(訂單填表!P132,訂單填表!R132,訂單填表!S132) -> 0 | Q129: =CONCATENATE(訂單填表!P137,訂單填表!R137,訂單填表!S137) -> 0 | S129: =CONCATENATE(訂單填表!P138,訂單填表!R138,訂單填表!S138) -> 0
C130: 訂購請E-mail訂單，並請詳細填寫訂購人資料，感謝配合!
C131: 聯絡信箱>news.news@msa.hinet.net | M131: 試算表 / E-mail / LINE / >> 已回覆 >>已付款 >>通知已收 >>出貨通知 | T131: =CONCATENATE(訂單填表!AF126) -> 0
H133: (第二聯)客戶聯 | S133: (第三聯)廠商存查

Sheet 標籤 (hidden)
B1: 量號 | C1: 品名 | D1: 規格(包裝) | E1: 製造日期 | F1: 最佳賞味期限 | G1: 保存期限 | H1: 重量 | I1: 磨粉 | J1: 原豆 | K1: 指定烘焙 | L1: 焙度前方文字 | M1: 指定烘焙(焙度) | P1: 磨粉 | R1: 原豆 | T1: 生豆 | U1: 空白
A2: 1 | B2: =CONCATENATE(訂單填表!$U$124,"-",訂單填表!$U$12,"-",A2) -> --1 | C2: =IF(訂單填表!$U$12>=A2,訂單填表!$N$12," ") ->  | D2: =IF(訂單填表!$U$12>=A2,訂單填表!$P$12," ") ->  | E2: =IF(訂單填表!$U$12>=A2,訂單填表!$CC$12," ") ->  | F2: =IF(訂單填表!$U$12>=A2,訂單填表!$BX$12," ") ->  | G2: =IF(訂單填表!$U$12>=A2,訂單填表!$BY$12," ") ->  | H2: =IF(訂單填表!$U$12>=A2,訂單填表!$BW$12," ") ->  | I2: =IF(訂單填表!$U$12>=A2,訂單填表!$BZ$12," ") ->  | J2: =IF(訂單填表!$U$12>=A2,訂單填表!$CA$12," ") ->  | K2: =CONCATENATE(L2,M2) ->  | L2: =IF(AND(訂單填表!$U$12>=標籤!A2,M2<>訂單填表!$AQ$11),$O$9," ") ->  | M2: =IF(訂單填表!$U$12>=A2,訂單填表!$S$12," ") ->  | N2: 12 | O2: 品名
A3: 2 | B3: =CONCATENATE(訂單填表!$U$124,"-",訂單填表!$U$12,"-",A3) -> --2 | C3: =IF(訂單填表!$U$12>=A3,訂單填表!$N$12," ") ->  | D3: =IF(訂單填表!$U$12>=A3,訂單填表!$P$12," ") ->  | E3: =IF(訂單填表!$U$12>=A3,訂單填表!$CC$12," ") ->  | F3: =IF(訂單填表!$U$12>=A3,訂單填表!$BX$12," ") ->  | G3: =IF(訂單填表!$U$12>=A3,訂單填表!$BY$12," ") ->  | H3: =IF(訂單填表!$U$12>=A3,訂單填表!$BW$12," ") ->  | I3: =IF(訂單填表!$U$12>=A3,訂單填表!$BZ$12," ") ->  | J3: =IF(訂單填表!$U$12>=A3,訂單填表!$CA$12," ") ->  | L3: =IF(AND(訂單填表!$U$12>=標籤!A3,M3<>訂單填表!$AQ$11),$O$9," ") ->  | M3: =IF(訂單填表!$U$12>=A3,訂單填表!$S$12," ") ->  | O3: 規格(包裝) | X3: =ABS(X4+R4) -> 5
A4: 3 | B4: =CONCATENATE(訂單填表!$U$124,"-",訂單填表!$U$12,"-",A4) -> --3 | C4: =IF(訂單填表!$U$12>=A4,訂單填表!$N$12," ") ->  | D4: =IF(訂單填表!$U$12>=A4,訂單填表!$P$12," ") ->  | E4: =IF(訂單填表!$U$12>=A4,訂單填表!$CC$12," ") ->  | F4: =IF(訂單填表!$U$12>=A4,訂單填表!$BX$12," ") ->  | G4: =IF(訂單填表!$U$12>=A4,訂單填表!$BY$12," ") ->  | H4: =IF(訂單填表!$U$12>=A4,訂單填表!$BW$12," ") ->  | I4: =IF(訂單填表!$U$12>=A4,訂單填表!$BZ$12," ") ->  | J4: =IF(訂單填表!$U$12>=A4,訂單填表!$CA$12," ") ->  | L4: =IF(AND(訂單填表!$U$12>=標籤!A4,M4<>訂單填表!$AQ$11),$O$9," ") ->  | M4: =IF(訂單填表!$U$12>=A4,訂單填表!$S$12," ") ->  | O4: 製造日期: | P4: =CONCATENATE(,V4,"-",W4,"-",X3) -> 2024-9-5 | R4: 0 | T4: =NOW() -> 2024-09-05T17:31:32.060 | V4: =YEAR(Y4) -> 2024 | W4: =MONTH(Y4) -> 9 | X4: =DAY(Y4) -> 5 | Y4: =NOW() -> 2024-09-05T17:31:32.060
A5: 4 | B5: =CONCATENATE(訂單填表!$U$124,"-",訂單填表!$U$12,"-",A5) -> --4 | C5: =IF(訂單填表!$U$12>=A5,訂單填表!$N$12," ") ->  | D5: =IF(訂單填表!$U$12>=A5,訂單填表!$P$12," ") ->  | E5: =IF(訂單填表!$U$12>=A5,訂單填表!$CC$12," ") ->  | F5: =IF(訂單填表!$U$12>=A5,訂單填表!$BX$12," ") ->  | G5: =IF(訂單填表!$U$12>=A5,訂單填表!$BY$12," ") ->  | H5: =IF(訂單填表!$U$12>=A5,訂單填表!$BW$12," ") ->  | I5: =IF(訂單填表!$U$12>=A5,訂單填表!$BZ$12," ") ->  | J5: =IF(訂單填表!$U$12>=A5,訂單填表!$CA$12," ") ->  | L5: =IF(AND(訂單填表!$U$12>=標籤!A5,M5<>訂單填表!$AQ$11),$O$9," ") ->  | M5: =IF(訂單填表!$U$12>=A5,訂單填表!$S$12," ") ->  | O5: 最佳賞味期限 | R5: 最佳賞味期:30天
A6: 5 | B6: =CONCATENATE(訂單填表!$U$124,"-",訂單填表!$U$12,"-",A6) -> --5 | C6: =IF(訂單填表!$U$12>=A6,訂單填表!$N$12," ") ->  | D6: =IF(訂單填表!$U$12>=A6,訂單填表!$P$12," ") ->  | E6: =IF(訂單填表!$U$12>=A6,訂單填表!$CC$12," ") ->  | F6: =IF(訂單填表!$U$12>=A6,訂單填表!$BX$12," ") ->  | G6: =IF(訂單填表!$U$12>=A6,訂單填表!$BY$12," ") ->  | H6: =IF(訂單填表!$U$12>=A6,訂單填表!$BW$12," ") ->  | I6: =IF(訂單填表!$U$12>=A6,訂單填表!$BZ$12," ") ->  | J6: =IF(訂單填表!$U$12>=A6,訂單填表!$CA$12," ") ->  | L6: =IF(AND(訂單填表!$U$12>=標籤!A6,M6<>訂單填表!$AQ$11),$O$9," ") ->  | M6: =IF(訂單填表!$U$12>=A6,訂單填表!$S$12," ") ->  | O6: 保存期限 | P6: 保存期限:45天 | R6: 保存期限:180天 | T6: 保存期限:360天
A7: 6 | B7: =CONCATENATE(訂單填表!$U$124,"-",訂單填表!$U$12,"-",A7) -> --6 | C7: =IF(訂單填表!$U$12>=A7,訂單填表!$N$12," ") ->  | D7: =IF(訂單填表!$U$12>=A7,訂單填表!$P$12," ") ->  | E7: =IF(訂單填表!$U$12>=A7,訂單填表!$CC$12," ") ->  | F7: =IF(訂單填表!$U$12>=A7,訂單填表!$BX$12," ") ->  | G7: =IF(訂單填表!$U$12>=A7,訂單填表!$BY$12," ") ->  | H7: =IF(訂單填表!$U$12>=A7,訂單填表!$BW$12," ") ->  | I7: =IF(訂單填表!$U$12>=A7,訂單填表!$BZ$12," ") ->  | J7: =IF(訂單填表!$U$12>=A7,訂單填表!$CA$12," ") ->  | L7: =IF(AND(訂單填表!$U$12>=標籤!A7,M7<>訂單填表!$AQ$11),$O$9," ") ->  | M7: =IF(訂單填表!$U$12>=A7,訂單填表!$S$12," ") ->  | O7: 重量
A8: 7 | B8: =CONCATENATE(訂單填表!$U$124,"-",訂單填表!$U$12,"-",A8) -> --7 | C8: =IF(訂單填表!$U$12>=A8,訂單填表!$N$12," ") ->  | D8: =IF(訂單填表!$U$12>=A8,訂單填表!$P$12," ") ->  | E8: =IF(訂單填表!$U$12>=A8,訂單填表!$CC$12," ") ->  | F8: =IF(訂單填表!$U$12>=A8,訂單填表!$BX$12," ") ->  | G8: =IF(訂單填表!$U$12>=A8,訂單填表!$BY$12," ") ->  | H8: =IF(訂單填表!$U$12>=A8,訂單填表!$BW$12," ") ->  | I8: =IF(訂單填表!$U$12>=A8,訂單填表!$BZ$12," ") ->  | J8: =IF(訂單填表!$U$12>=A8,訂單填表!$CA$12," ") ->  | L8: =IF(AND(訂單填表!$U$12>=標籤!A8,M8<>訂單填表!$AQ$11),$O$9," ") ->  | M8: =IF(訂單填表!$U$12>=A8,訂單填表!$S$12," ") ->  | O8: 磨粉 | P8: 磨粉 | R8: 當日烘焙包裝 | T8: 生豆
A9: 8 | B9: =CONCATENATE(訂單填表!$U$124,"-",訂單填表!$U$12,"-",A9) -> --8 | C9: =IF(訂單填表!$U$12>=A9,訂單填表!$N$12," ") ->  | D9: =IF(訂單填表!$U$12>=A9,訂單填表!$P$12," ") ->  | E9: =IF(訂單填表!$U$12>=A9,訂單填表!$CC$12," ") ->  | F9: =IF(訂單填表!$U$12>=A9,訂單填表!$BX$12," ") ->  | G9: =IF(訂單填表!$U$12>=A9,訂單填表!$BY$12," ") ->  | H9: =IF(訂單填表!$U$12>=A9,訂單填表!$BW$12," ") ->  | I9: =IF(訂單填表!$U$12>=A9,訂單填表!$BZ$12," ") ->  | J9: =IF(訂單填表!$U$12>=A9,訂單填表!$CA$12," ") ->  | L9: =IF(AND(訂單填表!$U$12>=標籤!A9,M9<>訂單填表!$AQ$11),$O$9," ") ->  | M9: =IF(訂單填表!$U$12>=A9,訂單填表!$S$12," ") -> 
A10: 9 | B10: =CONCATENATE(訂單填表!$U$124,"-",訂單填表!$U$12,"-",A10) -> --9 | C10: =IF(訂單填表!$U$12>=A10,訂單填表!$N$12," ") ->  | D10: =IF(訂單填表!$U$12>=A10,訂單填表!$P$12," ") ->  | E10: =IF(訂單填表!$U$12>=A10,訂單填表!$CC$12," ") ->  | F10: =IF(訂單填表!$U$12>=A10,訂單填表!$BX$12," ") ->  | G10: =IF(訂單填表!$U$12>=A10,訂單填表!$BY$12," ") ->  | H10: =IF(訂單填表!$U$12>=A10,訂單填表!$BW$12," ") ->  | I10: =IF(訂單填表!$U$12>=A10,訂單填表!$BZ$12," ") ->  | J10: =IF(訂單填表!$U$12>=A10,訂單填表!$CA$12," ") ->  | L10: =IF(AND(訂單填表!$U$12>=標籤!A10,M10<>訂單填表!$AQ$11),$O$9," ") ->  | M10: =IF(訂單填表!$U$12>=A10,訂單填表!$S$12," ") -> 
A11: 10 | B11: =CONCATENATE(訂單填表!$U$124,"-",訂單填表!$U$12,"-",A11) -> --10 | C11: =IF(訂單填表!$U$12>=A11,訂單填表!$N$12," ") ->  | D11: =IF(訂單填表!$U$12>=A11,訂單填表!$P$12," ") ->  | E11: =IF(訂單填表!$U$12>=A11,訂單填表!$CC$12," ") ->  | F11: =IF(訂單填表!$U$12>=A11,訂單填表!$BX$12," ") ->  | G11: =IF(訂單填表!$U$12>=A11,訂單填表!$BY$12," ") ->  | H11: =IF(訂單填表!$U$12>=A11,訂單填表!$BW$12," ") ->  | I11: =IF(訂單填表!$U$12>=A11,訂單填表!$BZ$12," ") ->  | J11: =IF(訂單填表!$U$12>=A11,訂單填表!$CA$12," ") ->  | L11: =IF(AND(訂單填表!$U$12>=標籤!A11,M11<>訂單填表!$AQ$11),$O$9," ") ->  | M11: =IF(訂單填表!$U$12>=A11,訂單填表!$S$12," ") -> 
A12: 11 | B12: =CONCATENATE(訂單填表!$U$124,"-",訂單填表!$U$12,"-",A12) -> --11 | C12: =IF(訂單填表!$U$12>=A12,訂單填表!$N$12," ") ->  | D12: =IF(訂單填表!$U$12>=A12,訂單填表!$P$12," ") ->  | E12: =IF(訂單填表!$U$12>=A12,訂單填表!$CC$12," ") ->  | F12: =IF(訂單填表!$U$12>=A12,訂單填表!$BX$12," ") ->  | G12: =IF(訂單填表!$U$12>=A12,訂單填表!$BY$12," ") ->  | H12: =IF(訂單填表!$U$12>=A12,訂單填表!$BW$12," ") ->  | I12: =IF(訂單填表!$U$12>=A12,訂單填表!$BZ$12," ") ->  | J12: =IF(訂單填表!$U$12>=A12,訂單填表!$CA$12," ") ->  | L12: =IF(AND(訂單填表!$U$12>=標籤!A12,M12<>訂單填表!$AQ$11),$O$9," ") ->  | M12: =IF(訂單填表!$U$12>=A12,訂單填表!$S$12," ") -> 
A13: 12 | B13: =CONCATENATE(訂單填表!$U$124,"-",訂單填表!$U$12,"-",A13) -> --12 | C13: =IF(訂單填表!$U$12>=A13,訂單填表!$N$12," ") ->  | D13: =IF(訂單填表!$U$12>=A13,訂單填表!$P$12," ") ->  | E13: =IF(訂單填表!$U$12>=A13,訂單填表!$CC$12," ") ->  | F13: =IF(訂單填表!$U$12>=A13,訂單填表!$BX$12," ") ->  | G13: =IF(訂單填表!$U$12>=A13,訂單填表!$BY$12," ") ->  | H13: =IF(訂單填表!$U$12>=A13,訂單填表!$BW$12," ") ->  | I13: =IF(訂單填表!$U$12>=A13,訂單填表!$BZ$12," ") ->  | J13: =IF(訂單填表!$U$12>=A13,訂單填表!$CA$12," ") ->  | L13: =IF(AND(訂單填表!$U$12>=標籤!A13,M13<>訂單填表!$AQ$11),$O$9," ") ->  | M13: =IF(訂單填表!$U$12>=A13,訂單填表!$S$12," ") -> 
A14: 13 | B14: =CONCATENATE(訂單填表!$U$124,"-",訂單填表!$U$12,"-",A14) -> --13 | C14: =IF(訂單填表!$U$12>=A14,訂單填表!$N$12," ") ->  | D14: =IF(訂單填表!$U$12>=A14,訂單填表!$P$12," ") ->  | E14: =IF(訂單填表!$U$12>=A14,訂單填表!$CC$12," ") ->  | F14: =IF(訂單填表!$U$12>=A14,訂單填表!$BX$12," ") ->  | G14: =IF(訂單填表!$U$12>=A14,訂單填表!$BY$12," ") ->  | H14: =IF(訂單填表!$U$12>=A14,訂單填表!$BW$12," ") ->  | I14: =IF(訂單填表!$U$12>=A14,訂單填表!$BZ$12," ") ->  | J14: =IF(訂單填表!$U$12>=A14,訂單填表!$CA$12," ") ->  | L14: =IF(AND(訂單填表!$U$12>=標籤!A14,M14<>訂單填表!$AQ$11),$O$9," ") ->  | M14: =IF(訂單填表!$U$12>=A14,訂單填表!$S$12," ") -> 
A15: 14 | B15: =CONCATENATE(訂單填表!$U$124,"-",訂單填表!$U$12,"-",A15) -> --14 | C15: =IF(訂單填表!$U$12>=A15,訂單填表!$N$12," ") ->  | D15: =IF(訂單填表!$U$12>=A15,訂單填表!$P$12," ") ->  | E15: =IF(訂單填表!$U$12>=A15,訂單填表!$CC$12," ") ->  | F15: =IF(訂單填表!$U$12>=A15,訂單填表!$BX$12," ") ->  | G15: =IF(訂單填表!$U$12>=A15,訂單填表!$BY$12," ") ->  | H15: =IF(訂單填表!$U$12>=A15,訂單填表!$BW$12," ") ->  | I15: =IF(訂單填表!$U$12>=A15,訂單填表!$BZ$12," ") ->  | J15: =IF(訂單填表!$U$12>=A15,訂單填表!$CA$12," ") ->  | L15: =IF(AND(訂單填表!$U$12>=標籤!A15,M15<>訂單填表!$AQ$11),$O$9," ") ->  | M15: =IF(訂單填表!$U$12>=A15,訂單填表!$S$12," ") -> 
A16: 15 | B16: =CONCATENATE(訂單填表!$U$124,"-",訂單填表!$U$12,"-",A16) -> --15 | C16: =IF(訂單填表!$U$12>=A16,訂單填表!$N$12," ") ->  | D16: =IF(訂單填表!$U$12>=A16,訂單填表!$P$12," ") ->  | E16: =IF(訂單填表!$U$12>=A16,訂單填表!$CC$12," ") ->  | F16: =IF(訂單填表!$U$12>=A16,訂單填表!$BX$12," ") ->  | G16: =IF(訂單填表!$U$12>=A16,訂單填表!$BY$12," ") ->  | H16: =IF(訂單填表!$U$12>=A16,訂單填表!$BW$12," ") ->  | I16: =IF(訂單填表!$U$12>=A16,訂單填表!$BZ$12," ") ->  | J16: =IF(訂單填表!$U$12>=A16,訂單填表!$CA$12," ") ->  | L16: =IF(AND(訂單填表!$U$12>=標籤!A16,M16<>訂單填表!$AQ$11),$O$9," ") ->  | M16: =IF(訂單填表!$U$12>=A16,訂單填表!$S$12," ") -> 
A17: 16 | B17: =CONCATENATE(訂單填表!$U$124,"-",訂單填表!$U$12,"-",A17) -> --16 | C17: =IF(訂單填表!$U$12>=A17,訂單填表!$N$12," ") ->  | D17: =IF(訂單填表!$U$12>=A17,訂單填表!$P$12," ") ->  | E17: =IF(訂單填表!$U$12>=A17,訂單填表!$CC$12," ") ->  | F17: =IF(訂單填表!$U$12>=A17,訂單填表!$BX$12," ") ->  | G17: =IF(訂單填表!$U$12>=A17,訂單填表!$BY$12," ") ->  | H17: =IF(訂單填表!$U$12>=A17,訂單填表!$BW$12," ") ->  | I17: =IF(訂單填表!$U$12>=A17,訂單填表!$BZ$12," ") ->  | J17: =IF(訂單填表!$U$12>=A17,訂單填表!$CA$12," ") ->  | L17: =IF(AND(訂單填表!$U$12>=標籤!A17,M17<>訂單填表!$AQ$11),$O$9," ") ->  | M17: =IF(訂單填表!$U$12>=A17,訂單填表!$S$12," ") -> 
A18: 17 | B18: =CONCATENATE(訂單填表!$U$124,"-",訂單填表!$U$12,"-",A18) -> --17 | C18: =IF(訂單填表!$U$12>=A18,訂單填表!$N$12," ") ->  | D18: =IF(訂單填表!$U$12>=A18,訂單填表!$P$12," ") ->  | E18: =IF(訂單填表!$U$12>=A18,訂單填表!$CC$12," ") ->  | F18: =IF(訂單填表!$U$12>=A18,訂單填表!$BX$12," ") ->  | G18: =IF(訂單填表!$U$12>=A18,訂單填表!$BY$12," ") ->  | H18: =IF(訂單填表!$U$12>=A18,訂單填表!$BW$12," ") ->  | I18: =IF(訂單填表!$U$12>=A18,訂單填表!$BZ$12," ") ->  | J18: =IF(訂單填表!$U$12>=A18,訂單填表!$CA$12," ") ->  | L18: =IF(AND(訂單填表!$U$12>=標籤!A18,M18<>訂單填表!$AQ$11),$O$9," ") ->  | M18: =IF(訂單填表!$U$12>=A18,訂單填表!$S$12," ") -> 
A19: 18 | B19: =CONCATENATE(訂單填表!$U$124,"-",訂單填表!$U$12,"-",A19) -> --18 | C19: =IF(訂單填表!$U$12>=A19,訂單填表!$N$12," ") ->  | D19: =IF(訂單填表!$U$12>=A19,訂單填表!$P$12," ") ->  | E19: =IF(訂單填表!$U$12>=A19,訂單填表!$CC$12," ") ->  | F19: =IF(訂單填表!$U$12>=A19,訂單填表!$BX$12," ") ->  | G19: =IF(訂單填表!$U$12>=A19,訂單填表!$BY$12," ") ->  | H19: =IF(訂單填表!$U$12>=A19,訂單填表!$BW$12," ") ->  | I19: =IF(訂單填表!$U$12>=A19,訂單填表!$BZ$12," ") ->  | J19: =IF(訂單填表!$U$12>=A19,訂單填表!$CA$12," ") ->  | L19: =IF(AND(訂單填表!$U$12>=標籤!A19,M19<>訂單填表!$AQ$11),$O$9," ") ->  | M19: =IF(訂單填表!$U$12>=A19,訂單填表!$S$12," ") -> 
A20: 19 | B20: =CONCATENATE(訂單填表!$U$124,"-",訂單填表!$U$12,"-",A20) -> --19 | C20: =IF(訂單填表!$U$12>=A20,訂單填表!$N$12," ") ->  | D20: =IF(訂單填表!$U$12>=A20,訂單填表!$P$12," ") ->  | E20: =IF(訂單填表!$U$12>=A20,訂單填表!$CC$12," ") ->  | F20: =IF(訂單填表!$U$12>=A20,訂單填表!$BX$12," ") ->  | G20: =IF(訂單填表!$U$12>=A20,訂單填表!$BY$12," ") ->  | H20: =IF(訂單填表!$U$12>=A20,訂單填表!$BW$12," ") ->  | I20: =IF(訂單填表!$U$12>=A20,訂單填表!$BZ$12," ") ->  | J20: =IF(訂單填表!$U$12>=A20,訂單填表!$CA$12," ") ->  | L20: =IF(AND(訂單填表!$U$12>=標籤!A20,M20<>訂單填表!$AQ$11),$O$9," ") ->  | M20: =IF(訂單填表!$U$12>=A20,訂單填表!$S$12," ") -> 
A21: 20 | B21: =CONCATENATE(訂單填表!$U$124,"-",訂單填表!$U$12,"-",A21) -> --20 | C21: =IF(訂單填表!$U$12>=A21,訂單填表!$N$12," ") ->  | D21: =IF(訂單填表!$U$12>=A21,訂單填表!$P$12," ") ->  | E21: =IF(訂單填表!$U$12>=A21,訂單填表!$CC$12," ") ->  | F21: =IF(訂單填表!$U$12>=A21,訂單填表!$BX$12," ") ->  | G21: =IF(訂單填表!$U$12>=A21,訂單填表!$BY$12," ") ->  | H21: =IF(訂單填表!$U$12>=A21,訂單填表!$BW$12," ") ->  | I21: =IF(訂單填表!$U$12>=A21,訂單填表!$BZ$12," ") ->  | J21: =IF(訂單填表!$U$12>=A21,訂單填表!$CA$12," ") ->  | L21: =IF(AND(訂單填表!$U$12>=標籤!A21,M21<>訂單填表!$AQ$11),$O$9," ") ->  | M21: =IF(訂單填表!$U$12>=A21,訂單填表!$S$12," ") -> 
A22: 21 | B22: =CONCATENATE(訂單填表!$U$124,"-",訂單填表!$U$12,"-",A22) -> --21 | C22: =IF(訂單填表!$U$12>=A22,訂單填表!$N$12," ") ->  | D22: =IF(訂單填表!$U$12>=A22,訂單填表!$P$12," ") ->  | E22: =IF(訂單填表!$U$12>=A22,訂單填表!$CC$12," ") ->  | F22: =IF(訂單填表!$U$12>=A22,訂單填表!$BX$12," ") ->  | G22: =IF(訂單填表!$U$12>=A22,訂單填表!$BY$12," ") ->  | H22: =IF(訂單填表!$U$12>=A22,訂單填表!$BW$12," ") ->  | I22: =IF(訂單填表!$U$12>=A22,訂單填表!$BZ$12," ") ->  | J22: =IF(訂單填表!$U$12>=A22,訂單填表!$CA$12," ") ->  | L22: =IF(AND(訂單填表!$U$12>=標籤!A22,M22<>訂單填表!$AQ$11),$O$9," ") ->  | M22: =IF(訂單填表!$U$12>=A22,訂單填表!$S$12," ") -> 
A23: 22 | B23: =CONCATENATE(訂單填表!$U$124,"-",訂單填表!$U$12,"-",A23) -> --22 | C23: =IF(訂單填表!$U$12>=A23,訂單填表!$N$12," ") ->  | D23: =IF(訂單填表!$U$12>=A23,訂單填表!$P$12," ") ->  | E23: =IF(訂單填表!$U$12>=A23,訂單填表!$CC$12," ") ->  | F23: =IF(訂單填表!$U$12>=A23,訂單填表!$BX$12," ") ->  | G23: =IF(訂單填表!$U$12>=A23,訂單填表!$BY$12," ") ->  | H23: =IF(訂單填表!$U$12>=A23,訂單填表!$BW$12," ") ->  | I23: =IF(訂單填表!$U$12>=A23,訂單填表!$BZ$12," ") ->  | J23: =IF(訂單填表!$U$12>=A23,訂單填表!$CA$12," ") ->  | L23: =IF(AND(訂單填表!$U$12>=標籤!A23,M23<>訂單填表!$AQ$11),$O$9," ") ->  | M23: =IF(訂單填表!$U$12>=A23,訂單填表!$S$12," ") -> 
A24: 23 | B24: =CONCATENATE(訂單填表!$U$124,"-",訂單填表!$U$12,"-",A24) -> --23 | C24: =IF(訂單填表!$U$12>=A24,訂單填表!$N$12," ") ->  | D24: =IF(訂單填表!$U$12>=A24,訂單填表!$P$12," ") ->  | E24: =IF(訂單填表!$U$12>=A24,訂單填表!$CC$12," ") ->  | F24: =IF(訂單填表!$U$12>=A24,訂單填表!$BX$12," ") ->  | G24: =IF(訂單填表!$U$12>=A24,訂單填表!$BY$12," ") ->  | H24: =IF(訂單填表!$U$12>=A24,訂單填表!$BW$12," ") ->  | I24: =IF(訂單填表!$U$12>=A24,訂單填表!$BZ$12," ") ->  | J24: =IF(訂單填表!$U$12>=A24,訂單填表!$CA$12," ") ->  | L24: =IF(AND(訂單填表!$U$12>=標籤!A24,M24<>訂單填表!$AQ$11),$O$9," ") ->  | M24: =IF(訂單填表!$U$12>=A24,訂單填表!$S$12," ") -> 
A25: 24 | B25: =CONCATENATE(訂單填表!$U$124,"-",訂單填表!$U$12,"-",A25) -> --24 | C25: =IF(訂單填表!$U$12>=A25,訂單填表!$N$12," ") ->  | D25: =IF(訂單填表!$U$12>=A25,訂單填表!$P$12," ") ->  | E25: =IF(訂單填表!$U$12>=A25,訂單填表!$CC$12," ") ->  | F25: =IF(訂單填表!$U$12>=A25,訂單填表!$BX$12," ") ->  | G25: =IF(訂單填表!$U$12>=A25,訂單填表!$BY$12," ") ->  | H25: =IF(訂單填表!$U$12>=A25,訂單填表!$BW$12," ") ->  | I25: =IF(訂單填表!$U$12>=A25,訂單填表!$BZ$12," ") ->  | J25: =IF(訂單填表!$U$12>=A25,訂單填表!$CA$12," ") ->  | L25: =IF(AND(訂單填表!$U$12>=標籤!A25,M25<>訂單填表!$AQ$11),$O$9," ") ->  | M25: =IF(訂單填表!$U$12>=A25,訂單填表!$S$12," ") -> 
A26: 25 | B26: =CONCATENATE(訂單填表!$U$124,"-",訂單填表!$U$12,"-",A26) -> --25 | C26: =IF(訂單填表!$U$12>=A26,訂單填表!$N$12," ") ->  | D26: =IF(訂單填表!$U$12>=A26,訂單填表!$P$12," ") ->  | E26: =IF(訂單填表!$U$12>=A26,訂單填表!$CC$12," ") ->  | F26: =IF(訂單填表!$U$12>=A26,訂單填表!$BX$12," ") ->  | G26: =IF(訂單填表!$U$12>=A26,訂單填表!$BY$12," ") ->  | H26: =IF(訂單填表!$U$12>=A26,訂單填表!$BW$12," ") ->  | I26: =IF(訂單填表!$U$12>=A26,訂單填表!$BZ$12," ") ->  | J26: =IF(訂單填表!$U$12>=A26,訂單填表!$CA$12," ") ->  | L26: =IF(AND(訂單填表!$U$12>=標籤!A26,M26<>訂單填表!$AQ$11),$O$9," ") ->  | M26: =IF(訂單填表!$U$12>=A26,訂單填表!$S$12," ") -> 
A27: 26 | B27: =CONCATENATE(訂單填表!$U$124,"-",訂單填表!$U$12,"-",A27) -> --26 | C27: =IF(訂單填表!$U$12>=A27,訂單填表!$N$12," ") ->  | D27: =IF(訂單填表!$U$12>=A27,訂單填表!$P$12," ") ->  | E27: =IF(訂單填表!$U$12>=A27,訂單填表!$CC$12," ") ->  | F27: =IF(訂單填表!$U$12>=A27,訂單填表!$BX$12," ") ->  | G27: =IF(訂單填表!$U$12>=A27,訂單填表!$BY$12," ") ->  | H27: =IF(訂單填表!$U$12>=A27,訂單填表!$BW$12," ") ->  | I27: =IF(訂單填表!$U$12>=A27,訂單填表!$BZ$12," ") ->  | J27: =IF(訂單填表!$U$12>=A27,訂單填表!$CA$12," ") ->  | L27: =IF(AND(訂單填表!$U$12>=標籤!A27,M27<>訂單填表!$AQ$11),$O$9," ") ->  | M27: =IF(訂單填表!$U$12>=A27,訂單填表!$S$12," ") -> 
A28: 27 | B28: =CONCATENATE(訂單填表!$U$124,"-",訂單填表!$U$12,"-",A28) -> --27 | C28: =IF(訂單填表!$U$12>=A28,訂單填表!$N$12," ") ->  | D28: =IF(訂單填表!$U$12>=A28,訂單填表!$P$12," ") ->  | E28: =IF(訂單填表!$U$12>=A28,訂單填表!$CC$12," ") ->  | F28: =IF(訂單填表!$U$12>=A28,訂單填表!$BX$12," ") ->  | G28: =IF(訂單填表!$U$12>=A28,訂單填表!$BY$12," ") ->  | H28: =IF(訂單填表!$U$12>=A28,訂單填表!$BW$12," ") ->  | I28: =IF(訂單填表!$U$12>=A28,訂單填表!$BZ$12," ") ->  | J28: =IF(訂單填表!$U$12>=A28,訂單填表!$CA$12," ") ->  | L28: =IF(AND(訂單填表!$U$12>=標籤!A28,M28<>訂單填表!$AQ$11),$O$9," ") ->  | M28: =IF(訂單填表!$U$12>=A28,訂單填表!$S$12," ") -> 
A29: 28 | B29: =CONCATENATE(訂單填表!$U$124,"-",訂單填表!$U$12,"-",A29) -> --28 | C29: =IF(訂單填表!$U$12>=A29,訂單填表!$N$12," ") ->  | D29: =IF(訂單填表!$U$12>=A29,訂單填表!$P$12," ") ->  | E29: =IF(訂單填表!$U$12>=A29,訂單填表!$CC$12," ") ->  | F29: =IF(訂單填表!$U$12>=A29,訂單填表!$BX$12," ") ->  | G29: =IF(訂單填表!$U$12>=A29,訂單填表!$BY$12," ") ->  | H29: =IF(訂單填表!$U$12>=A29,訂單填表!$BW$12," ") ->  | I29: =IF(訂單填表!$U$12>=A29,訂單填表!$BZ$12," ") ->  | J29: =IF(訂單填表!$U$12>=A29,訂單填表!$CA$12," ") ->  | L29: =IF(AND(訂單填表!$U$12>=標籤!A29,M29<>訂單填表!$AQ$11),$O$9," ") ->  | M29: =IF(訂單填表!$U$12>=A29,訂單填表!$S$12," ") -> 
A30: 29 | B30: =CONCATENATE(訂單填表!$U$124,"-",訂單填表!$U$12,"-",A30) -> --29 | C30: =IF(訂單填表!$U$12>=A30,訂單填表!$N$12," ") ->  | D30: =IF(訂單填表!$U$12>=A30,訂單填表!$P$12," ") ->  | E30: =IF(訂單填表!$U$12>=A30,訂單填表!$CC$12," ") ->  | F30: =IF(訂單填表!$U$12>=A30,訂單填表!$BX$12," ") ->  | G30: =IF(訂單填表!$U$12>=A30,訂單填表!$BY$12," ") ->  | H30: =IF(訂單填表!$U$12>=A30,訂單填表!$BW$12," ") ->  | I30: =IF(訂單填表!$U$12>=A30,訂單填表!$BZ$12," ") ->  | J30: =IF(訂單填表!$U$12>=A30,訂單填表!$CA$12," ") ->  | L30: =IF(AND(訂單填表!$U$12>=標籤!A30,M30<>訂單填表!$AQ$11),$O$9," ") ->  | M30: =IF(訂單填表!$U$12>=A30,訂單填表!$S$12," ") -> 
A31: 30 | B31: =CONCATENATE(訂單填表!$U$124,"-",訂單填表!$U$12,"-",A31) -> --30 | C31: =IF(訂單填表!$U$12>=A31,訂單填表!$N$12," ") ->  | D31: =IF(訂單填表!$U$12>=A31,訂單填表!$P$12," ") ->  | E31: =IF(訂單填表!$U$12>=A31,訂單填表!$CC$12," ") ->  | F31: =IF(訂單填表!$U$12>=A31,訂單填表!$BX$12," ") ->  | G31: =IF(訂單填表!$U$12>=A31,訂單填表!$BY$12," ") ->  | H31: =IF(訂單填表!$U$12>=A31,訂單填表!$BW$12," ") ->  | I31: =IF(訂單填表!$U$12>=A31,訂單填表!$BZ$12," ") ->  | J31: =IF(訂單填表!$U$12>=A31,訂單填表!$CA$12," ") ->  | L31: =IF(AND(訂單填表!$U$12>=標籤!A31,M31<>訂單填表!$AQ$11),$O$9," ") ->  | M31: =IF(訂單填表!$U$12>=A31,訂單填表!$S$12," ") -> 
A32: 1 | B32: =CONCATENATE(訂單填表!$U$124,"-",訂單填表!$U$13,"-",A32) -> --1 | C32: =IF(訂單填表!$U$13>=A32,訂單填表!$N$13," ") ->  | D32: =IF(訂單填表!$U$13>=A32,訂單填表!$P$13," ") ->  | E32: =IF(訂單填表!$U$13>=A32,訂單填表!$CC$13," ") ->  | F32: =IF(訂單填表!$U$13>=A32,訂單填表!$BX$13," ") ->  | G32: =IF(訂單填表!$U$13>=A32,訂單填表!$BY$13," ") ->  | H32: =IF(訂單填表!$U$13>=A32,訂單填表!$BW$13," ") ->  | I32: =IF(訂單填表!$U$13>=A32,訂單填表!$BZ$13," ") ->  | J32: =IF(訂單填表!$U$13>=A32,訂單填表!$CA$13," ") ->  | L32: =IF(AND(訂單填表!$U$13>=標籤!A32,M32<>訂單填表!$AQ$11),$O$9," ") ->  | M32: =IF(訂單填表!$U$13>=A32,訂單填表!$S$13," ") ->  | N32: 13
A33: 2 | B33: =CONCATENATE(訂單填表!$U$124,"-",訂單填表!$U$13,"-",A33) -> --2 | C33: =IF(訂單填表!$U$13>=A33,訂單填表!$N$13," ") ->  | D33: =IF(訂單填表!$U$13>=A33,訂單填表!$P$13," ") ->  | E33: =IF(訂單填表!$U$13>=A33,訂單填表!$CC$13," ") ->  | F33: =IF(訂單填表!$U$13>=A33,訂單填表!$BX$13," ") ->  | G33: =IF(訂單填表!$U$13>=A33,訂單填表!$BY$13," ") ->  | H33: =IF(訂單填表!$U$13>=A33,訂單填表!$BW$13," ") ->  | I33: =IF(訂單填表!$U$13>=A33,訂單填表!$BZ$13," ") ->  | J33: =IF(訂單填表!$U$13>=A33,訂單填表!$CA$13," ") ->  | L33: =IF(AND(訂單填表!$U$13>=標籤!A33,M33<>訂單填表!$AQ$11),$O$9," ") ->  | M33: =IF(訂單填表!$U$13>=A33,訂單填表!$S$13," ") -> 
A34: 3 | B34: =CONCATENATE(訂單填表!$U$124,"-",訂單填表!$U$13,"-",A34) -> --3 | C34: =IF(訂單填表!$U$13>=A34,訂單填表!$N$13," ") ->  | D34: =IF(訂單填表!$U$13>=A34,訂單填表!$P$13," ") ->  | E34: =IF(訂單填表!$U$13>=A34,訂單填表!$CC$13," ") ->  | F34: =IF(訂單填表!$U$13>=A34,訂單填表!$BX$13," ") ->  | G34: =IF(訂單填表!$U$13>=A34,訂單填表!$BY$13," ") ->  | H34: =IF(訂單填表!$U$13>=A34,訂單填表!$BW$13," ") ->  | I34: =IF(訂單填表!$U$13>=A34,訂單填表!$BZ$13," ") ->  | J34: =IF(訂單填表!$U$13>=A34,訂單填表!$CA$13," ") ->  | L34: =IF(AND(訂單填表!$U$13>=標籤!A34,M34<>訂單填表!$AQ$11),$O$9," ") ->  | M34: =IF(訂單填表!$U$13>=A34,訂單填表!$S$13," ") -> 
A35: 4 | B35: =CONCATENATE(訂單填表!$U$124,"-",訂單填表!$U$13,"-",A35) -> --4 | C35: =IF(訂單填表!$U$13>=A35,訂單填表!$N$13," ") ->  | D35: =IF(訂單填表!$U$13>=A35,訂單填表!$P$13," ") ->  | E35: =IF(訂單填表!$U$13>=A35,訂單填表!$CC$13," ") ->  | F35: =IF(訂單填表!$U$13>=A35,訂單填表!$BX$13," ") ->  | G35: =IF(訂單填表!$U$13>=A35,訂單填表!$BY$13," ") ->  | H35: =IF(訂單填表!$U$13>=A35,訂單填表!$BW$13," ") ->  | I35: =IF(訂單填表!$U$13>=A35,訂單填表!$BZ$13," ") ->  | J35: =IF(訂單填表!$U$13>=A35,訂單填表!$CA$13," ") ->  | L35: =IF(AND(訂單填表!$U$13>=標籤!A35,M35<>訂單填表!$AQ$11),$O$9," ") ->  | M35: =IF(訂單填表!$U$13>=A35,訂單填表!$S$13," ") -> 
A36: 5 | B36: =CONCATENATE(訂單填表!$U$124,"-",訂單填表!$U$13,"-",A36) -> --5 | C36: =IF(訂單填表!$U$13>=A36,訂單填表!$N$13," ") ->  | D36: =IF(訂單填表!$U$13>=A36,訂單填表!$P$13," ") ->  | E36: =IF(訂單填表!$U$13>=A36,訂單填表!$CC$13," ") ->  | F36: =IF(訂單填表!$U$13>=A36,訂單填表!$BX$13," ") ->  | G36: =IF(訂單填表!$U$13>=A36,訂單填表!$BY$13," ") ->  | H36: =IF(訂單填表!$U$13>=A36,訂單填表!$BW$13," ") ->  | I36: =IF(訂單填表!$U$13>=A36,訂單填表!$BZ$13," ") ->  | J36: =IF(訂單填表!$U$13>=A36,訂單填表!$CA$13," ") ->  | L36: =IF(AND(訂單填表!$U$13>=標籤!A36,M36<>訂單填表!$AQ$11),$O$9," ") ->  | M36: =IF(訂單填表!$U$13>=A36,訂單填表!$S$13," ") -> 
A37: 6 | B37: =CONCATENATE(訂單填表!$U$124,"-",訂單填表!$U$13,"-",A37) -> --6 | C37: =IF(訂單填表!$U$13>=A37,訂單填表!$N$13," ") ->  | D37: =IF(訂單填表!$U$13>=A37,訂單填表!$P$13," ") ->  | E37: =IF(訂單填表!$U$13>=A37,訂單填表!$CC$13," ") ->  | F37: =IF(訂單填表!$U$13>=A37,訂單填表!$BX$13," ") ->  | G37: =IF(訂單填表!$U$13>=A37,訂單填表!$BY$13," ") ->  | H37: =IF(訂單填表!$U$13>=A37,訂單填表!$BW$13," ") ->  | I37: =IF(訂單填表!$U$13>=A37,訂單填表!$BZ$13," ") ->  | J37: =IF(訂單填表!$U$13>=A37,訂單填表!$CA$13," ") ->  | L37: =IF(AND(訂單填表!$U$13>=標籤!A37,M37<>訂單填表!$AQ$11),$O$9," ") ->  | M37: =IF(訂單填表!$U$13>=A37,訂單填表!$S$13," ") -> 
A38: 7 | B38: =CONCATENATE(訂單填表!$U$124,"-",訂單填表!$U$13,"-",A38) -> --7 | C38: =IF(訂單填表!$U$13>=A38,訂單填表!$N$13," ") ->  | D38: =IF(訂單填表!$U$13>=A38,訂單填表!$P$13," ") ->  | E38: =IF(訂單填表!$U$13>=A38,訂單填表!$CC$13," ") ->  | F38: =IF(訂單填表!$U$13>=A38,訂單填表!$BX$13," ") ->  | G38: =IF(訂單填表!$U$13>=A38,訂單填表!$BY$13," ") ->  | H38: =IF(訂單填表!$U$13>=A38,訂單填表!$BW$13," ") ->  | I38: =IF(訂單填表!$U$13>=A38,訂單填表!$BZ$13," ") ->  | J38: =IF(訂單填表!$U$13>=A38,訂單填表!$CA$13," ") ->  | L38: =IF(AND(訂單填表!$U$13>=標籤!A38,M38<>訂單填表!$AQ$11),$O$9," ") ->  | M38: =IF(訂單填表!$U$13>=A38,訂單填表!$S$13," ") -> 
A39: 8 | B39: =CONCATENATE(訂單填表!$U$124,"-",訂單填表!$U$13,"-",A39) -> --8 | C39: =IF(訂單填表!$U$13>=A39,訂單填表!$N$13," ") ->  | D39: =IF(訂單填表!$U$13>=A39,訂單填表!$P$13," ") ->  | E39: =IF(訂單填表!$U$13>=A39,訂單填表!$CC$13," ") ->  | F39: =IF(訂單填表!$U$13>=A39,訂單填表!$BX$13," ") ->  | G39: =IF(訂單填表!$U$13>=A39,訂單填表!$BY$13," ") ->  | H39: =IF(訂單填表!$U$13>=A39,訂單填表!$BW$13," ") ->  | I39: =IF(訂單填表!$U$13>=A39,訂單填表!$BZ$13," ") ->  | J39: =IF(訂單填表!$U$13>=A39,訂單填表!$CA$13," ") ->  | L39: =IF(AND(訂單填表!$U$13>=標籤!A39,M39<>訂單填表!$AQ$11),$O$9," ") ->  | M39: =IF(訂單填表!$U$13>=A39,訂單填表!$S$13," ") -> 
A40: 9 | B40: =CONCATENATE(訂單填表!$U$124,"-",訂單填表!$U$13,"-",A40) -> --9 | C40: =IF(訂單填表!$U$13>=A40,訂單填表!$N$13," ") ->  | D40: =IF(訂單填表!$U$13>=A40,訂單填表!$P$13," ") ->  | E40: =IF(訂單填表!$U$13>=A40,訂單填表!$CC$13," ") ->  | F40: =IF(訂單填表!$U$13>=A40,訂單填表!$BX$13," ") ->  | G40: =IF(訂單填表!$U$13>=A40,訂單填表!$BY$13," ") ->  | H40: =IF(訂單填表!$U$13>=A40,訂單填表!$BW$13," ") ->  | I40: =IF(訂單填表!$U$13>=A40,訂單填表!$BZ$13," ") ->  | J40: =IF(訂單填表!$U$13>=A40,訂單填表!$CA$13," ") ->  | L40: =IF(AND(訂單填表!$U$13>=標籤!A40,M40<>訂單填表!$AQ$11),$O$9," ") ->  | M40: =IF(訂單填表!$U$13>=A40,訂單填表!$S$13," ") -> 
A41: 10 | B41: =CONCATENATE(訂單填表!$U$124,"-",訂單填表!$U$13,"-",A41) -> --10 | C41: =IF(訂單填表!$U$13>=A41,訂單填表!$N$13," ") ->  | D41: =IF(訂單填表!$U$13>=A41,訂單填表!$P$13," ") ->  | E41: =IF(訂單填表!$U$13>=A41,訂單填表!$CC$13," ") ->  | F41: =IF(訂單填表!$U$13>=A41,訂單填表!$BX$13," ") ->  | G41: =IF(訂單填表!$U$13>=A41,訂單填表!$BY$13," ") ->  | H41: =IF(訂單填表!$U$13>=A41,訂單填表!$BW$13," ") ->  | I41: =IF(訂單填表!$U$13>=A41,訂單填表!$BZ$13," ") ->  | J41: =IF(訂單填表!$U$13>=A41,訂單填表!$CA$13," ") ->  | L41: =IF(AND(訂單填表!$U$13>=標籤!A41,M41<>訂單填表!$AQ$11),$O$9," ") ->  | M41: =IF(訂單填表!$U$13>=A41,訂單填表!$S$13," ") -> 
A42: 11 | B42: =CONCATENATE(訂單填表!$U$124,"-",訂單填表!$U$13,"-",A42) -> --11 | C42: =IF(訂單填表!$U$13>=A42,訂單填表!$N$13," ") ->  | D42: =IF(訂單填表!$U$13>=A42,訂單填表!$P$13," ") ->  | E42: =IF(訂單填表!$U$13>=A42,訂單填表!$CC$13," ") ->  | F42: =IF(訂單填表!$U$13>=A42,訂單填表!$BX$13," ") ->  | G42: =IF(訂單填表!$U$13>=A42,訂單填表!$BY$13," ") ->  | H42: =IF(訂單填表!$U$13>=A42,訂單填表!$BW$13," ") ->  | I42: =IF(訂單填表!$U$13>=A42,訂單填表!$BZ$13," ") ->  | J42: =IF(訂單填表!$U$13>=A42,訂單填表!$CA$13," ") ->  | L42: =IF(AND(訂單填表!$U$13>=標籤!A42,M42<>訂單填表!$AQ$11),$O$9," ") ->  | M42: =IF(訂單填表!$U$13>=A42,訂單填表!$S$13," ") -> 
A43: 12 | B43: =CONCATENATE(訂單填表!$U$124,"-",訂單填表!$U$13,"-",A43) -> --12 | C43: =IF(訂單填表!$U$13>=A43,訂單填表!$N$13," ") ->  | D43: =IF(訂單填表!$U$13>=A43,訂單填表!$P$13," ") ->  | E43: =IF(訂單填表!$U$13>=A43,訂單填表!$CC$13," ") ->  | F43: =IF(訂單填表!$U$13>=A43,訂單填表!$BX$13," ") ->  | G43: =IF(訂單填表!$U$13>=A43,訂單填表!$BY$13," ") ->  | H43: =IF(訂單填表!$U$13>=A43,訂單填表!$BW$13," ") ->  | I43: =IF(訂單填表!$U$13>=A43,訂單填表!$BZ$13," ") ->  | J43: =IF(訂單填表!$U$13>=A43,訂單填表!$CA$13," ") ->  | L43: =IF(AND(訂單填表!$U$13>=標籤!A43,M43<>訂單填表!$AQ$11),$O$9," ") ->  | M43: =IF(訂單填表!$U$13>=A43,訂單填表!$S$13," ") -> 
A44: 13 | B44: =CONCATENATE(訂單填表!$U$124,"-",訂單填表!$U$13,"-",A44) -> --13 | C44: =IF(訂單填表!$U$13>=A44,訂單填表!$N$13," ") ->  | D44: =IF(訂單填表!$U$13>=A44,訂單填表!$P$13," ") ->  | E44: =IF(訂單填表!$U$13>=A44,訂單填表!$CC$13," ") ->  | F44: =IF(訂單填表!$U$13>=A44,訂單填表!$BX$13," ") ->  | G44: =IF(訂單填表!$U$13>=A44,訂單填表!$BY$13," ") ->  | H44: =IF(訂單填表!$U$13>=A44,訂單填表!$BW$13," ") ->  | I44: =IF(訂單填表!$U$13>=A44,訂單填表!$BZ$13," ") ->  | J44: =IF(訂單填表!$U$13>=A44,訂單填表!$CA$13," ") ->  | L44: =IF(AND(訂單填表!$U$13>=標籤!A44,M44<>訂單填表!$AQ$11),$O$9," ") ->  | M44: =IF(訂單填表!$U$13>=A44,訂單填表!$S$13," ") -> 
A45: 14 | B45: =CONCATENATE(訂單填表!$U$124,"-",訂單填表!$U$13,"-",A45) -> --14 | C45: =IF(訂單填表!$U$13>=A45,訂單填表!$N$13," ") ->  | D45: =IF(訂單填表!$U$13>=A45,訂單填表!$P$13," ") ->  | E45: =IF(訂單填表!$U$13>=A45,訂單填表!$CC$13," ") ->  | F45: =IF(訂單填表!$U$13>=A45,訂單填表!$BX$13," ") ->  | G45: =IF(訂單填表!$U$13>=A45,訂單填表!$BY$13," ") ->  | H45: =IF(訂單填表!$U$13>=A45,訂單填表!$BW$13," ") ->  | I45: =IF(訂單填表!$U$13>=A45,訂單填表!$BZ$13," ") ->  | J45: =IF(訂單填表!$U$13>=A45,訂單填表!$CA$13," ") ->  | L45: =IF(AND(訂單填表!$U$13>=標籤!A45,M45<>訂單填表!$AQ$11),$O$9," ") ->  | M45: =IF(訂單填表!$U$13>=A45,訂單填表!$S$13," ") -> 
A46: 15 | B46: =CONCATENATE(訂單填表!$U$124,"-",訂單填表!$U$13,"-",A46) -> --15 | C46: =IF(訂單填表!$U$13>=A46,訂單填表!$N$13," ") ->  | D46: =IF(訂單填表!$U$13>=A46,訂單填表!$P$13," ") ->  | E46: =IF(訂單填表!$U$13>=A46,訂單填表!$CC$13," ") ->  | F46: =IF(訂單填表!$U$13>=A46,訂單填表!$BX$13," ") ->  | G46: =IF(訂單填表!$U$13>=A46,訂單填表!$BY$13," ") ->  | H46: =IF(訂單填表!$U$13>=A46,訂單填表!$BW$13," ") ->  | I46: =IF(訂單填表!$U$13>=A46,訂單填表!$BZ$13," ") ->  | J46: =IF(訂單填表!$U$13>=A46,訂單填表!$CA$13," ") ->  | L46: =IF(AND(訂單填表!$U$13>=標籤!A46,M46<>訂單填表!$AQ$11),$O$9," ") ->  | M46: =IF(訂單填表!$U$13>=A46,訂單填表!$S$13," ") -> 
A47: 16 | B47: =CONCATENATE(訂單填表!$U$124,"-",訂單填表!$U$13,"-",A47) -> --16 | C47: =IF(訂單填表!$U$13>=A47,訂單填表!$N$13," ") ->  | D47: =IF(訂單填表!$U$13>=A47,訂單填表!$P$13," ") ->  | E47: =IF(訂單填表!$U$13>=A47,訂單填表!$CC$13," ") ->  | F47: =IF(訂單填表!$U$13>=A47,訂單填表!$BX$13," ") ->  | G47: =IF(訂單填表!$U$13>=A47,訂單填表!$BY$13," ") ->  | H47: =IF(訂單填表!$U$13>=A47,訂單填表!$BW$13," ") ->  | I47: =IF(訂單填表!$U$13>=A47,訂單填表!$BZ$13," ") ->  | J47: =IF(訂單填表!$U$13>=A47,訂單填表!$CA$13," ") ->  | L47: =IF(AND(訂單填表!$U$13>=標籤!A47,M47<>訂單填表!$AQ$11),$O$9," ") ->  | M47: =IF(訂單填表!$U$13>=A47,訂單填表!$S$13," ") -> 
A48: 17 | B48: =CONCATENATE(訂單填表!$U$124,"-",訂單填表!$U$13,"-",A48) -> --17 | C48: =IF(訂單填表!$U$13>=A48,訂單填表!$N$13," ") ->  | D48: =IF(訂單填表!$U$13>=A48,訂單填表!$P$13," ") ->  | E48: =IF(訂單填表!$U$13>=A48,訂單填表!$CC$13," ") ->  | F48: =IF(訂單填表!$U$13>=A48,訂單填表!$BX$13," ") ->  | G48: =IF(訂單填表!$U$13>=A48,訂單填表!$BY$13," ") ->  | H48: =IF(訂單填表!$U$13>=A48,訂單填表!$BW$13," ") ->  | I48: =IF(訂單填表!$U$13>=A48,訂單填表!$BZ$13," ") ->  | J48: =IF(訂單填表!$U$13>=A48,訂單填表!$CA$13," ") ->  | L48: =IF(AND(訂單填表!$U$13>=標籤!A48,M48<>訂單填表!$AQ$11),$O$9," ") ->  | M48: =IF(訂單填表!$U$13>=A48,訂單填表!$S$13," ") -> 
A49: 18 | B49: =CONCATENATE(訂單填表!$U$124,"-",訂單填表!$U$13,"-",A49) -> --18 | C49: =IF(訂單填表!$U$13>=A49,訂單填表!$N$13," ") ->  | D49: =IF(訂單填表!$U$13>=A49,訂單填表!$P$13," ") ->  | E49: =IF(訂單填表!$U$13>=A49,訂單填表!$CC$13," ") ->  | F49: =IF(訂單填表!$U$13>=A49,訂單填表!$BX$13," ") ->  | G49: =IF(訂單填表!$U$13>=A49,訂單填表!$BY$13," ") ->  | H49: =IF(訂單填表!$U$13>=A49,訂單填表!$BW$13," ") ->  | I49: =IF(訂單填表!$U$13>=A49,訂單填表!$BZ$13," ") ->  | J49: =IF(訂單填表!$U$13>=A49,訂單填表!$CA$13," ") ->  | L49: =IF(AND(訂單填表!$U$13>=標籤!A49,M49<>訂單填表!$AQ$11),$O$9," ") ->  | M49: =IF(訂單填表!$U$13>=A49,訂單填表!$S$13," ") -> 
A50: 19 | B50: =CONCATENATE(訂單填表!$U$124,"-",訂單填表!$U$13,"-",A50) -> --19 | C50: =IF(訂單填表!$U$13>=A50,訂單填表!$N$13," ") ->  | D50: =IF(訂單填表!$U$13>=A50,訂單填表!$P$13," ") ->  | E50: =IF(訂單填表!$U$13>=A50,訂單填表!$CC$13," ") ->  | F50: =IF(訂單填表!$U$13>=A50,訂單填表!$BX$13," ") ->  | G50: =IF(訂單填表!$U$13>=A50,訂單填表!$BY$13," ") ->  | H50: =IF(訂單填表!$U$13>=A50,訂單填表!$BW$13," ") ->  | I50: =IF(訂單填表!$U$13>=A50,訂單填表!$BZ$13," ") ->  | J50: =IF(訂單填表!$U$13>=A50,訂單填表!$CA$13," ") ->  | L50: =IF(AND(訂單填表!$U$13>=標籤!A50,M50<>訂單填表!$AQ$11),$O$9," ") ->  | M50: =IF(訂單填表!$U$13>=A50,訂單填表!$S$13," ") -> 
A51: 20 | B51: =CONCATENATE(訂單填表!$U$124,"-",訂單填表!$U$13,"-",A51) -> --20 | C51: =IF(訂單填表!$U$13>=A51,訂單填表!$N$13," ") ->  | D51: =IF(訂單填表!$U$13>=A51,訂單填表!$P$13," ") ->  | E51: =IF(訂單填表!$U$13>=A51,訂單填表!$CC$13," ") ->  | F51: =IF(訂單填表!$U$13>=A51,訂單填表!$BX$13," ") ->  | G51: =IF(訂單填表!$U$13>=A51,訂單填表!$BY$13," ") ->  | H51: =IF(訂單填表!$U$13>=A51,訂單填表!$BW$13," ") ->  | I51: =IF(訂單填表!$U$13>=A51,訂單填表!$BZ$13," ") ->  | J51: =IF(訂單填表!$U$13>=A51,訂單填表!$CA$13," ") ->  | L51: =IF(AND(訂單填表!$U$13>=標籤!A51,M51<>訂單填表!$AQ$11),$O$9," ") ->  | M51: =IF(訂單填表!$U$13>=A51,訂單填表!$S$13," ") -> 
A52: 21 | B52: =CONCATENATE(訂單填表!$U$124,"-",訂單填表!$U$13,"-",A52) -> --21 | C52: =IF(訂單填表!$U$13>=A52,訂單填表!$N$13," ") ->  | D52: =IF(訂單填表!$U$13>=A52,訂單填表!$P$13," ") ->  | E52: =IF(訂單填表!$U$13>=A52,訂單填表!$CC$13," ") ->  | F52: =IF(訂單填表!$U$13>=A52,訂單填表!$BX$13," ") ->  | G52: =IF(訂單填表!$U$13>=A52,訂單填表!$BY$13," ") ->  | H52: =IF(訂單填表!$U$13>=A52,訂單填表!$BW$13," ") ->  | I52: =IF(訂單填表!$U$13>=A52,訂單填表!$BZ$13," ") ->  | J52: =IF(訂單填表!$U$13>=A52,訂單填表!$CA$13," ") ->  | L52: =IF(AND(訂單填表!$U$13>=標籤!A52,M52<>訂單填表!$AQ$11),$O$9," ") ->  | M52: =IF(訂單填表!$U$13>=A52,訂單填表!$S$13," ") -> 
A53: 22 | B53: =CONCATENATE(訂單填表!$U$124,"-",訂單填表!$U$13,"-",A53) -> --22 | C53: =IF(訂單填表!$U$13>=A53,訂單填表!$N$13," ") ->  | D53: =IF(訂單填表!$U$13>=A53,訂單填表!$P$13," ") ->  | E53: =IF(訂單填表!$U$13>=A53,訂單填表!$CC$13," ") ->  | F53: =IF(訂單填表!$U$13>=A53,訂單填表!$BX$13," ") ->  | G53: =IF(訂單填表!$U$13>=A53,訂單填表!$BY$13," ") ->  | H53: =IF(訂單填表!$U$13>=A53,訂單填表!$BW$13," ") ->  | I53: =IF(訂單填表!$U$13>=A53,訂單填表!$BZ$13," ") ->  | J53: =IF(訂單填表!$U$13>=A53,訂單填表!$CA$13," ") ->  | L53: =IF(AND(訂單填表!$U$13>=標籤!A53,M53<>訂單填表!$AQ$11),$O$9," ") ->  | M53: =IF(訂單填表!$U$13>=A53,訂單填表!$S$13," ") -> 
A54: 23 | B54: =CONCATENATE(訂單填表!$U$124,"-",訂單填表!$U$13,"-",A54) -> --23 | C54: =IF(訂單填表!$U$13>=A54,訂單填表!$N$13," ") ->  | D54: =IF(訂單填表!$U$13>=A54,訂單填表!$P$13," ") ->  | E54: =IF(訂單填表!$U$13>=A54,訂單填表!$CC$13," ") ->  | F54: =IF(訂單填表!$U$13>=A54,訂單填表!$BX$13," ") ->  | G54: =IF(訂單填表!$U$13>=A54,訂單填表!$BY$13," ") ->  | H54: =IF(訂單填表!$U$13>=A54,訂單填表!$BW$13," ") ->  | I54: =IF(訂單填表!$U$13>=A54,訂單填表!$BZ$13," ") ->  | J54: =IF(訂單填表!$U$13>=A54,訂單填表!$CA$13," ") ->  | L54: =IF(AND(訂單填表!$U$13>=標籤!A54,M54<>訂單填表!$AQ$11),$O$9," ") ->  | M54: =IF(訂單填表!$U$13>=A54,訂單填表!$S$13," ") -> 
A55: 24 | B55: =CONCATENATE(訂單填表!$U$124,"-",訂單填表!$U$13,"-",A55) -> --24 | C55: =IF(訂單填表!$U$13>=A55,訂單填表!$N$13," ") ->  | D55: =IF(訂單填表!$U$13>=A55,訂單填表!$P$13," ") ->  | E55: =IF(訂單填表!$U$13>=A55,訂單填表!$CC$13," ") ->  | F55: =IF(訂單填表!$U$13>=A55,訂單填表!$BX$13," ") ->  | G55: =IF(訂單填表!$U$13>=A55,訂單填表!$BY$13," ") ->  | H55: =IF(訂單填表!$U$13>=A55,訂單填表!$BW$13," ") ->  | I55: =IF(訂單填表!$U$13>=A55,訂單填表!$BZ$13," ") ->  | J55: =IF(訂單填表!$U$13>=A55,訂單填表!$CA$13," ") ->  | L55: =IF(AND(訂單填表!$U$13>=標籤!A55,M55<>訂單填表!$AQ$11),$O$9," ") ->  | M55: =IF(訂單填表!$U$13>=A55,訂單填表!$S$13," ") -> 
A56: 25 | B56: =CONCATENATE(訂單填表!$U$124,"-",訂單填表!$U$13,"-",A56) -> --25 | C56: =IF(訂單填表!$U$13>=A56,訂單填表!$N$13," ") ->  | D56: =IF(訂單填表!$U$13>=A56,訂單填表!$P$13," ") ->  | E56: =IF(訂單填表!$U$13>=A56,訂單填表!$CC$13," ") ->  | F56: =IF(訂單填表!$U$13>=A56,訂單填表!$BX$13," ") ->  | G56: =IF(訂單填表!$U$13>=A56,訂單填表!$BY$13," ") ->  | H56: =IF(訂單填表!$U$13>=A56,訂單填表!$BW$13," ") ->  | I56: =IF(訂單填表!$U$13>=A56,訂單填表!$BZ$13," ") ->  | J56: =IF(訂單填表!$U$13>=A56,訂單填表!$CA$13," ") ->  | L56: =IF(AND(訂單填表!$U$13>=標籤!A56,M56<>訂單填表!$AQ$11),$O$9," ") ->  | M56: =IF(訂單填表!$U$13>=A56,訂單填表!$S$13," ") -> 
A57: 26 | B57: =CONCATENATE(訂單填表!$U$124,"-",訂單填表!$U$13,"-",A57) -> --26 | C57: =IF(訂單填表!$U$13>=A57,訂單填表!$N$13," ") ->  | D57: =IF(訂單填表!$U$13>=A57,訂單填表!$P$13," ") ->  | E57: =IF(訂單填表!$U$13>=A57,訂單填表!$CC$13," ") ->  | F57: =IF(訂單填表!$U$13>=A57,訂單填表!$BX$13," ") ->  | G57: =IF(訂單填表!$U$13>=A57,訂單填表!$BY$13," ") ->  | H57: =IF(訂單填表!$U$13>=A57,訂單填表!$BW$13," ") ->  | I57: =IF(訂單填表!$U$13>=A57,訂單填表!$BZ$13," ") ->  | J57: =IF(訂單填表!$U$13>=A57,訂單填表!$CA$13," ") ->  | L57: =IF(AND(訂單填表!$U$13>=標籤!A57,M57<>訂單填表!$AQ$11),$O$9," ") ->  | M57: =IF(訂單填表!$U$13>=A57,訂單填表!$S$13," ") -> 
A58: 27 | B58: =CONCATENATE(訂單填表!$U$124,"-",訂單填表!$U$13,"-",A58) -> --27 | C58: =IF(訂單填表!$U$13>=A58,訂單填表!$N$13," ") ->  | D58: =IF(訂單填表!$U$13>=A58,訂單填表!$P$13," ") ->  | E58: =IF(訂單填表!$U$13>=A58,訂單填表!$CC$13," ") ->  | F58: =IF(訂單填表!$U$13>=A58,訂單填表!$BX$13," ") ->  | G58: =IF(訂單填表!$U$13>=A58,訂單填表!$BY$13," ") ->  | H58: =IF(訂單填表!$U$13>=A58,訂單填表!$BW$13," ") ->  | I58: =IF(訂單填表!$U$13>=A58,訂單填表!$BZ$13," ") ->  | J58: =IF(訂單填表!$U$13>=A58,訂單填表!$CA$13," ") ->  | L58: =IF(AND(訂單填表!$U$13>=標籤!A58,M58<>訂單填表!$AQ$11),$O$9," ") ->  | M58: =IF(訂單填表!$U$13>=A58,訂單填表!$S$13," ") -> 
A59: 28 | B59: =CONCATENATE(訂單填表!$U$124,"-",訂單填表!$U$13,"-",A59) -> --28 | C59: =IF(訂單填表!$U$13>=A59,訂單填表!$N$13," ") ->  | D59: =IF(訂單填表!$U$13>=A59,訂單填表!$P$13," ") ->  | E59: =IF(訂單填表!$U$13>=A59,訂單填表!$CC$13," ") ->  | F59: =IF(訂單填表!$U$13>=A59,訂單填表!$BX$13," ") ->  | G59: =IF(訂單填表!$U$13>=A59,訂單填表!$BY$13," ") ->  | H59: =IF(訂單填表!$U$13>=A59,訂單填表!$BW$13," ") ->  | I59: =IF(訂單填表!$U$13>=A59,訂單填表!$BZ$13," ") ->  | J59: =IF(訂單填表!$U$13>=A59,訂單填表!$CA$13," ") ->  | L59: =IF(AND(訂單填表!$U$13>=標籤!A59,M59<>訂單填表!$AQ$11),$O$9," ") ->  | M59: =IF(訂單填表!$U$13>=A59,訂單填表!$S$13," ") -> 
A60: 29 | B60: =CONCATENATE(訂單填表!$U$124,"-",訂單填表!$U$13,"-",A60) -> --29 | C60: =IF(訂單填表!$U$13>=A60,訂單填表!$N$13," ") ->  | D60: =IF(訂單填表!$U$13>=A60,訂單填表!$P$13," ") ->  | E60: =IF(訂單填表!$U$13>=A60,訂單填表!$CC$13," ") ->  | F60: =IF(訂單填表!$U$13>=A60,訂單填表!$BX$13," ") ->  | G60: =IF(訂單填表!$U$13>=A60,訂單填表!$BY$13," ") ->  | H60: =IF(訂單填表!$U$13>=A60,訂單填表!$BW$13," ") ->  | I60: =IF(訂單填表!$U$13>=A60,訂單填表!$BZ$13," ") ->  | J60: =IF(訂單填表!$U$13>=A60,訂單填表!$CA$13," ") ->  | L60: =IF(AND(訂單填表!$U$13>=標籤!A60,M60<>訂單填表!$AQ$11),$O$9," ") ->  | M60: =IF(訂單填表!$U$13>=A60,訂單填表!$S$13," ") -> 
A61: 30 | B61: =CONCATENATE(訂單填表!$U$124,"-",訂單填表!$U$13,"-",A61) -> --30 | C61: =IF(訂單填表!$U$13>=A61,訂單填表!$N$13," ") ->  | D61: =IF(訂單填表!$U$13>=A61,訂單填表!$P$13," ") ->  | E61: =IF(訂單填表!$U$13>=A61,訂單填表!$CC$13," ") ->  | F61: =IF(訂單填表!$U$13>=A61,訂單填表!$BX$13," ") ->  | G61: =IF(訂單填表!$U$13>=A61,訂單填表!$BY$13," ") ->  | H61: =IF(訂單填表!$U$13>=A61,訂單填表!$BW$13," ") ->  | I61: =IF(訂單填表!$U$13>=A61,訂單填表!$BZ$13," ") ->  | J61: =IF(訂單填表!$U$13>=A61,訂單填表!$CA$13," ") ->  | L61: =IF(AND(訂單填表!$U$13>=標籤!A61,M61<>訂單填表!$AQ$11),$O$9," ") ->  | M61: =IF(訂單填表!$U$13>=A61,訂單填表!$S$13," ") -> 
A62: 1 | B62: =CONCATENATE(訂單填表!$U$124,"-",訂單填表!$U$14,"-",A62) -> --1 | C62: =IF(訂單填表!$U$14>=A62,訂單填表!$N$14," ") ->  | D62: =IF(訂單填表!$U$14>=A62,訂單填表!$P$14," ") ->  | E62: =IF(訂單填表!$U$14>=A62,訂單填表!$CC$14," ") ->  | F62: =IF(訂單填表!$U$14>=A62,訂單填表!$BX$14," ") ->  | G62: =IF(訂單填表!$U$14>=A62,訂單填表!$BY$14," ") ->  | H62: =IF(訂單填表!$U$14>=A62,訂單填表!$BW$14," ") ->  | I62: =IF(訂單填表!$U$14>=A62,訂單填表!$BZ$14," ") ->  | J62: =IF(訂單填表!$U$14>=A62,訂單填表!$CA$14," ") ->  | L62: =IF(AND(訂單填表!$U$14>=標籤!A62,M62<>訂單填表!$AQ$11),$O$9," ") ->  | M62: =IF(訂單填表!$U$14>=A62,訂單填表!$S$14," ") ->  | N62: 14
A63: 2 | B63: =CONCATENATE(訂單填表!$U$124,"-",訂單填表!$U$14,"-",A63) -> --2 | C63: =IF(訂單填表!$U$14>=A63,訂單填表!$N$14," ") ->  | D63: =IF(訂單填表!$U$14>=A63,訂單填表!$P$14," ") ->  | E63: =IF(訂單填表!$U$14>=A63,訂單填表!$CC$14," ") ->  | F63: =IF(訂單填表!$U$14>=A63,訂單填表!$BX$14," ") ->  | G63: =IF(訂單填表!$U$14>=A63,訂單填表!$BY$14," ") ->  | H63: =IF(訂單填表!$U$14>=A63,訂單填表!$BW$14," ") ->  | I63: =IF(訂單填表!$U$14>=A63,訂單填表!$BZ$14," ") ->  | J63: =IF(訂單填表!$U$14>=A63,訂單填表!$CA$14," ") ->  | L63: =IF(AND(訂單填表!$U$14>=標籤!A63,M63<>訂單填表!$AQ$11),$O$9," ") ->  | M63: =IF(訂單填表!$U$14>=A63,訂單填表!$S$14," ") -> 
A64: 3 | B64: =CONCATENATE(訂單填表!$U$124,"-",訂單填表!$U$14,"-",A64) -> --3 | C64: =IF(訂單填表!$U$14>=A64,訂單填表!$N$14," ") ->  | D64: =IF(訂單填表!$U$14>=A64,訂單填表!$P$14," ") ->  | E64: =IF(訂單填表!$U$14>=A64,訂單填表!$CC$14," ") ->  | F64: =IF(訂單填表!$U$14>=A64,訂單填表!$BX$14," ") ->  | G64: =IF(訂單填表!$U$14>=A64,訂單填表!$BY$14," ") ->  | H64: =IF(訂單填表!$U$14>=A64,訂單填表!$BW$14," ") ->  | I64: =IF(訂單填表!$U$14>=A64,訂單填表!$BZ$14," ") ->  | J64: =IF(訂單填表!$U$14>=A64,訂單填表!$CA$14," ") ->  | L64: =IF(AND(訂單填表!$U$14>=標籤!A64,M64<>訂單填表!$AQ$11),$O$9," ") ->  | M64: =IF(訂單填表!$U$14>=A64,訂單填表!$S$14," ") -> 
A65: 4 | B65: =CONCATENATE(訂單填表!$U$124,"-",訂單填表!$U$14,"-",A65) -> --4 | C65: =IF(訂單填表!$U$14>=A65,訂單填表!$N$14," ") ->  | D65: =IF(訂單填表!$U$14>=A65,訂單填表!$P$14," ") ->  | E65: =IF(訂單填表!$U$14>=A65,訂單填表!$CC$14," ") ->  | F65: =IF(訂單填表!$U$14>=A65,訂單填表!$BX$14," ") ->  | G65: =IF(訂單填表!$U$14>=A65,訂單填表!$BY$14," ") ->  | H65: =IF(訂單填表!$U$14>=A65,訂單填表!$BW$14," ") ->  | I65: =IF(訂單填表!$U$14>=A65,訂單填表!$BZ$14," ") ->  | J65: =IF(訂單填表!$U$14>=A65,訂單填表!$CA$14," ") ->  | L65: =IF(AND(訂單填表!$U$14>=標籤!A65,M65<>訂單填表!$AQ$11),$O$9," ") ->  | M65: =IF(訂單填表!$U$14>=A65,訂單填表!$S$14," ") -> 
A66: 5 | B66: =CONCATENATE(訂單填表!$U$124,"-",訂單填表!$U$14,"-",A66) -> --5 | C66: =IF(訂單填表!$U$14>=A66,訂單填表!$N$14," ") ->  | D66: =IF(訂單填表!$U$14>=A66,訂單填表!$P$14," ") ->  | E66: =IF(訂單填表!$U$14>=A66,訂單填表!$CC$14," ") ->  | F66: =IF(訂單填表!$U$14>=A66,訂單填表!$BX$14," ") ->  | G66: =IF(訂單填表!$U$14>=A66,訂單填表!$BY$14," ") ->  | H66: =IF(訂單填表!$U$14>=A66,訂單填表!$BW$14," ") ->  | I66: =IF(訂單填表!$U$14>=A66,訂單填表!$BZ$14," ") ->  | J66: =IF(訂單填表!$U$14>=A66,訂單填表!$CA$14," ") ->  | K66: =CONCATENATE(L66,M66) ->  | L66: =IF(AND(訂單填表!$U$14>=標籤!A66,M66<>訂單填表!$AQ$11),$O$9," ") ->  | M66: =IF(訂單填表!$U$14>=A66,訂單填表!$S$14," ") -> 
A67: 6 | B67: =CONCATENATE(訂單填表!$U$124,"-",訂單填表!$U$14,"-",A67) -> --6 | C67: =IF(訂單填表!$U$14>=A67,訂單填表!$N$14," ") ->  | D67: =IF(訂單填表!$U$14>=A67,訂單填表!$P$14," ") ->  | E67: =IF(訂單填表!$U$14>=A67,訂單填表!$CC$14," ") ->  | F67: =IF(訂單填表!$U$14>=A67,訂單填表!$BX$14," ") ->  | G67: =IF(訂單填表!$U$14>=A67,訂單填表!$BY$14," ") ->  | H67: =IF(訂單填表!$U$14>=A67,訂單填表!$BW$14," ") ->  | I67: =IF(訂單填表!$U$14>=A67,訂單填表!$BZ$14," ") ->  | J67: =IF(訂單填表!$U$14>=A67,訂單填表!$CA$14," ") ->  | L67: =IF(AND(訂單填表!$U$14>=標籤!A67,M67<>訂單填表!$AQ$11),$O$9," ") ->  | M67: =IF(訂單填表!$U$14>=A67,訂單填表!$S$14," ") -> 
A68: 7 | B68: =CONCATENATE(訂單填表!$U$124,"-",訂單填表!$U$14,"-",A68) -> --7 | C68: =IF(訂單填表!$U$14>=A68,訂單填表!$N$14," ") ->  | D68: =IF(訂單填表!$U$14>=A68,訂單填表!$P$14," ") ->  | E68: =IF(訂單填表!$U$14>=A68,訂單填表!$CC$14," ") ->  | F68: =IF(訂單填表!$U$14>=A68,訂單填表!$BX$14," ") ->  | G68: =IF(訂單填表!$U$14>=A68,訂單填表!$BY$14," ") ->  | H68: =IF(訂單填表!$U$14>=A68,訂單填表!$BW$14," ") ->  | I68: =IF(訂單填表!$U$14>=A68,訂單填表!$BZ$14," ") ->  | J68: =IF(訂單填表!$U$14>=A68,訂單填表!$CA$14," ") ->  | L68: =IF(AND(訂單填表!$U$14>=標籤!A68,M68<>訂單填表!$AQ$11),$O$9," ") ->  | M68: =IF(訂單填表!$U$14>=A68,訂單填表!$S$14," ") -> 
A69: 8 | B69: =CONCATENATE(訂單填表!$U$124,"-",訂單填表!$U$14,"-",A69) -> --8 | C69: =IF(訂單填表!$U$14>=A69,訂單填表!$N$14," ") ->  | D69: =IF(訂單填表!$U$14>=A69,訂單填表!$P$14," ") ->  | E69: =IF(訂單填表!$U$14>=A69,訂單填表!$CC$14," ") ->  | F69: =IF(訂單填表!$U$14>=A69,訂單填表!$BX$14," ") ->  | G69: =IF(訂單填表!$U$14>=A69,訂單填表!$BY$14," ") ->  | H69: =IF(訂單填表!$U$14>=A69,訂單填表!$BW$14," ") ->  | I69: =IF(訂單填表!$U$14>=A69,訂單填表!$BZ$14," ") ->  | J69: =IF(訂單填表!$U$14>=A69,訂單填表!$CA$14," ") ->  | L69: =IF(AND(訂單填表!$U$14>=標籤!A69,M69<>訂單填表!$AQ$11),$O$9," ") ->  | M69: =IF(訂單填表!$U$14>=A69,訂單填表!$S$14," ") -> 
A70: 9 | B70: =CONCATENATE(訂單填表!$U$124,"-",訂單填表!$U$14,"-",A70) -> --9 | C70: =IF(訂單填表!$U$14>=A70,訂單填表!$N$14," ") ->  | D70: =IF(訂單填表!$U$14>=A70,訂單填表!$P$14," ") ->  | E70: =IF(訂單填表!$U$14>=A70,訂單填表!$CC$14," ") ->  | F70: =IF(訂單填表!$U$14>=A70,訂單填表!$BX$14," ") ->  | G70: =IF(訂單填表!$U$14>=A70,訂單填表!$BY$14," ") ->  | H70: =IF(訂單填表!$U$14>=A70,訂單填表!$BW$14," ") ->  | I70: =IF(訂單填表!$U$14>=A70,訂單填表!$BZ$14," ") ->  | J70: =IF(訂單填表!$U$14>=A70,訂單填表!$CA$14," ") ->  | L70: =IF(AND(訂單填表!$U$14>=標籤!A70,M70<>訂單填表!$AQ$11),$O$9," ") ->  | M70: =IF(訂單填表!$U$14>=A70,訂單填表!$S$14," ") -> 
A71: 10 | B71: =CONCATENATE(訂單填表!$U$124,"-",訂單填表!$U$14,"-",A71) -> --10 | C71: =IF(訂單填表!$U$14>=A71,訂單填表!$N$14," ") ->  | D71: =IF(訂單填表!$U$14>=A71,訂單填表!$P$14," ") ->  | E71: =IF(訂單填表!$U$14>=A71,訂單填表!$CC$14," ") ->  | F71: =IF(訂單填表!$U$14>=A71,訂單填表!$BX$14," ") ->  | G71: =IF(訂單填表!$U$14>=A71,訂單填表!$BY$14," ") ->  | H71: =IF(訂單填表!$U$14>=A71,訂單填表!$BW$14," ") ->  | I71: =IF(訂單填表!$U$14>=A71,訂單填表!$BZ$14," ") ->  | J71: =IF(訂單填表!$U$14>=A71,訂單填表!$CA$14," ") ->  | L71: =IF(AND(訂單填表!$U$14>=標籤!A71,M71<>訂單填表!$AQ$11),$O$9," ") ->  | M71: =IF(訂單填表!$U$14>=A71,訂單填表!$S$14," ") -> 
A72: 11 | B72: =CONCATENATE(訂單填表!$U$124,"-",訂單填表!$U$14,"-",A72) -> --11 | C72: =IF(訂單填表!$U$14>=A72,訂單填表!$N$14," ") ->  | D72: =IF(訂單填表!$U$14>=A72,訂單填表!$P$14," ") ->  | E72: =IF(訂單填表!$U$14>=A72,訂單填表!$CC$14," ") ->  | F72: =IF(訂單填表!$U$14>=A72,訂單填表!$BX$14," ") ->  | G72: =IF(訂單填表!$U$14>=A72,訂單填表!$BY$14," ") ->  | H72: =IF(訂單填表!$U$14>=A72,訂單填表!$BW$14," ") ->  | I72: =IF(訂單填表!$U$14>=A72,訂單填表!$BZ$14," ") ->  | J72: =IF(訂單填表!$U$14>=A72,訂單填表!$CA$14," ") ->  | L72: =IF(AND(訂單填表!$U$14>=標籤!A72,M72<>訂單填表!$AQ$11),$O$9," ") ->  | M72: =IF(訂單填表!$U$14>=A72,訂單填表!$S$14," ") -> 
A73: 12 | B73: =CONCATENATE(訂單填表!$U$124,"-",訂單填表!$U$14,"-",A73) -> --12 | C73: =IF(訂單填表!$U$14>=A73,訂單填表!$N$14," ") ->  | D73: =IF(訂單填表!$U$14>=A73,訂單填表!$P$14," ") ->  | E73: =IF(訂單填表!$U$14>=A73,訂單填表!$CC$14," ") ->  | F73: =IF(訂單填表!$U$14>=A73,訂單填表!$BX$14," ") ->  | G73: =IF(訂單填表!$U$14>=A73,訂單填表!$BY$14," ") ->  | H73: =IF(訂單填表!$U$14>=A73,訂單填表!$BW$14," ") ->  | I73: =IF(訂單填表!$U$14>=A73,訂單填表!$BZ$14," ") ->  | J73: =IF(訂單填表!$U$14>=A73,訂單填表!$CA$14," ") ->  | L73: =IF(AND(訂單填表!$U$14>=標籤!A73,M73<>訂單填表!$AQ$11),$O$9," ") ->  | M73: =IF(訂單填表!$U$14>=A73,訂單填表!$S$14," ") -> 
A74: 13 | B74: =CONCATENATE(訂單填表!$U$124,"-",訂單填表!$U$14,"-",A74) -> --13 | C74: =IF(訂單填表!$U$14>=A74,訂單填表!$N$14," ") ->  | D74: =IF(訂單填表!$U$14>=A74,訂單填表!$P$14," ") ->  | E74: =IF(訂單填表!$U$14>=A74,訂單填表!$CC$14," ") ->  | F74: =IF(訂單填表!$U$14>=A74,訂單填表!$BX$14," ") ->  | G74: =IF(訂單填表!$U$14>=A74,訂單填表!$BY$14," ") ->  | H74: =IF(訂單填表!$U$14>=A74,訂單填表!$BW$14," ") ->  | I74: =IF(訂單填表!$U$14>=A74,訂單填表!$BZ$14," ") ->  | J74: =IF(訂單填表!$U$14>=A74,訂單填表!$CA$14," ") ->  | L74: =IF(AND(訂單填表!$U$14>=標籤!A74,M74<>訂單填表!$AQ$11),$O$9," ") ->  | M74: =IF(訂單填表!$U$14>=A74,訂單填表!$S$14," ") -> 
A75: 14 | B75: =CONCATENATE(訂單填表!$U$124,"-",訂單填表!$U$14,"-",A75) -> --14 | C75: =IF(訂單填表!$U$14>=A75,訂單填表!$N$14," ") ->  | D75: =IF(訂單填表!$U$14>=A75,訂單填表!$P$14," ") ->  | E75: =IF(訂單填表!$U$14>=A75,訂單填表!$CC$14," ") ->  | F75: =IF(訂單填表!$U$14>=A75,訂單填表!$BX$14," ") ->  | G75: =IF(訂單填表!$U$14>=A75,訂單填表!$BY$14," ") ->  | H75: =IF(訂單填表!$U$14>=A75,訂單填表!$BW$14," ") ->  | I75: =IF(訂單填表!$U$14>=A75,訂單填表!$BZ$14," ") ->  | J75: =IF(訂單填表!$U$14>=A75,訂單填表!$CA$14," ") ->  | L75: =IF(AND(訂單填表!$U$14>=標籤!A75,M75<>訂單填表!$AQ$11),$O$9," ") ->  | M75: =IF(訂單填表!$U$14>=A75,訂單填表!$S$14," ") -> 
A76: 15 | B76: =CONCATENATE(訂單填表!$U$124,"-",訂單填表!$U$14,"-",A76) -> --15 | C76: =IF(訂單填表!$U$14>=A76,訂單填表!$N$14," ") ->  | D76: =IF(訂單填表!$U$14>=A76,訂單填表!$P$14," ") ->  | E76: =IF(訂單填表!$U$14>=A76,訂單填表!$CC$14," ") ->  | F76: =IF(訂單填表!$U$14>=A76,訂單填表!$BX$14," ") ->  | G76: =IF(訂單填表!$U$14>=A76,訂單填表!$BY$14," ") ->  | H76: =IF(訂單填表!$U$14>=A76,訂單填表!$BW$14," ") ->  | I76: =IF(訂單填表!$U$14>=A76,訂單填表!$BZ$14," ") ->  | J76: =IF(訂單填表!$U$14>=A76,訂單填表!$CA$14," ") ->  | L76: =IF(AND(訂單填表!$U$14>=標籤!A76,M76<>訂單填表!$AQ$11),$O$9," ") ->  | M76: =IF(訂單填表!$U$14>=A76,訂單填表!$S$14," ") -> 
A77: 16 | B77: =CONCATENATE(訂單填表!$U$124,"-",訂單填表!$U$14,"-",A77) -> --16 | C77: =IF(訂單填表!$U$14>=A77,訂單填表!$N$14," ") ->  | D77: =IF(訂單填表!$U$14>=A77,訂單填表!$P$14," ") ->  | E77: =IF(訂單填表!$U$14>=A77,訂單填表!$CC$14," ") ->  | F77: =IF(訂單填表!$U$14>=A77,訂單填表!$BX$14," ") ->  | G77: =IF(訂單填表!$U$14>=A77,訂單填表!$BY$14," ") ->  | H77: =IF(訂單填表!$U$14>=A77,訂單填表!$BW$14," ") ->  | I77: =IF(訂單填表!$U$14>=A77,訂單填表!$BZ$14," ") ->  | J77: =IF(訂單填表!$U$14>=A77,訂單填表!$CA$14," ") ->  | L77: =IF(AND(訂單填表!$U$14>=標籤!A77,M77<>訂單填表!$AQ$11),$O$9," ") ->  | M77: =IF(訂單填表!$U$14>=A77,訂單填表!$S$14," ") -> 
A78: 17 | B78: =CONCATENATE(訂單填表!$U$124,"-",訂單填表!$U$14,"-",A78) -> --17 | C78: =IF(訂單填表!$U$14>=A78,訂單填表!$N$14," ") ->  | D78: =IF(訂單填表!$U$14>=A78,訂單填表!$P$14," ") ->  | E78: =IF(訂單填表!$U$14>=A78,訂單填表!$CC$14," ") ->  | F78: =IF(訂單填表!$U$14>=A78,訂單填表!$BX$14," ") ->  | G78: =IF(訂單填表!$U$14>=A78,訂單填表!$BY$14," ") ->  | H78: =IF(訂單填表!$U$14>=A78,訂單填表!$BW$14," ") ->  | I78: =IF(訂單填表!$U$14>=A78,訂單填表!$BZ$14," ") ->  | J78: =IF(訂單填表!$U$14>=A78,訂單填表!$CA$14," ") ->  | L78: =IF(AND(訂單填表!$U$14>=標籤!A78,M78<>訂單填表!$AQ$11),$O$9," ") ->  | M78: =IF(訂單填表!$U$14>=A78,訂單填表!$S$14," ") -> 
A79: 18 | B79: =CONCATENATE(訂單填表!$U$124,"-",訂單填表!$U$14,"-",A79) -> --18 | C79: =IF(訂單填表!$U$14>=A79,訂單填表!$N$14," ") ->  | D79: =IF(訂單填表!$U$14>=A79,訂單填表!$P$14," ") ->  | E79: =IF(訂單填表!$U$14>=A79,訂單填表!$CC$14," ") ->  | F79: =IF(訂單填表!$U$14>=A79,訂單填表!$BX$14," ") ->  | G79: =IF(訂單填表!$U$14>=A79,訂單填表!$BY$14," ") ->  | H79: =IF(訂單填表!$U$14>=A79,訂單填表!$BW$14," ") ->  | I79: =IF(訂單填表!$U$14>=A79,訂單填表!$BZ$14," ") ->  | J79: =IF(訂單填表!$U$14>=A79,訂單填表!$CA$14," ") ->  | L79: =IF(AND(訂單填表!$U$14>=標籤!A79,M79<>訂單填表!$AQ$11),$O$9," ") ->  | M79: =IF(訂單填表!$U$14>=A79,訂單填表!$S$14," ") -> 
A80: 19 | B80: =CONCATENATE(訂單填表!$U$124,"-",訂單填表!$U$14,"-",A80) -> --19 | C80: =IF(訂單填表!$U$14>=A80,訂單填表!$N$14," ") ->  | D80: =IF(訂單填表!$U$14>=A80,訂單填表!$P$14," ") ->  | E80: =IF(訂單填表!$U$14>=A80,訂單填表!$CC$14," ") ->  | F80: =IF(訂單填表!$U$14>=A80,訂單填表!$BX$14," ") ->  | G80: =IF(訂單填表!$U$14>=A80,訂單填表!$BY$14," ") ->  | H80: =IF(訂單填表!$U$14>=A80,訂單填表!$BW$14," ") ->  | I80: =IF(訂單填表!$U$14>=A80,訂單填表!$BZ$14," ") ->  | J80: =IF(訂單填表!$U$14>=A80,訂單填表!$CA$14," ") ->  | L80: =IF(AND(訂單填表!$U$14>=標籤!A80,M80<>訂單填表!$AQ$11),$O$9," ") ->  | M80: =IF(訂單填表!$U$14>=A80,訂單填表!$S$14," ") -> 
A81: 20 | B81: =CONCATENATE(訂單填表!$U$124,"-",訂單填表!$U$14,"-",A81) -> --20 | C81: =IF(訂單填表!$U$14>=A81,訂單填表!$N$14," ") ->  | D81: =IF(訂單填表!$U$14>=A81,訂單填表!$P$14," ") ->  | E81: =IF(訂單填表!$U$14>=A81,訂單填表!$CC$14," ") ->  | F81: =IF(訂單填表!$U$14>=A81,訂單填表!$BX$14," ") ->  | G81: =IF(訂單填表!$U$14>=A81,訂單填表!$BY$14," ") ->  | H81: =IF(訂單填表!$U$14>=A81,訂單填表!$BW$14," ") ->  | I81: =IF(訂單填表!$U$14>=A81,訂單填表!$BZ$14," ") ->  | J81: =IF(訂單填表!$U$14>=A81,訂單填表!$CA$14," ") ->  | L81: =IF(AND(訂單填表!$U$14>=標籤!A81,M81<>訂單填表!$AQ$11),$O$9," ") ->  | M81: =IF(訂單填表!$U$14>=A81,訂單填表!$S$14," ") -> 
A82: 21 | B82: =CONCATENATE(訂單填表!$U$124,"-",訂單填表!$U$14,"-",A82) -> --21 | C82: =IF(訂單填表!$U$14>=A82,訂單填表!$N$14," ") ->  | D82: =IF(訂單填表!$U$14>=A82,訂單填表!$P$14," ") ->  | E82: =IF(訂單填表!$U$14>=A82,訂單填表!$CC$14," ") ->  | F82: =IF(訂單填表!$U$14>=A82,訂單填表!$BX$14," ") ->  | G82: =IF(訂單填表!$U$14>=A82,訂單填表!$BY$14," ") ->  | H82: =IF(訂單填表!$U$14>=A82,訂單填表!$BW$14," ") ->  | I82: =IF(訂單填表!$U$14>=A82,訂單填表!$BZ$14," ") ->  | J82: =IF(訂單填表!$U$14>=A82,訂單填表!$CA$14," ") ->  | L82: =IF(AND(訂單填表!$U$14>=標籤!A82,M82<>訂單填表!$AQ$11),$O$9," ") ->  | M82: =IF(訂單填表!$U$14>=A82,訂單填表!$S$14," ") -> 
A83: 22 | B83: =CONCATENATE(訂單填表!$U$124,"-",訂單填表!$U$14,"-",A83) -> --22 | C83: =IF(訂單填表!$U$14>=A83,訂單填表!$N$14," ") ->  | D83: =IF(訂單填表!$U$14>=A83,訂單填表!$P$14," ") ->  | E83: =IF(訂單填表!$U$14>=A83,訂單填表!$CC$14," ") ->  | F83: =IF(訂單填表!$U$14>=A83,訂單填表!$BX$14," ") ->  | G83: =IF(訂單填表!$U$14>=A83,訂單填表!$BY$14," ") ->  | H83: =IF(訂單填表!$U$14>=A83,訂單填表!$BW$14," ") ->  | I83: =IF(訂單填表!$U$14>=A83,訂單填表!$BZ$14," ") ->  | J83: =IF(訂單填表!$U$14>=A83,訂單填表!$CA$14," ") ->  | L83: =IF(AND(訂單填表!$U$14>=標籤!A83,M83<>訂單填表!$AQ$11),$O$9," ") ->  | M83: =IF(訂單填表!$U$14>=A83,訂單填表!$S$14," ") -> 
A84: 23 | B84: =CONCATENATE(訂單填表!$U$124,"-",訂單填表!$U$14,"-",A84) -> --23 | C84: =IF(訂單填表!$U$14>=A84,訂單填表!$N$14," ") ->  | D84: =IF(訂單填表!$U$14>=A84,訂單填表!$P$14," ") ->  | E84: =IF(訂單填表!$U$14>=A84,訂單填表!$CC$14," ") ->  | F84: =IF(訂單填表!$U$14>=A84,訂單填表!$BX$14," ") ->  | G84: =IF(訂單填表!$U$14>=A84,訂單填表!$BY$14," ") ->  | H84: =IF(訂單填表!$U$14>=A84,訂單填表!$BW$14," ") ->  | I84: =IF(訂單填表!$U$14>=A84,訂單填表!$BZ$14," ") ->  | J84: =IF(訂單填表!$U$14>=A84,訂單填表!$CA$14," ") ->  | L84: =IF(AND(訂單填表!$U$14>=標籤!A84,M84<>訂單填表!$AQ$11),$O$9," ") ->  | M84: =IF(訂單填表!$U$14>=A84,訂單填表!$S$14," ") -> 
A85: 24 | B85: =CONCATENATE(訂單填表!$U$124,"-",訂單填表!$U$14,"-",A85) -> --24 | C85: =IF(訂單填表!$U$14>=A85,訂單填表!$N$14," ") ->  | D85: =IF(訂單填表!$U$14>=A85,訂單填表!$P$14," ") ->  | E85: =IF(訂單填表!$U$14>=A85,訂單填表!$CC$14," ") ->  | F85: =IF(訂單填表!$U$14>=A85,訂單填表!$BX$14," ") ->  | G85: =IF(訂單填表!$U$14>=A85,訂單填表!$BY$14," ") ->  | H85: =IF(訂單填表!$U$14>=A85,訂單填表!$BW$14," ") ->  | I85: =IF(訂單填表!$U$14>=A85,訂單填表!$BZ$14," ") ->  | J85: =IF(訂單填表!$U$14>=A85,訂單填表!$CA$14," ") ->  | L85: =IF(AND(訂單填表!$U$14>=標籤!A85,M85<>訂單填表!$AQ$11),$O$9," ") ->  | M85: =IF(訂單填表!$U$14>=A85,訂單填表!$S$14," ") -> 
A86: 25 | B86: =CONCATENATE(訂單填表!$U$124,"-",訂單填表!$U$14,"-",A86) -> --25 | C86: =IF(訂單填表!$U$14>=A86,訂單填表!$N$14," ") ->  | D86: =IF(訂單填表!$U$14>=A86,訂單填表!$P$14," ") ->  | E86: =IF(訂單填表!$U$14>=A86,訂單填表!$CC$14," ") ->  | F86: =IF(訂單填表!$U$14>=A86,訂單填表!$BX$14," ") ->  | G86: =IF(訂單填表!$U$14>=A86,訂單填表!$BY$14," ") ->  | H86: =IF(訂單填表!$U$14>=A86,訂單填表!$BW$14," ") ->  | I86: =IF(訂單填表!$U$14>=A86,訂單填表!$BZ$14," ") ->  | J86: =IF(訂單填表!$U$14>=A86,訂單填表!$CA$14," ") ->  | L86: =IF(AND(訂單填表!$U$14>=標籤!A86,M86<>訂單填表!$AQ$11),$O$9," ") ->  | M86: =IF(訂單填表!$U$14>=A86,訂單填表!$S$14," ") -> 
A87: 26 | B87: =CONCATENATE(訂單填表!$U$124,"-",訂單填表!$U$14,"-",A87) -> --26 | C87: =IF(訂單填表!$U$14>=A87,訂單填表!$N$14," ") ->  | D87: =IF(訂單填表!$U$14>=A87,訂單填表!$P$14," ") ->  | E87: =IF(訂單填表!$U$14>=A87,訂單填表!$CC$14," ") ->  | F87: =IF(訂單填表!$U$14>=A87,訂單填表!$BX$14," ") ->  | G87: =IF(訂單填表!$U$14>=A87,訂單填表!$BY$14," ") ->  | H87: =IF(訂單填表!$U$14>=A87,訂單填表!$BW$14," ") ->  | I87: =IF(訂單填表!$U$14>=A87,訂單填表!$BZ$14," ") ->  | J87: =IF(訂單填表!$U$14>=A87,訂單填表!$CA$14," ") ->  | L87: =IF(AND(訂單填表!$U$14>=標籤!A87,M87<>訂單填表!$AQ$11),$O$9," ") ->  | M87: =IF(訂單填表!$U$14>=A87,訂單填表!$S$14," ") -> 
A88: 27 | B88: =CONCATENATE(訂單填表!$U$124,"-",訂單填表!$U$14,"-",A88) -> --27 | C88: =IF(訂單填表!$U$14>=A88,訂單填表!$N$14," ") ->  | D88: =IF(訂單填表!$U$14>=A88,訂單填表!$P$14," ") ->  | E88: =IF(訂單填表!$U$14>=A88,訂單填表!$CC$14," ") ->  | F88: =IF(訂單填表!$U$14>=A88,訂單填表!$BX$14," ") ->  | G88: =IF(訂單填表!$U$14>=A88,訂單填表!$BY$14," ") ->  | H88: =IF(訂單填表!$U$14>=A88,訂單填表!$BW$14," ") ->  | I88: =IF(訂單填表!$U$14>=A88,訂單填表!$BZ$14," ") ->  | J88: =IF(訂單填表!$U$14>=A88,訂單填表!$CA$14," ") ->  | L88: =IF(AND(訂單填表!$U$14>=標籤!A88,M88<>訂單填表!$AQ$11),$O$9," ") ->  | M88: =IF(訂單填表!$U$14>=A88,訂單填表!$S$14," ") -> 
A89: 28 | B89: =CONCATENATE(訂單填表!$U$124,"-",訂單填表!$U$14,"-",A89) -> --28 | C89: =IF(訂單填表!$U$14>=A89,訂單填表!$N$14," ") ->  | D89: =IF(訂單填表!$U$14>=A89,訂單填表!$P$14," ") ->  | E89: =IF(訂單填表!$U$14>=A89,訂單填表!$CC$14," ") ->  | F89: =IF(訂單填表!$U$14>=A89,訂單填表!$BX$14," ") ->  | G89: =IF(訂單填表!$U$14>=A89,訂單填表!$BY$14," ") ->  | H89: =IF(訂單填表!$U$14>=A89,訂單填表!$BW$14," ") ->  | I89: =IF(訂單填表!$U$14>=A89,訂單填表!$BZ$14," ") ->  | J89: =IF(訂單填表!$U$14>=A89,訂單填表!$CA$14," ") ->  | L89: =IF(AND(訂單填表!$U$14>=標籤!A89,M89<>訂單填表!$AQ$11),$O$9," ") ->  | M89: =IF(訂單填表!$U$14>=A89,訂單填表!$S$14," ") -> 
A90: 29 | B90: =CONCATENATE(訂單填表!$U$124,"-",訂單填表!$U$14,"-",A90) -> --29 | C90: =IF(訂單填表!$U$14>=A90,訂單填表!$N$14," ") ->  | D90: =IF(訂單填表!$U$14>=A90,訂單填表!$P$14," ") ->  | E90: =IF(訂單填表!$U$14>=A90,訂單填表!$CC$14," ") ->  | F90: =IF(訂單填表!$U$14>=A90,訂單填表!$BX$14," ") ->  | G90: =IF(訂單填表!$U$14>=A90,訂單填表!$BY$14," ") ->  | H90: =IF(訂單填表!$U$14>=A90,訂單填表!$BW$14," ") ->  | I90: =IF(訂單填表!$U$14>=A90,訂單填表!$BZ$14," ") ->  | J90: =IF(訂單填表!$U$14>=A90,訂單填表!$CA$14," ") ->  | L90: =IF(AND(訂單填表!$U$14>=標籤!A90,M90<>訂單填表!$AQ$11),$O$9," ") ->  | M90: =IF(訂單填表!$U$14>=A90,訂單填表!$S$14," ") -> 
A91: 30 | B91: =CONCATENATE(訂單填表!$U$124,"-",訂單填表!$U$14,"-",A91) -> --30 | C91: =IF(訂單填表!$U$14>=A91,訂單填表!$N$14," ") ->  | D91: =IF(訂單填表!$U$14>=A91,訂單填表!$P$14," ") ->  | E91: =IF(訂單填表!$U$14>=A91,訂單填表!$CC$14," ") ->  | F91: =IF(訂單填表!$U$14>=A91,訂單填表!$BX$14," ") ->  | G91: =IF(訂單填表!$U$14>=A91,訂單填表!$BY$14," ") ->  | H91: =IF(訂單填表!$U$14>=A91,訂單填表!$BW$14," ") ->  | I91: =IF(訂單填表!$U$14>=A91,訂單填表!$BZ$14," ") ->  | J91: =IF(訂單填表!$U$14>=A91,訂單填表!$CA$14," ") ->  | L91: =IF(AND(訂單填表!$U$14>=標籤!A91,M91<>訂單填表!$AQ$11),$O$9," ") ->  | M91: =IF(訂單填表!$U$14>=A91,訂單填表!$S$14," ") -> 
A92: 1 | B92: =CONCATENATE(訂單填表!$U$124,"-",訂單填表!$U$15,"-",A92) -> --1 | C92: =IF(訂單填表!$U$15>=A92,訂單填表!$N$15," ") ->  | D92: =IF(訂單填表!$U$15>=A92,訂單填表!$P$15," ") ->  | E92: =IF(訂單填表!$U$15>=A92,訂單填表!$CC$15," ") ->  | F92: =IF(訂單填表!$U$15>=A92,訂單填表!$BX$15," ") ->  | G92: =IF(訂單填表!$U$15>=A92,訂單填表!$BY$15," ") ->  | H92: =IF(訂單填表!$U$15>=A92,訂單填表!$BW$15," ") ->  | I92: =IF(訂單填表!$U$15>=A92,訂單填表!$BZ$15," ") ->  | J92: =IF(訂單填表!$U$15>=A92,訂單填表!$CA$15," ") ->  | L92: =IF(AND(訂單填表!$U$15>=標籤!A92,M92<>訂單填表!$AQ$11),$O$9," ") ->  | M92: =IF(訂單填表!$U$15>=A92,訂單填表!$S$15," ") ->  | N92: 15
A93: 2 | B93: =CONCATENATE(訂單填表!$U$124,"-",訂單填表!$U$15,"-",A93) -> --2 | C93: =IF(訂單填表!$U$15>=A93,訂單填表!$N$15," ") ->  | D93: =IF(訂單填表!$U$15>=A93,訂單填表!$P$15," ") ->  | E93: =IF(訂單填表!$U$15>=A93,訂單填表!$CC$15," ") ->  | F93: =IF(訂單填表!$U$15>=A93,訂單填表!$BX$15," ") ->  | G93: =IF(訂單填表!$U$15>=A93,訂單填表!$BY$15," ") ->  | H93: =IF(訂單填表!$U$15>=A93,訂單填表!$BW$15," ") ->  | I93: =IF(訂單填表!$U$15>=A93,訂單填表!$BZ$15," ") ->  | J93: =IF(訂單填表!$U$15>=A93,訂單填表!$CA$15," ") ->  | L93: =IF(AND(訂單填表!$U$15>=標籤!A93,M93<>訂單填表!$AQ$11),$O$9," ") ->  | M93: =IF(訂單填表!$U$15>=A93,訂單填表!$S$15," ") -> 
A94: 3 | B94: =CONCATENATE(訂單填表!$U$124,"-",訂單填表!$U$15,"-",A94) -> --3 | C94: =IF(訂單填表!$U$15>=A94,訂單填表!$N$15," ") ->  | D94: =IF(訂單填表!$U$15>=A94,訂單填表!$P$15," ") ->  | E94: =IF(訂單填表!$U$15>=A94,訂單填表!$CC$15," ") ->  | F94: =IF(訂單填表!$U$15>=A94,訂單填表!$BX$15," ") ->  | G94: =IF(訂單填表!$U$15>=A94,訂單填表!$BY$15," ") ->  | H94: =IF(訂單填表!$U$15>=A94,訂單填表!$BW$15," ") ->  | I94: =IF(訂單填表!$U$15>=A94,訂單填表!$BZ$15," ") ->  | J94: =IF(訂單填表!$U$15>=A94,訂單填表!$CA$15," ") ->  | L94: =IF(AND(訂單填表!$U$15>=標籤!A94,M94<>訂單填表!$AQ$11),$O$9," ") ->  | M94: =IF(訂單填表!$U$15>=A94,訂單填表!$S$15," ") -> 
A95: 4 | B95: =CONCATENATE(訂單填表!$U$124,"-",訂單填表!$U$15,"-",A95) -> --4 | C95: =IF(訂單填表!$U$15>=A95,訂單填表!$N$15," ") ->  | D95: =IF(訂單填表!$U$15>=A95,訂單填表!$P$15," ") ->  | E95: =IF(訂單填表!$U$15>=A95,訂單填表!$CC$15," ") ->  | F95: =IF(訂單填表!$U$15>=A95,訂單填表!$BX$15," ") ->  | G95: =IF(訂單填表!$U$15>=A95,訂單填表!$BY$15," ") ->  | H95: =IF(訂單填表!$U$15>=A95,訂單填表!$BW$15," ") ->  | I95: =IF(訂單填表!$U$15>=A95,訂單填表!$BZ$15," ") ->  | J95: =IF(訂單填表!$U$15>=A95,訂單填表!$CA$15," ") ->  | L95: =IF(AND(訂單填表!$U$15>=標籤!A95,M95<>訂單填表!$AQ$11),$O$9," ") ->  | M95: =IF(訂單填表!$U$15>=A95,訂單填表!$S$15," ") -> 
A96: 5 | B96: =CONCATENATE(訂單填表!$U$124,"-",訂單填表!$U$15,"-",A96) -> --5 | C96: =IF(訂單填表!$U$15>=A96,訂單填表!$N$15," ") ->  | D96: =IF(訂單填表!$U$15>=A96,訂單填表!$P$15," ") ->  | E96: =IF(訂單填表!$U$15>=A96,訂單填表!$CC$15," ") ->  | F96: =IF(訂單填表!$U$15>=A96,訂單填表!$BX$15," ") ->  | G96: =IF(訂單填表!$U$15>=A96,訂單填表!$BY$15," ") ->  | H96: =IF(訂單填表!$U$15>=A96,訂單填表!$BW$15," ") ->  | I96: =IF(訂單填表!$U$15>=A96,訂單填表!$BZ$15," ") ->  | J96: =IF(訂單填表!$U$15>=A96,訂單填表!$CA$15," ") ->  | L96: =IF(AND(訂單填表!$U$15>=標籤!A96,M96<>訂單填表!$AQ$11),$O$9," ") ->  | M96: =IF(訂單填表!$U$15>=A96,訂單填表!$S$15," ") -> 
A97: 6 | B97: =CONCATENATE(訂單填表!$U$124,"-",訂單填表!$U$15,"-",A97) -> --6 | C97: =IF(訂單填表!$U$15>=A97,訂單填表!$N$15," ") ->  | D97: =IF(訂單填表!$U$15>=A97,訂單填表!$P$15," ") ->  | E97: =IF(訂單填表!$U$15>=A97,訂單填表!$CC$15," ") ->  | F97: =IF(訂單填表!$U$15>=A97,訂單填表!$BX$15," ") ->  | G97: =IF(訂單填表!$U$15>=A97,訂單填表!$BY$15," ") ->  | H97: =IF(訂單填表!$U$15>=A97,訂單填表!$BW$15," ") ->  | I97: =IF(訂單填表!$U$15>=A97,訂單填表!$BZ$15," ") ->  | J97: =IF(訂單填表!$U$15>=A97,訂單填表!$CA$15," ") ->  | L97: =IF(AND(訂單填表!$U$15>=標籤!A97,M97<>訂單填表!$AQ$11),$O$9," ") ->  | M97: =IF(訂單填表!$U$15>=A97,訂單填表!$S$15," ") -> 
A98: 7 | B98: =CONCATENATE(訂單填表!$U$124,"-",訂單填表!$U$15,"-",A98) -> --7 | C98: =IF(訂單填表!$U$15>=A98,訂單填表!$N$15," ") ->  | D98: =IF(訂單填表!$U$15>=A98,訂單填表!$P$15," ") ->  | E98: =IF(訂單填表!$U$15>=A98,訂單填表!$CC$15," ") ->  | F98: =IF(訂單填表!$U$15>=A98,訂單填表!$BX$15," ") ->  | G98: =IF(訂單填表!$U$15>=A98,訂單填表!$BY$15," ") ->  | H98: =IF(訂單填表!$U$15>=A98,訂單填表!$BW$15," ") ->  | I98: =IF(訂單填表!$U$15>=A98,訂單填表!$BZ$15," ") ->  | J98: =IF(訂單填表!$U$15>=A98,訂單填表!$CA$15," ") ->  | L98: =IF(AND(訂單填表!$U$15>=標籤!A98,M98<>訂單填表!$AQ$11),$O$9," ") ->  | M98: =IF(訂單填表!$U$15>=A98,訂單填表!$S$15," ") -> 
A99: 8 | B99: =CONCATENATE(訂單填表!$U$124,"-",訂單填表!$U$15,"-",A99) -> --8 | C99: =IF(訂單填表!$U$15>=A99,訂單填表!$N$15," ") ->  | D99: =IF(訂單填表!$U$15>=A99,訂單填表!$P$15," ") ->  | E99: =IF(訂單填表!$U$15>=A99,訂單填表!$CC$15," ") ->  | F99: =IF(訂單填表!$U$15>=A99,訂單填表!$BX$15," ") ->  | G99: =IF(訂單填表!$U$15>=A99,訂單填表!$BY$15," ") ->  | H99: =IF(訂單填表!$U$15>=A99,訂單填表!$BW$15," ") ->  | I99: =IF(訂單填表!$U$15>=A99,訂單填表!$BZ$15," ") ->  | J99: =IF(訂單填表!$U$15>=A99,訂單填表!$CA$15," ") ->  | L99: =IF(AND(訂單填表!$U$15>=標籤!A99,M99<>訂單填表!$AQ$11),$O$9," ") ->  | M99: =IF(訂單填表!$U$15>=A99,訂單填表!$S$15," ") -> 
A100: 9 | B100: =CONCATENATE(訂單填表!$U$124,"-",訂單填表!$U$15,"-",A100) -> --9 | C100: =IF(訂單填表!$U$15>=A100,訂單填表!$N$15," ") ->  | D100: =IF(訂單填表!$U$15>=A100,訂單填表!$P$15," ") ->  | E100: =IF(訂單填表!$U$15>=A100,訂單填表!$CC$15," ") ->  | F100: =IF(訂單填表!$U$15>=A100,訂單填表!$BX$15," ") ->  | G100: =IF(訂單填表!$U$15>=A100,訂單填表!$BY$15," ") ->  | H100: =IF(訂單填表!$U$15>=A100,訂單填表!$BW$15," ") ->  | I100: =IF(訂單填表!$U$15>=A100,訂單填表!$BZ$15," ") ->  | J100: =IF(訂單填表!$U$15>=A100,訂單填表!$CA$15," ") ->  | L100: =IF(AND(訂單填表!$U$15>=標籤!A100,M100<>訂單填表!$AQ$11),$O$9," ") ->  | M100: =IF(訂單填表!$U$15>=A100,訂單填表!$S$15," ") -> 
A101: 10 | B101: =CONCATENATE(訂單填表!$U$124,"-",訂單填表!$U$15,"-",A101) -> --10 | C101: =IF(訂單填表!$U$15>=A101,訂單填表!$N$15," ") ->  | D101: =IF(訂單填表!$U$15>=A101,訂單填表!$P$15," ") ->  | E101: =IF(訂單填表!$U$15>=A101,訂單填表!$CC$15," ") ->  | F101: =IF(訂單填表!$U$15>=A101,訂單填表!$BX$15," ") ->  | G101: =IF(訂單填表!$U$15>=A101,訂單填表!$BY$15," ") ->  | H101: =IF(訂單填表!$U$15>=A101,訂單填表!$BW$15," ") ->  | I101: =IF(訂單填表!$U$15>=A101,訂單填表!$BZ$15," ") ->  | J101: =IF(訂單填表!$U$15>=A101,訂單填表!$CA$15," ") ->  | L101: =IF(AND(訂單填表!$U$15>=標籤!A101,M101<>訂單填表!$AQ$11),$O$9," ") ->  | M101: =IF(訂單填表!$U$15>=A101,訂單填表!$S$15," ") -> 
A102: 11 | B102: =CONCATENATE(訂單填表!$U$124,"-",訂單填表!$U$15,"-",A102) -> --11 | C102: =IF(訂單填表!$U$15>=A102,訂單填表!$N$15," ") ->  | D102: =IF(訂單填表!$U$15>=A102,訂單填表!$P$15," ") ->  | E102: =IF(訂單填表!$U$15>=A102,訂單填表!$CC$15," ") ->  | F102: =IF(訂單填表!$U$15>=A102,訂單填表!$BX$15," ") ->  | G102: =IF(訂單填表!$U$15>=A102,訂單填表!$BY$15," ") ->  | H102: =IF(訂單填表!$U$15>=A102,訂單填表!$BW$15," ") ->  | I102: =IF(訂單填表!$U$15>=A102,訂單填表!$BZ$15," ") ->  | J102: =IF(訂單填表!$U$15>=A102,訂單填表!$CA$15," ") ->  | L102: =IF(AND(訂單填表!$U$15>=標籤!A102,M102<>訂單填表!$AQ$11),$O$9," ") ->  | M102: =IF(訂單填表!$U$15>=A102,訂單填表!$S$15," ") -> 
A103: 12 | B103: =CONCATENATE(訂單填表!$U$124,"-",訂單填表!$U$15,"-",A103) -> --12 | C103: =IF(訂單填表!$U$15>=A103,訂單填表!$N$15," ") ->  | D103: =IF(訂單填表!$U$15>=A103,訂單填表!$P$15," ") ->  | E103: =IF(訂單填表!$U$15>=A103,訂單填表!$CC$15," ") ->  | F103: =IF(訂單填表!$U$15>=A103,訂單填表!$BX$15," ") ->  | G103: =IF(訂單填表!$U$15>=A103,訂單填表!$BY$15," ") ->  | H103: =IF(訂單填表!$U$15>=A103,訂單填表!$BW$15," ") ->  | I103: =IF(訂單填表!$U$15>=A103,訂單填表!$BZ$15," ") ->  | J103: =IF(訂單填表!$U$15>=A103,訂單填表!$CA$15," ") ->  | L103: =IF(AND(訂單填表!$U$15>=標籤!A103,M103<>訂單填表!$AQ$11),$O$9," ") ->  | M103: =IF(訂單填表!$U$15>=A103,訂單填表!$S$15," ") -> 
A104: 13 | B104: =CONCATENATE(訂單填表!$U$124,"-",訂單填表!$U$15,"-",A104) -> --13 | C104: =IF(訂單填表!$U$15>=A104,訂單填表!$N$15," ") ->  | D104: =IF(訂單填表!$U$15>=A104,訂單填表!$P$15," ") ->  | E104: =IF(訂單填表!$U$15>=A104,訂單填表!$CC$15," ") ->  | F104: =IF(訂單填表!$U$15>=A104,訂單填表!$BX$15," ") ->  | G104: =IF(訂單填表!$U$15>=A104,訂單填表!$BY$15," ") ->  | H104: =IF(訂單填表!$U$15>=A104,訂單填表!$BW$15," ") ->  | I104: =IF(訂單填表!$U$15>=A104,訂單填表!$BZ$15," ") ->  | J104: =IF(訂單填表!$U$15>=A104,訂單填表!$CA$15," ") ->  | L104: =IF(AND(訂單填表!$U$15>=標籤!A104,M104<>訂單填表!$AQ$11),$O$9," ") ->  | M104: =IF(訂單填表!$U$15>=A104,訂單填表!$S$15," ") -> 
A105: 14 | B105: =CONCATENATE(訂單填表!$U$124,"-",訂單填表!$U$15,"-",A105) -> --14 | C105: =IF(訂單填表!$U$15>=A105,訂單填表!$N$15," ") ->  | D105: =IF(訂單填表!$U$15>=A105,訂單填表!$P$15," ") ->  | E105: =IF(訂單填表!$U$15>=A105,訂單填表!$CC$15," ") ->  | F105: =IF(訂單填表!$U$15>=A105,訂單填表!$BX$15," ") ->  | G105: =IF(訂單填表!$U$15>=A105,訂單填表!$BY$15," ") ->  | H105: =IF(訂單填表!$U$15>=A105,訂單填表!$BW$15," ") ->  | I105: =IF(訂單填表!$U$15>=A105,訂單填表!$BZ$15," ") ->  | J105: =IF(訂單填表!$U$15>=A105,訂單填表!$CA$15," ") ->  | L105: =IF(AND(訂單填表!$U$15>=標籤!A105,M105<>訂單填表!$AQ$11),$O$9," ") ->  | M105: =IF(訂單填表!$U$15>=A105,訂單填表!$S$15," ") -> 
A106: 15 | B106: =CONCATENATE(訂單填表!$U$124,"-",訂單填表!$U$15,"-",A106) -> --15 | C106: =IF(訂單填表!$U$15>=A106,訂單填表!$N$15," ") ->  | D106: =IF(訂單填表!$U$15>=A106,訂單填表!$P$15," ") ->  | E106: =IF(訂單填表!$U$15>=A106,訂單填表!$CC$15," ") ->  | F106: =IF(訂單填表!$U$15>=A106,訂單填表!$BX$15," ") ->  | G106: =IF(訂單填表!$U$15>=A106,訂單填表!$BY$15," ") ->  | H106: =IF(訂單填表!$U$15>=A106,訂單填表!$BW$15," ") ->  | I106: =IF(訂單填表!$U$15>=A106,訂單填表!$BZ$15," ") ->  | J106: =IF(訂單填表!$U$15>=A106,訂單填表!$CA$15," ") ->  | L106: =IF(AND(訂單填表!$U$15>=標籤!A106,M106<>訂單填表!$AQ$11),$O$9," ") ->  | M106: =IF(訂單填表!$U$15>=A106,訂單填表!$S$15," ") -> 
A107: 16 | B107: =CONCATENATE(訂單填表!$U$124,"-",訂單填表!$U$15,"-",A107) -> --16 | C107: =IF(訂單填表!$U$15>=A107,訂單填表!$N$15," ") ->  | D107: =IF(訂單填表!$U$15>=A107,訂單填表!$P$15," ") ->  | E107: =IF(訂單填表!$U$15>=A107,訂單填表!$CC$15," ") ->  | F107: =IF(訂單填表!$U$15>=A107,訂單填表!$BX$15," ") ->  | G107: =IF(訂單填表!$U$15>=A107,訂單填表!$BY$15," ") ->  | H107: =IF(訂單填表!$U$15>=A107,訂單填表!$BW$15," ") ->  | I107: =IF(訂單填表!$U$15>=A107,訂單填表!$BZ$15," ") ->  | J107: =IF(訂單填表!$U$15>=A107,訂單填表!$CA$15," ") ->  | L107: =IF(AND(訂單填表!$U$15>=標籤!A107,M107<>訂單填表!$AQ$11),$O$9," ") ->  | M107: =IF(訂單填表!$U$15>=A107,訂單填表!$S$15," ") -> 
A108: 17 | B108: =CONCATENATE(訂單填表!$U$124,"-",訂單填表!$U$15,"-",A108) -> --17 | C108: =IF(訂單填表!$U$15>=A108,訂單填表!$N$15," ") ->  | D108: =IF(訂單填表!$U$15>=A108,訂單填表!$P$15," ") ->  | E108: =IF(訂單填表!$U$15>=A108,訂單填表!$CC$15," ") ->  | F108: =IF(訂單填表!$U$15>=A108,訂單填表!$BX$15," ") ->  | G108: =IF(訂單填表!$U$15>=A108,訂單填表!$BY$15," ") ->  | H108: =IF(訂單填表!$U$15>=A108,訂單填表!$BW$15," ") ->  | I108: =IF(訂單填表!$U$15>=A108,訂單填表!$BZ$15," ") ->  | J108: =IF(訂單填表!$U$15>=A108,訂單填表!$CA$15," ") ->  | L108: =IF(AND(訂單填表!$U$15>=標籤!A108,M108<>訂單填表!$AQ$11),$O$9," ") ->  | M108: =IF(訂單填表!$U$15>=A108,訂單填表!$S$15," ") -> 
A109: 18 | B109: =CONCATENATE(訂單填表!$U$124,"-",訂單填表!$U$15,"-",A109) -> --18 | C109: =IF(訂單填表!$U$15>=A109,訂單填表!$N$15," ") ->  | D109: =IF(訂單填表!$U$15>=A109,訂單填表!$P$15," ") ->  | E109: =IF(訂單填表!$U$15>=A109,訂單填表!$CC$15," ") ->  | F109: =IF(訂單填表!$U$15>=A109,訂單填表!$BX$15," ") ->  | G109: =IF(訂單填表!$U$15>=A109,訂單填表!$BY$15," ") ->  | H109: =IF(訂單填表!$U$15>=A109,訂單填表!$BW$15," ") ->  | I109: =IF(訂單填表!$U$15>=A109,訂單填表!$BZ$15," ") ->  | J109: =IF(訂單填表!$U$15>=A109,訂單填表!$CA$15," ") ->  | L109: =IF(AND(訂單填表!$U$15>=標籤!A109,M109<>訂單填表!$AQ$11),$O$9," ") ->  | M109: =IF(訂單填表!$U$15>=A109,訂單填表!$S$15," ") -> 
A110: 19 | B110: =CONCATENATE(訂單填表!$U$124,"-",訂單填表!$U$15,"-",A110) -> --19 | C110: =IF(訂單填表!$U$15>=A110,訂單填表!$N$15," ") ->  | D110: =IF(訂單填表!$U$15>=A110,訂單填表!$P$15," ") ->  | E110: =IF(訂單填表!$U$15>=A110,訂單填表!$CC$15," ") ->  | F110: =IF(訂單填表!$U$15>=A110,訂單填表!$BX$15," ") ->  | G110: =IF(訂單填表!$U$15>=A110,訂單填表!$BY$15," ") ->  | H110: =IF(訂單填表!$U$15>=A110,訂單填表!$BW$15," ") ->  | I110: =IF(訂單填表!$U$15>=A110,訂單填表!$BZ$15," ") ->  | J110: =IF(訂單填表!$U$15>=A110,訂單填表!$CA$15," ") ->  | L110: =IF(AND(訂單填表!$U$15>=標籤!A110,M110<>訂單填表!$AQ$11),$O$9," ") ->  | M110: =IF(訂單填表!$U$15>=A110,訂單填表!$S$15," ") -> 
A111: 20 | B111: =CONCATENATE(訂單填表!$U$124,"-",訂單填表!$U$15,"-",A111) -> --20 | C111: =IF(訂單填表!$U$15>=A111,訂單填表!$N$15," ") ->  | D111: =IF(訂單填表!$U$15>=A111,訂單填表!$P$15," ") ->  | E111: =IF(訂單填表!$U$15>=A111,訂單填表!$CC$15," ") ->  | F111: =IF(訂單填表!$U$15>=A111,訂單填表!$BX$15," ") ->  | G111: =IF(訂單填表!$U$15>=A111,訂單填表!$BY$15," ") ->  | H111: =IF(訂單填表!$U$15>=A111,訂單填表!$BW$15," ") ->  | I111: =IF(訂單填表!$U$15>=A111,訂單填表!$BZ$15," ") ->  | J111: =IF(訂單填表!$U$15>=A111,訂單填表!$CA$15," ") ->  | L111: =IF(AND(訂單填表!$U$15>=標籤!A111,M111<>訂單填表!$AQ$11),$O$9," ") ->  | M111: =IF(訂單填表!$U$15>=A111,訂單填表!$S$15," ") -> 
A112: 21 | B112: =CONCATENATE(訂單填表!$U$124,"-",訂單填表!$U$15,"-",A112) -> --21 | C112: =IF(訂單填表!$U$15>=A112,訂單填表!$N$15," ") ->  | D112: =IF(訂單填表!$U$15>=A112,訂單填表!$P$15," ") ->  | E112: =IF(訂單填表!$U$15>=A112,訂單填表!$CC$15," ") ->  | F112: =IF(訂單填表!$U$15>=A112,訂單填表!$BX$15," ") ->  | G112: =IF(訂單填表!$U$15>=A112,訂單填表!$BY$15," ") ->  | H112: =IF(訂單填表!$U$15>=A112,訂單填表!$BW$15," ") ->  | I112: =IF(訂單填表!$U$15>=A112,訂單填表!$BZ$15," ") ->  | J112: =IF(訂單填表!$U$15>=A112,訂單填表!$CA$15," ") ->  | L112: =IF(AND(訂單填表!$U$15>=標籤!A112,M112<>訂單填表!$AQ$11),$O$9," ") ->  | M112: =IF(訂單填表!$U$15>=A112,訂單填表!$S$15," ") -> 
A113: 22 | B113: =CONCATENATE(訂單填表!$U$124,"-",訂單填表!$U$15,"-",A113) -> --22 | C113: =IF(訂單填表!$U$15>=A113,訂單填表!$N$15," ") ->  | D113: =IF(訂單填表!$U$15>=A113,訂單填表!$P$15," ") ->  | E113: =IF(訂單填表!$U$15>=A113,訂單填表!$CC$15," ") ->  | F113: =IF(訂單填表!$U$15>=A113,訂單填表!$BX$15," ") ->  | G113: =IF(訂單填表!$U$15>=A113,訂單填表!$BY$15," ") ->  | H113: =IF(訂單填表!$U$15>=A113,訂單填表!$BW$15," ") ->  | I113: =IF(訂單填表!$U$15>=A113,訂單填表!$BZ$15," ") ->  | J113: =IF(訂單填表!$U$15>=A113,訂單填表!$CA$15," ") ->  | L113: =IF(AND(訂單填表!$U$15>=標籤!A113,M113<>訂單填表!$AQ$11),$O$9," ") ->  | M113: =IF(訂單填表!$U$15>=A113,訂單填表!$S$15," ") -> 
A114: 23 | B114: =CONCATENATE(訂單填表!$U$124,"-",訂單填表!$U$15,"-",A114) -> --23 | C114: =IF(訂單填表!$U$15>=A114,訂單填表!$N$15," ") ->  | D114: =IF(訂單填表!$U$15>=A114,訂單填表!$P$15," ") ->  | E114: =IF(訂單填表!$U$15>=A114,訂單填表!$CC$15," ") ->  | F114: =IF(訂單填表!$U$15>=A114,訂單填表!$BX$15," ") ->  | G114: =IF(訂單填表!$U$15>=A114,訂單填表!$BY$15," ") ->  | H114: =IF(訂單填表!$U$15>=A114,訂單填表!$BW$15," ") ->  | I114: =IF(訂單填表!$U$15>=A114,訂單填表!$BZ$15," ") ->  | J114: =IF(訂單填表!$U$15>=A114,訂單填表!$CA$15," ") ->  | L114: =IF(AND(訂單填表!$U$15>=標籤!A114,M114<>訂單填表!$AQ$11),$O$9," ") ->  | M114: =IF(訂單填表!$U$15>=A114,訂單填表!$S$15," ") -> 
A115: 24 | B115: =CONCATENATE(訂單填表!$U$124,"-",訂單填表!$U$15,"-",A115) -> --24 | C115: =IF(訂單填表!$U$15>=A115,訂單填表!$N$15," ") ->  | D115: =IF(訂單填表!$U$15>=A115,訂單填表!$P$15," ") ->  | E115: =IF(訂單填表!$U$15>=A115,訂單填表!$CC$15," ") ->  | F115: =IF(訂單填表!$U$15>=A115,訂單填表!$BX$15," ") ->  | G115: =IF(訂單填表!$U$15>=A115,訂單填表!$BY$15," ") ->  | H115: =IF(訂單填表!$U$15>=A115,訂單填表!$BW$15," ") ->  | I115: =IF(訂單填表!$U$15>=A115,訂單填表!$BZ$15," ") ->  | J115: =IF(訂單填表!$U$15>=A115,訂單填表!$CA$15," ") ->  | L115: =IF(AND(訂單填表!$U$15>=標籤!A115,M115<>訂單填表!$AQ$11),$O$9," ") ->  | M115: =IF(訂單填表!$U$15>=A115,訂單填表!$S$15," ") -> 
A116: 25 | B116: =CONCATENATE(訂單填表!$U$124,"-",訂單填表!$U$15,"-",A116) -> --25 | C116: =IF(訂單填表!$U$15>=A116,訂單填表!$N$15," ") ->  | D116: =IF(訂單填表!$U$15>=A116,訂單填表!$P$15," ") ->  | E116: =IF(訂單填表!$U$15>=A116,訂單填表!$CC$15," ") ->  | F116: =IF(訂單填表!$U$15>=A116,訂單填表!$BX$15," ") ->  | G116: =IF(訂單填表!$U$15>=A116,訂單填表!$BY$15," ") ->  | H116: =IF(訂單填表!$U$15>=A116,訂單填表!$BW$15," ") ->  | I116: =IF(訂單填表!$U$15>=A116,訂單填表!$BZ$15," ") ->  | J116: =IF(訂單填表!$U$15>=A116,訂單填表!$CA$15," ") ->  | L116: =IF(AND(訂單填表!$U$15>=標籤!A116,M116<>訂單填表!$AQ$11),$O$9," ") ->  | M116: =IF(訂單填表!$U$15>=A116,訂單填表!$S$15," ") -> 
A117: 26 | B117: =CONCATENATE(訂單填表!$U$124,"-",訂單填表!$U$15,"-",A117) -> --26 | C117: =IF(訂單填表!$U$15>=A117,訂單填表!$N$15," ") ->  | D117: =IF(訂單填表!$U$15>=A117,訂單填表!$P$15," ") ->  | E117: =IF(訂單填表!$U$15>=A117,訂單填表!$CC$15," ") ->  | F117: =IF(訂單填表!$U$15>=A117,訂單填表!$BX$15," ") ->  | G117: =IF(訂單填表!$U$15>=A117,訂單填表!$BY$15," ") ->  | H117: =IF(訂單填表!$U$15>=A117,訂單填表!$BW$15," ") ->  | I117: =IF(訂單填表!$U$15>=A117,訂單填表!$BZ$15," ") ->  | J117: =IF(訂單填表!$U$15>=A117,訂單填表!$CA$15," ") ->  | L117: =IF(AND(訂單填表!$U$15>=標籤!A117,M117<>訂單填表!$AQ$11),$O$9," ") ->  | M117: =IF(訂單填表!$U$15>=A117,訂單填表!$S$15," ") -> 
A118: 27 | B118: =CONCATENATE(訂單填表!$U$124,"-",訂單填表!$U$15,"-",A118) -> --27 | C118: =IF(訂單填表!$U$15>=A118,訂單填表!$N$15," ") ->  | D118: =IF(訂單填表!$U$15>=A118,訂單填表!$P$15," ") ->  | E118: =IF(訂單填表!$U$15>=A118,訂單填表!$CC$15," ") ->  | F118: =IF(訂單填表!$U$15>=A118,訂單填表!$BX$15," ") ->  | G118: =IF(訂單填表!$U$15>=A118,訂單填表!$BY$15," ") ->  | H118: =IF(訂單填表!$U$15>=A118,訂單填表!$BW$15," ") ->  | I118: =IF(訂單填表!$U$15>=A118,訂單填表!$BZ$15," ") ->  | J118: =IF(訂單填表!$U$15>=A118,訂單填表!$CA$15," ") ->  | L118: =IF(AND(訂單填表!$U$15>=標籤!A118,M118<>訂單填表!$AQ$11),$O$9," ") ->  | M118: =IF(訂單填表!$U$15>=A118,訂單填表!$S$15," ") -> 
A119: 28 | B119: =CONCATENATE(訂單填表!$U$124,"-",訂單填表!$U$15,"-",A119) -> --28 | C119: =IF(訂單填表!$U$15>=A119,訂單填表!$N$15," ") ->  | D119: =IF(訂單填表!$U$15>=A119,訂單填表!$P$15," ") ->  | E119: =IF(訂單填表!$U$15>=A119,訂單填表!$CC$15," ") ->  | F119: =IF(訂單填表!$U$15>=A119,訂單填表!$BX$15," ") ->  | G119: =IF(訂單填表!$U$15>=A119,訂單填表!$BY$15," ") ->  | H119: =IF(訂單填表!$U$15>=A119,訂單填表!$BW$15," ") ->  | I119: =IF(訂單填表!$U$15>=A119,訂單填表!$BZ$15," ") ->  | J119: =IF(訂單填表!$U$15>=A119,訂單填表!$CA$15," ") ->  | L119: =IF(AND(訂單填表!$U$15>=標籤!A119,M119<>訂單填表!$AQ$11),$O$9," ") ->  | M119: =IF(訂單填表!$U$15>=A119,訂單填表!$S$15," ") -> 
A120: 29 | B120: =CONCATENATE(訂單填表!$U$124,"-",訂單填表!$U$15,"-",A120) -> --29 | C120: =IF(訂單填表!$U$15>=A120,訂單填表!$N$15," ") ->  | D120: =IF(訂單填表!$U$15>=A120,訂單填表!$P$15," ") ->  | E120: =IF(訂單填表!$U$15>=A120,訂單填表!$CC$15," ") ->  | F120: =IF(訂單填表!$U$15>=A120,訂單填表!$BX$15," ") ->  | G120: =IF(訂單填表!$U$15>=A120,訂單填表!$BY$15," ") ->  | H120: =IF(訂單填表!$U$15>=A120,訂單填表!$BW$15," ") ->  | I120: =IF(訂單填表!$U$15>=A120,訂單填表!$BZ$15," ") ->  | J120: =IF(訂單填表!$U$15>=A120,訂單填表!$CA$15," ") ->  | L120: =IF(AND(訂單填表!$U$15>=標籤!A120,M120<>訂單填表!$AQ$11),$O$9," ") ->  | M120: =IF(訂單填表!$U$15>=A120,訂單填表!$S$15," ") -> 
A121: 30 | B121: =CONCATENATE(訂單填表!$U$124,"-",訂單填表!$U$15,"-",A121) -> --30 | C121: =IF(訂單填表!$U$15>=A121,訂單填表!$N$15," ") ->  | D121: =IF(訂單填表!$U$15>=A121,訂單填表!$P$15," ") ->  | E121: =IF(訂單填表!$U$15>=A121,訂單填表!$CC$15," ") ->  | F121: =IF(訂單填表!$U$15>=A121,訂單填表!$BX$15," ") ->  | G121: =IF(訂單填表!$U$15>=A121,訂單填表!$BY$15," ") ->  | H121: =IF(訂單填表!$U$15>=A121,訂單填表!$BW$15," ") ->  | I121: =IF(訂單填表!$U$15>=A121,訂單填表!$BZ$15," ") ->  | J121: =IF(訂單填表!$U$15>=A121,訂單填表!$CA$15," ") ->  | L121: =IF(AND(訂單填表!$U$15>=標籤!A121,M121<>訂單填表!$AQ$11),$O$9," ") ->  | M121: =IF(訂單填表!$U$15>=A121,訂單填表!$S$15," ") -> 
A122: 1 | B122: =CONCATENATE(訂單填表!$U$124,"-",訂單填表!$U$16,"-",A122) -> --1 | C122: =IF(訂單填表!$U$16>=A122,訂單填表!$N$16," ") ->  | D122: =IF(訂單填表!$U$16>=A122,訂單填表!$P$16," ") ->  | E122: =IF(訂單填表!$U$16>=A122,訂單填表!$CC$16," ") ->  | F122: =IF(訂單填表!$U$16>=A122,訂單填表!$BX$16," ") ->  | G122: =IF(訂單填表!$U$16>=A122,訂單填表!$BY$16," ") ->  | H122: =IF(訂單填表!$U$16>=A122,訂單填表!$BW$16," ") ->  | I122: =IF(訂單填表!$U$16>=A122,訂單填表!$BZ$16," ") ->  | J122: =IF(訂單填表!$U$16>=A122,訂單填表!$CA$16," ") ->  | L122: =IF(AND(訂單填表!$U$16>=標籤!A122,M122<>訂單填表!$AQ$11),$O$9," ") ->  | M122: =IF(訂單填表!$U$16>=A122,訂單填表!$S$16," ") ->  | N122: 16
A123: 2 | B123: =CONCATENATE(訂單填表!$U$124,"-",訂單填表!$U$16,"-",A123) -> --2 | C123: =IF(訂單填表!$U$16>=A123,訂單填表!$N$16," ") ->  | D123: =IF(訂單填表!$U$16>=A123,訂單填表!$P$16," ") ->  | E123: =IF(訂單填表!$U$16>=A123,訂單填表!$CC$16," ") ->  | F123: =IF(訂單填表!$U$16>=A123,訂單填表!$BX$16," ") ->  | G123: =IF(訂單填表!$U$16>=A123,訂單填表!$BY$16," ") ->  | H123: =IF(訂單填表!$U$16>=A123,訂單填表!$BW$16," ") ->  | I123: =IF(訂單填表!$U$16>=A123,訂單填表!$BZ$16," ") ->  | J123: =IF(訂單填表!$U$16>=A123,訂單填表!$CA$16," ") ->  | L123: =IF(AND(訂單填表!$U$16>=標籤!A123,M123<>訂單填表!$AQ$11),$O$9," ") ->  | M123: =IF(訂單填表!$U$16>=A123,訂單填表!$S$16," ") -> 
A124: 3 | B124: =CONCATENATE(訂單填表!$U$124,"-",訂單填表!$U$16,"-",A124) -> --3 | C124: =IF(訂單填表!$U$16>=A124,訂單填表!$N$16," ") ->  | D124: =IF(訂單填表!$U$16>=A124,訂單填表!$P$16," ") ->  | E124: =IF(訂單填表!$U$16>=A124,訂單填表!$CC$16," ") ->  | F124: =IF(訂單填表!$U$16>=A124,訂單填表!$BX$16," ") ->  | G124: =IF(訂單填表!$U$16>=A124,訂單填表!$BY$16," ") ->  | H124: =IF(訂單填表!$U$16>=A124,訂單填表!$BW$16," ") ->  | I124: =IF(訂單填表!$U$16>=A124,訂單填表!$BZ$16," ") ->  | J124: =IF(訂單填表!$U$16>=A124,訂單填表!$CA$16," ") ->  | L124: =IF(AND(訂單填表!$U$16>=標籤!A124,M124<>訂單填表!$AQ$11),$O$9," ") ->  | M124: =IF(訂單填表!$U$16>=A124,訂單填表!$S$16," ") -> 
A125: 4 | B125: =CONCATENATE(訂單填表!$U$124,"-",訂單填表!$U$16,"-",A125) -> --4 | C125: =IF(訂單填表!$U$16>=A125,訂單填表!$N$16," ") ->  | D125: =IF(訂單填表!$U$16>=A125,訂單填表!$P$16," ") ->  | E125: =IF(訂單填表!$U$16>=A125,訂單填表!$CC$16," ") ->  | F125: =IF(訂單填表!$U$16>=A125,訂單填表!$BX$16," ") ->  | G125: =IF(訂單填表!$U$16>=A125,訂單填表!$BY$16," ") ->  | H125: =IF(訂單填表!$U$16>=A125,訂單填表!$BW$16," ") ->  | I125: =IF(訂單填表!$U$16>=A125,訂單填表!$BZ$16," ") ->  | J125: =IF(訂單填表!$U$16>=A125,訂單填表!$CA$16," ") ->  | L125: =IF(AND(訂單填表!$U$16>=標籤!A125,M125<>訂單填表!$AQ$11),$O$9," ") ->  | M125: =IF(訂單填表!$U$16>=A125,訂單填表!$S$16," ") -> 
A126: 5 | B126: =CONCATENATE(訂單填表!$U$124,"-",訂單填表!$U$16,"-",A126) -> --5 | C126: =IF(訂單填表!$U$16>=A126,訂單填表!$N$16," ") ->  | D126: =IF(訂單填表!$U$16>=A126,訂單填表!$P$16," ") ->  | E126: =IF(訂單填表!$U$16>=A126,訂單填表!$CC$16," ") ->  | F126: =IF(訂單填表!$U$16>=A126,訂單填表!$BX$16," ") ->  | G126: =IF(訂單填表!$U$16>=A126,訂單填表!$BY$16," ") ->  | H126: =IF(訂單填表!$U$16>=A126,訂單填表!$BW$16," ") ->  | I126: =IF(訂單填表!$U$16>=A126,訂單填表!$BZ$16," ") ->  | J126: =IF(訂單填表!$U$16>=A126,訂單填表!$CA$16," ") ->  | L126: =IF(AND(訂單填表!$U$16>=標籤!A126,M126<>訂單填表!$AQ$11),$O$9," ") ->  | M126: =IF(訂單填表!$U$16>=A126,訂單填表!$S$16," ") -> 
A127: 6 | B127: =CONCATENATE(訂單填表!$U$124,"-",訂單填表!$U$16,"-",A127) -> --6 | C127: =IF(訂單填表!$U$16>=A127,訂單填表!$N$16," ") ->  | D127: =IF(訂單填表!$U$16>=A127,訂單填表!$P$16," ") ->  | E127: =IF(訂單填表!$U$16>=A127,訂單填表!$CC$16," ") ->  | F127: =IF(訂單填表!$U$16>=A127,訂單填表!$BX$16," ") ->  | G127: =IF(訂單填表!$U$16>=A127,訂單填表!$BY$16," ") ->  | H127: =IF(訂單填表!$U$16>=A127,訂單填表!$BW$16," ") ->  | I127: =IF(訂單填表!$U$16>=A127,訂單填表!$BZ$16," ") ->  | J127: =IF(訂單填表!$U$16>=A127,訂單填表!$CA$16," ") ->  | L127: =IF(AND(訂單填表!$U$16>=標籤!A127,M127<>訂單填表!$AQ$11),$O$9," ") ->  | M127: =IF(訂單填表!$U$16>=A127,訂單填表!$S$16," ") -> 
A128: 7 | B128: =CONCATENATE(訂單填表!$U$124,"-",訂單填表!$U$16,"-",A128) -> --7 | C128: =IF(訂單填表!$U$16>=A128,訂單填表!$N$16," ") ->  | D128: =IF(訂單填表!$U$16>=A128,訂單填表!$P$16," ") ->  | E128: =IF(訂單填表!$U$16>=A128,訂單填表!$CC$16," ") ->  | F128: =IF(訂單填表!$U$16>=A128,訂單填表!$BX$16," ") ->  | G128: =IF(訂單填表!$U$16>=A128,訂單填表!$BY$16," ") ->  | H128: =IF(訂單填表!$U$16>=A128,訂單填表!$BW$16," ") ->  | I128: =IF(訂單填表!$U$16>=A128,訂單填表!$BZ$16," ") ->  | J128: =IF(訂單填表!$U$16>=A128,訂單填表!$CA$16," ") ->  | L128: =IF(AND(訂單填表!$U$16>=標籤!A128,M128<>訂單填表!$AQ$11),$O$9," ") ->  | M128: =IF(訂單填表!$U$16>=A128,訂單填表!$S$16," ") -> 
A129: 8 | B129: =CONCATENATE(訂單填表!$U$124,"-",訂單填表!$U$16,"-",A129) -> --8 | C129: =IF(訂單填表!$U$16>=A129,訂單填表!$N$16," ") ->  | D129: =IF(訂單填表!$U$16>=A129,訂單填表!$P$16," ") ->  | E129: =IF(訂單填表!$U$16>=A129,訂單填表!$CC$16," ") ->  | F129: =IF(訂單填表!$U$16>=A129,訂單填表!$BX$16," ") ->  | G129: =IF(訂單填表!$U$16>=A129,訂單填表!$BY$16," ") ->  | H129: =IF(訂單填表!$U$16>=A129,訂單填表!$BW$16," ") ->  | I129: =IF(訂單填表!$U$16>=A129,訂單填表!$BZ$16," ") ->  | J129: =IF(訂單填表!$U$16>=A129,訂單填表!$CA$16," ") ->  | L129: =IF(AND(訂單填表!$U$16>=標籤!A129,M129<>訂單填表!$AQ$11),$O$9," ") ->  | M129: =IF(訂單填表!$U$16>=A129,訂單填表!$S$16," ") -> 
A130: 9 | B130: =CONCATENATE(訂單填表!$U$124,"-",訂單填表!$U$16,"-",A130) -> --9 | C130: =IF(訂單填表!$U$16>=A130,訂單填表!$N$16," ") ->  | D130: =IF(訂單填表!$U$16>=A130,訂單填表!$P$16," ") ->  | E130: =IF(訂單填表!$U$16>=A130,訂單填表!$CC$16," ") ->  | F130: =IF(訂單填表!$U$16>=A130,訂單填表!$BX$16," ") ->  | G130: =IF(訂單填表!$U$16>=A130,訂單填表!$BY$16," ") ->  | H130: =IF(訂單填表!$U$16>=A130,訂單填表!$BW$16," ") ->  | I130: =IF(訂單填表!$U$16>=A130,訂單填表!$BZ$16," ") ->  | J130: =IF(訂單填表!$U$16>=A130,訂單填表!$CA$16," ") ->  | K130: =CONCATENATE(L130,M130) ->  | L130: =IF(AND(訂單填表!$U$16>=標籤!A130,M130<>訂單填表!$AQ$11),$O$9," ") ->  | M130: =IF(訂單填表!$U$16>=A130,訂單填表!$S$16," ") -> 
A131: 10 | B131: =CONCATENATE(訂單填表!$U$124,"-",訂單填表!$U$16,"-",A131) -> --10 | C131: =IF(訂單填表!$U$16>=A131,訂單填表!$N$16," ") ->  | D131: =IF(訂單填表!$U$16>=A131,訂單填表!$P$16," ") ->  | E131: =IF(訂單填表!$U$16>=A131,訂單填表!$CC$16," ") ->  | F131: =IF(訂單填表!$U$16>=A131,訂單填表!$BX$16," ") ->  | G131: =IF(訂單填表!$U$16>=A131,訂單填表!$BY$16," ") ->  | H131: =IF(訂單填表!$U$16>=A131,訂單填表!$BW$16," ") ->  | I131: =IF(訂單填表!$U$16>=A131,訂單填表!$BZ$16," ") ->  | J131: =IF(訂單填表!$U$16>=A131,訂單填表!$CA$16," ") ->  | L131: =IF(AND(訂單填表!$U$16>=標籤!A131,M131<>訂單填表!$AQ$11),$O$9," ") ->  | M131: =IF(訂單填表!$U$16>=A131,訂單填表!$S$16," ") -> 
A132: 11 | B132: =CONCATENATE(訂單填表!$U$124,"-",訂單填表!$U$16,"-",A132) -> --11 | C132: =IF(訂單填表!$U$16>=A132,訂單填表!$N$16," ") ->  | D132: =IF(訂單填表!$U$16>=A132,訂單填表!$P$16," ") ->  | E132: =IF(訂單填表!$U$16>=A132,訂單填表!$CC$16," ") ->  | F132: =IF(訂單填表!$U$16>=A132,訂單填表!$BX$16," ") ->  | G132: =IF(訂單填表!$U$16>=A132,訂單填表!$BY$16," ") ->  | H132: =IF(訂單填表!$U$16>=A132,訂單填表!$BW$16," ") ->  | I132: =IF(訂單填表!$U$16>=A132,訂單填表!$BZ$16," ") ->  | J132: =IF(訂單填表!$U$16>=A132,訂單填表!$CA$16," ") ->  | L132: =IF(AND(訂單填表!$U$16>=標籤!A132,M132<>訂單填表!$AQ$11),$O$9," ") ->  | M132: =IF(訂單填表!$U$16>=A132,訂單填表!$S$16," ") -> 
A133: 12 | B133: =CONCATENATE(訂單填表!$U$124,"-",訂單填表!$U$16,"-",A133) -> --12 | C133: =IF(訂單填表!$U$16>=A133,訂單填表!$N$16," ") ->  | D133: =IF(訂單填表!$U$16>=A133,訂單填表!$P$16," ") ->  | E133: =IF(訂單填表!$U$16>=A133,訂單填表!$CC$16," ") ->  | F133: =IF(訂單填表!$U$16>=A133,訂單填表!$BX$16," ") ->  | G133: =IF(訂單填表!$U$16>=A133,訂單填表!$BY$16," ") ->  | H133: =IF(訂單填表!$U$16>=A133,訂單填表!$BW$16," ") ->  | I133: =IF(訂單填表!$U$16>=A133,訂單填表!$BZ$16," ") ->  | J133: =IF(訂單填表!$U$16>=A133,訂單填表!$CA$16," ") ->  | L133: =IF(AND(訂單填表!$U$16>=標籤!A133,M133<>訂單填表!$AQ$11),$O$9," ") ->  | M133: =IF(訂單填表!$U$16>=A133,訂單填表!$S$16," ") -> 
A134: 13 | B134: =CONCATENATE(訂單填表!$U$124,"-",訂單填表!$U$16,"-",A134) -> --13 | C134: =IF(訂單填表!$U$16>=A134,訂單填表!$N$16," ") ->  | D134: =IF(訂單填表!$U$16>=A134,訂單填表!$P$16," ") ->  | E134: =IF(訂單填表!$U$16>=A134,訂單填表!$CC$16," ") ->  | F134: =IF(訂單填表!$U$16>=A134,訂單填表!$BX$16," ") ->  | G134: =IF(訂單填表!$U$16>=A134,訂單填表!$BY$16," ") ->  | H134: =IF(訂單填表!$U$16>=A134,訂單填表!$BW$16," ") ->  | I134: =IF(訂單填表!$U$16>=A134,訂單填表!$BZ$16," ") ->  | J134: =IF(訂單填表!$U$16>=A134,訂單填表!$CA$16," ") ->  | L134: =IF(AND(訂單填表!$U$16>=標籤!A134,M134<>訂單填表!$AQ$11),$O$9," ") ->  | M134: =IF(訂單填表!$U$16>=A134,訂單填表!$S$16," ") -> 
A135: 14 | B135: =CONCATENATE(訂單填表!$U$124,"-",訂單填表!$U$16,"-",A135) -> --14 | C135: =IF(訂單填表!$U$16>=A135,訂單填表!$N$16," ") ->  | D135: =IF(訂單填表!$U$16>=A135,訂單填表!$P$16," ") ->  | E135: =IF(訂單填表!$U$16>=A135,訂單填表!$CC$16," ") ->  | F135: =IF(訂單填表!$U$16>=A135,訂單填表!$BX$16," ") ->  | G135: =IF(訂單填表!$U$16>=A135,訂單填表!$BY$16," ") ->  | H135: =IF(訂單填表!$U$16>=A135,訂單填表!$BW$16," ") ->  | I135: =IF(訂單填表!$U$16>=A135,訂單填表!$BZ$16," ") ->  | J135: =IF(訂單填表!$U$16>=A135,訂單填表!$CA$16," ") ->  | L135: =IF(AND(訂單填表!$U$16>=標籤!A135,M135<>訂單填表!$AQ$11),$O$9," ") ->  | M135: =IF(訂單填表!$U$16>=A135,訂單填表!$S$16," ") -> 
A136: 15 | B136: =CONCATENATE(訂單填表!$U$124,"-",訂單填表!$U$16,"-",A136) -> --15 | C136: =IF(訂單填表!$U$16>=A136,訂單填表!$N$16," ") ->  | D136: =IF(訂單填表!$U$16>=A136,訂單填表!$P$16," ") ->  | E136: =IF(訂單填表!$U$16>=A136,訂單填表!$CC$16," ") ->  | F136: =IF(訂單填表!$U$16>=A136,訂單填表!$BX$16," ") ->  | G136: =IF(訂單填表!$U$16>=A136,訂單填表!$BY$16," ") ->  | H136: =IF(訂單填表!$U$16>=A136,訂單填表!$BW$16," ") ->  | I136: =IF(訂單填表!$U$16>=A136,訂單填表!$BZ$16," ") ->  | J136: =IF(訂單填表!$U$16>=A136,訂單填表!$CA$16," ") ->  | L136: =IF(AND(訂單填表!$U$16>=標籤!A136,M136<>訂單填表!$AQ$11),$O$9," ") ->  | M136: =IF(訂單填表!$U$16>=A136,訂單填表!$S$16," ") -> 
A137: 16 | B137: =CONCATENATE(訂單填表!$U$124,"-",訂單填表!$U$16,"-",A137) -> --16 | C137: =IF(訂單填表!$U$16>=A137,訂單填表!$N$16," ") ->  | D137: =IF(訂單填表!$U$16>=A137,訂單填表!$P$16," ") ->  | E137: =IF(訂單填表!$U$16>=A137,訂單填表!$CC$16," ") ->  | F137: =IF(訂單填表!$U$16>=A137,訂單填表!$BX$16," ") ->  | G137: =IF(訂單填表!$U$16>=A137,訂單填表!$BY$16," ") ->  | H137: =IF(訂單填表!$U$16>=A137,訂單填表!$BW$16," ") ->  | I137: =IF(訂單填表!$U$16>=A137,訂單填表!$BZ$16," ") ->  | J137: =IF(訂單填表!$U$16>=A137,訂單填表!$CA$16," ") ->  | L137: =IF(AND(訂單填表!$U$16>=標籤!A137,M137<>訂單填表!$AQ$11),$O$9," ") ->  | M137: =IF(訂單填表!$U$16>=A137,訂單填表!$S$16," ") -> 
A138: 17 | B138: =CONCATENATE(訂單填表!$U$124,"-",訂單填表!$U$16,"-",A138) -> --17 | C138: =IF(訂單填表!$U$16>=A138,訂單填表!$N$16," ") ->  | D138: =IF(訂單填表!$U$16>=A138,訂單填表!$P$16," ") ->  | E138: =IF(訂單填表!$U$16>=A138,訂單填表!$CC$16," ") ->  | F138: =IF(訂單填表!$U$16>=A138,訂單填表!$BX$16," ") ->  | G138: =IF(訂單填表!$U$16>=A138,訂單填表!$BY$16," ") ->  | H138: =IF(訂單填表!$U$16>=A138,訂單填表!$BW$16," ") ->  | I138: =IF(訂單填表!$U$16>=A138,訂單填表!$BZ$16," ") ->  | J138: =IF(訂單填表!$U$16>=A138,訂單填表!$CA$16," ") ->  | L138: =IF(AND(訂單填表!$U$16>=標籤!A138,M138<>訂單填表!$AQ$11),$O$9," ") ->  | M138: =IF(訂單填表!$U$16>=A138,訂單填表!$S$16," ") -> 
A139: 18 | B139: =CONCATENATE(訂單填表!$U$124,"-",訂單填表!$U$16,"-",A139) -> --18 | C139: =IF(訂單填表!$U$16>=A139,訂單填表!$N$16," ") ->  | D139: =IF(訂單填表!$U$16>=A139,訂單填表!$P$16," ") ->  | E139: =IF(訂單填表!$U$16>=A139,訂單填表!$CC$16," ") ->  | F139: =IF(訂單填表!$U$16>=A139,訂單填表!$BX$16," ") ->  | G139: =IF(訂單填表!$U$16>=A139,訂單填表!$BY$16," ") ->  | H139: =IF(訂單填表!$U$16>=A139,訂單填表!$BW$16," ") ->  | I139: =IF(訂單填表!$U$16>=A139,訂單填表!$BZ$16," ") ->  | J139: =IF(訂單填表!$U$16>=A139,訂單填表!$CA$16," ") ->  | L139: =IF(AND(訂單填表!$U$16>=標籤!A139,M139<>訂單填表!$AQ$11),$O$9," ") ->  | M139: =IF(訂單填表!$U$16>=A139,訂單填表!$S$16," ") -> 
A140: 19 | B140: =CONCATENATE(訂單填表!$U$124,"-",訂單填表!$U$16,"-",A140) -> --19 | C140: =IF(訂單填表!$U$16>=A140,訂單填表!$N$16," ") ->  | D140: =IF(訂單填表!$U$16>=A140,訂單填表!$P$16," ") ->  | E140: =IF(訂單填表!$U$16>=A140,訂單填表!$CC$16," ") ->  | F140: =IF(訂單填表!$U$16>=A140,訂單填表!$BX$16," ") ->  | G140: =IF(訂單填表!$U$16>=A140,訂單填表!$BY$16," ") ->  | H140: =IF(訂單填表!$U$16>=A140,訂單填表!$BW$16," ") ->  | I140: =IF(訂單填表!$U$16>=A140,訂單填表!$BZ$16," ") ->  | J140: =IF(訂單填表!$U$16>=A140,訂單填表!$CA$16," ") ->  | L140: =IF(AND(訂單填表!$U$16>=標籤!A140,M140<>訂單填表!$AQ$11),$O$9," ") ->  | M140: =IF(訂單填表!$U$16>=A140,訂單填表!$S$16," ") -> 
A141: 20 | B141: =CONCATENATE(訂單填表!$U$124,"-",訂單填表!$U$16,"-",A141) -> --20 | C141: =IF(訂單填表!$U$16>=A141,訂單填表!$N$16," ") ->  | D141: =IF(訂單填表!$U$16>=A141,訂單填表!$P$16," ") ->  | E141: =IF(訂單填表!$U$16>=A141,訂單填表!$CC$16," ") ->  | F141: =IF(訂單填表!$U$16>=A141,訂單填表!$BX$16," ") ->  | G141: =IF(訂單填表!$U$16>=A141,訂單填表!$BY$16," ") ->  | H141: =IF(訂單填表!$U$16>=A141,訂單填表!$BW$16," ") ->  | I141: =IF(訂單填表!$U$16>=A141,訂單填表!$BZ$16," ") ->  | J141: =IF(訂單填表!$U$16>=A141,訂單填表!$CA$16," ") ->  | L141: =IF(AND(訂單填表!$U$16>=標籤!A141,M141<>訂單填表!$AQ$11),$O$9," ") ->  | M141: =IF(訂單填表!$U$16>=A141,訂單填表!$S$16," ") -> 
A142: 21 | B142: =CONCATENATE(訂單填表!$U$124,"-",訂單填表!$U$16,"-",A142) -> --21 | C142: =IF(訂單填表!$U$16>=A142,訂單填表!$N$16," ") ->  | D142: =IF(訂單填表!$U$16>=A142,訂單填表!$P$16," ") ->  | E142: =IF(訂單填表!$U$16>=A142,訂單填表!$CC$16," ") ->  | F142: =IF(訂單填表!$U$16>=A142,訂單填表!$BX$16," ") ->  | G142: =IF(訂單填表!$U$16>=A142,訂單填表!$BY$16," ") ->  | H142: =IF(訂單填表!$U$16>=A142,訂單填表!$BW$16," ") ->  | I142: =IF(訂單填表!$U$16>=A142,訂單填表!$BZ$16," ") ->  | J142: =IF(訂單填表!$U$16>=A142,訂單填表!$CA$16," ") ->  | L142: =IF(AND(訂單填表!$U$16>=標籤!A142,M142<>訂單填表!$AQ$11),$O$9," ") ->  | M142: =IF(訂單填表!$U$16>=A142,訂單填表!$S$16," ") -> 
A143: 22 | B143: =CONCATENATE(訂單填表!$U$124,"-",訂單填表!$U$16,"-",A143) -> --22 | C143: =IF(訂單填表!$U$16>=A143,訂單填表!$N$16," ") ->  | D143: =IF(訂單填表!$U$16>=A143,訂單填表!$P$16," ") ->  | E143: =IF(訂單填表!$U$16>=A143,訂單填表!$CC$16," ") ->  | F143: =IF(訂單填表!$U$16>=A143,訂單填表!$BX$16," ") ->  | G143: =IF(訂單填表!$U$16>=A143,訂單填表!$BY$16," ") ->  | H143: =IF(訂單填表!$U$16>=A143,訂單填表!$BW$16," ") ->  | I143: =IF(訂單填表!$U$16>=A143,訂單填表!$BZ$16," ") ->  | J143: =IF(訂單填表!$U$16>=A143,訂單填表!$CA$16," ") ->  | L143: =IF(AND(訂單填表!$U$16>=標籤!A143,M143<>訂單填表!$AQ$11),$O$9," ") ->  | M143: =IF(訂單填表!$U$16>=A143,訂單填表!$S$16," ") -> 
A144: 23 | B144: =CONCATENATE(訂單填表!$U$124,"-",訂單填表!$U$16,"-",A144) -> --23 | C144: =IF(訂單填表!$U$16>=A144,訂單填表!$N$16," ") ->  | D144: =IF(訂單填表!$U$16>=A144,訂單填表!$P$16," ") ->  | E144: =IF(訂單填表!$U$16>=A144,訂單填表!$CC$16," ") ->  | F144: =IF(訂單填表!$U$16>=A144,訂單填表!$BX$16," ") ->  | G144: =IF(訂單填表!$U$16>=A144,訂單填表!$BY$16," ") ->  | H144: =IF(訂單填表!$U$16>=A144,訂單填表!$BW$16," ") ->  | I144: =IF(訂單填表!$U$16>=A144,訂單填表!$BZ$16," ") ->  | J144: =IF(訂單填表!$U$16>=A144,訂單填表!$CA$16," ") ->  | L144: =IF(AND(訂單填表!$U$16>=標籤!A144,M144<>訂單填表!$AQ$11),$O$9," ") ->  | M144: =IF(訂單填表!$U$16>=A144,訂單填表!$S$16," ") -> 
A145: 24 | B145: =CONCATENATE(訂單填表!$U$124,"-",訂單填表!$U$16,"-",A145) -> --24 | C145: =IF(訂單填表!$U$16>=A145,訂單填表!$N$16," ") ->  | D145: =IF(訂單填表!$U$16>=A145,訂單填表!$P$16," ") ->  | E145: =IF(訂單填表!$U$16>=A145,訂單填表!$CC$16," ") ->  | F145: =IF(訂單填表!$U$16>=A145,訂單填表!$BX$16," ") ->  | G145: =IF(訂單填表!$U$16>=A145,訂單填表!$BY$16," ") ->  | H145: =IF(訂單填表!$U$16>=A145,訂單填表!$BW$16," ") ->  | I145: =IF(訂單填表!$U$16>=A145,訂單填表!$BZ$16," ") ->  | J145: =IF(訂單填表!$U$16>=A145,訂單填表!$CA$16," ") ->  | L145: =IF(AND(訂單填表!$U$16>=標籤!A145,M145<>訂單填表!$AQ$11),$O$9," ") ->  | M145: =IF(訂單填表!$U$16>=A145,訂單填表!$S$16," ") -> 
A146: 25 | B146: =CONCATENATE(訂單填表!$U$124,"-",訂單填表!$U$16,"-",A146) -> --25 | C146: =IF(訂單填表!$U$16>=A146,訂單填表!$N$16," ") ->  | D146: =IF(訂單填表!$U$16>=A146,訂單填表!$P$16," ") ->  | E146: =IF(訂單填表!$U$16>=A146,訂單填表!$CC$16," ") ->  | F146: =IF(訂單填表!$U$16>=A146,訂單填表!$BX$16," ") ->  | G146: =IF(訂單填表!$U$16>=A146,訂單填表!$BY$16," ") ->  | H146: =IF(訂單填表!$U$16>=A146,訂單填表!$BW$16," ") ->  | I146: =IF(訂單填表!$U$16>=A146,訂單填表!$BZ$16," ") ->  | J146: =IF(訂單填表!$U$16>=A146,訂單填表!$CA$16," ") ->  | L146: =IF(AND(訂單填表!$U$16>=標籤!A146,M146<>訂單填表!$AQ$11),$O$9," ") ->  | M146: =IF(訂單填表!$U$16>=A146,訂單填表!$S$16," ") -> 
A147: 26 | B147: =CONCATENATE(訂單填表!$U$124,"-",訂單填表!$U$16,"-",A147) -> --26 | C147: =IF(訂單填表!$U$16>=A147,訂單填表!$N$16," ") ->  | D147: =IF(訂單填表!$U$16>=A147,訂單填表!$P$16," ") ->  | E147: =IF(訂單填表!$U$16>=A147,訂單填表!$CC$16," ") ->  | F147: =IF(訂單填表!$U$16>=A147,訂單填表!$BX$16," ") ->  | G147: =IF(訂單填表!$U$16>=A147,訂單填表!$BY$16," ") ->  | H147: =IF(訂單填表!$U$16>=A147,訂單填表!$BW$16," ") ->  | I147: =IF(訂單填表!$U$16>=A147,訂單填表!$BZ$16," ") ->  | J147: =IF(訂單填表!$U$16>=A147,訂單填表!$CA$16," ") ->  | L147: =IF(AND(訂單填表!$U$16>=標籤!A147,M147<>訂單填表!$AQ$11),$O$9," ") ->  | M147: =IF(訂單填表!$U$16>=A147,訂單填表!$S$16," ") -> 
A148: 27 | B148: =CONCATENATE(訂單填表!$U$124,"-",訂單填表!$U$16,"-",A148) -> --27 | C148: =IF(訂單填表!$U$16>=A148,訂單填表!$N$16," ") ->  | D148: =IF(訂單填表!$U$16>=A148,訂單填表!$P$16," ") ->  | E148: =IF(訂單填表!$U$16>=A148,訂單填表!$CC$16," ") ->  | F148: =IF(訂單填表!$U$16>=A148,訂單填表!$BX$16," ") ->  | G148: =IF(訂單填表!$U$16>=A148,訂單填表!$BY$16," ") ->  | H148: =IF(訂單填表!$U$16>=A148,訂單填表!$BW$16," ") ->  | I148: =IF(訂單填表!$U$16>=A148,訂單填表!$BZ$16," ") ->  | J148: =IF(訂單填表!$U$16>=A148,訂單填表!$CA$16," ") ->  | L148: =IF(AND(訂單填表!$U$16>=標籤!A148,M148<>訂單填表!$AQ$11),$O$9," ") ->  | M148: =IF(訂單填表!$U$16>=A148,訂單填表!$S$16," ") -> 
A149: 28 | B149: =CONCATENATE(訂單填表!$U$124,"-",訂單填表!$U$16,"-",A149) -> --28 | C149: =IF(訂單填表!$U$16>=A149,訂單填表!$N$16," ") ->  | D149: =IF(訂單填表!$U$16>=A149,訂單填表!$P$16," ") ->  | E149: =IF(訂單填表!$U$16>=A149,訂單填表!$CC$16," ") ->  | F149: =IF(訂單填表!$U$16>=A149,訂單填表!$BX$16," ") ->  | G149: =IF(訂單填表!$U$16>=A149,訂單填表!$BY$16," ") ->  | H149: =IF(訂單填表!$U$16>=A149,訂單填表!$BW$16," ") ->  | I149: =IF(訂單填表!$U$16>=A149,訂單填表!$BZ$16," ") ->  | J149: =IF(訂單填表!$U$16>=A149,訂單填表!$CA$16," ") ->  | L149: =IF(AND(訂單填表!$U$16>=標籤!A149,M149<>訂單填表!$AQ$11),$O$9," ") ->  | M149: =IF(訂單填表!$U$16>=A149,訂單填表!$S$16," ") -> 
